Workbook

Sheet Summary
J4: Revenue Bonds/WO BAB | K4: BAB | L4: Total | N4: Revenue Bonds | Q4: Revolving Loan
B5: Revenue Bonds | D5: Premium | F5: =B5 -> Revenue Bonds | H5: Gain/(loss) | J5: FY 2015 | K5: =J5 -> FY 2015 | L5: Revenue Bond | N5: Accrued Interest | P5: Revolving Loan | Q5: =J5 -> FY 2015 | R5: Revolving Loan
B6: Long-term debt-Par | C6: Revenue Bond | D6: (Discount) | F6: Long-term debt-Net | H6: on Refunding | J6: Interest on | K6: Interest on | L6: Interest on | N6: Payable | P6: Debt Balance | Q6: Interest on | R6: Cash Balance
A7: Institution | B7: as of 6/30/2015 | C7: Accrual | D7: =B7 -> as of 6/30/2015 | F7: =H7 -> as of 6/30/2015 | H7: =D7 -> as of 6/30/2015 | J7: Indebtedness | K7: Indebtedness | L7: Indebtedness | N7: =F7 -> as of 6/30/2015 | P7: =N7 -> as of 6/30/2015 | Q7: Indebtedness | R7: =P7 -> as of 6/30/2015
A8: Academic
A9: UMAB | B9: ='04AB'!H85+'05A'!G223+'06A'!J64+'07A'!F104+'08AB'!G211+'09AB'!F68+'09C'!F129+'09D'!F213+'10AB'!F74+'10C'!F233+'10DE'!G74+'11A'!G60+'11B'!G230+'12AB'!G193+'12C'!G63+'12D'!G107+'14A'!G70+'14B'!G31+'15A'!G229 -> 46,475,152 | D9: ='04AB'!N85+'05A'!N223+'06A'!Q64+'07A'!L104+'08AB'!N211+'09AB'!L68+'09C'!L129+'09D'!L213+'10AB'!L74+'10C'!L233+'10DE'!N74+'11A'!N60+'11B'!L230+'12AB'!L193+'12C'!N63+'12D'!N107+'14A'!N70+'14B'!L31+'15A'!N229 -> 3,410,060 | F9: =SUM(B9:E9) -> 49,885,212 | H9: =-'04AB'!Q85-'05A'!R223-'07A'!O104-'08AB'!Q211-'09C'!O129-'09D'!O213-'10C'!O233-'11B'!P230-'12AB'!P193-'12D'!R107-'14B'!P31-'15A'!R229 -> (1,663,949) | J9: ='04AB'!T85+'05A'!S223+'06A'!R64+'07A'!P104+'08AB'!R211+'09AB'!M68+'09C'!P129+'09D'!P213+'10AB'!M74+'10C'!P233+'10DE'!O74+'11A'!O60+'11B'!S230+'12AB'!S193+'12C'!O63+'12D'!S107+'14A'!O70+'14B'!S31+'15A'!S229 -> 1,737,707 | L9: =SUM(J9:K9) -> 1,737,707 | N9: ='04AB'!S85+'05A'!J223+'06A'!M64+'07A'!I104+'08AB'!J211+'09AB'!I68+'09C'!I129+'09D'!I213+'10AB'!I74+'10C'!I233+'10DE'!J74+'11A'!J60+'11B'!R230+'12AB'!R193+'12C'!J63+'12D'!J107+'14A'!J70+'14B'!R31+'15A'!J229 -> 453,374
A10: UMCP | B10: ='04AB'!H86+'05A'!G224+'06A'!J65+'07A'!F105+'08AB'!G212+'09AB'!F69+'09C'!F130+'09D'!F214+'10AB'!F75+'10C'!F234+'10DE'!G75+'11A'!G61+'11B'!G231+'12AB'!G194+'12C'!G64+'12D'!G108+'14A'!G71+'14B'!G32+'15A'!G230 -> 68,413,992 | D10: ='04AB'!N86+'05A'!N224+'06A'!Q65+'07A'!L105+'08AB'!N212+'09AB'!L69+'09C'!L130+'09D'!L214+'10AB'!L75+'10C'!L234+'10DE'!N75+'11A'!N61+'11B'!L231+'12AB'!L194+'12C'!N64+'12D'!N108+'14A'!N71+'14B'!L32+'15A'!N230 -> 4,430,739 | F10: 72,844,731 | H10: =-'04AB'!Q86-'05A'!R224-'07A'!O105-'08AB'!Q212-'09C'!O130-'09D'!O214-'10C'!O234-'11B'!P231-'12AB'!P194-'12D'!R108-'14B'!P32-'15A'!R230 -> (1,458,904) | J10: ='04AB'!T86+'05A'!S224+'06A'!R65+'07A'!P105+'08AB'!R212+'09AB'!M69+'09C'!P130+'09D'!P214+'10AB'!M75+'10C'!P234+'10DE'!O75+'11A'!O61+'11B'!S231+'12AB'!S194+'12C'!O64+'12D'!S108+'14A'!O71+'14B'!S32+'15A'!S230 -> 2,810,334 | L10: =SUM(J10:K10) -> 2,810,334 | N10: ='04AB'!S86+'05A'!J224+'06A'!M65+'07A'!I105+'08AB'!J212+'09AB'!I69+'09C'!I130+'09D'!I214+'10AB'!I75+'10C'!I234+'10DE'!J75+'11A'!J61+'11B'!R231+'12AB'!R194+'12C'!J64+'12D'!J108+'14A'!J71+'14B'!R32+'15A'!J230 -> 713,696
A11: BSU | B11: ='04AB'!H87+'05A'!G225+'06A'!J66+'07A'!F106+'08AB'!G213+'09AB'!F70+'09C'!F131+'09D'!F215+'10AB'!F76+'10C'!F235+'10DE'!G76+'11A'!G62+'11B'!G232+'12AB'!G195+'12C'!G65+'12D'!G109+'14A'!G72+'14B'!G33+'15A'!G231 -> 10,845,846 | D11: ='04AB'!N87+'05A'!N225+'06A'!Q66+'07A'!L106+'08AB'!N213+'09AB'!L70+'09C'!L131+'09D'!L215+'10AB'!L76+'10C'!L235+'10DE'!N76+'11A'!N62+'11B'!L232+'12AB'!L195+'12C'!N65+'12D'!N109+'14A'!N72+'14B'!L33+'15A'!N231 -> 496,698 | F11: 11,342,544 | H11: =-'04AB'!Q87-'05A'!R225-'07A'!O106-'08AB'!Q213-'09C'!O131-'09D'!O215-'10C'!O235-'11B'!P232-'12AB'!P195-'12D'!R109-'14B'!P33-'15A'!R231 -> (104,838) | J11: ='04AB'!T87+'05A'!S225+'06A'!R66+'07A'!P106+'08AB'!R213+'09AB'!M70+'09C'!P131+'09D'!P215+'10AB'!M76+'10C'!P235+'10DE'!O76+'11A'!O62+'11B'!S232+'12AB'!S195+'12C'!O65+'12D'!S109+'14A'!O72+'14B'!S33+'15A'!S231 -> 407,735 | L11: 407,735 | N11: ='04AB'!S87+'05A'!J225+'06A'!M66+'07A'!I106+'08AB'!J213+'09AB'!I70+'09C'!I131+'09D'!I215+'10AB'!I76+'10C'!I235+'10DE'!J76+'11A'!J62+'11B'!R232+'12AB'!R195+'12C'!J65+'12D'!J109+'14A'!J72+'14B'!R33+'15A'!J231 -> 104,709
A12: TSU | B12: ='04AB'!H88+'05A'!G226+'06A'!J67+'07A'!F107+'08AB'!G214+'09AB'!F71+'09C'!F132+'09D'!F216+'10AB'!F77+'10C'!F236+'10DE'!G77+'11A'!G63+'11B'!G233+'12AB'!G196+'12C'!G66+'12D'!G110+'14A'!G73+'14B'!G34+'15A'!G232 -> 32,009,478 | D12: ='04AB'!N88+'05A'!N226+'06A'!Q67+'07A'!L107+'08AB'!N214+'09AB'!L71+'09C'!L132+'09D'!L216+'10AB'!L77+'10C'!L236+'10DE'!N77+'11A'!N63+'11B'!L233+'12AB'!L196+'12C'!N66+'12D'!N110+'14A'!N73+'14B'!L34+'15A'!N232 -> 1,603,702 | F12: 33,613,180 | H12: =-'04AB'!Q88-'05A'!R226-'07A'!O107-'08AB'!Q214-'09C'!O132-'09D'!O216-'10C'!O236-'11B'!P233-'12AB'!P196-'12D'!R110-'14B'!P34-'15A'!R232 -> (385,142) | J12: ='04AB'!T88+'05A'!S226+'06A'!R67+'07A'!P107+'08AB'!R214+'09AB'!M71+'09C'!P132+'09D'!P216+'10AB'!M77+'10C'!P236+'10DE'!O77+'11A'!O63+'11B'!S233+'12AB'!S196+'12C'!O66+'12D'!S110+'14A'!O73+'14B'!S34+'15A'!S232 -> 1,007,630 | L12: 1,007,630 | N12: ='04AB'!S88+'05A'!J226+'06A'!M67+'07A'!I107+'08AB'!J214+'09AB'!I71+'09C'!I132+'09D'!I216+'10AB'!I77+'10C'!I236+'10DE'!J77+'11A'!J63+'11B'!R233+'12AB'!R196+'12C'!J66+'12D'!J110+'14A'!J73+'14B'!R34+'15A'!J232 -> 263,912
A13: UMES | B13: ='04AB'!H89+'05A'!G227+'06A'!J68+'07A'!F108+'08AB'!G215+'09AB'!F72+'09C'!F133+'09D'!F217+'10AB'!F78+'10C'!F237+'10DE'!G78+'11A'!G64+'11B'!G234+'12AB'!G197+'12C'!G67+'12D'!G111+'14A'!G74+'14B'!G35+'15A'!G233 -> 12,538,229 | D13: ='04AB'!N89+'05A'!N227+'06A'!Q68+'07A'!L108+'08AB'!N215+'09AB'!L72+'09C'!L133+'09D'!L217+'10AB'!L78+'10C'!L237+'10DE'!N78+'11A'!N64+'11B'!L234+'12AB'!L197+'12C'!N67+'12D'!N111+'14A'!N74+'14B'!L35+'15A'!N233 -> 911,714 | F13: 13,449,943 | H13: =-'04AB'!Q89-'05A'!R227-'07A'!O108-'08AB'!Q215-'09C'!O133-'09D'!O217-'10C'!O237-'11B'!P234-'12AB'!P197-'12D'!R111-'14B'!P35-'15A'!R233 -> (180,682) | J13: ='04AB'!T89+'05A'!S227+'06A'!R68+'07A'!P108+'08AB'!R215+'09AB'!M72+'09C'!P133+'09D'!P217+'10AB'!M78+'10C'!P237+'10DE'!O78+'11A'!O64+'11B'!S234+'12AB'!S197+'12C'!O67+'12D'!S111+'14A'!O74+'14B'!S35+'15A'!S233 -> 405,656 | L13: 405,656 | N13: ='04AB'!S89+'05A'!J227+'06A'!M68+'07A'!I108+'08AB'!J215+'09AB'!I72+'09C'!I133+'09D'!I217+'10AB'!I78+'10C'!I237+'10DE'!J78+'11A'!J64+'11B'!R234+'12AB'!R197+'12C'!J67+'12D'!J111+'14A'!J74+'14B'!R35+'15A'!J233 -> 122,835
A14: FSU | B14: ='04AB'!H90+'05A'!G228+'06A'!J69+'07A'!F109+'08AB'!G216+'09AB'!F73+'09C'!F134+'09D'!F218+'10AB'!F79+'10C'!F238+'10DE'!G79+'11A'!G65+'11B'!G235+'12AB'!G198+'12C'!G68+'12D'!G112+'14A'!G75+'14B'!G36+'15A'!G234 -> 6,473,255 | D14: ='04AB'!N90+'05A'!N228+'06A'!Q69+'07A'!L109+'08AB'!N216+'09AB'!L73+'09C'!L134+'09D'!L218+'10AB'!L79+'10C'!L238+'10DE'!N79+'11A'!N65+'11B'!L235+'12AB'!L198+'12C'!N68+'12D'!N112+'14A'!N75+'14B'!L36+'15A'!N234 -> 459,581 | F14: 6,932,836 | H14: =-'04AB'!Q90-'05A'!R228-'07A'!O109-'08AB'!Q216-'09C'!O134-'09D'!O218-'10C'!O238-'11B'!P235-'12AB'!P198-'12D'!R112-'14B'!P36-'15A'!R234 -> (186,954) | J14: ='04AB'!T90+'05A'!S228+'06A'!R69+'07A'!P109+'08AB'!R216+'09AB'!M73+'09C'!P134+'09D'!P218+'10AB'!M79+'10C'!P238+'10DE'!O79+'11A'!O65+'11B'!S235+'12AB'!S198+'12C'!O68+'12D'!S112+'14A'!O75+'14B'!S36+'15A'!S234 -> 233,190 | L14: 233,190 | N14: ='04AB'!S90+'05A'!J228+'06A'!M69+'07A'!I109+'08AB'!J216+'09AB'!I73+'09C'!I134+'09D'!I218+'10AB'!I79+'10C'!I238+'10DE'!J79+'11A'!J65+'11B'!R235+'12AB'!R198+'12C'!J68+'12D'!J112+'14A'!J75+'14B'!R36+'15A'!J234 -> 62,720
A15: CSC | B15: ='04AB'!H91+'05A'!G229+'06A'!J70+'07A'!F110+'08AB'!G217+'09AB'!F74+'09C'!F135+'09D'!F219+'10AB'!F80+'10C'!F239+'10DE'!G80+'11A'!G66+'11B'!G236+'12AB'!G199+'12C'!G69+'12D'!G113+'14A'!G76+'14B'!G37+'15A'!G235 -> 35,708,013 | D15: ='04AB'!N91+'05A'!N229+'06A'!Q70+'07A'!L110+'08AB'!N217+'09AB'!L74+'09C'!L135+'09D'!L219+'10AB'!L80+'10C'!L239+'10DE'!N80+'11A'!N66+'11B'!L236+'12AB'!L199+'12C'!N69+'12D'!N113+'14A'!N76+'14B'!L37+'15A'!N235 -> 699,849 | F15: 36,407,862 | H15: =-'04AB'!Q91-'05A'!R229-'07A'!O110-'08AB'!Q217-'09C'!O135-'09D'!O219-'10C'!O239-'11B'!P236-'12AB'!P199-'12D'!R113-'14B'!P37-'15A'!R235 -> (116,500) | J15: ='04AB'!T91+'05A'!S229+'06A'!R70+'07A'!P110+'08AB'!R217+'09AB'!M74+'09C'!P135+'09D'!P219+'10AB'!M80+'10C'!P239+'10DE'!O80+'11A'!O66+'11B'!S236+'12AB'!S199+'12C'!O69+'12D'!S113+'14A'!O76+'14B'!S37+'15A'!S235 -> 621,567 | L15: 621,567 | N15: ='04AB'!S91+'05A'!J229+'06A'!M70+'07A'!I110+'08AB'!J217+'09AB'!I74+'09C'!I135+'09D'!I219+'10AB'!I80+'10C'!I239+'10DE'!J80+'11A'!J66+'11B'!R236+'12AB'!R199+'12C'!J69+'12D'!J113+'14A'!J76+'14B'!R37+'15A'!J235 -> 158,991
A16: UB | B16: ='04AB'!H92+'05A'!G230+'06A'!J71+'07A'!F111+'08AB'!G218+'09AB'!F75+'09C'!F136+'09D'!F220+'10AB'!F81+'10C'!F240+'10DE'!G81+'11A'!G67+'11B'!G237+'12AB'!G200+'12C'!G70+'12D'!G114+'14A'!G77+'14B'!G38+'15A'!G236 -> 4,602,202 | D16: ='04AB'!N92+'05A'!N230+'06A'!Q71+'07A'!L111+'08AB'!N218+'09AB'!L75+'09C'!L136+'09D'!L220+'10AB'!L81+'10C'!L240+'10DE'!N81+'11A'!N67+'11B'!L237+'12AB'!L200+'12C'!N70+'12D'!N114+'14A'!N77+'14B'!L38+'15A'!N236 -> 270,035 | F16: 4,872,237 | H16: =-'04AB'!Q92-'05A'!R230-'07A'!O111-'08AB'!Q218-'09C'!O136-'09D'!O220-'10C'!O240-'11B'!P237-'12AB'!P200-'12D'!R114-'14B'!P38-'15A'!R236 -> (85,982) | J16: ='04AB'!T92+'05A'!S230+'06A'!R71+'07A'!P111+'08AB'!R218+'09AB'!M75+'09C'!P136+'09D'!P220+'10AB'!M81+'10C'!P240+'10DE'!O81+'11A'!O67+'11B'!S237+'12AB'!S200+'12C'!O70+'12D'!S114+'14A'!O77+'14B'!S38+'15A'!S236 -> 153,478 | L16: 153,478 | N16: ='04AB'!S92+'05A'!J230+'06A'!M71+'07A'!I111+'08AB'!J218+'09AB'!I75+'09C'!I136+'09D'!I220+'10AB'!I81+'10C'!I240+'10DE'!J81+'11A'!J67+'11B'!R237+'12AB'!R200+'12C'!J70+'12D'!J114+'14A'!J77+'14B'!R38+'15A'!J236 -> 39,520
A17: SSU | B17: ='04AB'!H93+'05A'!G231+'06A'!J72+'07A'!F112+'08AB'!G219+'09AB'!F76+'09C'!F137+'09D'!F221+'10AB'!F82+'10C'!F241+'10DE'!G82+'11A'!G68+'11B'!G238+'12AB'!G201+'12C'!G71+'12D'!G115+'14A'!G78+'14B'!G39+'15A'!G237 -> 6,126,229 | D17: ='04AB'!N93+'05A'!N231+'06A'!Q72+'07A'!L112+'08AB'!N219+'09AB'!L76+'09C'!L137+'09D'!L221+'10AB'!L82+'10C'!L241+'10DE'!N82+'11A'!N68+'11B'!L238+'12AB'!L201+'12C'!N71+'12D'!N115+'14A'!N78+'14B'!L39+'15A'!N237 -> 321,346 | F17: 6,447,575 | H17: =-'04AB'!Q93-'05A'!R231-'07A'!O112-'08AB'!Q219-'09C'!O137-'09D'!O221-'10C'!O241-'11B'!P238-'12AB'!P201-'12D'!R115-'14B'!P39-'15A'!R237 -> (136,119) | J17: ='04AB'!T93+'05A'!S231+'06A'!R72+'07A'!P112+'08AB'!R219+'09AB'!M76+'09C'!P137+'09D'!P221+'10AB'!M82+'10C'!P241+'10DE'!O82+'11A'!O68+'11B'!S238+'12AB'!S201+'12C'!O71+'12D'!S115+'14A'!O78+'14B'!S39+'15A'!S237 -> 200,278 | L17: 200,278 | N17: ='04AB'!S93+'05A'!J231+'06A'!M72+'07A'!I112+'08AB'!J219+'09AB'!I76+'09C'!I137+'09D'!I221+'10AB'!I82+'10C'!I241+'10DE'!J82+'11A'!J68+'11B'!R238+'12AB'!R201+'12C'!J71+'12D'!J115+'14A'!J78+'14B'!R39+'15A'!J237 -> 50,054
A18: UMUC | B18: ='04AB'!H94+'05A'!G232+'06A'!J73+'07A'!F113+'08AB'!G220+'09AB'!F77+'09C'!F138+'09D'!F222+'10AB'!F83+'10C'!F242+'10DE'!G83+'11A'!G69+'11B'!G239+'12AB'!G202+'12C'!G72+'12D'!G116+'14A'!G79+'14B'!G40+'15A'!G238 -> 0 | D18: ='04AB'!N94+'05A'!N232+'06A'!Q73+'07A'!L113+'08AB'!N220+'09AB'!L77+'09C'!L138+'09D'!L222+'10AB'!L83+'10C'!L242+'10DE'!N83+'11A'!N69+'11B'!L239+'12AB'!L202+'12C'!N72+'12D'!N116+'14A'!N79+'14B'!L40+'15A'!N238 -> (0) | F18: (0) | H18: =-'04AB'!Q94-'05A'!R232-'07A'!O113-'08AB'!Q220-'09C'!O138-'09D'!O222-'10C'!O242-'11B'!P239-'12AB'!P202-'12D'!R116-'14B'!P40-'15A'!R238 -> 0 | J18: ='04AB'!T94+'05A'!S232+'06A'!R73+'07A'!P113+'08AB'!R220+'09AB'!M77+'09C'!P138+'09D'!P222+'10AB'!M83+'10C'!P242+'10DE'!O83+'11A'!O69+'11B'!S239+'12AB'!S202+'12C'!O72+'12D'!S116+'14A'!O79+'14B'!S40+'15A'!S238 -> 0 | L18: 0 | N18: ='04AB'!S94+'05A'!J232+'06A'!M73+'07A'!I113+'08AB'!J220+'09AB'!I77+'09C'!I138+'09D'!I222+'10AB'!I83+'10C'!I242+'10DE'!J83+'11A'!J69+'11B'!R239+'12AB'!R202+'12C'!J72+'12D'!J116+'14A'!J79+'14B'!R40+'15A'!J238 -> 0
A19: UMBC | B19: ='04AB'!H95+'05A'!G233+'06A'!J74+'07A'!F114+'08AB'!G221+'09AB'!F78+'09C'!F139+'09D'!F223+'10AB'!F84+'10C'!F243+'10DE'!G84+'11A'!G70+'11B'!G240+'12AB'!G203+'12C'!G73+'12D'!G117+'14A'!G80+'14B'!G41+'15A'!G239 -> 21,544,536 | D19: ='04AB'!N95+'05A'!N233+'06A'!Q74+'07A'!L114+'08AB'!N221+'09AB'!L78+'09C'!L139+'09D'!L223+'10AB'!L84+'10C'!L243+'10DE'!N84+'11A'!N70+'11B'!L240+'12AB'!L203+'12C'!N73+'12D'!N117+'14A'!N80+'14B'!L41+'15A'!N239 -> 985,092 | F19: 22,529,628 | H19: =-'04AB'!Q95-'05A'!R233-'07A'!O114-'08AB'!Q221-'09C'!O139-'09D'!O223-'10C'!O243-'11B'!P240-'12AB'!P203-'12D'!R117-'14B'!P41-'15A'!R239 -> (223,891) | J19: ='04AB'!T95+'05A'!S233+'06A'!R74+'07A'!P114+'08AB'!R221+'09AB'!M78+'09C'!P139+'09D'!P223+'10AB'!M84+'10C'!P243+'10DE'!O84+'11A'!O70+'11B'!S240+'12AB'!S203+'12C'!O73+'12D'!S117+'14A'!O80+'14B'!S41+'15A'!S239 -> 575,556 | L19: 575,556 | N19: ='04AB'!S95+'05A'!J233+'06A'!M74+'07A'!I114+'08AB'!J221+'09AB'!I78+'09C'!I139+'09D'!I223+'10AB'!I84+'10C'!I243+'10DE'!J84+'11A'!J70+'11B'!R240+'12AB'!R203+'12C'!J73+'12D'!J117+'14A'!J80+'14B'!R41+'15A'!J239 -> 151,040
A20: CEES | B20: ='04AB'!H96+'05A'!G234+'06A'!J75+'07A'!F115+'08AB'!G222+'09AB'!F79+'09C'!F140+'09D'!F224+'10AB'!F85+'10C'!F244+'10DE'!G85+'11A'!G71+'11B'!G241+'12AB'!G204+'12C'!G74+'12D'!G118+'14A'!G81+'14B'!G42+'15A'!G240 -> 4,535,018 | D20: ='04AB'!N96+'05A'!N234+'06A'!Q75+'07A'!L115+'08AB'!N222+'09AB'!L79+'09C'!L140+'09D'!L224+'10AB'!L85+'10C'!L244+'10DE'!N85+'11A'!N71+'11B'!L241+'12AB'!L204+'12C'!N74+'12D'!N118+'14A'!N81+'14B'!L42+'15A'!N240 -> 311,308 | F20: 4,846,326 | H20: =-'04AB'!Q96-'05A'!R234-'07A'!O115-'08AB'!Q222-'09C'!O140-'09D'!O224-'10C'!O244-'11B'!P241-'12AB'!P204-'12D'!R118-'14B'!P42-'15A'!R240 -> (112,244) | J20: ='04AB'!T96+'05A'!S234+'06A'!R75+'07A'!P115+'08AB'!R222+'09AB'!M79+'09C'!P140+'09D'!P224+'10AB'!M85+'10C'!P244+'10DE'!O85+'11A'!O71+'11B'!S241+'12AB'!S204+'12C'!O74+'12D'!S118+'14A'!O81+'14B'!S42+'15A'!S240 -> 156,589 | L20: 156,589 | N20: ='04AB'!S96+'05A'!J234+'06A'!M75+'07A'!I115+'08AB'!J222+'09AB'!I79+'09C'!I140+'09D'!I224+'10AB'!I85+'10C'!I244+'10DE'!J85+'11A'!J71+'11B'!R241+'12AB'!R204+'12C'!J74+'12D'!J118+'14A'!J81+'14B'!R42+'15A'!J240 -> 41,932
A21: USMH | B21: ='04AB'!H97+'05A'!G235+'06A'!J76+'07A'!F116+'08AB'!G223+'09AB'!F80+'09C'!F141+'09D'!F225+'10AB'!F86+'10C'!F245+'10DE'!G86+'11A'!G72+'11B'!G242+'12AB'!G205+'12C'!G75+'12D'!G119+'14A'!G82+'14B'!G43+'15A'!G241 -> 1,699,712 | D21: ='04AB'!N97+'05A'!N235+'06A'!Q76+'07A'!L116+'08AB'!N223+'09AB'!L80+'09C'!L141+'09D'!L225+'10AB'!L86+'10C'!L245+'10DE'!N86+'11A'!N72+'11B'!L242+'12AB'!L205+'12C'!N75+'12D'!N119+'14A'!N82+'14B'!L43+'15A'!N241 -> 155,883 | F21: 1,855,595 | H21: =-'04AB'!Q97-'05A'!R235-'07A'!O116-'08AB'!Q223-'09C'!O141-'09D'!O225-'10C'!O245-'11B'!P242-'12AB'!P205-'12D'!R119-'14B'!P43-'15A'!R241 -> (94,742) | J21: ='04AB'!T97+'05A'!S235+'06A'!R76+'07A'!P116+'08AB'!R223+'09AB'!M80+'09C'!P141+'09D'!P225+'10AB'!M86+'10C'!P245+'10DE'!O86+'11A'!O72+'11B'!S242+'12AB'!S205+'12C'!O75+'12D'!S119+'14A'!O82+'14B'!S43+'15A'!S241 -> 71,560 | L21: 71,560 | N21: ='04AB'!S97+'05A'!J235+'06A'!M76+'07A'!I116+'08AB'!J223+'09AB'!I80+'09C'!I141+'09D'!I225+'10AB'!I86+'10C'!I245+'10DE'!J86+'11A'!J72+'11B'!R242+'12AB'!R205+'12C'!J75+'12D'!J119+'14A'!J82+'14B'!R43+'15A'!J241 -> 18,564
A23: Totals Academic | B23: =SUM(B9:B22) -> 250,971,662 | C23: =SUM(C9:C22) -> 0 | D23: =SUM(D9:D22) -> 14,056,007 | F23: 265,027,669 | H23: =SUM(H9:H22) -> (4,749,947) | J23: 8,381,277 | K23: 0 | L23: 8,381,277 | N23: 2,181,343
A26: Auxiliary
A27: UMAB | B27: ='04AB'!H103+'05A'!G241+'06A'!J83+'07A'!F122+'08AB'!G229+'09AB'!F86+'09C'!F148+'09D'!F231+'10AB'!F93+'10C'!F251+'10DE'!G93+'11A'!G79+'11B'!G248+'12AB'!G211+'12C'!G82+'12D'!G125+'14A'!G89+'14B'!G49+'15A'!G247 -> 53,398,556 | D27: ='04AB'!N103+'05A'!N241+'06A'!Q83+'07A'!L122+'08AB'!N229+'09AB'!L86+'09C'!L148+'09D'!L231+'10AB'!L93+'10C'!L251+'10DE'!N93+'11A'!N79+'11B'!L248+'12AB'!L211+'12C'!N82+'12D'!N125+'14A'!N89+'14B'!L49+'15A'!N247 -> 4,774,328 | F27: =SUM(B27:E27) -> 58,172,884 | H27: =-'04AB'!Q103-'05A'!R241-'07A'!O122-'08AB'!Q229-'09C'!O148-'09D'!O231-'10C'!O251-'11B'!P248-'12AB'!P211-'12D'!R125-'14B'!P49-'15A'!R247 -> (2,643,938) | J27: ='04AB'!T103+'05A'!S241+'06A'!R83+'07A'!P122+'08AB'!R229+'09AB'!M86+'09C'!P148+'09D'!P231+'10AB'!M93+'10C'!P251+'10DE'!O93+'11A'!O79+'11B'!S248+'12AB'!S211+'12C'!O82+'12D'!S125+'14A'!O89+'14B'!S49+'15A'!S247 -> 2,242,039 | K27: =2254+2170+32+22 -> 4,478 | L27: =SUM(J27:K27) -> 2,246,517 | N27: ='04AB'!S103+'05A'!J241+'06A'!M83+'07A'!I122+'08AB'!J229+'09AB'!I86+'09C'!I148+'09D'!I231+'10AB'!I93+'10C'!I251+'10DE'!J93+'11A'!J79+'11B'!R248+'12AB'!R211+'12C'!J82+'12D'!J125+'14A'!J89+'14B'!R49+'15A'!J247 -> 586,479 | P27: 7,821,524 | Q27: 87,490 | R27: 1,085,475
A28: UMCP | B28: ='04AB'!H104+'05A'!G242+'06A'!J84+'07A'!F123+'08AB'!G230+'09AB'!F87+'09C'!F149+'09D'!F232+'10AB'!F94+'10C'!F252+'10DE'!G94+'11A'!G80+'11B'!G249+'12AB'!G212+'12C'!G83+'12D'!G126+'14A'!G90+'14B'!G50+'15A'!G248 -> 230,918,551 | C28: 806,896 | D28: ='04AB'!N104+'05A'!N242+'06A'!Q84+'07A'!L123+'08AB'!N230+'09AB'!L87+'09C'!L149+'09D'!L232+'10AB'!L94+'10C'!L252+'10DE'!N94+'11A'!N80+'11B'!L249+'12AB'!L212+'12C'!N83+'12D'!N126+'14A'!N90+'14B'!L50+'15A'!N248 -> 11,900,209 | F28: 243,625,656 | H28: =-'04AB'!Q104-'05A'!R242-'07A'!O123-'08AB'!Q230-'09C'!O149-'09D'!O232-'10C'!O252-'11B'!P249-'12AB'!P212-'12D'!R126-'14B'!P50-'15A'!R248 -> (4,576,849) | J28: ='04AB'!T104+'05A'!S242+'06A'!R84+'07A'!P123+'08AB'!R230+'09AB'!M87+'09C'!P149+'09D'!P232+'10AB'!M94+'10C'!P252+'10DE'!O94+'11A'!O80+'11B'!S249+'12AB'!S212+'12C'!O83+'12D'!S126+'14A'!O90+'14B'!S50+'15A'!S248 -> 9,376,867 | K28: =11915+280+4449+3742+3561+111+148+17 -> 24,223 | L28: =SUM(J28:K28) -> 9,401,090 | N28: ='04AB'!S104+'05A'!J242+'06A'!M84+'07A'!I123+'08AB'!J230+'09AB'!I87+'09C'!I149+'09D'!I232+'10AB'!I94+'10C'!I252+'10DE'!J94+'11A'!J80+'11B'!R249+'12AB'!R212+'12C'!J83+'12D'!J126+'14A'!J90+'14B'!R50+'15A'!J248 -> 1,931,045 | P28: 4,887,597 | Q28: 67,859 | R28: 1,235,592
A29: BSU | B29: ='04AB'!H105+'05A'!G243+'06A'!J85+'07A'!F124+'08AB'!G231+'09AB'!F88+'09C'!F150+'09D'!F233+'10AB'!F95+'10C'!F253+'10DE'!G95+'11A'!G81+'11B'!G250+'12AB'!G213+'12C'!G84+'12D'!G127+'14A'!G91+'14B'!G51+'15A'!G249 -> 33,055,756 | D29: ='04AB'!N105+'05A'!N243+'06A'!Q85+'07A'!L124+'08AB'!N231+'09AB'!L88+'09C'!L150+'09D'!L233+'10AB'!L95+'10C'!L253+'10DE'!N95+'11A'!N81+'11B'!L250+'12AB'!L213+'12C'!N84+'12D'!N127+'14A'!N91+'14B'!L51+'15A'!N249 -> 2,476,787 | F29: 35,532,543 | H29: =-'04AB'!Q105-'05A'!R243-'07A'!O124-'08AB'!Q231-'09C'!O150-'09D'!O233-'10C'!O253-'11B'!P250-'12AB'!P213-'12D'!R127-'14B'!P51-'15A'!R249 -> (46,296) | J29: ='04AB'!T105+'05A'!S243+'06A'!R85+'07A'!P124+'08AB'!R231+'09AB'!M88+'09C'!P150+'09D'!P233+'10AB'!M95+'10C'!P253+'10DE'!O95+'11A'!O81+'11B'!S250+'12AB'!S213+'12C'!O84+'12D'!S127+'14A'!O91+'14B'!S51+'15A'!S249 -> 1,143,687 | K29: =1349+57+368+905 -> 2,679 | L29: 1,146,366 | N29: ='04AB'!S105+'05A'!J243+'06A'!M85+'07A'!I124+'08AB'!J231+'09AB'!I88+'09C'!I150+'09D'!I233+'10AB'!I95+'10C'!I253+'10DE'!J95+'11A'!J81+'11B'!R250+'12AB'!R213+'12C'!J84+'12D'!J127+'14A'!J91+'14B'!R51+'15A'!J249 -> 304,028 | Q29: 4,855 | R29: 10,804
A30: TSU | B30: ='04AB'!H106+'05A'!G244+'06A'!J86+'07A'!F125+'08AB'!G232+'09AB'!F89+'09C'!F151+'09D'!F234+'10AB'!F96+'10C'!F254+'10DE'!G96+'11A'!G82+'11B'!G251+'12AB'!G214+'12C'!G85+'12D'!G128+'14A'!G92+'14B'!G52+'15A'!G250 -> 219,020,602 | D30: ='04AB'!N106+'05A'!N244+'06A'!Q86+'07A'!L125+'08AB'!N232+'09AB'!L89+'09C'!L151+'09D'!L234+'10AB'!L96+'10C'!L254+'10DE'!N96+'11A'!N82+'11B'!L251+'12AB'!L214+'12C'!N85+'12D'!N128+'14A'!N92+'14B'!L52+'15A'!N250 -> 10,770,770 | F30: 229,791,372 | H30: =-'04AB'!Q106-'05A'!R244-'07A'!O125-'08AB'!Q232-'09C'!O151-'09D'!O234-'10C'!O254-'11B'!P251-'12AB'!P214-'12D'!R128-'14B'!P52-'15A'!R250 -> (2,208,034) | J30: ='04AB'!T106+'05A'!S244+'06A'!R86+'07A'!P125+'08AB'!R232+'09AB'!M89+'09C'!P151+'09D'!P234+'10AB'!M96+'10C'!P254+'10DE'!O96+'11A'!O82+'11B'!S251+'12AB'!S214+'12C'!O85+'12D'!S128+'14A'!O92+'14B'!S52+'15A'!S250 -> 7,804,788 | K30: =44930+4622+20171+19522 -> 89,245 | L30: 7,894,033 | N30: ='04AB'!S106+'05A'!J244+'06A'!M86+'07A'!I125+'08AB'!J232+'09AB'!I89+'09C'!I151+'09D'!I234+'10AB'!I96+'10C'!I254+'10DE'!J96+'11A'!J82+'11B'!R251+'12AB'!R214+'12C'!J85+'12D'!J128+'14A'!J92+'14B'!R52+'15A'!J250 -> 1,829,976
A31: UMES | B31: ='04AB'!H107+'05A'!G245+'06A'!J87+'07A'!F126+'08AB'!G233+'09AB'!F90+'09C'!F152+'09D'!F235+'10AB'!F97+'10C'!F255+'10DE'!G97+'11A'!G83+'11B'!G252+'12AB'!G215+'12C'!G86+'12D'!G129+'14A'!G93+'14B'!G53+'15A'!G251 -> 21,952,060 | D31: ='04AB'!N107+'05A'!N245+'06A'!Q87+'07A'!L126+'08AB'!N233+'09AB'!L90+'09C'!L152+'09D'!L235+'10AB'!L97+'10C'!L255+'10DE'!N97+'11A'!N83+'11B'!L252+'12AB'!L215+'12C'!N86+'12D'!N129+'14A'!N93+'14B'!L53+'15A'!N251 -> 1,278,562 | F31: 23,230,622 | H31: =-'04AB'!Q107-'05A'!R245-'07A'!O126-'08AB'!Q233-'09C'!O152-'09D'!O235-'10C'!O255-'11B'!P252-'12AB'!P215-'12D'!R129-'14B'!P53-'15A'!R251 -> (577,680) | J31: ='04AB'!T107+'05A'!S245+'06A'!R87+'07A'!P126+'08AB'!R233+'09AB'!M90+'09C'!P152+'09D'!P235+'10AB'!M97+'10C'!P255+'10DE'!O97+'11A'!O83+'11B'!S252+'12AB'!S215+'12C'!O86+'12D'!S129+'14A'!O93+'14B'!S53+'15A'!S251 -> 1,030,473 | K31: =384+342+37 -> 763 | L31: 1,031,236 | N31: ='04AB'!S107+'05A'!J245+'06A'!M87+'07A'!I126+'08AB'!J233+'09AB'!I90+'09C'!I152+'09D'!I235+'10AB'!I97+'10C'!I255+'10DE'!J97+'11A'!J83+'11B'!R252+'12AB'!R215+'12C'!J86+'12D'!J129+'14A'!J93+'14B'!R53+'15A'!J251 -> 249,974
A32: FSU | B32: ='04AB'!H108+'05A'!G246+'06A'!J88+'07A'!F127+'08AB'!G234+'09AB'!F91+'09C'!F153+'09D'!F236+'10AB'!F98+'10C'!F256+'10DE'!G98+'11A'!G84+'11B'!G253+'12AB'!G216+'12C'!G87+'12D'!G130+'14A'!G94+'14B'!G54+'15A'!G252 -> 13,452,232 | D32: ='04AB'!N108+'05A'!N246+'06A'!Q88+'07A'!L127+'08AB'!N234+'09AB'!L91+'09C'!L153+'09D'!L236+'10AB'!L98+'10C'!L256+'10DE'!N98+'11A'!N84+'11B'!L253+'12AB'!L216+'12C'!N87+'12D'!N130+'14A'!N94+'14B'!L54+'15A'!N252 -> 424,397 | F32: 13,876,629 | H32: =-'04AB'!Q108-'05A'!R246-'07A'!O127-'08AB'!Q234-'09C'!O153-'09D'!O236-'10C'!O256-'11B'!P253-'12AB'!P216-'12D'!R130-'14B'!P54-'15A'!R252 -> (56,671) | J32: ='04AB'!T108+'05A'!S246+'06A'!R88+'07A'!P127+'08AB'!R234+'09AB'!M91+'09C'!P153+'09D'!P236+'10AB'!M98+'10C'!P256+'10DE'!O98+'11A'!O84+'11B'!S253+'12AB'!S216+'12C'!O87+'12D'!S130+'14A'!O94+'14B'!S54+'15A'!S252 -> 487,365 | K32: =6190+1109+4497+500 -> 12,296 | L32: 499,661 | N32: ='04AB'!S108+'05A'!J246+'06A'!M88+'07A'!I127+'08AB'!J234+'09AB'!I91+'09C'!I153+'09D'!I236+'10AB'!I98+'10C'!I256+'10DE'!J98+'11A'!J84+'11B'!R253+'12AB'!R216+'12C'!J87+'12D'!J130+'14A'!J94+'14B'!R54+'15A'!J252 -> 122,373 | P32: 21,767 | Q32: 7,151 | R32: 186,181
A33: CSC | B33: ='04AB'!H109+'05A'!G247+'06A'!J89+'07A'!F128+'08AB'!G235+'09AB'!F92+'09C'!F154+'09D'!F237+'10AB'!F99+'10C'!F257+'10DE'!G99+'11A'!G85+'11B'!G254+'12AB'!G217+'12C'!G88+'12D'!G131+'14A'!G95+'14B'!G55+'15A'!G253 -> 8,201,604 | D33: ='04AB'!N109+'05A'!N247+'06A'!Q89+'07A'!L128+'08AB'!N235+'09AB'!L92+'09C'!L154+'09D'!L237+'10AB'!L99+'10C'!L257+'10DE'!N99+'11A'!N85+'11B'!L254+'12AB'!L217+'12C'!N88+'12D'!N131+'14A'!N95+'14B'!L55+'15A'!N253 -> 535,958 | F33: 8,737,562 | H33: =-'04AB'!Q109-'05A'!R247-'07A'!O128-'08AB'!Q235-'09C'!O154-'09D'!O237-'10C'!O257-'11B'!P254-'12AB'!P217-'12D'!R131-'14B'!P55-'15A'!R253 -> (231,617) | J33: ='04AB'!T109+'05A'!S247+'06A'!R89+'07A'!P128+'08AB'!R235+'09AB'!M92+'09C'!P154+'09D'!P237+'10AB'!M99+'10C'!P257+'10DE'!O99+'11A'!O85+'11B'!S254+'12AB'!S217+'12C'!O88+'12D'!S131+'14A'!O95+'14B'!S55+'15A'!S253 -> 394,031 | K33: =335+162+43+125 -> 665 | L33: 394,696 | N33: ='04AB'!S109+'05A'!J247+'06A'!M89+'07A'!I128+'08AB'!J235+'09AB'!I92+'09C'!I154+'09D'!I237+'10AB'!I99+'10C'!I257+'10DE'!J99+'11A'!J85+'11B'!R254+'12AB'!R217+'12C'!J88+'12D'!J131+'14A'!J95+'14B'!R55+'15A'!J253 -> 96,324 | P33: 31,802 | Q33: 1,790 | R33: 98,468
A34: UB | B34: ='04AB'!H110+'05A'!G248+'06A'!J90+'07A'!F129+'08AB'!G236+'09AB'!F93+'09C'!F155+'09D'!F238+'10AB'!F100+'10C'!F258+'10DE'!G100+'11A'!G86+'11B'!G255+'12AB'!G218+'12C'!G89+'12D'!G132+'14A'!G96+'14B'!G56+'15A'!G254 -> 11,573,388 | D34: ='04AB'!N110+'05A'!N248+'06A'!Q90+'07A'!L129+'08AB'!N236+'09AB'!L93+'09C'!L155+'09D'!L238+'10AB'!L100+'10C'!L258+'10DE'!N100+'11A'!N86+'11B'!L255+'12AB'!L218+'12C'!N89+'12D'!N132+'14A'!N96+'14B'!L56+'15A'!N254 -> 978,082 | F34: 12,551,470 | H34: =-'04AB'!Q110-'05A'!R248-'07A'!O129-'08AB'!Q236-'09C'!O155-'09D'!O238-'10C'!O258-'11B'!P255-'12AB'!P218-'12D'!R132-'14B'!P56-'15A'!R254 -> (483,391) | J34: ='04AB'!T110+'05A'!S248+'06A'!R90+'07A'!P129+'08AB'!R236+'09AB'!M93+'09C'!P155+'09D'!P238+'10AB'!M100+'10C'!P258+'10DE'!O100+'11A'!O86+'11B'!S255+'12AB'!S218+'12C'!O89+'12D'!S132+'14A'!O96+'14B'!S56+'15A'!S254 -> 352,270 | L34: 352,270 | N34: ='04AB'!S110+'05A'!J248+'06A'!M90+'07A'!I129+'08AB'!J236+'09AB'!I93+'09C'!I155+'09D'!I238+'10AB'!I100+'10C'!I258+'10DE'!J100+'11A'!J86+'11B'!R255+'12AB'!R218+'12C'!J89+'12D'!J132+'14A'!J96+'14B'!R56+'15A'!J254 -> 106,807 | Q34: 336 | R34: 94,916
A35: SSU | B35: ='04AB'!H111+'05A'!G249+'06A'!J91+'07A'!F130+'08AB'!G237+'09AB'!F94+'09C'!F156+'09D'!F239+'10AB'!F101+'10C'!F259+'10DE'!G101+'11A'!G87+'11B'!G256+'12AB'!G219+'12C'!G90+'12D'!G133+'14A'!G97+'14B'!G57+'15A'!G255 -> 92,855,435 | D35: ='04AB'!N111+'05A'!N249+'06A'!Q91+'07A'!L130+'08AB'!N237+'09AB'!L94+'09C'!L156+'09D'!L239+'10AB'!L101+'10C'!L259+'10DE'!N101+'11A'!N87+'11B'!L256+'12AB'!L219+'12C'!N90+'12D'!N133+'14A'!N97+'14B'!L57+'15A'!N255 -> 4,441,053 | F35: 97,296,488 | H35: =-'04AB'!Q111-'05A'!R249-'07A'!O130-'08AB'!Q237-'09C'!O156-'09D'!O239-'10C'!O259-'11B'!P256-'12AB'!P219-'12D'!R133-'14B'!P57-'15A'!R255 -> (841,354) | J35: ='04AB'!T111+'05A'!S249+'06A'!R91+'07A'!P130+'08AB'!R237+'09AB'!M94+'09C'!P156+'09D'!P239+'10AB'!M101+'10C'!P259+'10DE'!O101+'11A'!O87+'11B'!S256+'12AB'!S219+'12C'!O90+'12D'!S133+'14A'!O97+'14B'!S57+'15A'!S255 -> 3,435,138 | K35: =30459+8321+11655+10066 -> 60,501 | L35: 3,495,639 | N35: ='04AB'!S111+'05A'!J249+'06A'!M91+'07A'!I130+'08AB'!J237+'09AB'!I94+'09C'!I156+'09D'!I239+'10AB'!I101+'10C'!I259+'10DE'!J101+'11A'!J87+'11B'!R256+'12AB'!R219+'12C'!J90+'12D'!J133+'14A'!J97+'14B'!R57+'15A'!J255 -> 875,745
A36: UMUC | B36: ='04AB'!H112+'05A'!G250+'06A'!J92+'07A'!F131+'08AB'!G238+'09AB'!F95+'09C'!F157+'09D'!F240+'10AB'!F102+'10C'!F260+'10DE'!G102+'11A'!G88+'11B'!G257+'12AB'!G220+'12C'!G91+'12D'!G134+'14A'!G98+'14B'!G58+'15A'!G256 -> 0 | D36: ='04AB'!N112+'05A'!N250+'06A'!Q92+'07A'!L131+'08AB'!N238+'09AB'!L95+'09C'!L157+'09D'!L240+'10AB'!L102+'10C'!L260+'10DE'!N102+'11A'!N88+'11B'!L257+'12AB'!L220+'12C'!N91+'12D'!N134+'14A'!N98+'14B'!L58+'15A'!N256 -> 0 | F36: 0 | H36: =-'04AB'!Q112-'05A'!R250-'07A'!O131-'08AB'!Q238-'09C'!O157-'09D'!O240-'10C'!O260-'11B'!P257-'12AB'!P220-'12D'!R134-'14B'!P58-'15A'!R256 -> (1) | J36: ='04AB'!T112+'05A'!S250+'06A'!R92+'07A'!P131+'08AB'!R238+'09AB'!M95+'09C'!P157+'09D'!P240+'10AB'!M102+'10C'!P260+'10DE'!O102+'11A'!O88+'11B'!S257+'12AB'!S220+'12C'!O91+'12D'!S134+'14A'!O98+'14B'!S58+'15A'!S256 -> 0 | L36: 0 | N36: ='04AB'!S112+'05A'!J250+'06A'!M92+'07A'!I131+'08AB'!J238+'09AB'!I95+'09C'!I157+'09D'!I240+'10AB'!I102+'10C'!I260+'10DE'!J102+'11A'!J88+'11B'!R257+'12AB'!R220+'12C'!J91+'12D'!J134+'14A'!J98+'14B'!R58+'15A'!J256 -> 0
A37: UMBC | B37: ='04AB'!H113+'05A'!G251+'06A'!J93+'07A'!F132+'08AB'!G239+'09AB'!F96+'09C'!F158+'09D'!F241+'10AB'!F103+'10C'!F261+'10DE'!G103+'11A'!G89+'11B'!G258+'12AB'!G221+'12C'!G92+'12D'!G135+'14A'!G99+'14B'!G59+'15A'!G257 -> 80,013,422 | D37: ='04AB'!N113+'05A'!N251+'06A'!Q93+'07A'!L132+'08AB'!N239+'09AB'!L96+'09C'!L158+'09D'!L241+'10AB'!L103+'10C'!L261+'10DE'!N103+'11A'!N89+'11B'!L258+'12AB'!L221+'12C'!N92+'12D'!N135+'14A'!N99+'14B'!L59+'15A'!N257 -> 4,896,561 | F37: 84,909,983 | H37: =-'04AB'!Q113-'05A'!R251-'07A'!O132-'08AB'!Q239-'09C'!O158-'09D'!O241-'10C'!O261-'11B'!P258-'12AB'!P221-'12D'!R135-'14B'!P59-'15A'!R257 -> (1,704,771) | J37: ='04AB'!T113+'05A'!S251+'06A'!R93+'07A'!P132+'08AB'!R239+'09AB'!M96+'09C'!P158+'09D'!P241+'10AB'!M103+'10C'!P261+'10DE'!O103+'11A'!O89+'11B'!S258+'12AB'!S221+'12C'!O92+'12D'!S135+'14A'!O99+'14B'!S59+'15A'!S257 -> 2,953,717 | K37: =8148+587+2624+4826 -> 16,185 | L37: 2,969,902 | N37: ='04AB'!S113+'05A'!J251+'06A'!M93+'07A'!I132+'08AB'!J239+'09AB'!I96+'09C'!I158+'09D'!I241+'10AB'!I103+'10C'!I261+'10DE'!J103+'11A'!J89+'11B'!R258+'12AB'!R221+'12C'!J92+'12D'!J135+'14A'!J99+'14B'!R59+'15A'!J257 -> 747,826 | P37: 835,639 | Q37: 11,951 | R37: 385,213
A38: CEES | B38: ='04AB'!H114+'05A'!G252+'06A'!J94+'07A'!F133+'08AB'!G240+'09AB'!F97+'09C'!F159+'09D'!F242+'10AB'!F104+'10C'!F262+'10DE'!G104+'11A'!G90+'11B'!G259+'12AB'!G222+'12C'!G93+'12D'!G136+'14A'!G100+'14B'!G60+'15A'!G258 -> 21,609 | D38: ='04AB'!N114+'05A'!N252+'06A'!Q94+'07A'!L133+'08AB'!N240+'09AB'!L97+'09C'!L159+'09D'!L242+'10AB'!L104+'10C'!L262+'10DE'!N104+'11A'!N90+'11B'!L259+'12AB'!L222+'12C'!N93+'12D'!N136+'14A'!N100+'14B'!L60+'15A'!N258 -> 1,799 | F38: 23,408 | H38: =-'04AB'!Q114-'05A'!R252-'07A'!O133-'08AB'!Q240-'09C'!O159-'09D'!O242-'10C'!O262-'11B'!P259-'12AB'!P222-'12D'!R136-'14B'!P60-'15A'!R258 -> (828) | J38: ='04AB'!T114+'05A'!S252+'06A'!R94+'07A'!P133+'08AB'!R240+'09AB'!M97+'09C'!P159+'09D'!P242+'10AB'!M104+'10C'!P262+'10DE'!O104+'11A'!O90+'11B'!S259+'12AB'!S222+'12C'!O93+'12D'!S136+'14A'!O100+'14B'!S60+'15A'!S258 -> 1,115 | L38: 1,115 | N38: ='04AB'!S114+'05A'!J252+'06A'!M94+'07A'!I133+'08AB'!J240+'09AB'!I97+'09C'!I159+'09D'!I242+'10AB'!I104+'10C'!I262+'10DE'!J104+'11A'!J90+'11B'!R259+'12AB'!R222+'12C'!J93+'12D'!J136+'14A'!J100+'14B'!R60+'15A'!J258 -> 269 | P38: 111,952 | Q38: 1,480 | R38: 2,865
A39: USMH | B39: ='04AB'!H115+'05A'!G253+'06A'!J95+'07A'!F134+'08AB'!G241+'09AB'!F98+'09C'!F160+'09D'!F243+'10AB'!F105+'10C'!F263+'10DE'!G105+'11A'!G91+'11B'!G260+'12AB'!G223+'12C'!G94+'12D'!G137+'14A'!G101+'14B'!G61+'15A'!G259 -> 35,255,120 | C39: (806,896) | D39: ='04AB'!N115+'05A'!N253+'06A'!Q95+'07A'!L134+'08AB'!N241+'09AB'!L98+'09C'!L160+'09D'!L243+'10AB'!L105+'10C'!L263+'10DE'!N105+'11A'!N91+'11B'!L260+'12AB'!L223+'12C'!N94+'12D'!N137+'14A'!N101+'14B'!L61+'15A'!N259 -> 13,590,590 | F39: 48,038,814 | H39: =-'04AB'!Q115-'05A'!R253-'07A'!O134-'08AB'!Q241-'09C'!O160-'09D'!O243-'10C'!O263-'11B'!P260-'12AB'!P223-'12D'!R137-'14B'!P61-'15A'!R259 -> (1,244,641) | J39: ='04AB'!T115+'05A'!S253+'06A'!R95+'07A'!P134+'08AB'!R241+'09AB'!M98+'09C'!P160+'09D'!P243+'10AB'!M105+'10C'!P263+'10DE'!O105+'11A'!O91+'11B'!S260+'12AB'!S223+'12C'!O94+'12D'!S137+'14A'!O101+'14B'!S61+'15A'!S259 -> 3,770,078 | K39: =374+111+148+110+418757+653900+657977+418306+653196+657268 -> 3,460,147 | L39: 7,230,225 | N39: ='04AB'!S115+'05A'!J253+'06A'!M95+'07A'!I134+'08AB'!J241+'09AB'!I98+'09C'!I160+'09D'!I243+'10AB'!I105+'10C'!I263+'10DE'!J105+'11A'!J91+'11B'!R260+'12AB'!R223+'12C'!J94+'12D'!J137+'14A'!J101+'14B'!R61+'15A'!J259 -> 1,698,582 | P39: =21289747-28 -> 21,289,719 | Q39: 254,588 | R39: 24,814,008
A41: Totals Auxiliary | B41: =SUM(B27:B40) -> 799,718,335 | C41: =SUM(C27:C40) -> 0 | D41: =SUM(D27:D40) -> 56,069,097 | F41: 855,787,432 | H41: =SUM(H27:H40) -> (14,616,070) | J41: 32,991,565 | K41: 3,671,182 | L41: 36,662,747 | N41: 8,549,425 | P41: 35,000,000 | Q41: 437,500 | R41: 27,913,522
A44: UMAB | B44: =B9+B27 -> 99,873,708 | C44: =C9+C27 -> 0 | D44: =D9+D27 -> 8,184,388 | F44: =SUM(B44:E44) -> 108,058,096 | H44: =H9+H27 -> (4,307,887) | J44: =J9+J27 -> 3,979,745 | K44: =K9+K27 -> 4,478 | L44: 3,984,223 | N44: 1,039,852 | P44: =P9+P27 -> 7,821,524 | Q44: 87,490 | R44: 1,085,475
A45: UMCP | B45: =B10+B28 -> 299,332,543 | C45: =C10+C28 -> 806,896 | D45: 16,330,948 | F45: 316,470,387 | H45: (6,035,752) | J45: 12,187,200 | K45: =K10+K28 -> 24,223 | L45: 12,211,423 | N45: 2,644,740 | P45: =P10+P28 -> 4,887,597 | Q45: 67,859 | R45: 1,235,592
A46: BSU | B46: 43,901,602 | C46: =C11+C29 -> 0 | D46: 2,973,485 | F46: 46,875,087 | H46: (151,134) | J46: 1,551,422 | K46: =K11+K29 -> 2,679 | L46: 1,554,101 | N46: 408,736 | P46: =P11+P29 -> 0 | Q46: 4,855 | R46: 10,804
A47: TSU | B47: 251,030,080 | C47: =C12+C30 -> 0 | D47: 12,374,472 | F47: 263,404,552 | H47: (2,593,176) | J47: 8,812,418 | K47: =K12+K30 -> 89,245 | L47: 8,901,663 | N47: 2,093,887 | P47: =P12+P30 -> 0 | Q47: 0 | R47: 0
A48: UMES | B48: 34,490,289 | C48: =C13+C31 -> 0 | D48: 2,190,276 | F48: 36,680,565 | H48: (758,362) | J48: 1,436,129 | K48: =K13+K31 -> 763 | L48: 1,436,892 | N48: 372,809 | P48: =P13+P31 -> 0 | Q48: 0 | R48: 0
A49: FSU | B49: 19,925,487 | C49: =C14+C32 -> 0 | D49: 883,978 | F49: 20,809,465 | H49: (243,626) | J49: 720,555 | K49: =K14+K32 -> 12,296 | L49: 732,851 | N49: 185,093 | P49: =P14+P32 -> 21,767 | Q49: 7,151 | R49: 186,181
A50: CSC | B50: 43,909,617 | C50: =C15+C33 -> 0 | D50: 1,235,807 | F50: 45,145,424 | H50: (348,116) | J50: 1,015,598 | K50: =K15+K33 -> 665 | L50: 1,016,263 | N50: 255,315 | P50: =P15+P33 -> 31,802 | Q50: 1,790 | R50: 98,468
A51: UB | B51: 16,175,590 | C51: =C16+C34 -> 0 | D51: 1,248,117 | F51: 17,423,707 | H51: (569,374) | J51: 505,748 | K51: =K16+K34 -> 0 | L51: 505,748 | N51: 146,327 | P51: =P16+P34 -> 0 | Q51: 336 | R51: 94,916
A52: SSU | B52: 98,981,664 | C52: =C17+C35 -> 0 | D52: 4,762,399 | F52: 103,744,063 | H52: (977,473) | J52: 3,635,416 | K52: =K17+K35 -> 60,501 | L52: 3,695,917 | N52: 925,799 | P52: =P17+P35 -> 0 | Q52: 0 | R52: 0
A53: UMUC
A54: UMBC | B54: 101,557,958 | C54: =C19+C37 -> 0 | D54: 5,881,653 | F54: =SUM(B54:E54) -> 107,439,611 | H54: =H19+H37 -> (1,928,662) | J54: 3,529,272 | K54: =K19+K37 -> 16,185 | L54: 3,545,457 | N54: 898,865 | P54: =P19+P37 -> 835,639 | Q54: 11,951 | R54: 385,213
A55: CEES | B55: 4,556,627 | C55: =C20+C38 -> 0 | D55: 313,107 | F55: =SUM(B55:E55) -> 4,869,734 | H55: =H20+H38 -> (113,072) | J55: 157,703 | K55: =K20+K38 -> 0 | L55: 157,703 | N55: 42,201 | P55: =P20+P38 -> 111,952 | Q55: 1,480 | R55: 2,865
A56: USMH | B56: 36,954,832 | C56: =C21+C39 -> (806,896) | D56: 13,746,473 | F56: =SUM(B56:E56) -> 49,894,409 | H56: =H21+H39 -> (1,339,383) | J56: =J21+J39 -> 3,841,637 | K56: =K21+K39 -> 3,460,147 | L56: 7,301,784 | N56: =N21+N39 -> 1,717,146 | P56: =P21+P39 -> 21,289,719 | Q56: 254,588 | R56: 24,814,008
A58: Totals | B58: =SUM(B44:B57) -> 1,050,689,997 | C58: =SUM(C44:C57) -> 0 | D58: =SUM(D44:D57) -> 70,125,105 | F58: =SUM(F44:F57) -> 1,120,815,102 | H58: =SUM(H44:H57) -> (19,366,016) | J58: =SUM(J44:J57) -> 41,372,842 | K58: 3,671,182 | L58: 45,044,024 | N58: 10,730,767 | P58: =SUM(P44:P57) -> 35,000,000 | Q58: 437,500 | R58: 27,913,522
B60: ='04AB'!H135+'05A'!G272+'06A'!J116+'07A'!F155+'08AB'!G262+'09AB'!F119+'09C'!F181+'09D'!F263+'10AB'!F126+'10C'!F283+'10DE'!G126+'11A'!G112+'11B'!G280+'12AB'!G243+'12C'!G115+'12D'!G157+'14A'!G122+'14B'!G81+'15A'!G280 -> 1,050,689,997 | D60: ='04AB'!N135+'05A'!N272+'06A'!Q116+'07A'!L155+'08AB'!N262+'09AB'!L119+'09C'!L181+'09D'!L263+'10AB'!L126+'10C'!L283+'10DE'!N126+'11A'!N112+'11B'!L280+'12AB'!L243+'12C'!N115+'12D'!N157+'14A'!N122+'14B'!L81+'15A'!N280 -> 70,125,105 | F60: =SUM(B60:E60) -> 1,120,815,102 | H60: =-'04AB'!Q135-'05A'!R272-'07A'!O155-'08AB'!Q262-'09C'!O181-'09D'!O263-'10C'!O283-'11B'!P280-'12AB'!P243-'12D'!R157-'14B'!P81-'15A'!R280 -> (19,366,016) | J60: ='04AB'!T135+'05A'!S272+'06A'!R116+'07A'!P155+'08AB'!R262+'09AB'!M119+'09C'!P181+'09D'!P263+'10AB'!M126+'10C'!P283+'10DE'!O126+'11A'!O112+'11B'!S280+'12AB'!S243+'12C'!O115+'12D'!S157+'14A'!O122+'14B'!S81+'15A'!S280 -> 41,372,842 | N60: ='04AB'!S135+'05A'!J272+'06A'!M116+'07A'!I155+'08AB'!J262+'09AB'!I119+'09C'!I181+'09D'!I263+'10AB'!I126+'10C'!I283+'10DE'!J126+'11A'!J112+'11B'!R280+'12AB'!R243+'12C'!J115+'12D'!J157+'14A'!J122+'14B'!R81+'15A'!J280 -> 10,730,767
B62: =B58-B60 -> 0 | D62: =D58-D60 -> 0 | F62: =F58-F60 -> 0 | H62: =H58-H60 -> 0 | J62: =J58-J60 -> 0 | N62: 0
A65: FY15 Premium Amortization | B65: ='04AB'!M135+'05A'!M272+'06A'!P116+'07A'!K155+'08AB'!M262+'09AB'!K119+'09C'!K181+'09D'!K263+'10AB'!K126+'10C'!K283+'10DE'!M126+'11A'!M112+'11B'!K280+'12AB'!K243+'12C'!M115+'12D'!M157+'14A'!M122+'14B'!K81+'15A'!M280 -> 6,458,200.55

Sheet debt allocation
A1: University System of Maryland
A2: Distribution of Revenue Bonds and Equipment Loan Program Debt
A3: As of June 30, 2015
B7: UMB | C7: UMCP | D7: BSU | E7: TU | F7: UMES | G7: FSU | H7: CSU | I7: UB | J7: SU | K7: UMUC | L7: UMBC | M7: UMCES | N7: USMO | O7: TOTAL
A8: Principal:
A10: 2004 Series A&B | B10: 0 | C10: 65,000 | D10: 0 | E10: 0 | F10: 0 | G10: 0 | H10: 0 | I10: 0 | J10: 0 | K10: 0 | L10: 0 | M10: 0 | N10: 0 | O10: =SUM(B10:N10) -> 65,000
A11: 2005 Series A | B11: 0 | C11: 0 | D11: 0 | E11: 0 | F11: 0 | G11: 0 | H11: 0 | I11: 0 | J11: 0 | K11: 0 | L11: 0 | M11: 0 | N11: 0 | O11: 0
A12: 2006 Series A | B12: 3,955,045 | C12: 710,655 | D12: 107,110 | E12: 3,570,011 | F12: 161,304 | G12: 199,504 | H12: 118,825 | I12: 16,331 | J12: 539,782 | K12: 0 | L12: 1,552,970 | M12: 52,179 | N12: 211,284 | O12: 11,195,000
A13: 2007 Series A | B13: 9,290,626 | C13: 26,290,976 | D13: 384,142 | E13: 13,079,997 | F13: 5,245,381 | G13: 193,211 | H13: 3,073,104 | I13: 251,410 | J13: 449,415 | K13: 0 | L13: 8,829,762 | M13: 144,226 | N13: 2,897,750 | O13: 70,130,000
A14: 2008 Series A & B | B14: 5,854,070 | C14: 12,052,742 | D14: 262,218 | E14: 1,660,054 | F14: 3,001,375 | G14: 507,800 | H14: 293,582 | I14: 178,192 | J14: 2,828,594 | K14: 0 | L14: 3,422,851 | M14: 67,977 | N14: 2,505,545 | O14: 32,635,000
A15: 2009 Series A & B | B15: 6,203,210 | C15: 17,759,866 | D15: 6,327,853 | E15: 11,593,336 | F15: 1,037,006 | G15: 2,749,080 | H15: 9,173,548 | I15: 149,894 | J15: 20,143,389 | K15: 0 | L15: 1,706,916 | M15: 256,769 | N15: 694,133 | O15: 77,795,000
A16: 2009 Series C | B16: 1,134,711 | C16: 8,630,989 | D16: 44,617 | E16: 408,346 | F16: 3,663,214 | G16: 414,299 | H16: 206,904 | I16: 81,553 | J16: 38,966 | K16: 0 | L16: 3,712,149 | M16: 15,111 | N16: 9,141 | O16: 18,360,000
A17: 2009 Series D | B17: 5,482,508 | C17: 17,302,568 | D17: 325,208 | E17: 5,656,175 | F17: 3,101,917 | G17: 614,424 | H17: 716,898 | I17: 830,345 | J17: 221,705 | K17: 0 | L17: 3,643,110 | M17: 441,623 | N17: 1,543,519 | O17: 39,880,000
A18: 2010 Series A & B | B18: 4,145,356 | C18: 10,911,855 | D18: 1,002,733 | E18: 39,906,985 | F18: 703,505 | G18: 8,719,697 | H18: 2,140,894 | I18: 651,960 | J18: 22,759,933 | K18: 0 | L18: 5,349,100 | M18: 24,685 | N18: 863,297 | O18: 97,180,000
A19: 2010 Series C | B19: 9,397,623 | C19: 11,267,049 | D19: 443,439 | E19: 2,638,234 | F19: 3,108,979 | G19: 1,114,043 | H19: 492,182 | I19: 5,116,748 | J19: 173,451 | K19: 0 | L19: 4,025,894 | M19: 797,834 | N19: 1,219,520 | O19: 39,794,996
A20: 2010 Series D & E | B20: 960,607 | C20: 11,982,518 | D20: 2,083,624 | E20: 46,873,206 | F20: 656,722 | G20: 1,442,725 | H20: 1,622,189 | I20: 97,718 | J20: 19,715,714 | K20: 0 | L20: 10,799,260 | M20: 137,604 | N20: 253,113 | O20: 96,625,000
A21: 2011 Series A & B | B21: 7,092,147 | C21: 37,783,632 | D21: 9,786,747 | E21: 44,922,846 | F21: 2,795,786 | G21: 1,285,292 | H21: 1,103,818 | I21: 2,483,050 | J21: 5,084,342 | K21: 0 | L21: 11,748,350 | M21: 928,687 | N21: 1,165,303 | O21: 126,180,000
A22: 2012 Series A & B | B22: 5,996,353 | C22: 24,116,010 | D22: 151,892 | E22: 1,541,541 | F22: 2,617,177 | G22: 118,803 | H22: 1,313,149 | I22: 1,790,576 | J22: 1,490,852 | K22: 0 | L22: 3,056,728 | M22: 167,513 | N22: 6,484,406 | O22: 48,845,000
A23: 2012 Series C & D | B23: 21,244,686 | C23: 38,794,202 | D23: 20,278,954 | E23: 33,323,685 | F23: 1,799,020 | G23: 1,301,975 | H23: 1,117,823 | I23: 3,162,085 | J23: 16,341,287 | K23: 0 | L23: 19,868,556 | M23: 685,123 | N23: 922,604 | O23: =SUM(B23:N23) -> 158,840,000
A24: 2014 Series A & B | B24: 2,918,632 | C24: 44,607,339 | D24: 1,891,112 | E24: 38,914,754 | F24: 42,843 | G24: 259,520 | H24: 19,740,311 | I24: 500,157 | J24: 2,825,612 | K24: 0 | L24: 14,465,293 | M24: 435,542 | N24: 12,873,886 | O24: =SUM(B24:N24) -> 139,475,001
A25: 2015 Series A | B25: 16,198,134 | C25: 37,057,142 | D25: 811,953 | E25: 6,940,910 | F25: 6,556,060 | G25: 1,005,114 | H25: 2,796,390 | I25: 865,571 | J25: 6,368,622 | K25: 0 | L25: 9,377,019 | M25: 401,754 | N25: 5,311,331 | O25: =SUM(B25:N25) -> 93,690,000
A28: Total | B28: =SUM(B10:B26) -> 99,873,708 | C28: 299,332,543 | D28: 43,901,602 | E28: 251,030,080 | F28: 34,490,289 | G28: 19,925,487 | H28: 43,909,617 | I28: 16,175,590 | J28: 98,981,664 | K28: 0 | L28: 101,557,958 | M28: 4,556,627 | N28: 36,954,832 | O28: 1,050,689,997
A30: Unamortized (discount)premium:
A32: 2004 Series A & B | B32: 0 | C32: 830 | D32: 0 | E32: 0 | F32: 0 | G32: 0 | H32: 0 | I32: 0 | J32: 0 | K32: 0 | L32: 0 | M32: 0 | N32: 0 | O32: =SUM(B32:N32) -> 830
A33: 2005 Series A | B33: 1 | C33: 2 | D33: 0 | E33: (1) | F33: (0) | G33: 1 | H33: 1 | I33: 0 | J33: 1 | K33: (0) | L33: (2) | M33: (0) | N33: 0 | O33: 4
A34: 2006 Series A | B34: 98,673 | C34: 17,730 | D34: 2,670 | E34: 89,065 | F34: 4,027 | G34: 4,975 | H34: 2,969 | I34: 410 | J34: 13,467 | K34: 0 | L34: 38,742 | M34: 1,304 | N34: 5,265 | O34: 279,297
A35: 2007 Series A | B35: 264,102 | C35: 667,119 | D35: 10,941 | E35: 363,086 | F35: 128,155 | G35: 5,033 | H35: 79,750 | I35: 7,170 | J35: 12,803 | K35: 0 | L35: 209,020 | M35: 3,756 | N35: 81,357 | O35: 1,832,293
A36: 2008 Series A & B | B36: 124,838 | C36: 188,266 | D36: 5,654 | E36: 34,463 | F36: 30,357 | G36: 7,389 | H36: 4,631 | I36: 3,284 | J36: 65,876 | K36: 0 | L36: 39,710 | M36: 1,426 | N36: 58,630 | O36: 564,525
A37: 2009 Series A & B | B37: 215,051 | C37: 615,715 | D37: 219,386 | E37: 401,919 | F37: 35,951 | G37: 95,315 | H37: 318,046 | I37: 5,193 | J37: 698,340 | K37: 0 | L37: 59,181 | M37: 8,901 | N37: 24,064 | O37: 2,697,062
A38: 2009 Series C | B38: 29,074 | C38: 221,209 | D38: 1,144 | E38: 10,465 | F38: 93,882 | G38: 10,628 | H38: 5,305 | I38: 2,093 | J38: 998 | K38: 0 | L38: 95,141 | M38: 388 | N38: 225 | O38: 470,552
A39: 2009 Series D | B39: 195,280 | C39: 692,043 | D39: 11,177 | E39: 234,442 | F39: 108,241 | G39: 19,020 | H39: 25,166 | I39: 26,115 | J39: 7,366 | K39: 0 | L39: 134,699 | M39: 13,626 | N39: 52,885 | O39: 1,520,060
A40: 2010 Series A & B | B40: 91,296 | C40: 240,312 | D40: 22,075 | E40: 878,904 | F40: 15,498 | G40: 192,041 | H40: 47,157 | I40: 14,355 | J40: 501,247 | K40: 0 | L40: 117,806 | M40: 544 | N40: 19,018 | O40: 2,140,253
A41: 2010 Series C | B41: 664,400 | C41: 832,859 | D41: 32,375 | E41: 183,955 | F41: 226,984 | G41: 82,021 | H41: 35,796 | I41: 355,045 | J41: 13,117 | K41: 0 | L41: 290,598 | M41: 58,809 | N41: 91,663 | O41: 2,867,622
A42: 2010 Series D & E | B42: 23,733 | C42: 296,045 | D42: 51,476 | E42: 1,158,012 | F42: 16,221 | G42: 35,643 | H42: 40,076 | I42: 2,418 | J42: 487,085 | K42: 0 | L42: 266,811 | M42: 3,394 | N42: 6,257 | O42: 2,387,171
A43: 2011 Series A&B | B43: 585,884 | C43: 3,368,857 | D43: 884,167 | E43: 4,046,463 | F43: 225,296 | G43: 111,278 | H43: 97,639 | I43: 199,087 | J43: 459,304 | K43: 0 | L43: 1,044,012 | M43: 80,561 | N43: 97,759 | O43: 11,200,307
A44: 2012 Series A& B | B44: 418,299 | C44: 769,887 | D44: 8,711 | E44: 102,074 | F44: 148,548 | G44: 7,671 | H44: 69,484 | I44: 117,387 | J44: 125,002 | K44: 0 | L44: 173,992 | M44: 10,783 | N44: 52,441 | O44: 2,004,279
A45: 2012 Series C & D | B45: 3,277,705 | C45: 3,333,305 | D45: 1,614,543 | E45: 3,938,431 | F45: 275,664 | G45: 177,826 | H45: 133,818 | I45: 399,185 | J45: 1,456,963 | K45: 0 | L45: 2,144,070 | M45: 75,602 | N45: 151,991 | O45: =SUM(B45:N45) -> 16,979,103
A46: 2014 Series A & B | B46: 18,247 | C46: 104,503 | D46: 0 | E46: 0 | F46: 0 | G46: 0 | H46: 0 | I46: 0 | J46: 64,581 | K46: 0 | L46: 7,148 | M46: 0 | N46: 12,390,822 | O46: =SUM(B46:N46) -> 12,585,301
A47: 2015 Series A | B47: 2,177,806 | C47: 4,982,266 | D47: 109,166 | E47: 933,194 | F47: 881,451 | G47: 135,137 | H47: 375,969 | I47: 116,375 | J47: 856,249 | K47: 0 | L47: 1,260,724 | M47: 54,013 | N47: 714,096 | O47: =SUM(B47:N47) -> 12,596,446
A50: Total | B50: =SUM(B32:B48) -> 8,184,388 | C50: 16,330,949 | D50: 2,973,485 | E50: 12,374,472 | F50: 2,190,276 | G50: 883,978 | H50: 1,235,807 | I50: 1,248,117 | J50: 4,762,399 | K50: (0) | L50: 5,881,653 | M50: 313,107 | N50: 13,746,473 | O50: 70,125,105
A52: Net Revenue Bonds | B52: =+B28+B50 -> 108,058,096 | C52: 315,663,492 | D52: 46,875,087 | E52: 263,404,552 | F52: 36,680,565 | G52: 20,809,465 | H52: 45,145,424 | I52: 17,423,707 | J52: 103,744,063 | K52: (0) | L52: 107,439,611 | M52: 4,869,734 | N52: 50,701,305 | O52: 1,120,815,102
A54: Other Debt:
A56: Eq Loan Program - 2003A | B56: 7,821,524 | C56: 4,887,597 | D56: 0 | E56: 0 | F56: 0 | G56: 21,767 | H56: 31,802 | I56: 0 | J56: 0 | L56: 835,639 | M56: 111,952 | N56: 21,289,719 | O56: =SUM(B56:N56) -> 35,000,000
A57: EPC | C57: 14,806,969 | I57: 5,338,304 | L57: 615,987 | M57: 2,920,263 | O57: =SUM(B57:N57) -> 23,681,523
A58: MEA | C58: 2,305,824 | I58: 233,310 | M58: 1,478,372 | O58: =SUM(B58:N58) -> 4,017,506
A59: CISCO | C59: 5,033,930 | O59: =SUM(B59:N59) -> 5,033,930
A61: Total other debt | B61: =SUM(B56:B60) -> 7,821,524 | C61: 27,034,320 | D61: 0 | E61: 0 | F61: 0 | G61: 21,767 | H61: 31,802 | I61: 5,571,614 | J61: 0 | K61: 0 | L61: 1,451,626 | M61: 4,510,587 | N61: 21,289,719 | O61: 67,732,959
A63: Total | B63: =B52+B61 -> 115,879,620 | C63: 342,697,812 | D63: 46,875,087 | E63: 263,404,552 | F63: 36,680,565 | G63: 20,831,232 | H63: 45,177,226 | I63: 22,995,321 | J63: 103,744,063 | K63: (0) | L63: 108,891,237 | M63: 9,380,321 | N63: 71,991,024 | O63: 1,188,548,061
A65: Unamortized loss on refunding:
A67: 2004 Series A&B | B67: 0 | C67: 14,186 | D67: 0 | E67: 0 | F67: 0 | G67: 0 | H67: 0 | I67: 0 | J67: 0 | K67: 0 | L67: 0 | M67: 0 | N67: (4) | O67: =SUM(B67:N67) -> 14,182
A68: 2005 Series A | B68: 1 | C68: (2) | D68: 1 | E68: 1 | F68: 1 | G68: (0) | H68: (0) | I68: 0 | J68: (1) | K68: 0 | L68: 1 | M68: 1 | N68: (1) | O68: 1
A69: 2006 Series A | B69: 0 | C69: 0 | D69: 0 | E69: 0 | F69: 0 | G69: 0 | H69: 0 | I69: 0 | J69: 0 | K69: 0 | L69: 0 | M69: 0 | N69: 0 | O69: 0
A70: 2007 Series A | B70: (104,087) | C70: (417,702) | D70: (4,270) | E70: (159,988) | F70: (90,925) | G70: (2,872) | H70: (46,090) | I70: (2,805) | J70: (4,987) | K70: 0 | L70: (163,301) | M70: (2,138) | N70: (33,974) | O70: (1,033,141)
A71: 2008 Series A | B71: (6,923) | C71: (52,807) | D71: (274) | E71: (2,503) | F71: (22,420) | G71: (2,541) | H71: (1,269) | I71: (505) | J71: (232) | K71: 0 | L71: (22,703) | M71: (90) | N71: (60) | O71: (112,326)
A72: 2009 Series A & B | B72: 0 | C72: 0 | D72: 0 | E72: 0 | F72: 0 | G72: 0 | H72: 0 | I72: 0 | J72: 0 | K72: 0 | L72: 0 | M72: 0 | N72: 0 | O72: 0
A73: 2009 Series C | B73: (18,223) | C73: (138,480) | D73: (711) | E73: (6,553) | F73: (58,776) | G73: (6,645) | H73: (3,319) | I73: (1,313) | J73: (631) | K73: 0 | L73: (59,564) | M73: (242) | N73: (144) | O73: (294,601)
A74: 2009 Series D | B74: (110,872) | C74: (510,307) | D74: (5,996) | E74: (171,082) | F74: (66,427) | G74: (8,346) | H74: (15,203) | I74: (11,757) | J74: (3,520) | K74: (1) | L74: (95,187) | M74: (5,963) | N74: (27,783) | O74: (1,032,444)
A75: 2010 Series A & B | B75: 0 | C75: 0 | D75: 0 | E75: 0 | F75: 0 | G75: 0 | H75: 0 | I75: 0 | J75: 0 | K75: 0 | L75: 0 | M75: 0 | N75: 0 | O75: 0
A76: 2010 Series C | B76: (662,053) | C76: (529,472) | D76: (24,937) | E76: (176,138) | F76: (104,018) | G76: (57,976) | H76: (29,247) | I76: (447,303) | J76: (4,096) | K76: 0 | L76: (253,432) | M76: (41,567) | N76: (34,726) | O76: (2,364,965)
A77: 2010 Series D & E | B77: 0 | C77: 0 | D77: 0 | E77: 0 | F77: 0 | G77: 0 | H77: 0 | I77: 0 | J77: 0 | K77: 0 | L77: 0 | M77: 0 | N77: 0 | O77: 0
A78: 2011 Series AB | B78: (182,665) | C78: (143,179) | D78: (6,874) | E78: (43,012) | F78: (12,912) | G78: (15,825) | H78: (8,200) | I78: (133,645) | J78: (468) | K78: 0 | L78: (71,244) | M78: (11,454) | N78: (5,543) | O78: (635,021)
A79: 2012 Series A & B | B79: 10,510 | C79: (1,822,895) | D79: 29 | E79: 93,109 | F79: 9,389 | G79: 5,489 | H79: (55,037) | I79: 165,487 | J79: (153,311) | K79: 0 | L79: (56,902) | M79: (3,395) | N79: (669,643) | O79: (2,477,170)
A80: 2012 Series C & D | B80: (2,144,813) | C80: (411,425) | D80: (56,478) | E80: (1,846,422) | F80: (140,414) | G80: (104,423) | H80: (63,108) | I80: (120,644) | J80: (268,005) | K80: 0 | L80: (813,855) | M80: (29,056) | N80: (109,860) | O80: (6,108,503)
A81: 2014 Series A & B | B81: (4,405) | C81: (25,230) | D81: 0 | E81: 0 | F81: 0 | G81: 0 | H81: 0 | I81: 0 | J81: (15,595) | K81: 0 | L81: (1,725) | M81: 0 | N81: 0 | O81: (46,955)
A82: 2015 Series A | B82: (1,084,356) | C82: (1,998,440) | D82: (51,623) | E82: (280,588) | F82: (271,860) | G82: (50,486) | H82: (126,643) | I82: (16,889) | J82: (526,628) | K82: 0 | L82: (390,749) | M82: (19,167) | N82: (457,649) | O82: (5,275,078)
A85: Total | B85: =SUM(B67:B83) -> (4,307,887) | C85: (6,035,753) | D85: (151,134) | E85: (2,593,176) | F85: (758,362) | G85: (243,626) | H85: (348,116) | I85: (569,374) | J85: (977,473) | K85: (0) | L85: (1,928,662) | M85: (113,072) | N85: (1,339,387) | O85: (19,366,020)

Sheet current noncurrent
A1: University System of Maryland
A2: Distribution of revenue bond and Equipment Loan Program debt
A3: As of June 30, 2015
B7: UMB | C7: UMCP | D7: BSU | E7: TU | F7: UMES | G7: FSU | H7: CSU | I7: UB | J7: SU | K7: UMUC | L7: UMBC | M7: UMCES | N7: USMO | O7: TOTAL | Q7: Current | R7: Noncurrent | S7: Total
A9: Revenue Bonds:
A11: Current: | V11: FY15 amort. per debt summary
A14: 2004 Series A&B | B14: =+(+'debt allocation'!B10+'debt allocation'!B32)/(+'debt allocation'!$O10+'debt allocation'!$O32)*'current noncurrent'!$Q14 -> 0 | C14: =+(+'debt allocation'!C10+'debt allocation'!C32)/(+'debt allocation'!$O10+'debt allocation'!$O32)*'current noncurrent'!$Q14 -> 65,000 | D14: =+(+'debt allocation'!D10+'debt allocation'!D32)/(+'debt allocation'!$O10+'debt allocation'!$O32)*'current noncurrent'!$Q14 -> 0 | E14: =+(+'debt allocation'!E10+'debt allocation'!E32)/(+'debt allocation'!$O10+'debt allocation'!$O32)*'current noncurrent'!$Q14 -> 0 | F14: =+(+'debt allocation'!F10+'debt allocation'!F32)/(+'debt allocation'!$O10+'debt allocation'!$O32)*'current noncurrent'!$Q14 -> 0 | G14: =+(+'debt allocation'!G10+'debt allocation'!G32)/(+'debt allocation'!$O10+'debt allocation'!$O32)*'current noncurrent'!$Q14 -> 0 | H14: =+(+'debt allocation'!H10+'debt allocation'!H32)/(+'debt allocation'!$O10+'debt allocation'!$O32)*'current noncurrent'!$Q14 -> 0 | I14: =+(+'debt allocation'!I10+'debt allocation'!I32)/(+'debt allocation'!$O10+'debt allocation'!$O32)*'current noncurrent'!$Q14 -> 0 | J14: =+(+'debt allocation'!J10+'debt allocation'!J32)/(+'debt allocation'!$O10+'debt allocation'!$O32)*'current noncurrent'!$Q14 -> 0 | K14: =+(+'debt allocation'!K10+'debt allocation'!K32)/(+'debt allocation'!$O10+'debt allocation'!$O32)*'current noncurrent'!$Q14 -> 0 | L14: =+(+'debt allocation'!L10+'debt allocation'!L32)/(+'debt allocation'!$O10+'debt allocation'!$O32)*'current noncurrent'!$Q14 -> 0 | M14: =+(+'debt allocation'!M10+'debt allocation'!M32)/(+'debt allocation'!$O10+'debt allocation'!$O32)*'current noncurrent'!$Q14 -> 0 | N14: =+(+'debt allocation'!N10+'debt allocation'!N32)/(+'debt allocation'!$O10+'debt allocation'!$O32)*'current noncurrent'!$Q14 -> 0 | O14: =SUM(B14:N14) -> 65,000 | Q14: 65,000 | R14: ='debt allocation'!O10+'debt allocation'!O32-'current noncurrent'!Q14 -> 830 | S14: =Q14+R14 -> 65,830 | V14: ='04AB'!M135 -> 826
A15: 2005 Series A | B15: =+(+'debt allocation'!B11+'debt allocation'!B33)/(+'debt allocation'!$O11+'debt allocation'!$O33)*'current noncurrent'!$Q15 -> 0 | C15: =+(+'debt allocation'!C11+'debt allocation'!C33)/(+'debt allocation'!$O11+'debt allocation'!$O33)*'current noncurrent'!$Q15 -> 0 | D15: =+(+'debt allocation'!D11+'debt allocation'!D33)/(+'debt allocation'!$O11+'debt allocation'!$O33)*'current noncurrent'!$Q15 -> 0 | E15: =+(+'debt allocation'!E11+'debt allocation'!E33)/(+'debt allocation'!$O11+'debt allocation'!$O33)*'current noncurrent'!$Q15 -> 0 | F15: =+(+'debt allocation'!F11+'debt allocation'!F33)/(+'debt allocation'!$O11+'debt allocation'!$O33)*'current noncurrent'!$Q15 -> 0 | G15: =+(+'debt allocation'!G11+'debt allocation'!G33)/(+'debt allocation'!$O11+'debt allocation'!$O33)*'current noncurrent'!$Q15 -> 0 | H15: =+(+'debt allocation'!H11+'debt allocation'!H33)/(+'debt allocation'!$O11+'debt allocation'!$O33)*'current noncurrent'!$Q15 -> 0 | I15: =+(+'debt allocation'!I11+'debt allocation'!I33)/(+'debt allocation'!$O11+'debt allocation'!$O33)*'current noncurrent'!$Q15 -> 0 | J15: =+(+'debt allocation'!J11+'debt allocation'!J33)/(+'debt allocation'!$O11+'debt allocation'!$O33)*'current noncurrent'!$Q15 -> 0 | K15: =+(+'debt allocation'!K11+'debt allocation'!K33)/(+'debt allocation'!$O11+'debt allocation'!$O33)*'current noncurrent'!$Q15 -> 0 | L15: =+(+'debt allocation'!L11+'debt allocation'!L33)/(+'debt allocation'!$O11+'debt allocation'!$O33)*'current noncurrent'!$Q15 -> 0 | M15: =+(+'debt allocation'!M11+'debt allocation'!M33)/(+'debt allocation'!$O11+'debt allocation'!$O33)*'current noncurrent'!$Q15 -> 0 | N15: =+(+'debt allocation'!N11+'debt allocation'!N33)/(+'debt allocation'!$O11+'debt allocation'!$O33)*'current noncurrent'!$Q15 -> 0 | O15: 0 | R15: ='debt allocation'!O11+'debt allocation'!O33-'current noncurrent'!Q15 -> 4 | S15: =Q15+R15 -> 4 | V15: ='05A'!M272 -> 941,134
A16: 2006 Series A | B16: =+(+'debt allocation'!B12+'debt allocation'!B34)/(+'debt allocation'!$O12+'debt allocation'!$O34)*'current noncurrent'!$Q16 -> 1,252,402 | C16: =+(+'debt allocation'!C12+'debt allocation'!C34)/(+'debt allocation'!$O12+'debt allocation'!$O34)*'current noncurrent'!$Q16 -> 225,036 | D16: =+(+'debt allocation'!D12+'debt allocation'!D34)/(+'debt allocation'!$O12+'debt allocation'!$O34)*'current noncurrent'!$Q16 -> 33,917 | E16: =+(+'debt allocation'!E12+'debt allocation'!E34)/(+'debt allocation'!$O12+'debt allocation'!$O34)*'current noncurrent'!$Q16 -> 1,130,477 | F16: =+(+'debt allocation'!F12+'debt allocation'!F34)/(+'debt allocation'!$O12+'debt allocation'!$O34)*'current noncurrent'!$Q16 -> 51,079 | G16: =+(+'debt allocation'!G12+'debt allocation'!G34)/(+'debt allocation'!$O12+'debt allocation'!$O34)*'current noncurrent'!$Q16 -> 63,174 | H16: =+(+'debt allocation'!H12+'debt allocation'!H34)/(+'debt allocation'!$O12+'debt allocation'!$O34)*'current noncurrent'!$Q16 -> 37,628 | I16: =+(+'debt allocation'!I12+'debt allocation'!I34)/(+'debt allocation'!$O12+'debt allocation'!$O34)*'current noncurrent'!$Q16 -> 5,172 | J16: =+(+'debt allocation'!J12+'debt allocation'!J34)/(+'debt allocation'!$O12+'debt allocation'!$O34)*'current noncurrent'!$Q16 -> 170,927 | K16: =+(+'debt allocation'!K12+'debt allocation'!K34)/(+'debt allocation'!$O12+'debt allocation'!$O34)*'current noncurrent'!$Q16 -> 0 | L16: =+(+'debt allocation'!L12+'debt allocation'!L34)/(+'debt allocation'!$O12+'debt allocation'!$O34)*'current noncurrent'!$Q16 -> 491,762 | M16: =+(+'debt allocation'!M12+'debt allocation'!M34)/(+'debt allocation'!$O12+'debt allocation'!$O34)*'current noncurrent'!$Q16 -> 16,524 | N16: =+(+'debt allocation'!N12+'debt allocation'!N34)/(+'debt allocation'!$O12+'debt allocation'!$O34)*'current noncurrent'!$Q16 -> 66,903 | O16: 3,545,000 | Q16: 3,545,000 | R16: ='debt allocation'!O12+'debt allocation'!O34-'current noncurrent'!Q16 -> 7,929,297 | S16: 11,474,297 | V16: ='06A'!P116 -> 111,716
A17: 2007 Series A | B17: =+(+'debt allocation'!B13+'debt allocation'!B35)/(+'debt allocation'!$O13+'debt allocation'!$O35)*'current noncurrent'!$Q17 -> 719,636 | C17: =+(+'debt allocation'!C13+'debt allocation'!C35)/(+'debt allocation'!$O13+'debt allocation'!$O35)*'current noncurrent'!$Q17 -> 2,030,409 | D17: =+(+'debt allocation'!D13+'debt allocation'!D35)/(+'debt allocation'!$O13+'debt allocation'!$O35)*'current noncurrent'!$Q17 -> 29,757 | E17: =+(+'debt allocation'!E13+'debt allocation'!E35)/(+'debt allocation'!$O13+'debt allocation'!$O35)*'current noncurrent'!$Q17 -> 1,012,496 | F17: =+(+'debt allocation'!F13+'debt allocation'!F35)/(+'debt allocation'!$O13+'debt allocation'!$O35)*'current noncurrent'!$Q17 -> 404,720 | G17: =+(+'debt allocation'!G13+'debt allocation'!G35)/(+'debt allocation'!$O13+'debt allocation'!$O35)*'current noncurrent'!$Q17 -> 14,931 | H17: =+(+'debt allocation'!H13+'debt allocation'!H35)/(+'debt allocation'!$O13+'debt allocation'!$O35)*'current noncurrent'!$Q17 -> 237,464 | I17: =+(+'debt allocation'!I13+'debt allocation'!I35)/(+'debt allocation'!$O13+'debt allocation'!$O35)*'current noncurrent'!$Q17 -> 19,476 | J17: =+(+'debt allocation'!J13+'debt allocation'!J35)/(+'debt allocation'!$O13+'debt allocation'!$O35)*'current noncurrent'!$Q17 -> 34,813 | K17: =+(+'debt allocation'!K13+'debt allocation'!K35)/(+'debt allocation'!$O13+'debt allocation'!$O35)*'current noncurrent'!$Q17 -> 0 | L17: =+(+'debt allocation'!L13+'debt allocation'!L35)/(+'debt allocation'!$O13+'debt allocation'!$O35)*'current noncurrent'!$Q17 -> 680,776 | M17: =+(+'debt allocation'!M13+'debt allocation'!M35)/(+'debt allocation'!$O13+'debt allocation'!$O35)*'current noncurrent'!$Q17 -> 11,146 | N17: =+(+'debt allocation'!N13+'debt allocation'!N35)/(+'debt allocation'!$O13+'debt allocation'!$O35)*'current noncurrent'!$Q17 -> 224,378 | O17: 5,420,000 | Q17: 5,420,000 | R17: ='debt allocation'!O13+'debt allocation'!O35-'current noncurrent'!Q17 -> 66,542,293 | S17: 71,962,293 | V17: ='07A'!K155 -> 252,032
A18: 2008 Series A & B | B18: =+(+'debt allocation'!B14+'debt allocation'!B36)/(+'debt allocation'!$O14+'debt allocation'!$O36)*'current noncurrent'!$Q18 -> 1,685,644 | C18: =+(+'debt allocation'!C14+'debt allocation'!C36)/(+'debt allocation'!$O14+'debt allocation'!$O36)*'current noncurrent'!$Q18 -> 3,451,129 | D18: =+(+'debt allocation'!D14+'debt allocation'!D36)/(+'debt allocation'!$O14+'debt allocation'!$O36)*'current noncurrent'!$Q18 -> 75,522 | E18: =+(+'debt allocation'!E14+'debt allocation'!E36)/(+'debt allocation'!$O14+'debt allocation'!$O36)*'current noncurrent'!$Q18 -> 477,738 | F18: =+(+'debt allocation'!F14+'debt allocation'!F36)/(+'debt allocation'!$O14+'debt allocation'!$O36)*'current noncurrent'!$Q18 -> 854,742 | G18: =+(+'debt allocation'!G14+'debt allocation'!G36)/(+'debt allocation'!$O14+'debt allocation'!$O36)*'current noncurrent'!$Q18 -> 145,248 | H18: =+(+'debt allocation'!H14+'debt allocation'!H36)/(+'debt allocation'!$O14+'debt allocation'!$O36)*'current noncurrent'!$Q18 -> 84,076 | I18: =+(+'debt allocation'!I14+'debt allocation'!I36)/(+'debt allocation'!$O14+'debt allocation'!$O36)*'current noncurrent'!$Q18 -> 51,164 | J18: =+(+'debt allocation'!J14+'debt allocation'!J36)/(+'debt allocation'!$O14+'debt allocation'!$O36)*'current noncurrent'!$Q18 -> 816,043 | K18: =+(+'debt allocation'!K14+'debt allocation'!K36)/(+'debt allocation'!$O14+'debt allocation'!$O36)*'current noncurrent'!$Q18 -> 0 | L18: =+(+'debt allocation'!L14+'debt allocation'!L36)/(+'debt allocation'!$O14+'debt allocation'!$O36)*'current noncurrent'!$Q18 -> 976,206 | M18: =+(+'debt allocation'!M14+'debt allocation'!M36)/(+'debt allocation'!$O14+'debt allocation'!$O36)*'current noncurrent'!$Q18 -> 19,567 | N18: =+(+'debt allocation'!N14+'debt allocation'!N36)/(+'debt allocation'!$O14+'debt allocation'!$O36)*'current noncurrent'!$Q18 -> 722,922 | O18: 9,360,000 | Q18: 9,360,000 | R18: ='debt allocation'!O14+'debt allocation'!O36-'current noncurrent'!Q18 -> 23,839,525 | S18: 33,199,525 | V18: ='08AB'!M262 -> 149,292
A19: 2009 Series A & B | B19: =+(+'debt allocation'!B15+'debt allocation'!B37)/(+'debt allocation'!$O15+'debt allocation'!$O37)*'current noncurrent'!$Q19 -> 329,716 | C19: =+(+'debt allocation'!C15+'debt allocation'!C37)/(+'debt allocation'!$O15+'debt allocation'!$O37)*'current noncurrent'!$Q19 -> 943,982 | D19: =+(+'debt allocation'!D15+'debt allocation'!D37)/(+'debt allocation'!$O15+'debt allocation'!$O37)*'current noncurrent'!$Q19 -> 336,342 | E19: =+(+'debt allocation'!E15+'debt allocation'!E37)/(+'debt allocation'!$O15+'debt allocation'!$O37)*'current noncurrent'!$Q19 -> 616,215 | F19: =+(+'debt allocation'!F15+'debt allocation'!F37)/(+'debt allocation'!$O15+'debt allocation'!$O37)*'current noncurrent'!$Q19 -> 55,119 | G19: =+(+'debt allocation'!G15+'debt allocation'!G37)/(+'debt allocation'!$O15+'debt allocation'!$O37)*'current noncurrent'!$Q19 -> 146,121 | H19: =+(+'debt allocation'!H15+'debt allocation'!H37)/(+'debt allocation'!$O15+'debt allocation'!$O37)*'current noncurrent'!$Q19 -> 487,598 | I19: =+(+'debt allocation'!I15+'debt allocation'!I37)/(+'debt allocation'!$O15+'debt allocation'!$O37)*'current noncurrent'!$Q19 -> 7,967 | J19: =+(+'debt allocation'!J15+'debt allocation'!J37)/(+'debt allocation'!$O15+'debt allocation'!$O37)*'current noncurrent'!$Q19 -> 1,070,671 | K19: =+(+'debt allocation'!K15+'debt allocation'!K37)/(+'debt allocation'!$O15+'debt allocation'!$O37)*'current noncurrent'!$Q19 -> 0 | L19: =+(+'debt allocation'!L15+'debt allocation'!L37)/(+'debt allocation'!$O15+'debt allocation'!$O37)*'current noncurrent'!$Q19 -> 90,727 | M19: =+(+'debt allocation'!M15+'debt allocation'!M37)/(+'debt allocation'!$O15+'debt allocation'!$O37)*'current noncurrent'!$Q19 -> 13,648 | N19: =+(+'debt allocation'!N15+'debt allocation'!N37)/(+'debt allocation'!$O15+'debt allocation'!$O37)*'current noncurrent'!$Q19 -> 36,895 | O19: 4,135,000 | Q19: 4,135,000 | R19: ='debt allocation'!O15+'debt allocation'!O37-'current noncurrent'!Q19 -> 76,357,062 | S19: 80,492,062 | V19: ='09AB'!K119 -> 192,640
A20: 2009 Series C | B20: =+(+'debt allocation'!B16+'debt allocation'!B38)/(+'debt allocation'!$O16+'debt allocation'!$O38)*'current noncurrent'!$Q20 -> 618 | C20: =+(+'debt allocation'!C16+'debt allocation'!C38)/(+'debt allocation'!$O16+'debt allocation'!$O38)*'current noncurrent'!$Q20 -> 4,701 | D20: =+(+'debt allocation'!D16+'debt allocation'!D38)/(+'debt allocation'!$O16+'debt allocation'!$O38)*'current noncurrent'!$Q20 -> 24 | E20: =+(+'debt allocation'!E16+'debt allocation'!E38)/(+'debt allocation'!$O16+'debt allocation'!$O38)*'current noncurrent'!$Q20 -> 222 | F20: =+(+'debt allocation'!F16+'debt allocation'!F38)/(+'debt allocation'!$O16+'debt allocation'!$O38)*'current noncurrent'!$Q20 -> 1,995 | G20: =+(+'debt allocation'!G16+'debt allocation'!G38)/(+'debt allocation'!$O16+'debt allocation'!$O38)*'current noncurrent'!$Q20 -> 226 | H20: =+(+'debt allocation'!H16+'debt allocation'!H38)/(+'debt allocation'!$O16+'debt allocation'!$O38)*'current noncurrent'!$Q20 -> 113 | I20: =+(+'debt allocation'!I16+'debt allocation'!I38)/(+'debt allocation'!$O16+'debt allocation'!$O38)*'current noncurrent'!$Q20 -> 44 | J20: =+(+'debt allocation'!J16+'debt allocation'!J38)/(+'debt allocation'!$O16+'debt allocation'!$O38)*'current noncurrent'!$Q20 -> 21 | K20: =+(+'debt allocation'!K16+'debt allocation'!K38)/(+'debt allocation'!$O16+'debt allocation'!$O38)*'current noncurrent'!$Q20 -> 0 | L20: =+(+'debt allocation'!L16+'debt allocation'!L38)/(+'debt allocation'!$O16+'debt allocation'!$O38)*'current noncurrent'!$Q20 -> 2,022 | M20: =+(+'debt allocation'!M16+'debt allocation'!M38)/(+'debt allocation'!$O16+'debt allocation'!$O38)*'current noncurrent'!$Q20 -> 8 | N20: =+(+'debt allocation'!N16+'debt allocation'!N38)/(+'debt allocation'!$O16+'debt allocation'!$O38)*'current noncurrent'!$Q20 -> 5 | O20: 10,000 | Q20: 10,000 | R20: ='debt allocation'!O16+'debt allocation'!O38-'current noncurrent'!Q20 -> 18,820,552 | S20: 18,830,552 | V20: ='09C'!K181 -> 104,564
A21: 2009 Series D | B21: =+(+'debt allocation'!B17+'debt allocation'!B39)/(+'debt allocation'!$O17+'debt allocation'!$O39)*'current noncurrent'!$Q21 -> 1,512,017 | C21: =+(+'debt allocation'!C17+'debt allocation'!C39)/(+'debt allocation'!$O17+'debt allocation'!$O39)*'current noncurrent'!$Q21 -> 4,792,036 | D21: =+(+'debt allocation'!D17+'debt allocation'!D39)/(+'debt allocation'!$O17+'debt allocation'!$O39)*'current noncurrent'!$Q21 -> 89,581 | E21: =+(+'debt allocation'!E17+'debt allocation'!E39)/(+'debt allocation'!$O17+'debt allocation'!$O39)*'current noncurrent'!$Q21 -> 1,568,695 | F21: =+(+'debt allocation'!F17+'debt allocation'!F39)/(+'debt allocation'!$O17+'debt allocation'!$O39)*'current noncurrent'!$Q21 -> 854,878 | G21: =+(+'debt allocation'!G17+'debt allocation'!G39)/(+'debt allocation'!$O17+'debt allocation'!$O39)*'current noncurrent'!$Q21 -> 168,689 | H21: =+(+'debt allocation'!H17+'debt allocation'!H39)/(+'debt allocation'!$O17+'debt allocation'!$O39)*'current noncurrent'!$Q21 -> 197,615 | I21: =+(+'debt allocation'!I17+'debt allocation'!I39)/(+'debt allocation'!$O17+'debt allocation'!$O39)*'current noncurrent'!$Q21 -> 228,079 | J21: =+(+'debt allocation'!J17+'debt allocation'!J39)/(+'debt allocation'!$O17+'debt allocation'!$O39)*'current noncurrent'!$Q21 -> 61,003 | K21: =+(+'debt allocation'!K17+'debt allocation'!K39)/(+'debt allocation'!$O17+'debt allocation'!$O39)*'current noncurrent'!$Q21 -> 0 | L21: =+(+'debt allocation'!L17+'debt allocation'!L39)/(+'debt allocation'!$O17+'debt allocation'!$O39)*'current noncurrent'!$Q21 -> 1,006,046 | M21: =+(+'debt allocation'!M17+'debt allocation'!M39)/(+'debt allocation'!$O17+'debt allocation'!$O39)*'current noncurrent'!$Q21 -> 121,235 | N21: =+(+'debt allocation'!N17+'debt allocation'!N39)/(+'debt allocation'!$O17+'debt allocation'!$O39)*'current noncurrent'!$Q21 -> 425,129 | O21: 11,025,000 | Q21: 11,025,000 | R21: ='debt allocation'!O17+'debt allocation'!O39-'current noncurrent'!Q21 -> 30,375,060 | S21: 41,400,060 | V21: ='09D'!K263 -> 432,638
A22: 2010 Series A & B | B22: =+(+'debt allocation'!B18+'debt allocation'!B40)/(+'debt allocation'!$O18+'debt allocation'!$O40)*'current noncurrent'!$Q22 -> 216,482 | C22: =+(+'debt allocation'!C18+'debt allocation'!C40)/(+'debt allocation'!$O18+'debt allocation'!$O40)*'current noncurrent'!$Q22 -> 569,846 | D22: =+(+'debt allocation'!D18+'debt allocation'!D40)/(+'debt allocation'!$O18+'debt allocation'!$O40)*'current noncurrent'!$Q22 -> 52,365 | E22: =+(+'debt allocation'!E18+'debt allocation'!E40)/(+'debt allocation'!$O18+'debt allocation'!$O40)*'current noncurrent'!$Q22 -> 2,084,050 | F22: =+(+'debt allocation'!F18+'debt allocation'!F40)/(+'debt allocation'!$O18+'debt allocation'!$O40)*'current noncurrent'!$Q22 -> 36,739 | G22: =+(+'debt allocation'!G18+'debt allocation'!G40)/(+'debt allocation'!$O18+'debt allocation'!$O40)*'current noncurrent'!$Q22 -> 455,366 | H22: =+(+'debt allocation'!H18+'debt allocation'!H40)/(+'debt allocation'!$O18+'debt allocation'!$O40)*'current noncurrent'!$Q22 -> 111,804 | I22: =+(+'debt allocation'!I18+'debt allocation'!I40)/(+'debt allocation'!$O18+'debt allocation'!$O40)*'current noncurrent'!$Q22 -> 34,047 | J22: =+(+'debt allocation'!J18+'debt allocation'!J40)/(+'debt allocation'!$O18+'debt allocation'!$O40)*'current noncurrent'!$Q22 -> 1,188,584 | K22: =+(+'debt allocation'!K18+'debt allocation'!K40)/(+'debt allocation'!$O18+'debt allocation'!$O40)*'current noncurrent'!$Q22 -> 0 | L22: =+(+'debt allocation'!L18+'debt allocation'!L40)/(+'debt allocation'!$O18+'debt allocation'!$O40)*'current noncurrent'!$Q22 -> 279,344 | M22: =+(+'debt allocation'!M18+'debt allocation'!M40)/(+'debt allocation'!$O18+'debt allocation'!$O40)*'current noncurrent'!$Q22 -> 1,289 | N22: =+(+'debt allocation'!N18+'debt allocation'!N40)/(+'debt allocation'!$O18+'debt allocation'!$O40)*'current noncurrent'!$Q22 -> 45,084 | O22: 5,075,000 | Q22: 5,075,000 | R22: ='debt allocation'!O18+'debt allocation'!O40-'current noncurrent'!Q22 -> 94,245,253 | S22: 99,320,253 | V22: ='10AB'!K126 -> 142,680
A23: 2010 Series C | B23: =+(+'debt allocation'!B19+'debt allocation'!B41)/(+'debt allocation'!$O19+'debt allocation'!$O41)*'current noncurrent'!$Q23 -> 36,557 | C23: =+(+'debt allocation'!C19+'debt allocation'!C41)/(+'debt allocation'!$O19+'debt allocation'!$O41)*'current noncurrent'!$Q23 -> 43,961 | D23: =+(+'debt allocation'!D19+'debt allocation'!D41)/(+'debt allocation'!$O19+'debt allocation'!$O41)*'current noncurrent'!$Q23 -> 1,729 | E23: =+(+'debt allocation'!E19+'debt allocation'!E41)/(+'debt allocation'!$O19+'debt allocation'!$O41)*'current noncurrent'!$Q23 -> 10,253 | F23: =+(+'debt allocation'!F19+'debt allocation'!F41)/(+'debt allocation'!$O19+'debt allocation'!$O41)*'current noncurrent'!$Q23 -> 12,120 | G23: =+(+'debt allocation'!G19+'debt allocation'!G41)/(+'debt allocation'!$O19+'debt allocation'!$O41)*'current noncurrent'!$Q23 -> 4,345 | H23: =+(+'debt allocation'!H19+'debt allocation'!H41)/(+'debt allocation'!$O19+'debt allocation'!$O41)*'current noncurrent'!$Q23 -> 1,918 | I23: =+(+'debt allocation'!I19+'debt allocation'!I41)/(+'debt allocation'!$O19+'debt allocation'!$O41)*'current noncurrent'!$Q23 -> 19,880 | J23: =+(+'debt allocation'!J19+'debt allocation'!J41)/(+'debt allocation'!$O19+'debt allocation'!$O41)*'current noncurrent'!$Q23 -> 678 | K23: =+(+'debt allocation'!K19+'debt allocation'!K41)/(+'debt allocation'!$O19+'debt allocation'!$O41)*'current noncurrent'!$Q23 -> 0 | L23: =+(+'debt allocation'!L19+'debt allocation'!L41)/(+'debt allocation'!$O19+'debt allocation'!$O41)*'current noncurrent'!$Q23 -> 15,682 | M23: =+(+'debt allocation'!M19+'debt allocation'!M41)/(+'debt allocation'!$O19+'debt allocation'!$O41)*'current noncurrent'!$Q23 -> 3,112 | N23: =+(+'debt allocation'!N19+'debt allocation'!N41)/(+'debt allocation'!$O19+'debt allocation'!$O41)*'current noncurrent'!$Q23 -> 4,764 | O23: 155,000 | Q23: 155,000 | R23: ='debt allocation'!O19+'debt allocation'!O41-'current noncurrent'!Q23 -> 42,507,618 | S23: 42,662,618 | V23: ='10C'!K283 -> 429,288
A24: 2010 Series D & E | B24: =+(+'debt allocation'!B20+'debt allocation'!B42)/(+'debt allocation'!$O20+'debt allocation'!$O42)*'current noncurrent'!$Q24 -> 49,957 | C24: =+(+'debt allocation'!C20+'debt allocation'!C42)/(+'debt allocation'!$O20+'debt allocation'!$O42)*'current noncurrent'!$Q24 -> 623,153 | D24: =+(+'debt allocation'!D20+'debt allocation'!D42)/(+'debt allocation'!$O20+'debt allocation'!$O42)*'current noncurrent'!$Q24 -> 108,359 | E24: =+(+'debt allocation'!E20+'debt allocation'!E42)/(+'debt allocation'!$O20+'debt allocation'!$O42)*'current noncurrent'!$Q24 -> 2,437,648 | F24: =+(+'debt allocation'!F20+'debt allocation'!F42)/(+'debt allocation'!$O20+'debt allocation'!$O42)*'current noncurrent'!$Q24 -> 34,153 | G24: =+(+'debt allocation'!G20+'debt allocation'!G42)/(+'debt allocation'!$O20+'debt allocation'!$O42)*'current noncurrent'!$Q24 -> 75,029 | H24: =+(+'debt allocation'!H20+'debt allocation'!H42)/(+'debt allocation'!$O20+'debt allocation'!$O42)*'current noncurrent'!$Q24 -> 84,362 | I24: =+(+'debt allocation'!I20+'debt allocation'!I42)/(+'debt allocation'!$O20+'debt allocation'!$O42)*'current noncurrent'!$Q24 -> 5,082 | J24: =+(+'debt allocation'!J20+'debt allocation'!J42)/(+'debt allocation'!$O20+'debt allocation'!$O42)*'current noncurrent'!$Q24 -> 1,025,319 | K24: =+(+'debt allocation'!K20+'debt allocation'!K42)/(+'debt allocation'!$O20+'debt allocation'!$O42)*'current noncurrent'!$Q24 -> 0 | L24: =+(+'debt allocation'!L20+'debt allocation'!L42)/(+'debt allocation'!$O20+'debt allocation'!$O42)*'current noncurrent'!$Q24 -> 561,618 | M24: =+(+'debt allocation'!M20+'debt allocation'!M42)/(+'debt allocation'!$O20+'debt allocation'!$O42)*'current noncurrent'!$Q24 -> 7,156 | N24: =+(+'debt allocation'!N20+'debt allocation'!N42)/(+'debt allocation'!$O20+'debt allocation'!$O42)*'current noncurrent'!$Q24 -> 13,163 | O24: 5,025,000 | Q24: 5,025,000 | R24: ='debt allocation'!O20+'debt allocation'!O42-'current noncurrent'!Q24 -> 93,987,171 | S24: 99,012,171 | V24: ='10DE'!M126 -> 159,140
A25: 2011 Series A & B | B25: =+(+'debt allocation'!B21+'debt allocation'!B43)/(+'debt allocation'!$O21+'debt allocation'!$O43)*'current noncurrent'!$Q25 -> 349,026 | C25: =+(+'debt allocation'!C21+'debt allocation'!C43)/(+'debt allocation'!$O21+'debt allocation'!$O43)*'current noncurrent'!$Q25 -> 1,870,700 | D25: =+(+'debt allocation'!D21+'debt allocation'!D43)/(+'debt allocation'!$O21+'debt allocation'!$O43)*'current noncurrent'!$Q25 -> 485,076 | E25: =+(+'debt allocation'!E21+'debt allocation'!E43)/(+'debt allocation'!$O21+'debt allocation'!$O43)*'current noncurrent'!$Q25 -> 2,226,035 | F25: =+(+'debt allocation'!F21+'debt allocation'!F43)/(+'debt allocation'!$O21+'debt allocation'!$O43)*'current noncurrent'!$Q25 -> 137,332 | G25: =+(+'debt allocation'!G21+'debt allocation'!G43)/(+'debt allocation'!$O21+'debt allocation'!$O43)*'current noncurrent'!$Q25 -> 63,485 | H25: =+(+'debt allocation'!H21+'debt allocation'!H43)/(+'debt allocation'!$O21+'debt allocation'!$O43)*'current noncurrent'!$Q25 -> 54,616 | I25: =+(+'debt allocation'!I21+'debt allocation'!I43)/(+'debt allocation'!$O21+'debt allocation'!$O43)*'current noncurrent'!$Q25 -> 121,924 | J25: =+(+'debt allocation'!J21+'debt allocation'!J43)/(+'debt allocation'!$O21+'debt allocation'!$O43)*'current noncurrent'!$Q25 -> 252,002 | K25: =+(+'debt allocation'!K21+'debt allocation'!K43)/(+'debt allocation'!$O21+'debt allocation'!$O43)*'current noncurrent'!$Q25 -> 0 | L25: =+(+'debt allocation'!L21+'debt allocation'!L43)/(+'debt allocation'!$O21+'debt allocation'!$O43)*'current noncurrent'!$Q25 -> 581,512 | M25: =+(+'debt allocation'!M21+'debt allocation'!M43)/(+'debt allocation'!$O21+'debt allocation'!$O43)*'current noncurrent'!$Q25 -> 45,878 | N25: =+(+'debt allocation'!N21+'debt allocation'!N43)/(+'debt allocation'!$O21+'debt allocation'!$O43)*'current noncurrent'!$Q25 -> 57,416 | O25: 6,245,000 | Q25: 6,245,000 | R25: ='debt allocation'!O21+'debt allocation'!O43-'current noncurrent'!Q25 -> 131,135,307 | S25: 137,380,307 | V25: ='11A'!M112+'11B'!K280 -> 834,560
A26: 2012 Series A & B | B26: =+(+'debt allocation'!B22+'debt allocation'!B44)/(+'debt allocation'!$O22+'debt allocation'!$O44)*'current noncurrent'!$Q26 -> 786,547 | C26: =+(+'debt allocation'!C22+'debt allocation'!C44)/(+'debt allocation'!$O22+'debt allocation'!$O44)*'current noncurrent'!$Q26 -> 3,051,441 | D26: =+(+'debt allocation'!D22+'debt allocation'!D44)/(+'debt allocation'!$O22+'debt allocation'!$O44)*'current noncurrent'!$Q26 -> 19,693 | E26: =+(+'debt allocation'!E22+'debt allocation'!E44)/(+'debt allocation'!$O22+'debt allocation'!$O44)*'current noncurrent'!$Q26 -> 201,536 | F26: =+(+'debt allocation'!F22+'debt allocation'!F44)/(+'debt allocation'!$O22+'debt allocation'!$O44)*'current noncurrent'!$Q26 -> 339,126 | G26: =+(+'debt allocation'!G22+'debt allocation'!G44)/(+'debt allocation'!$O22+'debt allocation'!$O44)*'current noncurrent'!$Q26 -> 15,508 | H26: =+(+'debt allocation'!H22+'debt allocation'!H44)/(+'debt allocation'!$O22+'debt allocation'!$O44)*'current noncurrent'!$Q26 -> 169,535 | I26: =+(+'debt allocation'!I22+'debt allocation'!I44)/(+'debt allocation'!$O22+'debt allocation'!$O44)*'current noncurrent'!$Q26 -> 233,949 | J26: =+(+'debt allocation'!J22+'debt allocation'!J44)/(+'debt allocation'!$O22+'debt allocation'!$O44)*'current noncurrent'!$Q26 -> 198,132 | K26: =+(+'debt allocation'!K22+'debt allocation'!K44)/(+'debt allocation'!$O22+'debt allocation'!$O44)*'current noncurrent'!$Q26 -> 0 | L26: =+(+'debt allocation'!L22+'debt allocation'!L44)/(+'debt allocation'!$O22+'debt allocation'!$O44)*'current noncurrent'!$Q26 -> 396,142 | M26: =+(+'debt allocation'!M22+'debt allocation'!M44)/(+'debt allocation'!$O22+'debt allocation'!$O44)*'current noncurrent'!$Q26 -> 21,862 | N26: =+(+'debt allocation'!N22+'debt allocation'!N44)/(+'debt allocation'!$O22+'debt allocation'!$O44)*'current noncurrent'!$Q26 -> 801,530 | O26: 6,235,000 | Q26: 6,235,000 | R26: ='debt allocation'!O22+'debt allocation'!O44-'current noncurrent'!Q26 -> 44,614,279 | S26: 50,849,279 | V26: ='12AB'!K243 -> 587,282
A27: 2012 Series C & D | B27: =+(+'debt allocation'!B23+'debt allocation'!B45)/(+'debt allocation'!$O23+'debt allocation'!$O45)*'current noncurrent'!$Q27 -> 628,335 | C27: =+(+'debt allocation'!C23+'debt allocation'!C45)/(+'debt allocation'!$O23+'debt allocation'!$O45)*'current noncurrent'!$Q27 -> 1,079,430 | D27: =+(+'debt allocation'!D23+'debt allocation'!D45)/(+'debt allocation'!$O23+'debt allocation'!$O45)*'current noncurrent'!$Q27 -> 560,975 | E27: =+(+'debt allocation'!E23+'debt allocation'!E45)/(+'debt allocation'!$O23+'debt allocation'!$O45)*'current noncurrent'!$Q27 -> 954,764 | F27: =+(+'debt allocation'!F23+'debt allocation'!F45)/(+'debt allocation'!$O23+'debt allocation'!$O45)*'current noncurrent'!$Q27 -> 53,159 | G27: =+(+'debt allocation'!G23+'debt allocation'!G45)/(+'debt allocation'!$O23+'debt allocation'!$O45)*'current noncurrent'!$Q27 -> 37,917 | H27: =+(+'debt allocation'!H23+'debt allocation'!H45)/(+'debt allocation'!$O23+'debt allocation'!$O45)*'current noncurrent'!$Q27 -> 32,071 | I27: =+(+'debt allocation'!I23+'debt allocation'!I45)/(+'debt allocation'!$O23+'debt allocation'!$O45)*'current noncurrent'!$Q27 -> 91,250 | J27: =+(+'debt allocation'!J23+'debt allocation'!J45)/(+'debt allocation'!$O23+'debt allocation'!$O45)*'current noncurrent'!$Q27 -> 456,043 | K27: =+(+'debt allocation'!K23+'debt allocation'!K45)/(+'debt allocation'!$O23+'debt allocation'!$O45)*'current noncurrent'!$Q27 -> 0 | L27: =+(+'debt allocation'!L23+'debt allocation'!L45)/(+'debt allocation'!$O23+'debt allocation'!$O45)*'current noncurrent'!$Q27 -> 564,028 | M27: =+(+'debt allocation'!M23+'debt allocation'!M45)/(+'debt allocation'!$O23+'debt allocation'!$O45)*'current noncurrent'!$Q27 -> 19,492 | N27: =+(+'debt allocation'!N23+'debt allocation'!N45)/(+'debt allocation'!$O23+'debt allocation'!$O45)*'current noncurrent'!$Q27 -> 27,534 | O27: 4,505,000 | Q27: 4,505,000 | R27: ='debt allocation'!O23+'debt allocation'!O45-'current noncurrent'!Q27 -> 171,314,103 | S27: 175,819,103 | V27: ='12C'!M115+'12D'!M157 -> 1,273,788
A28: 2014 Series A & B | B28: =+(+'debt allocation'!B24+'debt allocation'!B46)/(+'debt allocation'!$O24+'debt allocation'!$O46)*'current noncurrent'!$Q28 -> 164,072 | C28: =+(+'debt allocation'!C24+'debt allocation'!C46)/(+'debt allocation'!$O24+'debt allocation'!$O46)*'current noncurrent'!$Q28 -> 2,497,872 | D28: =+(+'debt allocation'!D24+'debt allocation'!D46)/(+'debt allocation'!$O24+'debt allocation'!$O46)*'current noncurrent'!$Q28 -> 105,649 | E28: =+(+'debt allocation'!E24+'debt allocation'!E46)/(+'debt allocation'!$O24+'debt allocation'!$O46)*'current noncurrent'!$Q28 -> 2,174,011 | F28: =+(+'debt allocation'!F24+'debt allocation'!F46)/(+'debt allocation'!$O24+'debt allocation'!$O46)*'current noncurrent'!$Q28 -> 2,393 | G28: =+(+'debt allocation'!G24+'debt allocation'!G46)/(+'debt allocation'!$O24+'debt allocation'!$O46)*'current noncurrent'!$Q28 -> 14,498 | H28: =+(+'debt allocation'!H24+'debt allocation'!H46)/(+'debt allocation'!$O24+'debt allocation'!$O46)*'current noncurrent'!$Q28 -> 1,102,812 | I28: =+(+'debt allocation'!I24+'debt allocation'!I46)/(+'debt allocation'!$O24+'debt allocation'!$O46)*'current noncurrent'!$Q28 -> 27,942 | J28: =+(+'debt allocation'!J24+'debt allocation'!J46)/(+'debt allocation'!$O24+'debt allocation'!$O46)*'current noncurrent'!$Q28 -> 161,464 | K28: =+(+'debt allocation'!K24+'debt allocation'!K46)/(+'debt allocation'!$O24+'debt allocation'!$O46)*'current noncurrent'!$Q28 -> 0 | L28: =+(+'debt allocation'!L24+'debt allocation'!L46)/(+'debt allocation'!$O24+'debt allocation'!$O46)*'current noncurrent'!$Q28 -> 808,517 | M28: =+(+'debt allocation'!M24+'debt allocation'!M46)/(+'debt allocation'!$O24+'debt allocation'!$O46)*'current noncurrent'!$Q28 -> 24,332 | N28: =+(+'debt allocation'!N24+'debt allocation'!N46)/(+'debt allocation'!$O24+'debt allocation'!$O46)*'current noncurrent'!$Q28 -> 1,411,438 | O28: 8,495,000 | Q28: 8,495,000 | R28: ='debt allocation'!O24+'debt allocation'!O46-'current noncurrent'!Q28 -> 143,565,302 | S28: 152,060,302 | V28: ='14A'!M122+'14B'!K81 -> 846,621
A29: 2015 Series A | B29: =+(+'debt allocation'!B25+'debt allocation'!B47)/(+'debt allocation'!$O25+'debt allocation'!$O47)*'current noncurrent'!$Q29 -> 2,406,639 | C29: =+(+'debt allocation'!C25+'debt allocation'!C47)/(+'debt allocation'!$O25+'debt allocation'!$O47)*'current noncurrent'!$Q29 -> 5,505,768 | D29: =+(+'debt allocation'!D25+'debt allocation'!D47)/(+'debt allocation'!$O25+'debt allocation'!$O47)*'current noncurrent'!$Q29 -> 120,636 | E29: =+(+'debt allocation'!E25+'debt allocation'!E47)/(+'debt allocation'!$O25+'debt allocation'!$O47)*'current noncurrent'!$Q29 -> 1,031,247 | F29: =+(+'debt allocation'!F25+'debt allocation'!F47)/(+'debt allocation'!$O25+'debt allocation'!$O47)*'current noncurrent'!$Q29 -> 974,067 | G29: =+(+'debt allocation'!G25+'debt allocation'!G47)/(+'debt allocation'!$O25+'debt allocation'!$O47)*'current noncurrent'!$Q29 -> 149,335 | H29: =+(+'debt allocation'!H25+'debt allocation'!H47)/(+'debt allocation'!$O25+'debt allocation'!$O47)*'current noncurrent'!$Q29 -> 415,474 | I29: =+(+'debt allocation'!I25+'debt allocation'!I47)/(+'debt allocation'!$O25+'debt allocation'!$O47)*'current noncurrent'!$Q29 -> 128,602 | J29: =+(+'debt allocation'!J25+'debt allocation'!J47)/(+'debt allocation'!$O25+'debt allocation'!$O47)*'current noncurrent'!$Q29 -> 946,219 | K29: =+(+'debt allocation'!K25+'debt allocation'!K47)/(+'debt allocation'!$O25+'debt allocation'!$O47)*'current noncurrent'!$Q29 -> 0 | L29: =+(+'debt allocation'!L25+'debt allocation'!L47)/(+'debt allocation'!$O25+'debt allocation'!$O47)*'current noncurrent'!$Q29 -> 1,393,192 | M29: =+(+'debt allocation'!M25+'debt allocation'!M47)/(+'debt allocation'!$O25+'debt allocation'!$O47)*'current noncurrent'!$Q29 -> 59,690 | N29: =+(+'debt allocation'!N25+'debt allocation'!N47)/(+'debt allocation'!$O25+'debt allocation'!$O47)*'current noncurrent'!$Q29 -> 789,131 | O29: 13,920,000 | Q29: 13,920,000 | R29: ='debt allocation'!O25+'debt allocation'!O47-'current noncurrent'!Q29 -> 92,366,446 | S29: 106,286,446 | V29: ='15A'!M280 -> 0
A31: Total Current | B31: =SUM(B14:B29) -> 10,137,647 | C31: =SUM(C14:C29) -> 26,754,463 | D31: 2,019,623 | E31: 15,925,387 | F31: 3,811,623 | G31: 1,353,872 | H31: 3,017,084 | I31: 974,578 | J31: 6,381,918 | K31: 0 | L31: 7,847,574 | M31: 364,939 | N31: 4,626,293 | O31: 83,215,000 | Q31: =SUM(Q14:Q29) -> 83,215,000 | R31: 1,037,600,102 | S31: =SUM(S14:S29) -> 1,120,815,102 | V31: =SUM(V14:V30) -> 6,458,201
A33: Noncurrent:
A36: 2004 Series A&B | B36: =+'debt allocation'!B10+'debt allocation'!B32-'current noncurrent'!B14 -> 0 | C36: =+'debt allocation'!C10+'debt allocation'!C32-'current noncurrent'!C14 -> 830 | D36: =+'debt allocation'!D10+'debt allocation'!D32-'current noncurrent'!D14 -> 0 | E36: =+'debt allocation'!E10+'debt allocation'!E32-'current noncurrent'!E14 -> 0 | F36: =+'debt allocation'!F10+'debt allocation'!F32-'current noncurrent'!F14 -> 0 | G36: =+'debt allocation'!G10+'debt allocation'!G32-'current noncurrent'!G14 -> 0 | H36: =+'debt allocation'!H10+'debt allocation'!H32-'current noncurrent'!H14 -> 0 | I36: =+'debt allocation'!I10+'debt allocation'!I32-'current noncurrent'!I14 -> 0 | J36: =+'debt allocation'!J10+'debt allocation'!J32-'current noncurrent'!J14 -> 0 | K36: =+'debt allocation'!K10+'debt allocation'!K32-'current noncurrent'!K14 -> 0 | L36: =+'debt allocation'!L10+'debt allocation'!L32-'current noncurrent'!L14 -> 0 | M36: =+'debt allocation'!M10+'debt allocation'!M32-'current noncurrent'!M14 -> 0 | N36: =+'debt allocation'!N10+'debt allocation'!N32-'current noncurrent'!N14 -> 0 | O36: =SUM(B36:N36) -> 830
A37: 2005 Series A | B37: =+'debt allocation'!B11+'debt allocation'!B33-'current noncurrent'!B15 -> 1 | C37: =+'debt allocation'!C11+'debt allocation'!C33-'current noncurrent'!C15 -> 2 | D37: =+'debt allocation'!D11+'debt allocation'!D33-'current noncurrent'!D15 -> 0 | E37: =+'debt allocation'!E11+'debt allocation'!E33-'current noncurrent'!E15 -> (1) | F37: =+'debt allocation'!F11+'debt allocation'!F33-'current noncurrent'!F15 -> (0) | G37: =+'debt allocation'!G11+'debt allocation'!G33-'current noncurrent'!G15 -> 1 | H37: =+'debt allocation'!H11+'debt allocation'!H33-'current noncurrent'!H15 -> 1 | I37: =+'debt allocation'!I11+'debt allocation'!I33-'current noncurrent'!I15 -> 0 | J37: =+'debt allocation'!J11+'debt allocation'!J33-'current noncurrent'!J15 -> 1 | K37: =+'debt allocation'!K11+'debt allocation'!K33-'current noncurrent'!K15 -> (0) | L37: =+'debt allocation'!L11+'debt allocation'!L33-'current noncurrent'!L15 -> (2) | M37: =+'debt allocation'!M11+'debt allocation'!M33-'current noncurrent'!M15 -> (0) | N37: =+'debt allocation'!N11+'debt allocation'!N33-'current noncurrent'!N15 -> 0 | O37: 4
A38: 2006 Series A | B38: =+'debt allocation'!B12+'debt allocation'!B34-'current noncurrent'!B16 -> 2,801,316 | C38: =+'debt allocation'!C12+'debt allocation'!C34-'current noncurrent'!C16 -> 503,349 | D38: =+'debt allocation'!D12+'debt allocation'!D34-'current noncurrent'!D16 -> 75,863 | E38: =+'debt allocation'!E12+'debt allocation'!E34-'current noncurrent'!E16 -> 2,528,599 | F38: =+'debt allocation'!F12+'debt allocation'!F34-'current noncurrent'!F16 -> 114,252 | G38: =+'debt allocation'!G12+'debt allocation'!G34-'current noncurrent'!G16 -> 141,305 | H38: =+'debt allocation'!H12+'debt allocation'!H34-'current noncurrent'!H16 -> 84,166 | I38: =+'debt allocation'!I12+'debt allocation'!I34-'current noncurrent'!I16 -> 11,569 | J38: =+'debt allocation'!J12+'debt allocation'!J34-'current noncurrent'!J16 -> 382,322 | K38: =+'debt allocation'!K12+'debt allocation'!K34-'current noncurrent'!K16 -> 0 | L38: =+'debt allocation'!L12+'debt allocation'!L34-'current noncurrent'!L16 -> 1,099,950 | M38: =+'debt allocation'!M12+'debt allocation'!M34-'current noncurrent'!M16 -> 36,959 | N38: =+'debt allocation'!N12+'debt allocation'!N34-'current noncurrent'!N16 -> 149,646 | O38: 7,929,297
A39: 2007 Series A | B39: =+'debt allocation'!B13+'debt allocation'!B35-'current noncurrent'!B17 -> 8,835,092 | C39: =+'debt allocation'!C13+'debt allocation'!C35-'current noncurrent'!C17 -> 24,927,686 | D39: =+'debt allocation'!D13+'debt allocation'!D35-'current noncurrent'!D17 -> 365,327 | E39: =+'debt allocation'!E13+'debt allocation'!E35-'current noncurrent'!E17 -> 12,430,588 | F39: =+'debt allocation'!F13+'debt allocation'!F35-'current noncurrent'!F17 -> 4,968,816 | G39: =+'debt allocation'!G13+'debt allocation'!G35-'current noncurrent'!G17 -> 183,313 | H39: =+'debt allocation'!H13+'debt allocation'!H35-'current noncurrent'!H17 -> 2,915,390 | I39: =+'debt allocation'!I13+'debt allocation'!I35-'current noncurrent'!I17 -> 239,104 | J39: =+'debt allocation'!J13+'debt allocation'!J35-'current noncurrent'!J17 -> 427,405 | K39: =+'debt allocation'!K13+'debt allocation'!K35-'current noncurrent'!K17 -> 0 | L39: =+'debt allocation'!L13+'debt allocation'!L35-'current noncurrent'!L17 -> 8,358,006 | M39: =+'debt allocation'!M13+'debt allocation'!M35-'current noncurrent'!M17 -> 136,837 | N39: =+'debt allocation'!N13+'debt allocation'!N35-'current noncurrent'!N17 -> 2,754,729 | O39: 66,542,293
A40: 2008 Series A & B | B40: =+'debt allocation'!B14+'debt allocation'!B36-'current noncurrent'!B18 -> 4,293,264 | C40: =+'debt allocation'!C14+'debt allocation'!C36-'current noncurrent'!C18 -> 8,789,879 | D40: =+'debt allocation'!D14+'debt allocation'!D36-'current noncurrent'!D18 -> 192,351 | E40: =+'debt allocation'!E14+'debt allocation'!E36-'current noncurrent'!E18 -> 1,216,779 | F40: =+'debt allocation'!F14+'debt allocation'!F36-'current noncurrent'!F18 -> 2,176,991 | G40: =+'debt allocation'!G14+'debt allocation'!G36-'current noncurrent'!G18 -> 369,941 | H40: =+'debt allocation'!H14+'debt allocation'!H36-'current noncurrent'!H18 -> 214,137 | I40: =+'debt allocation'!I14+'debt allocation'!I36-'current noncurrent'!I18 -> 130,312 | J40: =+'debt allocation'!J14+'debt allocation'!J36-'current noncurrent'!J18 -> 2,078,427 | K40: =+'debt allocation'!K14+'debt allocation'!K36-'current noncurrent'!K18 -> 0 | L40: =+'debt allocation'!L14+'debt allocation'!L36-'current noncurrent'!L18 -> 2,486,355 | M40: =+'debt allocation'!M14+'debt allocation'!M36-'current noncurrent'!M18 -> 49,836 | N40: =+'debt allocation'!N14+'debt allocation'!N36-'current noncurrent'!N18 -> 1,841,253 | O40: 23,839,525
A41: 2009 Series A & B | B41: =+'debt allocation'!B15+'debt allocation'!B37-'current noncurrent'!B19 -> 6,088,545 | C41: =+'debt allocation'!C15+'debt allocation'!C37-'current noncurrent'!C19 -> 17,431,599 | D41: =+'debt allocation'!D15+'debt allocation'!D37-'current noncurrent'!D19 -> 6,210,897 | E41: =+'debt allocation'!E15+'debt allocation'!E37-'current noncurrent'!E19 -> 11,379,040 | F41: =+'debt allocation'!F15+'debt allocation'!F37-'current noncurrent'!F19 -> 1,017,838 | G41: =+'debt allocation'!G15+'debt allocation'!G37-'current noncurrent'!G19 -> 2,698,274 | H41: =+'debt allocation'!H15+'debt allocation'!H37-'current noncurrent'!H19 -> 9,003,996 | I41: =+'debt allocation'!I15+'debt allocation'!I37-'current noncurrent'!I19 -> 147,120 | J41: =+'debt allocation'!J15+'debt allocation'!J37-'current noncurrent'!J19 -> 19,771,058 | K41: =+'debt allocation'!K15+'debt allocation'!K37-'current noncurrent'!K19 -> 0 | L41: =+'debt allocation'!L15+'debt allocation'!L37-'current noncurrent'!L19 -> 1,675,370 | M41: =+'debt allocation'!M15+'debt allocation'!M37-'current noncurrent'!M19 -> 252,022 | N41: =+'debt allocation'!N15+'debt allocation'!N37-'current noncurrent'!N19 -> 681,302 | O41: 76,357,062
A42: 2009 Series C | B42: =+'debt allocation'!B16+'debt allocation'!B38-'current noncurrent'!B20 -> 1,163,167 | C42: =+'debt allocation'!C16+'debt allocation'!C38-'current noncurrent'!C20 -> 8,847,497 | D42: =+'debt allocation'!D16+'debt allocation'!D38-'current noncurrent'!D20 -> 45,737 | E42: =+'debt allocation'!E16+'debt allocation'!E38-'current noncurrent'!E20 -> 418,589 | F42: =+'debt allocation'!F16+'debt allocation'!F38-'current noncurrent'!F20 -> 3,755,101 | G42: =+'debt allocation'!G16+'debt allocation'!G38-'current noncurrent'!G20 -> 424,701 | H42: =+'debt allocation'!H16+'debt allocation'!H38-'current noncurrent'!H20 -> 212,096 | I42: =+'debt allocation'!I16+'debt allocation'!I38-'current noncurrent'!I20 -> 83,602 | J42: =+'debt allocation'!J16+'debt allocation'!J38-'current noncurrent'!J20 -> 39,943 | K42: =+'debt allocation'!K16+'debt allocation'!K38-'current noncurrent'!K20 -> 0 | L42: =+'debt allocation'!L16+'debt allocation'!L38-'current noncurrent'!L20 -> 3,805,268 | M42: =+'debt allocation'!M16+'debt allocation'!M38-'current noncurrent'!M20 -> 15,491 | N42: =+'debt allocation'!N16+'debt allocation'!N38-'current noncurrent'!N20 -> 9,361 | O42: 18,820,552
A43: 2009 Series D | B43: =+'debt allocation'!B17+'debt allocation'!B39-'current noncurrent'!B21 -> 4,165,771 | C43: =+'debt allocation'!C17+'debt allocation'!C39-'current noncurrent'!C21 -> 13,202,575 | D43: =+'debt allocation'!D17+'debt allocation'!D39-'current noncurrent'!D21 -> 246,804 | E43: =+'debt allocation'!E17+'debt allocation'!E39-'current noncurrent'!E21 -> 4,321,922 | F43: =+'debt allocation'!F17+'debt allocation'!F39-'current noncurrent'!F21 -> 2,355,280 | G43: =+'debt allocation'!G17+'debt allocation'!G39-'current noncurrent'!G21 -> 464,755 | H43: =+'debt allocation'!H17+'debt allocation'!H39-'current noncurrent'!H21 -> 544,449 | I43: =+'debt allocation'!I17+'debt allocation'!I39-'current noncurrent'!I21 -> 628,381 | J43: =+'debt allocation'!J17+'debt allocation'!J39-'current noncurrent'!J21 -> 168,068 | K43: =+'debt allocation'!K17+'debt allocation'!K39-'current noncurrent'!K21 -> 0 | L43: =+'debt allocation'!L17+'debt allocation'!L39-'current noncurrent'!L21 -> 2,771,763 | M43: =+'debt allocation'!M17+'debt allocation'!M39-'current noncurrent'!M21 -> 334,014 | N43: =+'debt allocation'!N17+'debt allocation'!N39-'current noncurrent'!N21 -> 1,171,275 | O43: 30,375,060
A44: 2010 Series A & B | B44: =+'debt allocation'!B18+'debt allocation'!B40-'current noncurrent'!B22 -> 4,020,170 | C44: =+'debt allocation'!C18+'debt allocation'!C40-'current noncurrent'!C22 -> 10,582,321 | D44: =+'debt allocation'!D18+'debt allocation'!D40-'current noncurrent'!D22 -> 972,443 | E44: =+'debt allocation'!E18+'debt allocation'!E40-'current noncurrent'!E22 -> 38,701,839 | F44: =+'debt allocation'!F18+'debt allocation'!F40-'current noncurrent'!F22 -> 682,264 | G44: =+'debt allocation'!G18+'debt allocation'!G40-'current noncurrent'!G22 -> 8,456,372 | H44: =+'debt allocation'!H18+'debt allocation'!H40-'current noncurrent'!H22 -> 2,076,247 | I44: =+'debt allocation'!I18+'debt allocation'!I40-'current noncurrent'!I22 -> 632,268 | J44: =+'debt allocation'!J18+'debt allocation'!J40-'current noncurrent'!J22 -> 22,072,596 | K44: =+'debt allocation'!K18+'debt allocation'!K40-'current noncurrent'!K22 -> 0 | L44: =+'debt allocation'!L18+'debt allocation'!L40-'current noncurrent'!L22 -> 5,187,562 | M44: =+'debt allocation'!M18+'debt allocation'!M40-'current noncurrent'!M22 -> 23,940 | N44: =+'debt allocation'!N18+'debt allocation'!N40-'current noncurrent'!N22 -> 837,231 | O44: 94,245,253
A45: 2010 Series C | B45: =+'debt allocation'!B19+'debt allocation'!B41-'current noncurrent'!B23 -> 10,025,466 | C45: =+'debt allocation'!C19+'debt allocation'!C41-'current noncurrent'!C23 -> 12,055,947 | D45: =+'debt allocation'!D19+'debt allocation'!D41-'current noncurrent'!D23 -> 474,085 | E45: =+'debt allocation'!E19+'debt allocation'!E41-'current noncurrent'!E23 -> 2,811,936 | F45: =+'debt allocation'!F19+'debt allocation'!F41-'current noncurrent'!F23 -> 3,323,843 | G45: =+'debt allocation'!G19+'debt allocation'!G41-'current noncurrent'!G23 -> 1,191,719 | H45: =+'debt allocation'!H19+'debt allocation'!H41-'current noncurrent'!H23 -> 526,060 | I45: =+'debt allocation'!I19+'debt allocation'!I41-'current noncurrent'!I23 -> 5,451,913 | J45: =+'debt allocation'!J19+'debt allocation'!J41-'current noncurrent'!J23 -> 185,890 | K45: =+'debt allocation'!K19+'debt allocation'!K41-'current noncurrent'!K23 -> 0 | L45: =+'debt allocation'!L19+'debt allocation'!L41-'current noncurrent'!L23 -> 4,300,810 | M45: =+'debt allocation'!M19+'debt allocation'!M41-'current noncurrent'!M23 -> 853,531 | N45: =+'debt allocation'!N19+'debt allocation'!N41-'current noncurrent'!N23 -> 1,306,419 | O45: 42,507,618
A46: 2010 Series D & E | B46: =+'debt allocation'!B20+'debt allocation'!B42-'current noncurrent'!B24 -> 934,383 | C46: =+'debt allocation'!C20+'debt allocation'!C42-'current noncurrent'!C24 -> 11,655,410 | D46: =+'debt allocation'!D20+'debt allocation'!D42-'current noncurrent'!D24 -> 2,026,741 | E46: =+'debt allocation'!E20+'debt allocation'!E42-'current noncurrent'!E24 -> 45,593,570 | F46: =+'debt allocation'!F20+'debt allocation'!F42-'current noncurrent'!F24 -> 638,790 | G46: =+'debt allocation'!G20+'debt allocation'!G42-'current noncurrent'!G24 -> 1,403,339 | H46: =+'debt allocation'!H20+'debt allocation'!H42-'current noncurrent'!H24 -> 1,577,903 | I46: =+'debt allocation'!I20+'debt allocation'!I42-'current noncurrent'!I24 -> 95,054 | J46: =+'debt allocation'!J20+'debt allocation'!J42-'current noncurrent'!J24 -> 19,177,480 | K46: =+'debt allocation'!K20+'debt allocation'!K42-'current noncurrent'!K24 -> 0 | L46: =+'debt allocation'!L20+'debt allocation'!L42-'current noncurrent'!L24 -> 10,504,453 | M46: =+'debt allocation'!M20+'debt allocation'!M42-'current noncurrent'!M24 -> 133,842 | N46: =+'debt allocation'!N20+'debt allocation'!N42-'current noncurrent'!N24 -> 246,207 | O46: 93,987,171
A47: 2011 Series A & B | B47: =+'debt allocation'!B21+'debt allocation'!B43-'current noncurrent'!B25 -> 7,329,005 | C47: =+'debt allocation'!C21+'debt allocation'!C43-'current noncurrent'!C25 -> 39,281,789 | D47: =+'debt allocation'!D21+'debt allocation'!D43-'current noncurrent'!D25 -> 10,185,838 | E47: =+'debt allocation'!E21+'debt allocation'!E43-'current noncurrent'!E25 -> 46,743,274 | F47: =+'debt allocation'!F21+'debt allocation'!F43-'current noncurrent'!F25 -> 2,883,750 | G47: =+'debt allocation'!G21+'debt allocation'!G43-'current noncurrent'!G25 -> 1,333,085 | H47: =+'debt allocation'!H21+'debt allocation'!H43-'current noncurrent'!H25 -> 1,146,841 | I47: =+'debt allocation'!I21+'debt allocation'!I43-'current noncurrent'!I25 -> 2,560,213 | J47: =+'debt allocation'!J21+'debt allocation'!J43-'current noncurrent'!J25 -> 5,291,644 | K47: =+'debt allocation'!K21+'debt allocation'!K43-'current noncurrent'!K25 -> 0 | L47: =+'debt allocation'!L21+'debt allocation'!L43-'current noncurrent'!L25 -> 12,210,850 | M47: =+'debt allocation'!M21+'debt allocation'!M43-'current noncurrent'!M25 -> 963,370 | N47: =+'debt allocation'!N21+'debt allocation'!N43-'current noncurrent'!N25 -> 1,205,646 | O47: 131,135,307
A48: 2012 Series A & B | B48: =+'debt allocation'!B22+'debt allocation'!B44-'current noncurrent'!B26 -> 5,628,105 | C48: =+'debt allocation'!C22+'debt allocation'!C44-'current noncurrent'!C26 -> 21,834,456 | D48: =+'debt allocation'!D22+'debt allocation'!D44-'current noncurrent'!D26 -> 140,910 | E48: =+'debt allocation'!E22+'debt allocation'!E44-'current noncurrent'!E26 -> 1,442,079 | F48: =+'debt allocation'!F22+'debt allocation'!F44-'current noncurrent'!F26 -> 2,426,599 | G48: =+'debt allocation'!G22+'debt allocation'!G44-'current noncurrent'!G26 -> 110,966 | H48: =+'debt allocation'!H22+'debt allocation'!H44-'current noncurrent'!H26 -> 1,213,098 | I48: =+'debt allocation'!I22+'debt allocation'!I44-'current noncurrent'!I26 -> 1,674,014 | J48: =+'debt allocation'!J22+'debt allocation'!J44-'current noncurrent'!J26 -> 1,417,722 | K48: =+'debt allocation'!K22+'debt allocation'!K44-'current noncurrent'!K26 -> 0 | L48: =+'debt allocation'!L22+'debt allocation'!L44-'current noncurrent'!L26 -> 2,834,578 | M48: =+'debt allocation'!M22+'debt allocation'!M44-'current noncurrent'!M26 -> 156,434 | N48: =+'debt allocation'!N22+'debt allocation'!N44-'current noncurrent'!N26 -> 5,735,317 | O48: 44,614,279
A49: 2012 Series C & D | B49: =+'debt allocation'!B23+'debt allocation'!B45-'current noncurrent'!B27 -> 23,894,056 | C49: =+'debt allocation'!C23+'debt allocation'!C45-'current noncurrent'!C27 -> 41,048,077 | D49: =+'debt allocation'!D23+'debt allocation'!D45-'current noncurrent'!D27 -> 21,332,522 | E49: =+'debt allocation'!E23+'debt allocation'!E45-'current noncurrent'!E27 -> 36,307,352 | F49: =+'debt allocation'!F23+'debt allocation'!F45-'current noncurrent'!F27 -> 2,021,525 | G49: =+'debt allocation'!G23+'debt allocation'!G45-'current noncurrent'!G27 -> 1,441,884 | H49: =+'debt allocation'!H23+'debt allocation'!H45-'current noncurrent'!H27 -> 1,219,570 | I49: =+'debt allocation'!I23+'debt allocation'!I45-'current noncurrent'!I27 -> 3,470,020 | J49: =+'debt allocation'!J23+'debt allocation'!J45-'current noncurrent'!J27 -> 17,342,207 | K49: =+'debt allocation'!K23+'debt allocation'!K45-'current noncurrent'!K27 -> 0 | L49: =+'debt allocation'!L23+'debt allocation'!L45-'current noncurrent'!L27 -> 21,448,598 | M49: =+'debt allocation'!M23+'debt allocation'!M45-'current noncurrent'!M27 -> 741,233 | N49: =+'debt allocation'!N23+'debt allocation'!N45-'current noncurrent'!N27 -> 1,047,060 | O49: 171,314,103
A50: 2014 Series A & B | B50: =+'debt allocation'!B24+'debt allocation'!B46-'current noncurrent'!B28 -> 2,772,807 | C50: =+'debt allocation'!C24+'debt allocation'!C46-'current noncurrent'!C28 -> 42,213,970 | D50: =+'debt allocation'!D24+'debt allocation'!D46-'current noncurrent'!D28 -> 1,785,463 | E50: =+'debt allocation'!E24+'debt allocation'!E46-'current noncurrent'!E28 -> 36,740,743 | F50: =+'debt allocation'!F24+'debt allocation'!F46-'current noncurrent'!F28 -> 40,450 | G50: =+'debt allocation'!G24+'debt allocation'!G46-'current noncurrent'!G28 -> 245,022 | H50: =+'debt allocation'!H24+'debt allocation'!H46-'current noncurrent'!H28 -> 18,637,499 | I50: =+'debt allocation'!I24+'debt allocation'!I46-'current noncurrent'!I28 -> 472,215 | J50: =+'debt allocation'!J24+'debt allocation'!J46-'current noncurrent'!J28 -> 2,728,729 | K50: =+'debt allocation'!K24+'debt allocation'!K46-'current noncurrent'!K28 -> 0 | L50: =+'debt allocation'!L24+'debt allocation'!L46-'current noncurrent'!L28 -> 13,663,924 | M50: =+'debt allocation'!M24+'debt allocation'!M46-'current noncurrent'!M28 -> 411,210 | N50: =+'debt allocation'!N24+'debt allocation'!N46-'current noncurrent'!N28 -> 23,853,270 | O50: =+'debt allocation'!O24+'debt allocation'!O46-'current noncurrent'!O28 -> 143,565,302
A51: 2015 Series A | B51: =+'debt allocation'!B25+'debt allocation'!B47-'current noncurrent'!B29 -> 15,969,301 | C51: =+'debt allocation'!C25+'debt allocation'!C47-'current noncurrent'!C29 -> 36,533,640 | D51: =+'debt allocation'!D25+'debt allocation'!D47-'current noncurrent'!D29 -> 800,483 | E51: =+'debt allocation'!E25+'debt allocation'!E47-'current noncurrent'!E29 -> 6,842,857 | F51: =+'debt allocation'!F25+'debt allocation'!F47-'current noncurrent'!F29 -> 6,463,444 | G51: =+'debt allocation'!G25+'debt allocation'!G47-'current noncurrent'!G29 -> 990,916 | H51: =+'debt allocation'!H25+'debt allocation'!H47-'current noncurrent'!H29 -> 2,756,885 | I51: =+'debt allocation'!I25+'debt allocation'!I47-'current noncurrent'!I29 -> 853,344 | J51: =+'debt allocation'!J25+'debt allocation'!J47-'current noncurrent'!J29 -> 6,278,652 | K51: =+'debt allocation'!K25+'debt allocation'!K47-'current noncurrent'!K29 -> 0 | L51: =+'debt allocation'!L25+'debt allocation'!L47-'current noncurrent'!L29 -> 9,244,551 | M51: =+'debt allocation'!M25+'debt allocation'!M47-'current noncurrent'!M29 -> 396,077 | N51: =+'debt allocation'!N25+'debt allocation'!N47-'current noncurrent'!N29 -> 5,236,296 | O51: =+'debt allocation'!O25+'debt allocation'!O47-'current noncurrent'!O29 -> 92,366,446
A53: Total Noncurrent | B53: =SUM(B36:B51) -> 97,920,449 | C53: 288,909,029 | D53: 44,855,464 | E53: 247,479,166 | F53: 32,868,942 | G53: 19,455,593 | H53: 42,128,340 | I53: 16,449,129 | J53: 97,362,145 | K53: (0) | L53: 99,592,037 | M53: 4,504,795 | N53: 46,075,012 | O53: =SUM(O36:O51) -> 1,037,600,102 | P53: =O31+O53 -> 1,120,815,102
A55: Net Revenue Bonds:
A58: 2004 Series A&B | B58: =+B14+B36 -> 0 | C58: 65,830 | D58: 0 | E58: 0 | F58: 0 | G58: 0 | H58: 0 | I58: 0 | J58: 0 | K58: 0 | L58: 0 | M58: 0 | N58: 0 | O58: =SUM(B58:N58) -> 65,830
A59: 2005 Series A | B59: 1 | C59: 2 | D59: 0 | E59: (1) | F59: (0) | G59: 1 | H59: 1 | I59: 0 | J59: 1 | K59: (0) | L59: (2) | M59: (0) | N59: 0 | O59: 4
A60: 2006 Series A | B60: 4,053,718 | C60: 728,385 | D60: 109,780 | E60: 3,659,076 | F60: 165,331 | G60: 204,479 | H60: 121,794 | I60: 16,741 | J60: 553,249 | K60: 0 | L60: 1,591,712 | M60: 53,483 | N60: 216,549 | O60: 11,474,297
A61: 2007 Series A | B61: 9,554,728 | C61: 26,958,095 | D61: 395,083 | E61: 13,443,083 | F61: 5,373,536 | G61: 198,244 | H61: 3,152,854 | I61: 258,580 | J61: 462,218 | K61: 0 | L61: 9,038,782 | M61: 147,982 | N61: 2,979,107 | O61: 71,962,293
A62: 2008 Series A & B | B62: 5,978,908 | C62: 12,241,008 | D62: 267,872 | E62: 1,694,517 | F62: 3,031,732 | G62: 515,189 | H62: 298,213 | I62: 181,476 | J62: 2,894,470 | K62: 0 | L62: 3,462,561 | M62: 69,403 | N62: 2,564,175 | O62: 33,199,525
A63: 2009 Series A & B | B63: 6,418,261 | C63: 18,375,581 | D63: 6,547,239 | E63: 11,995,255 | F63: 1,072,957 | G63: 2,844,395 | H63: 9,491,594 | I63: 155,087 | J63: 20,841,729 | K63: 0 | L63: 1,766,097 | M63: 265,670 | N63: 718,197 | O63: 80,492,062
A64: 2009 Series C | B64: 1,163,785 | C64: 8,852,198 | D64: 45,761 | E64: 418,811 | F64: 3,757,096 | G64: 424,927 | H64: 212,209 | I64: 83,646 | J64: 39,964 | K64: 0 | L64: 3,807,290 | M64: 15,499 | N64: 9,366 | O64: 18,830,552
A65: 2009 Series D | B65: 5,677,788 | C65: 17,994,611 | D65: 336,385 | E65: 5,890,617 | F65: 3,210,158 | G65: 633,444 | H65: 742,064 | I65: 856,460 | J65: 229,071 | K65: 0 | L65: 3,777,809 | M65: 455,249 | N65: 1,596,404 | O65: 41,400,060
A66: 2010 Series A & B | B66: 4,236,652 | C66: 11,152,167 | D66: 1,024,808 | E66: 40,785,889 | F66: 719,003 | G66: 8,911,738 | H66: 2,188,051 | I66: 666,315 | J66: 23,261,180 | K66: 0 | L66: 5,466,906 | M66: 25,229 | N66: 882,315 | O66: 99,320,253
A67: 2010 Series C | B67: 10,062,023 | C67: 12,099,908 | D67: 475,814 | E67: 2,822,189 | F67: 3,335,963 | G67: 1,196,064 | H67: 527,978 | I67: 5,471,793 | J67: 186,568 | K67: 0 | L67: 4,316,492 | M67: 856,643 | N67: 1,311,183 | O67: 42,662,618
A68: 2010 Series D & E | B68: 984,340 | C68: 12,278,563 | D68: 2,135,100 | E68: 48,031,218 | F68: 672,943 | G68: 1,478,368 | H68: 1,662,265 | I68: 100,136 | J68: 20,202,799 | K68: 0 | L68: 11,066,071 | M68: 140,998 | N68: 259,370 | O68: 99,012,171
A69: 2011 Series A & B | B69: 7,678,031 | C69: 41,152,489 | D69: 10,670,914 | E69: 48,969,309 | F69: 3,021,082 | G69: 1,396,570 | H69: 1,201,457 | I69: 2,682,137 | J69: 5,543,646 | K69: 0 | L69: 12,792,362 | M69: 1,009,248 | N69: 1,263,062 | O69: 137,380,307
A70: 2012 Series A & B | B70: 6,414,652 | C70: 24,885,897 | D70: 160,603 | E70: 1,643,615 | F70: 2,765,725 | G70: 126,474 | H70: 1,382,633 | I70: 1,907,963 | J70: 1,615,854 | K70: 0 | L70: 3,230,720 | M70: 178,296 | N70: 6,536,847 | O70: 50,849,279
A71: 2012 Series C & D | B71: 24,522,391 | C71: 42,127,507 | D71: 21,893,497 | E71: 37,262,116 | F71: 2,074,684 | G71: 1,479,801 | H71: 1,251,641 | I71: 3,561,270 | J71: 17,798,250 | K71: 0 | L71: 22,012,626 | M71: 760,725 | N71: 1,074,595 | O71: 175,819,103
A72: 2014 Series A & B | B72: 2,936,879 | C72: 44,711,842 | D72: 1,891,112 | E72: 38,914,754 | F72: 42,843 | G72: 259,520 | H72: 19,740,311 | I72: 500,157 | J72: 2,890,193 | K72: 0 | L72: 14,472,441 | M72: 435,542 | N72: 25,264,708 | O72: 152,060,302
A73: 2015 Series A | B73: 18,375,940 | C73: 42,039,408 | D73: 921,119 | E73: 7,874,104 | F73: 7,437,511 | G73: 1,140,251 | H73: 3,172,359 | I73: 981,946 | J73: 7,224,871 | K73: 0 | L73: 10,637,743 | M73: 455,767 | N73: 6,025,427 | O73: 106,286,446
A75: Net Revenue Bonds | B75: =SUM(B58:B73) -> 108,058,096 | C75: 315,663,492 | D75: 46,875,087 | E75: 263,404,552 | F75: 36,680,565 | G75: 20,809,465 | H75: 45,145,424 | I75: 17,423,707 | J75: 103,744,063 | K75: (0) | L75: 107,439,611 | M75: 4,869,734 | N75: 50,701,305 | O75: =SUM(O58:O73) -> 1,120,815,102 | P75: =O75-S31 -> 0
A77: Other Debt:
A79: Current:
A82: EPC | C82: 1,494,202 | I82: 548,511 | L82: 615,987 | M82: =119392+671437 -> 790,829 | O82: =SUM(B82:N82) -> 3,449,529
A83: MEA | C83: 443,608 | I83: 48,480 | M83: =17980+108214 -> 126,194 | O83: =SUM(B83:N83) -> 618,282
A84: CISCO | C84: 2,164,423 | O84: =SUM(B84:N84) -> 2,164,423
A85: Revolving Equip-2003 | B85: 0 | C85: 0 | D85: 0 | E85: 0 | F85: 0 | G85: 0 | H85: 0 | I85: 0 | J85: 0 | K85: 0 | L85: 0 | M85: 0 | N85: 0 | O85: =SUM(B85:N85) -> 0
A87: Total Current | B87: =SUM(B82:B86) -> 0 | C87: 4,102,233 | D87: 0 | E87: 0 | F87: 0 | G87: 0 | H87: 0 | I87: 596,991 | J87: 0 | K87: 0 | L87: 615,987 | M87: 917,023 | N87: 0 | O87: 6,232,234
A90: Noncurrent:
A93: EPC | B93: ='debt allocation'!B57-B82 -> 0 | C93: ='debt allocation'!C57-C82 -> 13,312,767 | D93: ='debt allocation'!D57-D82 -> 0 | E93: ='debt allocation'!E57-E82 -> 0 | F93: ='debt allocation'!F57-F82 -> 0 | G93: ='debt allocation'!G57-G82 -> 0 | H93: ='debt allocation'!H57-H82 -> 0 | I93: ='debt allocation'!I57-I82 -> 4,789,793 | J93: ='debt allocation'!J57-J82 -> 0 | K93: ='debt allocation'!K57-K82 -> 0 | L93: ='debt allocation'!L57-L82 -> 0 | M93: ='debt allocation'!M57-M82 -> 2,129,434 | N93: ='debt allocation'!N57-N82 -> 0 | O93: =SUM(B93:N93) -> 20,231,994
A94: MEA | B94: ='debt allocation'!B58-B83 -> 0 | C94: ='debt allocation'!C58-C83 -> 1,862,216 | D94: ='debt allocation'!D58-D83 -> 0 | E94: ='debt allocation'!E58-E83 -> 0 | F94: ='debt allocation'!F58-F83 -> 0 | G94: ='debt allocation'!G58-G83 -> 0 | H94: ='debt allocation'!H58-H83 -> 0 | I94: ='debt allocation'!I58-I83 -> 184,830 | J94: ='debt allocation'!J58-J83 -> 0 | K94: ='debt allocation'!K58-K83 -> 0 | L94: ='debt allocation'!L58-L83 -> 0 | M94: ='debt allocation'!M58-M83 -> 1,352,178 | N94: ='debt allocation'!N58-N83 -> 0 | O94: 3,399,224
A95: CISCO | B95: ='debt allocation'!B59-B84 -> 0 | C95: ='debt allocation'!C59-C84 -> 2,869,507 | D95: ='debt allocation'!D59-D84 -> 0 | E95: ='debt allocation'!E59-E84 -> 0 | F95: ='debt allocation'!F59-F84 -> 0 | G95: ='debt allocation'!G59-G84 -> 0 | H95: ='debt allocation'!H59-H84 -> 0 | I95: ='debt allocation'!I59-I84 -> 0 | J95: ='debt allocation'!J59-J84 -> 0 | K95: ='debt allocation'!K59-K84 -> 0 | L95: ='debt allocation'!L59-L84 -> 0 | M95: ='debt allocation'!M59-M84 -> 0 | N95: ='debt allocation'!N59-N84 -> 0 | O95: =SUM(B95:N95) -> 2,869,507
A96: Revolving Equip-2003 | B96: ='debt allocation'!B56 -> 7,821,524 | C96: ='debt allocation'!C56 -> 4,887,597 | D96: ='debt allocation'!D56 -> 0 | E96: ='debt allocation'!E56 -> 0 | F96: ='debt allocation'!F56 -> 0 | G96: ='debt allocation'!G56 -> 21,767 | H96: ='debt allocation'!H56 -> 31,802 | I96: ='debt allocation'!I56 -> 0 | J96: ='debt allocation'!J56 -> 0 | K96: ='debt allocation'!K56 -> 0 | L96: ='debt allocation'!L56 -> 835,639 | M96: ='debt allocation'!M56 -> 111,952 | N96: ='debt allocation'!N56 -> 21,289,719 | O96: =SUM(B96:N96) -> 35,000,000
A98: Total Noncurrent | B98: =SUM(B93:B97) -> 7,821,524 | C98: 22,932,087 | D98: 0 | E98: 0 | F98: 0 | G98: 21,767 | H98: 31,802 | I98: 4,974,623 | J98: 0 | K98: 0 | L98: 835,639 | M98: 3,593,564 | N98: 21,289,719 | O98: =SUM(O93:O96) -> 61,500,725
A101: EPC | B101: =B82+B93 -> 0 | C101: 14,806,969 | D101: 0 | E101: 0 | F101: 0 | G101: 0 | H101: 0 | I101: 5,338,304 | J101: 0 | K101: 0 | L101: 615,987 | M101: 2,920,263 | N101: 0 | O101: =SUM(B101:N101) -> 23,681,523
A102: MEA | B102: 0 | C102: 2,305,824 | D102: 0 | E102: 0 | F102: 0 | G102: 0 | H102: 0 | I102: 233,310 | J102: 0 | K102: 0 | L102: 0 | M102: 1,478,372 | N102: 0 | O102: 4,017,506
A103: CISCO | B103: 0 | C103: 5,033,930 | D103: 0 | E103: 0 | F103: 0 | G103: 0 | H103: 0 | I103: 0 | J103: 0 | K103: 0 | L103: 0 | M103: 0 | N103: 0 | O103: 5,033,930
A104: Revolving Equip-2003 | B104: 7,821,524 | C104: 4,887,597 | D104: 0 | E104: 0 | F104: 0 | G104: 21,767 | H104: 31,802 | I104: 0 | J104: 0 | K104: 0 | L104: 835,639 | M104: 111,952 | N104: 21,289,719 | O104: =SUM(B104:N104) -> 35,000,000
A106: Total Other Debt | B106: =SUM(B101:B105) -> 7,821,524 | C106: 27,034,320 | D106: 0 | E106: 0 | F106: 0 | G106: 21,767 | H106: 31,802 | I106: 5,571,614 | J106: 0 | K106: 0 | L106: 1,451,626 | M106: 4,510,587 | N106: 21,289,719 | O106: 67,732,959
A109: Total Assigned | B109: =B75+B106 -> 115,879,620 | C109: 342,697,812 | D109: 46,875,087 | E109: 263,404,552 | F109: 36,680,565 | G109: 20,831,232 | H109: 45,177,226 | I109: 22,995,321 | J109: 103,744,063 | K109: (0) | L109: 108,891,237 | M109: 9,380,321 | N109: 71,991,024 | O109: 1,188,548,061
A111: Deferred Outflows of Resources:
A112: Unamortized loss on refunding | B112: ='debt allocation'!B85 -> (4,307,887) | C112: ='debt allocation'!C85 -> (6,035,753) | D112: ='debt allocation'!D85 -> (151,134) | E112: ='debt allocation'!E85 -> (2,593,176) | F112: ='debt allocation'!F85 -> (758,362) | G112: ='debt allocation'!G85 -> (243,626) | H112: ='debt allocation'!H85 -> (348,116) | I112: ='debt allocation'!I85 -> (569,374) | J112: ='debt allocation'!J85 -> (977,473) | K112: ='debt allocation'!K85 -> (0) | L112: ='debt allocation'!L85 -> (1,928,662) | M112: ='debt allocation'!M85 -> (113,072) | N112: ='debt allocation'!N85 -> (1,339,387) | O112: =SUM(B112:N112) -> (19,366,020)
A114: check | B114: =B109+B112-'debt allocation'!B63 -> (4,307,887) | C114: =C109+C112-'debt allocation'!C63 -> (6,035,753) | D114: =D109+D112-'debt allocation'!D63 -> (151,134) | E114: =E109+E112-'debt allocation'!E63 -> (2,593,176) | F114: =F109+F112-'debt allocation'!F63 -> (758,362) | G114: =G109+G112-'debt allocation'!G63 -> (243,626) | H114: =H109+H112-'debt allocation'!H63 -> (348,116) | I114: =I109+I112-'debt allocation'!I63 -> (569,374) | J114: =J109+J112-'debt allocation'!J63 -> (977,473) | K114: =K109+K112-'debt allocation'!K63 -> (0) | L114: =L109+L112-'debt allocation'!L63 -> (1,928,662) | M114: =M109+M112-'debt allocation'!M63 -> (113,072) | N114: =N109+N112-'debt allocation'!N63 -> (1,339,387) | O114: =O109+O112-'debt allocation'!O63 -> (19,366,020)
A115: deffered outflows should not be included, check is ok

Sheet Cash Flow Worksheet
A1: University System of Maryland
A2: Information for FY 2015 Statement of Cash Flows worksheet
A3: Fiscal year ended June 30, 2015
B5: UMAB | C5: UMCP | D5: BOWIE | E5: TOWSON | F5: UMES | G5: FSU | H5: COPPIN | I5: U. BALT. | J5: SU | K5: UMUC | L5: UMBC | M5: CEES | N5: UMSA | O5: TOTAL
A6: At June 30, 2014 | O6: 0
A7: Revenue Bonds | B7: 116,507,481 | C7: 336,081,523 | D7: 47,243,345 | E7: 250,796,095 | F7: 40,939,934 | G7: 21,907,985 | H7: 37,004,471 | I7: 18,499,620 | J7: 109,170,786 | K7: 0 | L7: 101,733,698 | M7: 4,830,272 | N7: 119,109,027 | O7: =SUM(B7:N7) -> 1,203,824,237
A8: Notes Payable | B8: 6,622,214 | C8: 7,009,401 | D8: 466,000 | E8: 0 | F8: 0 | G8: 355,198 | H8: 471,660 | I8: 106,235 | J8: 0 | K8: 0 | L8: 1,542,012 | M8: 137,595 | N8: 18,289,685 | O8: =SUM(B8:N8) -> 35,000,000
A9: Unamortized Loss on Refunding | B9: (3,887,173) | C9: (5,962,216) | D9: (125,196) | E9: (2,670,592) | F9: (812,276) | G9: (231,502) | H9: (392,776) | I9: (633,031) | J9: (589,847) | L9: (2,083,563) | M9: (120,687) | N9: (984,118) | O9: =SUM(B9:N9) -> (18,492,977)
A11: Total | B11: =SUM(B7:B9) -> 119,242,522 | C11: 337,128,708 | D11: 47,584,149 | E11: 248,125,503 | F11: 40,127,658 | G11: 22,031,681 | H11: 37,083,355 | I11: 17,972,824 | J11: 108,580,939 | K11: 0 | L11: 101,192,147 | M11: 4,847,180 | N11: 136,414,594 | O11: =SUM(O7:O9) -> 1,220,331,260
A13: Changes in debt - Year ended June 30, 2015
O14: =SUM(B14:N14) -> 0
A15: New Revenue Bonds issued (DR) CR | O15: 0
A16: 2015 Series A | B16: 16,198,134 | C16: 37,057,142 | D16: 811,953 | E16: 6,940,910 | F16: 6,556,060 | G16: 1,005,114 | H16: 2,796,390 | I16: 865,571 | J16: 6,368,622 | K16: 0 | L16: 9,377,019 | M16: 401,754 | N16: 5,311,331 | O16: 93,690,000
A17: 2015 Series A - unamortized premium | B17: 2,177,806 | C17: 4,982,266 | D17: 109,166 | E17: 933,194 | F17: 881,451 | G17: 135,137 | H17: 375,969 | I17: 116,375 | J17: 856,249 | K17: 0 | L17: 1,260,724 | M17: 54,013 | N17: 714,096 | O17: 12,596,446
A18: 2015 Series A - unamortized loss on refunding | B18: (1,084,356) | C18: (1,998,440) | D18: (51,623) | E18: (280,588) | F18: (271,860) | G18: (50,486) | H18: (126,643) | I18: (16,889) | J18: (526,628) | K18: 0 | L18: (390,749) | M18: (19,167) | N18: (457,649) | O18: (5,275,078)
O19: 0
O20: 0
A23: Net proceeds from Revenue Bonds issued | B23: =SUM(B14:B22) -> 17,291,584 | C23: 40,040,968 | D23: 869,496 | E23: 7,593,516 | F23: 7,165,651 | G23: 1,089,765 | H23: 3,045,716 | I23: 965,057 | J23: 6,698,243 | K23: 0 | L23: 10,246,994 | M23: 436,600 | N23: 5,567,778 | O23: 101,011,368
O24: 0
O25: 0
A26: Principal Paid - Revenue Bonds DR (CR)
A27: 2004 Series A&B | B27: 0 | C27: 65,000 | D27: 0 | E27: 0 | F27: 0 | G27: 0 | H27: 0 | I27: 0 | J27: 0 | K27: 0 | L27: 0 | M27: 0 | O27: =SUM(B27:N27) -> 65,000
A28: 2005 Series A | B28: 2,256,800 | C28: 8,467,187 | D28: 98,714 | E28: 1,324,110 | F28: 2,308,053 | G28: 240,628 | H28: 625,812 | I28: 518,433 | J28: 139,681 | K28: 0 | L28: 2,748,463 | M28: 83,303 | N28: 33,828 | O28: 18,845,012
A29: 2005 Series A -refunded | B29: 5,788,997 | C29: 24,646,910 | D29: 346,399 | E29: 4,337,617 | F29: 5,366,279 | G29: 511,249 | H29: 2,656,258 | I29: 632,389 | J29: 526,073 | K29: 0 | L29: 7,547,853 | M29: 301,639 | N29: 73,325 | O29: 52,734,988
A30: 2006 Series A | B30: 1,192,343 | C30: 214,244 | D30: 32,290 | E30: 1,076,267 | F30: 48,628 | G30: 60,147 | H30: 35,822 | I30: 4,923 | J30: 162,730 | K30: 0 | L30: 468,179 | M30: 15,730 | N30: 63,697 | O30: 3,375,000
A31: 2007 Series A | B31: 1,057,127 | C31: 1,588,293 | D31: 44,098 | E31: 1,335,490 | F31: 230,183 | G31: 13,876 | H31: 216,636 | I31: 28,860 | J31: 51,590 | K31: 0 | L31: 271,014 | M31: 10,337 | N31: 312,496 | O31: 5,160,000
A32: 2008 Series A&B | B32: 890,710 | C32: 1,177,144 | D32: 40,545 | E32: 243,548 | F32: 135,193 | G32: 44,310 | H32: 29,020 | I32: 22,207 | J32: 483,511 | K32: 0 | L32: 202,737 | M32: 10,141 | N32: 430,934 | O32: 3,710,000
A33: 2008 Series A&B - refunded | B33: 11,098,478 | C33: 14,619,096 | D33: 505,247 | E33: 3,034,011 | F33: 1,660,818 | G33: 549,675 | H33: 360,450 | I33: 276,348 | J33: 6,028,584 | K33: 0 | L33: 2,502,713 | M33: 126,344 | N33: 5,373,236 | O33: 46,135,000
A34: 2009 Series A&B | B34: 313,768 | C34: 898,325 | D34: 320,073 | E34: 586,411 | F34: 52,454 | G34: 139,053 | H34: 464,013 | I34: 7,582 | J34: 1,018,886 | K34: 0 | L34: 86,338 | M34: 12,988 | N34: 35,109 | O34: 3,935,000
A35: 2009 Series C | B35: 619 | C35: 4,701 | D35: 24 | E35: 222 | F35: 1,996 | G35: 226 | H35: 112 | I35: 44 | J35: 21 | K35: 0 | L35: 2,021 | M35: 8 | N35: 6 | O35: 10,000
A36: 2009 Series D | B36: 201,330 | C36: 3,017,910 | D36: 9,184 | E36: 614,924 | F36: 595,325 | G36: 17,265 | H36: 199,694 | I36: 10,810 | J36: 4,027 | K36: 0 | L36: 1,150,887 | M36: 12,567 | N36: 66,077 | O36: 5,900,000
A37: 2010 Series A&B | B37: 208,163 | C37: 547,951 | D37: 50,353 | E37: 2,003,973 | F37: 35,328 | G37: 437,870 | H37: 107,508 | I37: 32,739 | J37: 1,142,915 | K37: 0 | L37: 268,610 | M37: 1,239 | N37: 43,351 | O37: 4,880,000
A38: 2010 Series C | B38: 863,342 | C38: 1,727,246 | D38: 62,621 | E38: 229,804 | F38: 555,539 | G38: 172,503 | H38: 65,259 | I38: 252,149 | J38: 38,824 | K38: 0 | L38: 486,350 | M38: 124,217 | N38: 257,146 | O38: 4,835,000
A39: 2010 Series D & E | B39: 48,069 | C39: 599,591 | D39: 104,261 | E39: 2,345,480 | F39: 32,862 | G39: 72,193 | H39: 81,173 | I39: 4,889 | J39: 986,550 | K39: 0 | L39: 540,382 | M39: 6,886 | N39: 12,664 | O39: 4,835,000
A40: 2011 Series A | B40: 61,289 | C40: 1,218,057 | D40: 394,304 | E40: 1,806,509 | F40: 2,832 | G40: 17,535 | H40: 31,430 | I40: 4,391 | J40: 204,727 | K40: 0 | L40: 376,060 | M40: 12,851 | N40: 15 | O40: 4,130,000
A41: 2011 Series B | B41: 516,843 | C41: 471,259 | D41: 21,542 | E41: 116,712 | F41: 51,849 | G41: 51,415 | H41: 25,240 | I41: 364,050 | J41: 3,092 | K41: 0 | L41: 213,738 | M41: 37,295 | N41: 26,965 | O41: 1,900,000
A42: 2012 Series A & B | B42: 997,588 | C42: 3,504,384 | D42: 2,311 | E42: 91,157 | F42: 11,921 | G42: 6,434 | H42: 8,680 | I42: 29,360 | J42: 675,333 | K42: 0 | L42: 93,598 | M42: 20,728 | N42: 638,506 | O42: 6,080,000
A43: 2012 Series C | B43: 97,483 | C43: 1,398,705 | D43: 790,663 | E43: 710,793 | F43: 6,898 | G43: 16,766 | H43: 22,991 | I43: 50,654 | J43: 566,296 | K43: 0 | L43: 516,770 | M43: 16,981 | O43: 4,195,000
A44: 2012 Series D | B44: 35,329 | C44: 6,349 | D44: 956 | E44: 31,889 | F44: 1,441 | G44: 1,783 | H44: 1,061 | I44: 146 | J44: 4,822 | K44: 0 | L44: 13,872 | M44: 466 | N44: 1,886 | O44: 100,000
A45: 2014 Series A | B45: 20,965 | C45: 1,262,916 | D45: 38,702 | E45: 715,795 | F45: 0 | G45: 0 | H45: 0 | I45: 0 | J45: 8,396 | K45: 0 | L45: 65,620 | M45: 0 | N45: 2,237,606 | O45: 4,350,000
A46: 2014 Series B | B46: 354,142 | C46: 2,028,480 | D46: 0 | E46: 0 | F46: 0 | G46: 0 | H46: 0 | I46: 0 | J46: 1,253,647 | K46: 0 | L46: 138,731 | O46: 3,775,000
A47: 2015 Series A | O47: 0
O48: 0
O49: 0
A50: Total principal paid - Revenue Bonds | B50: =SUM(B27:B49) -> 26,003,385 | C50: 67,463,748 | D50: 2,862,287 | E50: 20,604,712 | F50: 11,097,599 | G50: 2,352,928 | H50: 4,931,159 | I50: 2,239,974 | J50: 13,299,705 | K50: 0 | L50: 17,693,936 | M50: 793,720 | N50: 9,606,847 | O50: 178,950,000 | P50: 0
O51: 0
A52: Amortization of discount / (premium) - (DR) CR
A53: 2004 Series A&B | C53: 826 | O53: 826
A54: 2004 Series A&B - unamortized amount on refunding | C54: 14,182 | O54: 14,182
A55: 2005 Series A | B55: =148674-3 -> 148,671 | C55: =395153-2 -> 395,151 | D55: =5166-1 -> 5,165 | E55: =87361+1 -> 87,362 | F55: =92995+4 -> 92,999 | G55: =10554+1 -> 10,555 | H55: =24483+5 -> 24,488 | I55: =50303+1 -> 50,304 | J55: =7644-3 -> 7,641 | K55: 0 | L55: =111343+4 -> 111,347 | M55: =4781-4 -> 4,777 | N55: =2677-5 -> 2,672 | O55: 941,132
A56: 2005 Series A - premium written off in refunding | B56: 343,624 | C56: 1,333,394 | D56: 18,312 | E56: 243,078 | F56: 281,159 | G56: 27,848 | H56: 131,044 | I56: 55,649 | J56: 28,417 | K56: 0 | L56: 389,313 | M56: 16,311 | N56: 4,718 | O56: 2,872,867
A57: 2005 Series A - unamortized loss refunded | B57: (183,555) | C57: (879,937) | D57: (11,574) | E57: (87,923) | F57: (179,122) | G57: (11,082) | H57: (109,947) | I57: (5,411) | J57: (17,399) | K57: 0 | L57: (247,895) | M57: (10,484) | N57: =-1722-2 -> (1,724) | O57: (1,746,053)
A58: 2005 Series A - unamortized amount on refunding | B58: (42,577) | C58: (216,941) | D58: (2,272) | E58: (21,191) | F58: (32,961) | G58: (2,726) | H58: (18,423) | I58: (947) | J58: (4,397) | K58: 0 | L58: (46,747) | M58: (2,240) | N58: (318) | O58: (391,740)
A59: 2006 Series A | B59: 39,468 | C59: 7,092 | D59: 1,070 | E59: 35,626 | F59: 1,608 | G59: 1,992 | H59: 1,184 | I59: 162 | J59: 5,386 | K59: 0 | L59: 15,498 | M59: 520 | N59: 2,110 | O59: 111,716
A60: 2007 Series A | B60: 33,090 | C60: 94,764 | D60: 1,368 | E60: 46,706 | F60: 18,974 | G60: 694 | H60: 11,052 | I60: 894 | J60: 1,600 | K60: 0 | L60: 32,040 | M60: 518 | N60: 10,332 | O60: 252,032
A61: 2007 Series A - unamortized amount on refunding | B61: (13,092) | C61: (63,200) | D61: (534) | E61: (21,274) | F61: (14,228) | G61: (424) | H61: (6,812) | I61: (348) | J61: (626) | K61: 0 | L61: (26,118) | M61: (318) | N61: (4,402) | O61: (151,376)
A62: 2008 Series A&B | B62: 28,600 | C62: 53,576 | D62: 1,288 | E62: 8,037 | F62: 12,066 | G62: 2,213 | H62: 1,307 | I62: 831 | J62: 14,249 | K62: 0 | L62: 14,151 | M62: 331 | N62: 12,643 | O62: 149,292
A63: 2008 Series A&B - premium written off in refunding | B63: 244,067 | C63: 321,486 | D63: 11,110 | E63: 66,712 | F63: 36,519 | G63: 12,086 | H63: 7,923 | I63: 6,076 | J63: 132,568 | K63: 0 | L63: 55,029 | M63: 2,778 | N63: 118,161 | O63: 1,014,515
A64: 2008 Series A&B - unamortized amount on refunding | B64: (4,634) | C64: (35,222) | D64: (182) | E64: (1,666) | F64: (14,950) | G64: (1,690) | H64: (844) | I64: (332) | J64: (160) | K64: 0 | L64: (15,152) | M64: (62) | N64: (36) | O64: (74,930)
A65: 2009 Series A&B | B65: 15,362 | C65: 43,978 | D65: 15,668 | E65: 28,710 | F65: 2,568 | G65: 6,806 | H65: 22,714 | I65: 372 | J65: 49,882 | K65: 0 | L65: 4,226 | M65: 636 | N65: 1,718 | O65: 192,640
A66: 2009 Series C | B66: 6,464 | C66: 49,154 | D66: 254 | E66: 2,326 | F66: 20,864 | G66: 2,358 | H66: 1,178 | I66: 464 | J66: 222 | K66: 0 | L66: 21,142 | M66: 86 | N66: 52 | O66: 104,564
A67: 2009 Series C - unamortized amount on refunding | B67: (4,044) | C67: (30,780) | D67: (160) | E67: (1,456) | F67: (13,064) | G67: (1,478) | H67: (738) | I67: (290) | J67: (138) | K67: 0 | L67: (13,238) | M67: (54) | N67: (32) | O67: (65,472)
A68: 2009 Series D | B68: 40,126 | C68: 196,138 | D68: 2,386 | E68: 47,796 | F68: 41,558 | G68: 5,080 | H68: 11,920 | I68: 6,278 | J68: 1,612 | K68: 0 | L68: 63,850 | M68: 3,668 | N68: 12,226 | O68: 432,638
A69: 2009 Series D - unamortized amount on refunding | B69: (21,106) | C69: (155,248) | D69: (1,182) | E69: (35,098) | F69: (31,282) | G69: (2,428) | H69: (9,606) | I69: (2,750) | J69: (730) | K69: 0 | L69: (53,964) | M69: (1,752) | N69: (6,476) | O69: (321,622)
A70: 2010 Series A&B | B70: 6,086 | C70: 16,022 | D70: 1,474 | E70: 58,590 | F70: 1,032 | G70: 12,802 | H70: 3,142 | I70: 958 | J70: 33,418 | K70: 0 | L70: 7,854 | M70: 36 | N70: 1,266 | O70: 142,680
A71: 2010 Series C | B71: 97,892 | C71: 125,646 | D71: 4,864 | E71: 27,756 | F71: 36,546 | G71: 12,394 | H71: 5,338 | I71: 50,130 | J71: 2,108 | K71: 0 | L71: 43,130 | M71: 8,876 | N71: 14,608 | O71: 429,288
A72: 2010 Series C - unamortized amount on refunding | B72: (88,830) | C72: (69,082) | D72: (3,262) | E72: (24,498) | F72: (15,180) | G72: (7,522) | H72: (3,826) | I72: (59,396) | J72: (552) | K72: 0 | L72: (33,340) | M72: (5,378) | N72: (4,666) | O72: (315,532)
A73: 2010 Series D & E | B73: 1,582 | C73: 19,732 | D73: 3,432 | E73: 77,204 | F73: 1,082 | G73: 2,376 | H73: 2,672 | I73: 160 | J73: 32,472 | K73: 0 | L73: 17,784 | M73: 228 | N73: 416 | O73: 159,140
A74: 2011 Series A | B74: 8,322 | C74: 165,402 | D74: 53,544 | E74: 245,310 | F74: 384 | G74: 2,382 | H74: 4,268 | I74: 596 | J74: 27,800 | K74: 0 | L74: 51,068 | M74: 1,744 | N74: 2 | O74: 560,822
A75: 2011 Series B | B75: 59,002 | C75: 82,962 | D75: 3,208 | E75: 17,182 | F75: 27,180 | G75: 8,378 | H75: 3,458 | I75: 26,328 | J75: 1,634 | K75: 0 | L75: 27,324 | M75: 5,998 | N75: 11,084 | O75: 273,738
A76: 2011 Series B - unamortized amount on refunding | B76: (22,910) | C76: (16,718) | D76: (810) | E76: (5,888) | F76: (2,284) | G76: (1,832) | H76: (972) | I76: (16,434) | J76: (60) | K76: 0 | L76: (8,554) | M76: (1,316) | N76: (686) | O76: (78,464)
A77: 2012 Series A & B | B77: 126,260 | C77: 261,900 | D77: 1,840 | E77: 19,984 | F77: 29,800 | G77: 1,554 | H77: 16,862 | I77: 16,988 | J77: 61,354 | K77: 0 | L77: 41,528 | M77: 3,210 | N77: 6,002 | O77: 587,282
A78: 2012 Series A & B - unamortized amount on refunding | B78: (88,582) | C78: (409,896) | D78: (738) | E78: 2,990 | F78: (9,388) | G78: (4) | H78: (14,570) | I78: 17,914 | J78: (76,036) | K78: 0 | L78: (27,320) | M78: (2,592) | N78: (74,404) | O78: (682,626)
A79: 2012 Series C | B79: 11,136 | C79: 159,752 | D79: 90,304 | E79: 81,182 | F79: 788 | G79: 1,914 | H79: 2,624 | I79: 5,784 | J79: 64,678 | K79: 0 | L79: 59,026 | M79: 1,940 | O79: 479,128
A80: 2012 Series D | B80: 277,324 | C80: 56,418 | D80: 7,060 | E80: 226,172 | F80: 25,662 | G80: 12,880 | H80: 7,952 | I80: 31,468 | J80: 31,104 | K80: 0 | L80: 101,316 | M80: 3,856 | N80: 13,448 | O80: 794,660
A81: 2012 Series D - unamortized amount on refunding | B81: (189,908) | C81: (36,832) | D81: (4,972) | E81: (162,000) | F81: (13,316) | G81: (9,176) | H81: (5,564) | I81: (12,552) | J81: (23,314) | K81: 0 | L81: (71,596) | M81: (2,586) | N81: (9,642) | O81: (541,458)
A82: 2014 Series A | N82: 652,149 | O82: 652,149
A83: 2014 Series B | B83: 18,244 | C83: 104,498 | D83: 0 | E83: 0 | F83: 0 | G83: 0 | H83: 0 | I83: 0 | J83: 64,584 | K83: 0 | L83: 7,146 | O83: 194,472
A84: 2014 Series B - unamortized amount on refunding | B84: (4,404) | C84: (25,228) | D84: 0 | E84: 0 | F84: 0 | G84: 0 | H84: 0 | I84: 0 | J84: (15,590) | K84: 0 | L84: (1,726) | O84: (46,948)
A85: 2015 Series A | O85: 0
A86: 2015 Series A - unamortized amount on refunding | O86: 0
O87: 0
A88: Total amortization of discount / premium - Revenue Bonds | B88: =SUM(B53:B86) -> 841,678 | C88: 1,562,989 | D88: 196,661 | E88: 961,729 | F88: 305,014 | G88: 85,950 | H88: 87,824 | I88: 172,896 | J88: 421,727 | K88: 0 | L88: 517,122 | M88: 28,731 | N88: 761,220 | O88: 5,943,542
O89: =SUM(B89:N89) -> 0
A90: Transfers to / from other USM institutions - (DR) CR | O90: =SUM(B90:N90) -> 0
A91: 2014 Series A | B91: 683,380 | C91: 10,784,495 | D91: 1,795,258 | E91: 26,658,798 | F91: 31,507 | G91: 238,469 | H91: 10,158,879 | I91: 435,558 | J91: 1,208,840 | K91: 0 | L91: 13,824,878 | M91: 432,929 | N91: (66,252,991) | O91: 0
A92: 2014 Series A - unamortized premium | O92: 0
O93: 0
A94: New debt - Revolving Loan Program | B94: =4015257 -> 4,015,257 | C94: =98348 -> 98,348 | D94: 50,112 | G94: 537,865 | L94: 32,478 | N94: (4,734,060) | O94: 0
A95: Principal Paid - Revolving Loan Program | B95: =-2815948+1 -> (2,815,947) | C95: =-2220153+1 -> (2,220,152) | D95: (516,112) | G95: (871,296) | H95: =-439856-2 -> (439,858) | I95: (106,235) | L95: =-738850-1 -> (738,851) | M95: (25,643) | N95: =7734093+1 -> 7,734,094 | O95: 0
O96: 0 | P96: =+O96 -> 0
A97: other - reversal of FY 14 accrual | C97: (2,290,296) | N97: 2,290,296 | O97: 0
A98: other - FY 15 accrual | C98: 806,896 | N98: (806,896) | O98: 0
O99: 0
O100: 0
A101: At June 30, 2015 | O101: 0
A102: Revenue Bonds | B102: =+B7+B23-B50-B88+B91+B92+B97+B98+B86+B84+B81+B78+B76+B72+B69+B67+B64+B61+B58+B57+B54-B18 -> 108,058,096 | C102: =+C7+C23-C50-C88+C91+C92+C97+C98+C86+C84+C81+C78+C76+C72+C69+C67+C64+C61+C58+C57+C54-C18 -> 316,470,387 | D102: 46,875,088 | E102: 263,404,552 | F102: 36,680,564 | G102: 20,809,465 | H102: 45,145,424 | I102: 17,423,708 | J102: 103,744,063 | K102: 0 | L102: 107,439,611 | M102: 4,869,735 | N102: 49,894,410 | O102: 1,120,815,102
A103: Notes Payable | B103: =+B8+B94+B95-B96 -> 7,821,524 | C103: 4,887,597 | D103: 0 | E103: 0 | F103: 0 | G103: 21,767 | H103: 31,802 | I103: 0 | J103: 0 | K103: 0 | L103: 835,639 | M103: 111,952 | N103: 21,289,719 | O103: =SUM(B103:N103) -> 35,000,000
A104: Unamortized Loss on Refunding | B104: =B9+B18-B54-B57-B58-B61-B64-B67-B69-B72-B76-B78-B81-B84-B86 -> (4,307,887) | C104: =C9+C18-C54-C57-C58-C61-C64-C67-C69-C72-C76-C78-C81-C84-C86 -> (6,035,754) | D104: (151,133) | E104: (2,593,176) | F104: (758,361) | G104: (243,626) | H104: (348,117) | I104: (569,374) | J104: (977,473) | K104: 0 | L104: (1,928,662) | M104: (113,072) | N104: (1,339,381) | O104: =SUM(B104:N104) -> (19,366,016)
A106: Total | B106: =SUM(B102:B104) -> 111,571,733 | C106: 315,322,230 | D106: 46,723,955 | E106: 260,811,376 | F106: 35,922,203 | G106: 20,587,606 | H106: 44,829,109 | I106: 16,854,334 | J106: 102,766,590 | K106: 0 | L106: 106,346,588 | M106: 4,868,615 | N106: 69,844,747 | O106: =SUM(O102:O104) -> 1,136,449,086
A109: Change in Revenue Bonds / Notes Payable - FY 2015 | B109: =+B106-B11 -> (7,670,789) | C109: (21,806,478) | D109: (860,194) | E109: 12,685,873 | F109: (4,205,455) | G109: (1,444,075) | H109: 7,745,754 | I109: (1,118,490) | J109: (5,814,349) | K109: 0 | L109: 5,154,441 | M109: 21,435 | N109: (66,569,847) | O109: (83,882,174)
A111: For Statement of Cash Flows worksheets - Source (Use) of Cash
A112: Principal Payments | B112: =-B50 -> (26,003,385) | C112: (67,463,748) | D112: (2,862,287) | E112: (20,604,712) | F112: (11,097,599) | G112: (2,352,928) | H112: (4,931,159) | I112: (2,239,974) | J112: (13,299,705) | K112: 0 | L112: (17,693,936) | M112: (793,720) | N112: (9,606,847) | O112: =SUM(B112:N112) -> (178,950,000)
A114: New debt issued | B114: =+B23 -> 17,291,584 | C114: 40,040,968 | D114: 869,496 | E114: 7,593,516 | F114: 7,165,651 | G114: 1,089,765 | H114: 3,045,716 | I114: 965,057 | J114: 6,698,243 | K114: 0 | L114: 10,246,994 | M114: 436,600 | N114: =+N23 -> 5,567,778 | O114: 101,011,368
A116: Adjustments to interest expense-Revenue bonds & revolving loan | B116: =-B88-B118 -> (420,964) | C116: (1,489,451) | D116: (170,724) | E116: (1,039,144) | F116: (358,928) | G116: (73,826) | H116: (132,483) | I116: (236,554) | J116: (34,101) | K116: 0 | L116: (672,023) | M116: (36,347) | N116: =-N88-N118 -> (405,957) | O116: =SUM(B116:N116) -> (5,070,503)
A118: Adjustment to Interest exp-Loss on Refunding | B118: =-B54-B58-B61-B64-B67-B69-B72-B76-B78-B81-B57+B18-B84-B86 -> (420,714) | C118: (73,538) | D118: (25,937) | E118: 77,416 | F118: 53,915 | G118: (12,124) | H118: 44,659 | I118: 63,657 | J118: (387,626) | K118: 0 | L118: 154,901 | M118: 7,615 | N118: =-N54-N58-N61-N64-N67-N69-N72-N76-N78-N81-N57+N18-N84-N86 -> (355,263) | O118: =SUM(B118:N118) -> (873,039)
A120: Transfers to / from other USM Institutions | B120: =+B91+B92+B94+B95+B97+B98 -> 1,882,690 | C120: =+C91+C92+C94+C95+C97+C98 -> 7,179,291 | D120: 1,329,258 | E120: 26,658,798 | F120: 31,507 | G120: (94,962) | H120: 9,719,021 | I120: 329,323 | J120: 1,208,840 | K120: 0 | L120: 13,118,505 | M120: 407,286 | N120: (61,769,557) | O120: 0
A122: Total change detailed | B122: =SUM(B112:B120) -> (7,670,789) | C122: =SUM(C112:C120) -> (21,806,478) | D122: =SUM(D112:D120) -> (860,194) | E122: 12,685,873 | F122: (4,205,455) | G122: (1,444,075) | H122: 7,745,754 | I122: (1,118,490) | J122: (5,814,349) | K122: 0 | L122: 5,154,441 | M122: 21,435 | N122: (66,569,847) | O122: =SUM(O112:O120) -> (83,882,174)
A125: Change in Revenue Bonds - FY 2015 | B125: =+B7-B102 -> 8,449,385 | C125: =+C7-C102 -> 19,611,136 | D125: 368,257 | E125: (12,608,457) | F125: 4,259,370 | G125: 1,098,520 | H125: (8,140,953) | I125: 1,075,912 | J125: 5,426,723 | K125: 0 | L125: (5,705,913) | M125: (39,463) | N125: 69,214,617
A126: principal
A127: interest
B129: =+B124+B126+B127 -> 0 | C129: =+C124+C126+C127 -> 0 | D129: 0 | E129: 0 | F129: 0 | G129: 0 | H129: 0 | I129: 0 | J129: 0 | K129: 0 | L129: 0 | M129: 0 | N129: 0 | O129: =+O124+O126+O127 -> 0
A131: Per combined JV | B131: =8449388+420687 -> 8,870,075 | C131: =18127738+73557 -> 18,201,295 | D131: =368258+25939 -> 394,197 | E131: =-12608458-77395 -> (12,685,853) | F131: =4259366-53917 -> 4,205,449 | G131: =1098519+12113 -> 1,110,632 | H131: =-8140958-44671 -> (8,185,629) | I131: =1075911-63651 -> 1,012,260 | J131: =5426726+387626 -> 5,814,352 | L131: =-5705917-154920 -> (5,860,837) | M131: =-39459-7603 -> (47,062) | N131: =70698072+355276 -> 71,053,348
A133: Difference | B133: =+B125-B131 -> (420,690) | C133: =+C125-C131 -> 1,409,841 | D133: (25,940) | E133: 77,396 | F133: 53,921 | G133: (12,112) | H133: 44,676 | I133: 63,652 | J133: (387,629) | K133: 0 | L133: 154,924 | M133: 7,599 | N133: (1,838,731)
B137: =B102-Summary!F44 -> (0) | C137: =C102-Summary!F45 -> (0) | D137: =D102-Summary!F46 -> 0 | E137: =E102-Summary!F47 -> (0) | F137: =F102-Summary!F48 -> (0) | G137: =G102-Summary!F49 -> (0) | H137: =H102-Summary!F50 -> 0 | I137: =I102-Summary!F51 -> 0 | J137: =J102-Summary!F52 -> (0) | K137: =K102-Summary!F53 -> 0 | L137: =L102-Summary!F54 -> 0 | M137: =M102-Summary!F55 -> 0 | N137: =N102-Summary!F56 -> 0 | O137: =O102-Summary!F58 -> (0)
B138: =B103-Summary!P44 -> 0 | C138: =C103-Summary!P45 -> 0 | D138: =D103-Summary!P46 -> 0 | E138: =E103-Summary!P47 -> 0 | F138: =F103-Summary!P48 -> 0 | G138: =G103-Summary!P49 -> 0 | H138: =H103-Summary!P50 -> 0 | I138: =I103-Summary!P51 -> 0 | J138: =J103-Summary!P52 -> 0 | K138: =K103-Summary!P53 -> 0 | L138: =L103-Summary!P54 -> 0 | M138: =M103-Summary!P55 -> 0 | N138: =N103-Summary!P56 -> 0 | O138: =O103-Summary!P58 -> 0
B141: =B109-B122 -> (0) | C141: =C109-C122 -> 0 | D141: 0 | E141: 0 | F141: 0 | G141: 0 | H141: 0 | I141: 0 | J141: 0 | K141: 0 | L141: 0 | M141: 0 | N141: 0 | O141: =SUM(B141:N141) -> (0)

Sheet 04AB
A1: University System of Maryland
A2: 2004 Series A & B Revenue Bonds
A3: FYE June 30, 2015
J4: =D7 -> @ 6/30/14 | M4: =I5 -> FY 2015 | N4: =H7 -> @ 6/30/15 | O4: =J4 -> @ 6/30/14 | P4: =M4 -> FY 2015 | Q4: =N4 -> @ 6/30/15 | R4: =O4 -> @ 6/30/14 | S4: =Q4 -> @ 6/30/15
E5: Write off for | F5: Write off for | G5: FY 2015 | I5: =G5 -> FY 2015 | J5: Allocation | K5: Write off for | L5: Write off for | M5: Amort. | N5: Allocation | O5: Allocation | P5: Amort. | Q5: Allocation | R5: Accrued | S5: Accrued | T5: =P4 -> FY 2015 | U5: Capitalize
C6: Academic | D6: Debt at | E6: Refunding with | F6: Refunding with | G6: Principal | H6: Debt at | I6: Interest | J6: of Unamort. | K6: Refunding with | L6: Refunding with | M6: of | N6: of Unamort. | O6: of Unamort. | P6: of | Q6: of Unamort. | R6: Interest | S6: Interest | T6: Interest | U6: Interest /
A7: Project | B7: Institution | C7: /Auxiliary | D7: @ 6/30/14 | E7: 2011B | F7: 2012B | G7: Paid | H7: @ 6/30/15 | I7: Paid | J7: Premium | K7: =E7 -> 2011B | L7: =F7 -> 2012B | M7: Premium | N7: Premium | O7: (Gain)/Loss | P7: (Gain)/Loss | Q7: (Gain)Loss | R7: Payable | S7: Payable | T7: Expense | U7: Expense
H9: =+D9-E9 -> 0 | N9: =+J9-K9 -> 0 | T9: =+I9+P9-K9+S9 -> 0
A10: Refunding - 1992 Series C | H10: =+D10-E10 -> 0 | N10: =+J10-K10 -> 0 | T10: =+I10+P10-K10+S10 -> 0
A11: Skinner Building | B11: UMCP | C11: Auxiliary | D11: 130,000 | G11: 65,000 | H11: =D11-E11-G11-F11 -> 65,000 | I11: =3250+3250 -> 6,500 | J11: 1,656 | M11: =413+413 -> 826 | N11: =J11-K11-M11-L11 -> 830 | O11: (28,368) | P11: =-7091-7091 -> (14,182) | Q11: =O11-P11 -> (14,186) | R11: 1,625 | S11: =1625/2 -> 813 | T11: =S11-R11+P11-M11+I11 -> (9,321)
D12: 0 | H12: =D12-E12-G12-F12 -> 0 | J12: 0 | N12: =J12-K12-M12-L12 -> 0 | O12: 0 | Q12: =O12-P12 -> 0 | T12: =I12-K12+P12+S12-R12 -> 0
A13: New Money | D13: 0 | H13: 0 | J13: 0 | N13: 0 | O13: 0 | Q13: 0 | T13: =I13-K13+P13+S13-R13 -> 0
A14: Facilities Renewal | B14: BSU | C14: Academic | H14: 0 | N14: 0 | O14: 0 | Q14: 0 | T14: =S14-R14+P14-M14+I14 -> 0
A15: Facilities Renewal | B15: CSU | C15: Academic | H15: 0 | N15: 0 | O15: 0 | Q15: 0 | T15: 0
A16: New Health / Human Services Bldg | B16: CSU | C16: Academic | H16: 0 | N16: 0 | O16: 0 | Q16: 0 | T16: 0
A17: Compton Science Center equipment | B17: FSU | C17: Academic | H17: 0 | N17: 0 | O17: 0 | Q17: 0 | T17: 0
A18: Facilities Renewal | B18: FSU | C18: Academic | H18: 0 | N18: 0 | O18: 0 | Q18: 0 | T18: 0
A19: Facilities Renewal | B19: SU | C19: Academic | H19: 0 | N19: 0 | O19: 0 | Q19: 0 | T19: 0
A20: Emergency Fund Projects | B20: SU | C20: Academic | H20: 0 | N20: 0 | O20: 0 | Q20: 0 | T20: 0
A21: 7800 York Road renovation | B21: TU | C21: Academic | H21: 0 | N21: 0 | O21: 0 | Q21: 0 | T21: 0
A22: Facilities Renewal | B22: TU | C22: Academic | H22: 0 | N22: 0 | O22: 0 | Q22: 0 | T22: 0
A23: Fine Arts Center | B23: TU | C23: Academic | H23: 0 | N23: 0 | O23: 0 | Q23: 0 | T23: 0
A24: Facilities Renewal | B24: UB | C24: Academic | H24: 0 | N24: 0 | O24: 0 | Q24: 0 | T24: 0
A25: Emergency Fund Projects | B25: UB | C25: Academic | H25: 0 | N25: 0 | O25: 0 | Q25: 0 | T25: 0
A26: New Dental School | B26: UMB | C26: Academic | H26: 0 | N26: 0 | O26: 0 | Q26: 0 | T26: 0
A27: School of Nursing equipment | B27: UMB | C27: Academic | H27: 0 | N27: 0 | O27: 0 | Q27: 0 | T27: 0
A28: Facilities Renewal | B28: UMB | C28: Academic | H28: 0 | N28: 0 | O28: 0 | Q28: 0 | T28: 0
A29: Facilities Renewal | B29: UMBC | C29: Academic | H29: 0 | N29: 0 | O29: 0 | Q29: 0 | T29: 0
A30: Information Technology Building equipment | B30: UMBC | C30: Academic | H30: 0 | N30: 0 | O30: 0 | Q30: 0 | T30: 0
A31: Aquaculture Building | B31: UMCES | C31: Academic | H31: 0 | N31: 0 | O31: 0 | Q31: 0 | T31: 0
A32: Facilities Renewal | B32: UMCES | C32: Academic | H32: 0 | N32: 0 | O32: 0 | Q32: 0 | T32: 0
A33: Facilities Renewal | B33: UMCP | C33: Academic | H33: 0 | N33: 0 | O33: 0 | Q33: 0 | T33: 0
A34: Chemical/Nuclear Eng | B34: UMCP | C34: Academic | H34: 0 | N34: 0 | T34: 0
A35: Hornbake and McKeldin Libr | B35: UMCP | C35: Academic | H35: 0 | N35: 0 | O35: 0 | Q35: =O35-P35 -> 0 | T35: 0
A36: Engineering/Applied Science Bldg | B36: UMCP | C36: Academic | H36: 0 | N36: 0 | O36: 0 | Q36: 0 | T36: 0
A37: UMBI Transfer | B37: UMCP | C37: Academic | H37: 0 | N37: 0 | Q37: 0 | T37: 0
A38: Facilities Renewal | B38: UMES | C38: Academic | H38: 0 | N38: 0 | O38: 0 | Q38: 0 | T38: 0
A39: Social Science, Education and Health | B39: UMES | C39: Academic | H39: 0 | N39: 0 | O39: 0 | Q39: 0 | T39: 0
A40: Utilities Upgrade / Site Improvement | B40: UMES | C40: Academic | H40: 0 | N40: 0 | O40: 0 | Q40: 0 | T40: 0
A41: Emergency Fund Projects | B41: USM Office | C41: Academic | H41: 0 | N41: 0 | O41: 0 | Q41: 0 | T41: 0
H42: 0 | N42: 0 | T42: 0
A43: Holmes/Tubman Hall | B43: BSU | C43: Auxiliary | H43: 0 | N43: 0 | O43: 0 | Q43: =O43-P43 -> 0 | T43: 0
A44: New Dining Hall | B44: CSU | C44: Auxiliary | H44: 0 | N44: 0 | O44: 0 | Q44: 0 | T44: 0
A45: 7800 York Road Garage | B45: TU | C45: Auxiliary | H45: 0 | N45: 0 | O45: 0 | Q45: 0 | T45: 0
A46: New Childcare Ctr | B46: TU | C46: Auxiliary | H46: 0 | N46: 0 | O46: 0 | Q46: 0 | T46: 0
A47: New Student center | B47: UB | C47: Auxiliary | H47: 0 | N47: 0 | O47: 0 | Q47: 0 | T47: 0
A48: Pine Street Annex | B48: UMB | C48: Auxiliary | H48: 0 | N48: 0 | O48: 0 | Q48: 0 | T48: 0
A49: Recreation and Athletic facilities | B49: UMBC | C49: Auxiliary | H49: 0 | N49: 0 | O49: 0 | Q49: 0 | T49: 0 | V49: ubit
A50: Residence Hall renovations | B50: UMBC | C50: Auxiliary | H50: 0 | N50: 0 | O50: 0 | Q50: 0 | T50: 0
A51: New Parking Lot | B51: UMBC | C51: Auxiliary | H51: 0 | N51: 0 | O51: 0 | Q51: 0 | T51: 0
A52: Dining Hall: HVAC Upgrade | B52: UMBC | C52: Auxiliary | H52: 0 | N52: 0 | O52: 0 | Q52: 0 | T52: 0
A53: Health Center addition/renovation | B53: UMCP | C53: Auxiliary | H53: 0 | N53: 0 | O53: 0 | Q53: 0 | T53: 0
A54: Avanti Property/ 2004B | B54: UMCP | C54: Auxiliary | H54: 0 | N54: 0 | O54: 0 | Q54: 0 | T54: 0
A55: Queen Anne's Hall renovation | B55: UMCP | C55: Auxiliary | H55: 0 | N55: 0 | O55: 0 | Q55: 0 | T55: 0 | V55: ubit
A56: South Campus Parking Garage #5 | B56: UMCP | C56: Auxiliary | H56: 0 | N56: 0 | O56: 0 | Q56: 0 | T56: 0
A57: Murphy Hall annex | B57: UMES | C57: Auxiliary | H57: 0 | N57: 0 | O57: 0 | Q57: 0 | T57: 0
A58: Student Services Center | B58: UMES | C58: Auxiliary | H58: 0 | N58: 0 | O58: 0 | Q58: 0 | T58: 0
A59: Transfer from UMUC for early payoff/2004B | B59: USM Office | C59: Auxiliary | H59: 0 | N59: 0 | Q59: 0 | T59: 0
A60: Shady Grove Parking Lot 2 | B60: USM Office | C60: Auxiliary | H60: 0 | N60: 0 | O60: 0 | Q60: 0 | T60: 0
A61: Unused proceeds (based on ) | H61: 0 | J61: 0 | N61: 0 | O61: 0 | P61: =O61/19 -> 0 | Q61: 0 | T61: 0
H62: =+D62-E62 -> 0 | N62: =H62/H$64*415361 -> 0
A64: Totals | D64: =SUM(D9:D62) -> 130,000 | E64: 0 | F64: 0 | G64: 65,000 | H64: 65,000 | I64: 6,500 | J64: 1,656 | K64: 0 | L64: 0 | M64: 826 | N64: 830 | O64: (28,368) | P64: (14,182) | Q64: (14,186) | R64: 1,625 | S64: 813 | T64: (9,320) | U64: 0
B67: UMB | D67: =D26+D27+D28+D48 -> 0 | E67: 0 | G67: 0 | H67: 0 | I67: 0 | J67: 0 | K67: 0 | M67: 0 | N67: 0 | O67: 0 | P67: 0 | Q67: 0 | R67: 0 | S67: 0 | T67: 0 | U67: 0
B68: UMCP | D68: =D11+D33+D34+D35+D36+D53+D54+D55+D56+D37 -> 130,000 | E68: 0 | G68: 65,000 | H68: 65,000 | I68: 6,500 | J68: 1,656 | K68: 0 | M68: 826 | N68: 830 | O68: (28,368) | P68: (14,182) | Q68: (14,186) | R68: 1,625 | S68: 813 | T68: (9,321) | U68: 0
B69: BSU | D69: =D14+D43 -> 0 | E69: 0 | G69: 0 | H69: 0 | I69: 0 | J69: 0 | K69: 0 | M69: 0 | N69: 0 | O69: 0 | P69: 0 | Q69: 0 | R69: 0 | S69: 0 | T69: 0 | U69: 0
B70: TU | D70: =D21+D22+D23+D45+D46 -> 0 | E70: 0 | G70: 0 | H70: 0 | I70: 0 | J70: 0 | K70: 0 | M70: 0 | N70: 0 | O70: 0 | P70: 0 | Q70: 0 | R70: 0 | S70: 0 | T70: 0 | U70: 0
B71: UMES | D71: =D38+D39+D40+D57+D58 -> 0 | E71: 0 | G71: 0 | H71: 0 | I71: 0 | J71: 0 | K71: 0 | M71: 0 | N71: 0 | O71: 0 | P71: 0 | Q71: 0 | R71: 0 | S71: 0 | T71: 0 | U71: 0
B72: FSU | D72: =D17+D18 -> 0 | E72: 0 | G72: 0 | H72: 0 | I72: 0 | J72: 0 | K72: 0 | M72: 0 | N72: 0 | O72: 0 | P72: 0 | Q72: 0 | R72: 0 | S72: 0 | T72: 0 | U72: 0
B73: CSU | D73: =D15+D16+D44 -> 0 | E73: 0 | G73: 0 | H73: 0 | I73: 0 | J73: 0 | K73: 0 | M73: 0 | N73: 0 | O73: 0 | P73: 0 | Q73: 0 | R73: 0 | S73: 0 | T73: 0 | U73: 0
B74: UB | D74: =+D24+D25+D47 -> 0 | E74: 0 | G74: 0 | H74: 0 | I74: 0 | J74: 0 | K74: 0 | M74: 0 | N74: 0 | O74: 0 | P74: 0 | Q74: 0 | R74: 0 | S74: 0 | T74: 0 | U74: 0
B75: SU | D75: =D19+D20 -> 0 | E75: 0 | G75: 0 | H75: 0 | I75: 0 | J75: 0 | K75: 0 | M75: 0 | N75: 0 | O75: 0 | P75: 0 | Q75: 0 | R75: 0 | S75: 0 | T75: 0 | U75: 0
B76: UMUC
B77: UMBC | D77: =D29+D30+D49+D50+D51+D52 -> 0 | E77: 0 | G77: 0 | H77: 0 | I77: 0 | J77: 0 | K77: 0 | M77: 0 | N77: 0 | O77: 0 | P77: 0 | Q77: 0 | R77: 0 | S77: 0 | T77: 0 | U77: 0
B78: UMCES | D78: =D31+D32 -> 0 | E78: 0 | G78: 0 | H78: 0 | I78: 0 | J78: 0 | K78: 0 | M78: 0 | N78: 0 | O78: 0 | P78: 0 | Q78: 0 | R78: 0 | S78: 0 | T78: 0 | U78: 0
B79: UMBI
B80: USM Office | D80: =D41+D60+D61+D59 -> 0 | E80: 0 | G80: 0 | H80: 0 | I80: 0 | J80: 0 | K80: 0 | M80: 0 | N80: 0 | O80: 0 | P80: 0 | Q80: 0 | R80: 0 | S80: 0 | T80: 0 | U80: 0
D82: =SUM(D67:D80) -> 130,000 | E82: 0 | G82: =SUM(G67:G80) -> 65,000 | H82: 65,000 | I82: 6,500 | J82: 1,656 | K82: 0 | M82: =SUM(M67:M80) -> 826 | N82: 830 | O82: =SUM(O67:O80) -> (28,368) | P82: (14,182) | Q82: (14,186) | R82: =SUM(R67:R80) -> 1,625 | S82: 813 | T82: (9,320) | U82: 0
A85: Academic | B85: UMB | D85: =D26+D27+D28 -> 0 | E85: =E26+E27+E28 -> 0 | F85: =F26+F27+F28 -> 0 | G85: 0 | H85: 0 | I85: 0 | J85: 0 | K85: 0 | L85: 0 | M85: 0 | N85: 0 | O85: 0 | P85: 0 | Q85: 0 | R85: 0 | S85: 0 | T85: 0 | U85: 0
B86: UMCP | D86: =D33+D34+D35+D36+D37 -> 0 | E86: =E33+E34+E35+E36+E37 -> 0 | F86: =F33+F34+F35+F36+F37 -> 0 | G86: 0 | H86: 0 | I86: 0 | J86: 0 | K86: 0 | L86: 0 | M86: 0 | N86: 0 | O86: 0 | P86: 0 | Q86: 0 | R86: 0 | S86: 0 | T86: 0 | U86: 0
B87: BSU | D87: =D14 -> 0 | E87: =E14 -> 0 | F87: =F14 -> 0 | G87: 0 | H87: 0 | I87: 0 | J87: 0 | K87: 0 | L87: 0 | M87: 0 | N87: 0 | O87: 0 | P87: 0 | Q87: 0 | R87: 0 | S87: 0 | T87: 0 | U87: 0
B88: TU | D88: =D21+D22+D23 -> 0 | E88: =E21+E22+E23 -> 0 | F88: =F21+F22+F23 -> 0 | G88: 0 | H88: 0 | I88: 0 | J88: 0 | K88: 0 | L88: 0 | M88: 0 | N88: 0 | O88: 0 | P88: 0 | Q88: 0 | R88: 0 | S88: 0 | T88: 0 | U88: 0
B89: UMES | D89: =D38+D39+D40 -> 0 | E89: =E38+E39+E40 -> 0 | F89: =F38+F39+F40 -> 0 | G89: 0 | H89: 0 | I89: 0 | J89: 0 | K89: 0 | L89: 0 | M89: 0 | N89: 0 | O89: 0 | P89: 0 | Q89: 0 | R89: 0 | S89: 0 | T89: 0 | U89: 0
B90: FSU | D90: =D17+D18 -> 0 | E90: =E17+E18 -> 0 | F90: =F17+F18 -> 0 | G90: 0 | H90: 0 | I90: 0 | J90: 0 | K90: 0 | L90: 0 | M90: 0 | N90: 0 | O90: 0 | P90: 0 | Q90: 0 | R90: 0 | S90: 0 | T90: 0 | U90: 0
B91: CSU | D91: =D15+D16 -> 0 | E91: =E15+E16 -> 0 | F91: =F15+F16 -> 0 | G91: 0 | H91: 0 | I91: 0 | J91: 0 | K91: 0 | L91: 0 | M91: 0 | N91: 0 | O91: 0 | P91: 0 | Q91: 0 | R91: 0 | S91: 0 | T91: 0 | U91: 0
B92: UB | D92: =D24+D25 -> 0 | E92: =E24+E25 -> 0 | F92: =F24+F25 -> 0 | G92: 0 | H92: 0 | I92: 0 | J92: 0 | K92: 0 | L92: 0 | M92: 0 | N92: 0 | O92: 0 | P92: 0 | Q92: 0 | R92: 0 | S92: 0 | T92: 0 | U92: 0
B93: SU | D93: =D19+D20 -> 0 | E93: =E19+E20 -> 0 | F93: =F19+F20 -> 0 | G93: 0 | H93: 0 | I93: 0 | J93: 0 | K93: 0 | L93: 0 | M93: 0 | N93: 0 | O93: 0 | P93: 0 | Q93: 0 | R93: 0 | S93: 0 | T93: 0 | U93: 0
B94: UMUC
B95: UMBC | D95: =D29+D30 -> 0 | E95: =E29+E30 -> 0 | F95: =F29+F30 -> 0 | G95: 0 | H95: 0 | I95: 0 | J95: 0 | K95: 0 | L95: 0 | M95: 0 | N95: 0 | O95: 0 | P95: 0 | Q95: 0 | R95: 0 | S95: 0 | T95: 0 | U95: 0
B96: UMCES | D96: =D31+D32 -> 0 | E96: =E31+E32 -> 0 | F96: =F31+F32 -> 0 | G96: 0 | H96: 0 | I96: 0 | J96: 0 | K96: 0 | L96: 0 | M96: 0 | N96: 0 | O96: 0 | P96: 0 | Q96: 0 | R96: 0 | S96: 0 | T96: 0 | U96: 0
B97: USM Office | D97: =D41 -> 0 | E97: 0 | F97: 0 | G97: 0 | H97: 0 | I97: 0 | J97: 0 | K97: 0 | L97: 0 | M97: 0 | N97: 0 | O97: 0 | P97: 0 | Q97: 0 | R97: 0 | S97: 0 | T97: 0 | U97: 0
D99: =SUM(D85:D97) -> 0 | E99: 0 | F99: 0 | G99: 0 | H99: 0 | I99: 0 | J99: 0 | K99: 0 | L99: 0 | M99: 0 | N99: 0 | O99: 0 | P99: 0 | Q99: 0 | R99: 0 | S99: 0 | T99: 0 | U99: 0
A103: Auxiliary | B103: UMB | D103: =D48 -> 0 | E103: 0 | F103: 0 | G103: 0 | H103: 0 | I103: 0 | J103: 0 | K103: 0 | L103: 0 | M103: 0 | N103: 0 | O103: 0 | P103: 0 | Q103: 0 | R103: 0 | S103: 0 | T103: 0 | U103: 0
B104: UMCP | D104: =+D11+D53+D54+D55+D56 -> 130,000 | E104: 0 | F104: 0 | G104: 65,000 | H104: 65,000 | I104: 6,500 | J104: 1,656 | K104: 0 | L104: 0 | M104: 826 | N104: 830 | O104: (28,368) | P104: (14,182) | Q104: (14,186) | R104: 1,625 | S104: 813 | T104: (9,321) | U104: 0
B105: BSU | D105: =D43 -> 0 | E105: 0 | F105: 0 | G105: 0 | H105: 0 | I105: 0 | J105: 0 | K105: 0 | L105: 0 | M105: 0 | N105: 0 | O105: 0 | P105: 0 | Q105: 0 | R105: 0 | S105: 0 | T105: 0 | U105: 0
B106: TU | D106: =D45+D46 -> 0 | E106: 0 | F106: 0 | G106: 0 | H106: 0 | I106: 0 | J106: 0 | K106: 0 | L106: 0 | M106: 0 | N106: 0 | O106: 0 | P106: 0 | Q106: 0 | R106: 0 | S106: 0 | T106: 0 | U106: 0
B107: UMES | D107: =D57+D58 -> 0 | E107: 0 | F107: 0 | G107: 0 | H107: 0 | I107: 0 | J107: 0 | K107: 0 | L107: 0 | M107: 0 | N107: 0 | O107: 0 | P107: 0 | Q107: 0 | R107: 0 | S107: 0 | T107: 0 | U107: 0
B108: FSU
B109: CSU | D109: =D44 -> 0 | E109: 0 | F109: 0 | G109: 0 | H109: 0 | I109: 0 | J109: 0 | K109: 0 | L109: 0 | M109: 0 | N109: 0 | O109: 0 | P109: 0 | Q109: 0 | R109: 0 | S109: 0 | T109: 0 | U109: 0
B110: UB | D110: =D47 -> 0 | E110: 0 | F110: 0 | G110: 0 | H110: 0 | I110: 0 | J110: 0 | K110: 0 | L110: 0 | M110: 0 | N110: 0 | O110: 0 | P110: 0 | Q110: 0 | R110: 0 | S110: 0 | T110: 0 | U110: 0
B111: SU
B112: UMUC
B113: UMBC | D113: =D49+D50+D51+D52 -> 0 | E113: 0 | F113: 0 | G113: 0 | H113: 0 | I113: 0 | J113: 0 | K113: 0 | L113: 0 | M113: 0 | N113: 0 | O113: 0 | P113: 0 | Q113: 0 | R113: 0 | S113: 0 | T113: 0 | U113: 0
B114: UMCES
B115: USM Office | D115: =D60+D61+D59 -> 0 | E115: 0 | F115: 0 | G115: 0 | H115: 0 | I115: 0 | J115: 0 | K115: 0 | L115: 0 | M115: 0 | N115: 0 | O115: 0 | P115: 0 | Q115: 0 | R115: 0 | S115: 0 | T115: 0 | U115: 0
D117: =SUM(D103:D115) -> 130,000 | E117: =SUM(E103:E115) -> 0 | F117: =SUM(F103:F115) -> 0 | G117: 65,000 | H117: 65,000 | I117: 6,500 | J117: 1,656 | K117: 0 | L117: 0 | M117: 826 | N117: 830 | O117: (28,368) | P117: (14,182) | Q117: (14,186) | R117: 1,625 | S117: 813 | T117: (9,320) | U117: 0
A121: Total | B121: UMB | D121: =D85+D103 -> 0 | E121: 0 | F121: 0 | G121: 0 | H121: 0 | I121: 0 | J121: 0 | K121: 0 | L121: 0 | M121: 0 | N121: 0 | O121: 0 | P121: 0 | Q121: 0 | R121: 0 | S121: 0 | T121: 0 | U121: 0
B122: UMCP | D122: 130,000 | E122: 0 | F122: 0 | G122: 65,000 | H122: 65,000 | I122: 6,500 | J122: 1,656 | K122: 0 | L122: 0 | M122: 826 | N122: 830 | O122: (28,368) | P122: (14,182) | Q122: (14,186) | R122: 1,625 | S122: 813 | T122: (9,321) | U122: 0
B123: BSU | D123: 0 | E123: 0 | F123: 0 | G123: 0 | H123: 0 | I123: 0 | J123: 0 | K123: 0 | L123: 0 | M123: 0 | N123: 0 | O123: 0 | P123: 0 | Q123: 0 | R123: 0 | S123: 0 | T123: 0 | U123: 0
B124: TU | D124: 0 | E124: 0 | F124: 0 | G124: 0 | H124: 0 | I124: 0 | J124: 0 | K124: 0 | L124: 0 | M124: 0 | N124: 0 | O124: 0 | P124: 0 | Q124: 0 | R124: 0 | S124: 0 | T124: 0 | U124: 0
B125: UMES | D125: 0 | E125: 0 | F125: 0 | G125: 0 | H125: 0 | I125: 0 | J125: 0 | K125: 0 | L125: 0 | M125: 0 | N125: 0 | O125: 0 | P125: 0 | Q125: 0 | R125: 0 | S125: 0 | T125: 0 | U125: 0
B126: FSU | D126: 0 | E126: 0 | F126: 0 | G126: 0 | H126: 0 | I126: 0 | J126: 0 | K126: 0 | L126: 0 | M126: 0 | N126: 0 | O126: 0 | P126: 0 | Q126: 0 | R126: 0 | S126: 0 | T126: 0 | U126: 0
B127: CSU | D127: 0 | E127: 0 | F127: 0 | G127: 0 | H127: 0 | I127: 0 | J127: 0 | K127: 0 | L127: 0 | M127: 0 | N127: 0 | O127: 0 | P127: 0 | Q127: 0 | R127: 0 | S127: 0 | T127: 0 | U127: 0
B128: UB | D128: 0 | E128: 0 | F128: 0 | G128: 0 | H128: 0 | I128: 0 | J128: 0 | K128: 0 | L128: 0 | M128: 0 | N128: 0 | O128: 0 | P128: 0 | Q128: 0 | R128: 0 | S128: 0 | T128: 0 | U128: 0
B129: SU | D129: 0 | E129: 0 | F129: 0 | G129: 0 | H129: 0 | I129: 0 | J129: 0 | K129: 0 | L129: 0 | M129: 0 | N129: 0 | O129: 0 | P129: 0 | Q129: 0 | R129: 0 | S129: 0 | T129: 0 | U129: 0
B130: UMUC | D130: 0 | E130: 0 | F130: 0 | G130: 0 | H130: 0 | I130: 0 | J130: 0 | K130: 0 | L130: 0 | M130: 0 | N130: 0 | O130: 0 | P130: 0 | Q130: 0 | R130: 0 | S130: 0 | T130: 0 | U130: 0
B131: UMBC | D131: 0 | E131: 0 | F131: 0 | G131: 0 | H131: 0 | I131: 0 | J131: 0 | K131: 0 | L131: 0 | M131: 0 | N131: 0 | O131: 0 | P131: 0 | Q131: 0 | R131: 0 | S131: 0 | T131: 0 | U131: 0
B132: UMCES | D132: 0 | E132: 0 | F132: 0 | G132: 0 | H132: 0 | I132: 0 | J132: 0 | K132: 0 | L132: 0 | M132: 0 | N132: 0 | O132: 0 | P132: 0 | Q132: 0 | R132: 0 | S132: 0 | T132: 0 | U132: 0
B133: USM Office | D133: 0 | E133: 0 | F133: 0 | G133: 0 | H133: 0 | I133: 0 | J133: 0 | K133: 0 | L133: 0 | M133: 0 | N133: 0 | O133: 0 | P133: 0 | Q133: 0 | R133: 0 | S133: 0 | T133: 0 | U133: 0
D135: =SUM(D121:D133) -> 130,000 | E135: 0 | F135: 0 | G135: 65,000 | H135: 65,000 | I135: 6,500 | J135: 1,656 | K135: 0 | L135: 0 | M135: 826 | N135: 830 | O135: (28,368) | P135: (14,182) | Q135: (14,186) | R135: 1,625 | S135: 813 | T135: (9,320) | U135: 0

Sheet 05A
A1: University of Maryland System
A2: Allocation of accrued interest payable, unamortized discount - 2005 Series A
A3: As of FYE 6/30/15
O4: Total | R4: Total
I5: Allocated | J5: Allocated | O5: Unamortized | Q5: Amortization | R5: Unamortized
C6: Academic / | E6: Write off for | F6: FY 2015 | H6: =F6 -> FY 2015 | I6: Accrued Interest | J6: Accrued Interest | K6: Unamortized | L6: Write off for | M6: =H6 -> FY 2015 | N6: Unamortized | O6: (Gain)/loss on | Q6: of (Gain)/loss on | R6: (Gain)/loss on | S6: Interest | T6: Interest
C7: Auxiliary | D7: Debt at | E7: Refunding with | F7: Principal | G7: Long-term debt | H7: Interest | I7: Payable | J7: Payable | K7: Premium | L7: Refunding with | M7: Amortization | N7: Premium | O7: refunding | P7: Refinanced on | Q7: refunding | R7: refunding | S7: Expense | T7: Capitalized
B8: Institution | C8: Project | D8: @ 6/30/14 | E8: 2015A | F8: Paid | G8: as of 6/30/15 | H8: Paid | I8: =D8 -> @ 6/30/14 | J8: =G8 -> as of 6/30/15 | K8: =I8 -> @ 6/30/14 | L8: =E8 -> 2015A | M8: of Premium | N8: =J8 -> as of 6/30/15 | O8: =K8 -> @ 6/30/14 | P8: 2015A | Q8: =F6 -> FY 2015 | R8: =+N8 -> as of 6/30/15 | S8: =+N8 -> as of 6/30/15 | T8: =Q8 -> FY 2015
B10: 1997 Series A funded projects | D10: 0 | G10: =D10-F10 -> 0 | K10: 0 | N10: =+K10-M10 -> 0 | O10: 0 | R10: =O10-Q10 -> 0 | S10: =H10+J10-I10-M10+Q10 -> 0
A11: UMAB | B11: Health Sciences Library | C11: Acad | D11: 1,747,065 | E11: =D11-405389 -> 1,341,676 | F11: 405,389 | G11: =D11-E11-F11 -> 0 | H11: 87,353 | I11: 21,839 | K11: 107,695 | L11: 80,769 | M11: 26,926 | N11: =K11-L11-M11 -> 0 | O11: 76,784 | P11: 57,586 | Q11: 19,198 | R11: =O11-Q11-P11 -> 0 | S11: 57,787
A12: UMAB | B12: Health Sciences Facility Equip | C12: Acad | D12: 49,838 | E12: =D12-11565 -> 38,273 | F12: 11,565 | G12: 0 | H12: 2,492 | I12: 623 | K12: 3,073 | L12: 2,305 | M12: 768 | N12: 0 | O12: 2,189 | P12: 1,641 | Q12: 548 | R12: =O12-Q12-P12 -> (0) | S12: 1,649
A13: UMAB | B13: Facilities Renewal | C13: Acad | D13: 9,443 | E13: =D13-2191 -> 7,252 | F13: 2,191 | G13: 0 | H13: 472 | I13: 118 | K13: 579 | L13: 433 | M13: 146 | N13: 0 | O13: 414 | P13: 310 | Q13: 104 | R13: (0) | S13: 312
A14: UMCP | B14: Performing Arts Center | C14: Acad | D14: 4,957,672 | E14: =D14-1150378 -> 3,807,294 | F14: 1,150,378 | G14: 0 | H14: 247,884 | I14: 61,971 | K14: 305,623 | L14: 229,217 | M14: 76,406 | N14: (0) | O14: 217,907 | P14: 163,431 | Q14: 54,476 | R14: (0) | S14: 163,983
A15: UMCP | B15: Facilities Renewal | C15: Acad | D15: 784,781 | E15: =D15-182101 -> 602,680 | F15: 182,101 | G15: 0 | H15: 39,239 | I15: 9,810 | K15: 48,384 | L15: 36,290 | M15: 12,094 | N15: (0) | O15: 34,490 | P15: 25,866 | Q15: 8,624 | R15: 0 | S15: 25,959
A16: UMCP | B16: Steam Plant Improvements | C16: Acad | D16: 241 | E16: =D16-56 -> 185 | F16: 56 | G16: 0 | H16: 12 | I16: 3 | K16: 0 | N16: 0 | O16: 0 | R16: 0 | S16: 9
A17: BSU | B17: Facilities Renewal | C17: Acad | D17: 30,787 | E17: =D17-7144 -> 23,643 | F17: 7,144 | G17: 0 | H17: 1,539 | I17: 385 | K17: 1,901 | L17: 1,427 | M17: 474 | N17: (0) | O17: 1,355 | P17: 1,017 | Q17: 338 | R17: (0) | S17: 1,018
A18: TSU | B18: Facilities Renewal | C18: Acad | D18: 166,795 | E18: =D18-38703 -> 128,092 | F18: 38,703 | G18: 0 | H18: 8,340 | I18: 2,085 | K18: 10,286 | L18: 7,716 | M18: 2,570 | N18: (0) | O18: 7,336 | P18: 5,504 | Q18: 1,832 | R18: (0) | S18: 5,517
A19: FSU | B19: Facilities Renewal | C19: Acad | D19: 27,926 | E19: =D19-6479 -> 21,447 | F19: 6,479 | G19: 0 | H19: 1,396 | I19: 349 | K19: 1,724 | L19: 1,294 | M19: 430 | N19: (0) | O19: 1,232 | P19: 926 | Q19: 306 | R19: 0 | S19: 923
A20: SSU | B20: Holloway Hall Renovations | C20: Acad | D20: 115,989 | E20: =D20-26914 -> 89,075 | F20: 26,914 | G20: 0 | H20: 5,799 | I20: 1,450 | K20: 7,148 | L20: 5,360 | M20: 1,788 | N20: (0) | O20: 5,101 | P20: 3,827 | Q20: 1,274 | R20: 0 | S20: 3,835
A21: SSU | B21: Facilities Renewal | C21: Acad | D21: 1,773 | E21: =D21-412 -> 1,361 | F21: 412 | G21: 0 | H21: 89 | I21: 22 | K21: 105 | L21: 77 | M21: 28 | N21: 0 | O21: 75 | P21: 55 | Q21: 20 | R21: (0) | S21: 59
A22: UMBC | B22: Facilities Renewal | C22: Acad | D22: 860 | E22: =D22-200 -> 660 | F22: 200 | G22: 0 | H22: 43 | I22: 11 | K22: 49 | L22: 35 | M22: 14 | N22: (0) | O22: 35 | P22: 25 | Q22: 10 | R22: (0) | S22: 28
A23: CEES | B23: Facilities Renewal | C23: Acad | D23: 69,414 | E23: =D23-16107 -> 53,307 | F23: 16,107 | G23: 0 | H23: 3,471 | I23: 868 | K23: 4,278 | L23: 3,208 | M23: 1,070 | N23: 0 | O23: 3,056 | P23: 2,294 | Q23: 762 | R23: (0) | S23: 2,296
A24: UMCP | B24: Byrd Stadium Upper Deck | C24: Auxil | D24: 48,597 | E24: =D24-11276 -> 37,321 | F24: 11,276 | G24: 0 | H24: 2,430 | I24: 608 | K24: 2,990 | L24: 2,240 | M24: 750 | N24: (0) | O24: 2,136 | P24: 1,602 | Q24: 534 | R24: (0) | S24: 1,607
A25: UMCP | B25: Recreation Fields | C25: Auxil | D25: 28,385 | E25: =D25-6586 -> 21,799 | F25: 6,586 | G25: 0 | H25: 1,419 | I25: 355 | K25: 1,746 | L25: 1,308 | M25: 438 | N25: 0 | O25: 1,247 | P25: 935 | Q25: 312 | R25: (0) | S25: 938
A26: UMCP | B26: Ritchie Coliseum Renovations | C26: Auxil | D26: 133,473 | E26: =D26-30971 -> 102,502 | F26: 30,971 | G26: 0 | H26: 6,674 | I26: 1,669 | K26: 8,222 | L26: 6,164 | M26: 2,058 | N26: 0 | O26: 5,870 | P26: 4,404 | Q26: 1,466 | R26: 0 | S26: 4,414
A27: UMCP | B27: Health & Human Performance | C27: Auxil | D27: 2,589,566 | E27: =D27-600882 -> 1,988,684 | F27: 600,882 | G27: 0 | H27: 129,478 | I27: 32,370 | K27: 159,634 | L27: 119,724 | M27: 39,910 | N27: 0 | O27: 113,825 | P27: 85,371 | Q27: 28,454 | R27: (0) | S27: 85,653
A28: UMCP | B28: Parking Garage - Planning | C28: Auxil | D28: 14,418 | E28: =D28-3346 -> 11,072 | F28: 3,346 | G28: 0 | H28: 721 | I28: 180 | K28: 890 | L28: 668 | M28: 222 | N28: 0 | O28: 636 | P28: 478 | Q28: 158 | R28: 0 | S28: 477
A29: UMCP | B29: Parking Garage III | C29: Auxil | D29: 1,809,262 | E29: =D29-419821 -> 1,389,441 | F29: 419,821 | G29: 0 | H29: 90,463 | I29: 22,616 | K29: 111,533 | L29: 83,649 | M29: 27,884 | N29: (0) | O29: 79,527 | P29: 59,647 | Q29: 19,880 | R29: (0) | S29: 59,843
A30: UMCP | B30: Golf Course clubhouse | C30: Auxil | D30: 28,169 | E30: =D30-6536 -> 21,633 | F30: 6,536 | G30: 0 | H30: 1,408 | I30: 352 | K30: 1,737 | L30: 1,303 | M30: 434 | N30: 0 | O30: 1,235 | P30: 925 | Q30: 310 | R30: 0 | S30: 932
A31: UMCP | B31: Stamp Union | C31: Auxil | D31: 197,598 | E31: =D31-45851 -> 151,747 | F31: 45,851 | G31: 0 | H31: 9,880 | I31: 2,470 | K31: 12,177 | L31: 9,131 | M31: 3,046 | N31: 0 | O31: 8,681 | P31: 6,509 | Q31: 2,172 | R31: (0) | S31: 6,536
A32: TU | B32: Richmond / Newell Hall Dining' | C32: Auxil | D32: 7,832 | E32: =D32-1817 -> 6,015 | F32: 1,817 | G32: 0 | H32: 392 | I32: 98 | K32: 487 | L32: 367 | M32: 120 | N32: (0) | O32: 345 | P32: 259 | Q32: 86 | R32: (0) | S32: 260
A33: SSU | B33: Dining Facility | C33: Auxil | D33: 94,898 | E33: =D33-22020 -> 72,878 | F33: 22,020 | G33: 0 | H33: 4,745 | I33: 1,186 | K33: 5,853 | L33: 4,391 | M33: 1,462 | N33: 0 | O33: 4,176 | P33: 3,134 | Q33: 1,042 | R33: (0) | S33: 3,139
A34: UMBC | B34: Field House | C34: Auxil | D34: 100,216 | E34: =D34-23254 -> 76,962 | F34: 23,254 | G34: 0 | H34: 5,011 | I34: 1,253 | K34: 6,181 | L34: 4,637 | M34: 1,544 | N34: 0 | O34: 4,400 | P34: 3,298 | Q34: 1,102 | R34: 0 | S34: 3,317
D35: 0 | G35: =SUM(G11:G34) -> 0 | I35: =SUM(I11:I34) -> 162,688 | J35: =SUM(J11:J34) -> 0
B36: 1998 Series A funded projects | R36: 0
A37: UMB | B37: Facilities Renewal | C37: Acad | D37: 340,578 | E37: =D37-61659 -> 278,919 | F37: 61,659 | G37: =D37-E37-F37 -> 0 | H37: 17,029 | I37: 4,257 | K37: 18,278 | L37: 14,624 | M37: 3,654 | N37: =K37-L37-M37 -> (0) | O37: 6,622 | P37: 5,296 | Q37: 1,326 | R37: 0 | S37: =H37+J37-I37-M37+Q37 -> 10,444
A38: UMB | B38: Health Sciences Library-constr | C38: Acad | D38: 884,338 | E38: =D38-160101 -> 724,237 | F38: 160,101 | G38: 0 | H38: 44,217 | I38: 11,054 | K38: 47,447 | L38: 37,957 | M38: 9,490 | N38: (0) | O38: 17,202 | P38: 13,760 | Q38: 3,442 | R38: (0) | S38: 27,115
A39: UMB | B39: Health Sciences Library-equip | C39: Acad | D39: 418 | E39: =D39-76 -> 342 | F39: 76 | G39: 0 | H39: 21 | I39: 5 | K39: 26 | L39: 22 | M39: 4 | N39: (0) | O39: (0) | R39: (0) | S39: 12
A40: UMB | B40: School of Nursing equip | C40: Acad | D40: 9,010 | E40: =D40-1632 -> 7,378 | F40: 1,632 | G40: 0 | H40: 451 | I40: 113 | K40: 488 | L40: 392 | M40: 96 | N40: (0) | O40: 170 | P40: 134 | Q40: 36 | R40: (0) | S40: 279
A41: UMB | B41: Pascault Row renovation | C41: Auxil | D41: 184,959 | E41: =D41-33485 -> 151,474 | F41: 33,485 | G41: 0 | H41: 9,248 | I41: 2,312 | K41: 9,928 | L41: 7,944 | M41: 1,984 | N41: 0 | O41: 3,597 | P41: 2,877 | Q41: 720 | R41: 0 | S41: 5,672
A42: UMCP | B42: Performing Arts Center | C42: Acad | D42: 3,551,557 | E42: =D42-642977 -> 2,908,580 | F42: 642,977 | G42: 0 | H42: 177,578 | I42: 44,395 | K42: 190,552 | L42: 152,440 | M42: 38,112 | N42: 0 | O42: 69,103 | P42: 55,283 | Q42: 13,820 | R42: 0 | S42: 108,892
A43: UMCP | B43: Facilities Renewal | C43: Acad | D43: 1,419,847 | E43: =D43-257050 -> 1,162,797 | F43: 257,050 | G43: 0 | H43: 70,992 | I43: 17,748 | K43: 76,182 | L43: 60,946 | M43: 15,236 | N43: 0 | O43: 27,620 | P43: 22,094 | Q43: 5,526 | R43: 0 | S43: 43,534
A44: UMCP | B44: Steam Plant Improvements | C44: Acad | D44: 27,196 | E44: =D44-4923 -> 22,273 | F44: 4,923 | G44: 0 | H44: 1,360 | I44: 340 | K44: 1,458 | L44: 1,166 | M44: 292 | N44: 0 | O44: 528 | P44: 422 | Q44: 106 | R44: 0 | S44: 834
A45: UMCP | B45: Tech Advance Facility | C45: Acad | D45: 148,679 | E45: =D45-26917 -> 121,762 | F45: 26,917 | G45: 0 | H45: 7,434 | I45: 1,859 | K45: 7,974 | L45: 6,378 | M45: 1,596 | N45: (0) | O45: 2,896 | P45: 2,318 | Q45: 578 | R45: 0 | S45: 4,558
A46: UMCP | B46: Byrd Stadium Upper Deck | C46: Auxil | D46: 3,299 | E46: =D46-597 -> 2,702 | F46: 597 | G46: 0 | H46: 165 | I46: 41 | K46: 173 | L46: 137 | M46: 36 | N46: 0 | O46: 69 | P46: 57 | Q46: 12 | R46: 0 | S46: 100
A47: UMCP | B47: Recreation Fields | C47: Auxil | D47: 4,234 | E47: =D47-766 -> 3,468 | F47: 766 | G47: 0 | H47: 212 | I47: 53 | K47: 224 | L47: 178 | M47: 46 | N47: (0) | O47: 85 | P47: 69 | Q47: 16 | R47: 0 | S47: 129
A48: UMCP | B48: Ritchie Coliseum Renovations | C48: Auxil | D48: 41,970 | E48: =D48-7598 -> 34,372 | F48: 7,598 | G48: 0 | H48: 2,098 | I48: 525 | K48: 2,254 | L48: 1,804 | M48: 450 | N48: 0 | O48: 812 | P48: 648 | Q48: 164 | R48: 0 | S48: 1,288
A49: UMCP | B49: Health & Human Performance | C49: Auxil | D49: 452,045 | E49: =D49-81839 -> 370,206 | F49: 81,839 | G49: 0 | H49: 22,602 | I49: 5,651 | K49: 24,259 | L49: 19,409 | M49: 4,850 | N49: 0 | O49: 8,790 | P49: 7,030 | Q49: 1,760 | R49: (0) | S49: 13,862
A50: UMCP | B50: Parking Garage III | C50: Auxil | D50: 183,906 | E50: =D50-33294 -> 150,612 | F50: 33,294 | G50: 0 | H50: 9,195 | I50: 2,299 | K50: 9,864 | L50: 7,890 | M50: 1,974 | N50: (0) | O50: 3,576 | P50: 2,860 | Q50: 716 | R50: (0) | S50: 5,638
A51: UMCP | B51: Golf Course clubhouse | C51: Auxil | D51: 518,426 | E51: =D51-93856 -> 424,570 | F51: 93,856 | G51: 0 | H51: 25,921 | I51: 6,481 | K51: 27,811 | L51: 22,247 | M51: 5,564 | N51: (0) | O51: 10,083 | P51: 8,065 | Q51: 2,018 | R51: 0 | S51: 15,895
A52: UMCP | B52: Stamp Union | C52: Auxil | D52: 524,006 | E52: =D52-94867 -> 429,139 | F52: 94,867 | G52: 0 | H52: 26,200 | I52: 6,550 | K52: 28,110 | L52: 22,486 | M52: 5,624 | N52: (0) | O52: 10,190 | P52: 8,150 | Q52: 2,040 | R52: (0) | S52: 16,066
A53: UMCP | B53: SCUB 3 | C53: Auxil | D53: 191,788 | E53: =D53-34721 -> 157,067 | F53: 34,721 | G53: 0 | H53: 9,589 | I53: 2,398 | K53: 10,290 | L53: 8,232 | M53: 2,058 | N53: 0 | O53: 3,733 | P53: 2,987 | Q53: 746 | R53: 0 | S53: 5,880
A54: UMCP | B54: Somerset Hall renovation | C54: Auxil | D54: 1,000,119 | E54: =D54-181063 -> 819,056 | F54: 181,063 | G54: 0 | H54: 50,006 | I54: 12,502 | K54: 53,662 | L54: 42,930 | M54: 10,732 | N54: (0) | O54: 19,458 | P54: 15,566 | Q54: 3,892 | R54: (0) | S54: 30,665
A55: BSU | B55: Facilities Renewal | C55: Acad | D55: 126,003 | E55: =D55-22812 -> 103,191 | F55: 22,812 | G55: 0 | H55: 6,300 | I55: 1,575 | K55: 6,761 | L55: 5,409 | M55: 1,352 | N55: 0 | O55: 2,454 | P55: 1,964 | Q55: 490 | R55: (0) | S55: 3,863
A56: TU | B56: Facilities Renewal | C56: Acad | D56: 469,277 | E56: =D56-84958 -> 384,319 | F56: 84,958 | G56: 0 | H56: 23,464 | I56: 5,866 | K56: 25,177 | L56: 20,141 | M56: 5,036 | N56: 0 | O56: 9,131 | P56: 7,305 | Q56: 1,826 | R56: 0 | S56: 14,388
A57: TU | B57: 7800 York Road renovation | C57: Acad | D57: 2,139,086 | E57: =D57-387262 -> 1,751,824 | F57: 387,262 | G57: 0 | H57: 106,954 | I57: 26,739 | K57: 114,773 | L57: 91,819 | M57: 22,954 | N57: (0) | O57: 41,619 | P57: 33,295 | Q57: 8,324 | R57: (0) | S57: 65,586
A58: TU | B58: Minnegan stadium restrooms | C58: Auxil | D58: 249,896 | E58: =D58-45242 -> 204,654 | F58: 45,242 | G58: 0 | H58: 12,495 | I58: 3,124 | K58: 13,406 | L58: 10,724 | M58: 2,682 | N58: (0) | O58: 4,865 | P58: 3,893 | Q58: 972 | R58: (0) | S58: 7,662
A59: TU | B59: Richmond / Newell Hall Dining' | C59: Auxil | D59: 1,388,115 | E59: =D59-251306 -> 1,136,809 | F59: 251,306 | G59: 0 | H59: 69,406 | I59: 17,352 | K59: 74,476 | L59: 59,580 | M59: 14,896 | N59: 0 | O59: 27,006 | P59: 21,604 | Q59: 5,402 | R59: (0) | S59: 42,561
A60: UMES | B60: Facilities Renewal | C60: Acad | D60: 74,409 | E60: =D60-13471 -> 60,938 | F60: 13,471 | G60: 0 | H60: 3,720 | I60: 930 | K60: 3,995 | L60: 3,197 | M60: 798 | N60: 0 | O60: 1,445 | P60: 1,155 | Q60: 290 | R60: 0 | S60: 2,282
A61: UMES | B61: Student services building | C61: Auxil | D61: 1,788,314 | E61: =D61-323758 -> 1,464,556 | F61: 323,758 | G61: 0 | H61: 89,416 | I61: 22,354 | K61: 95,952 | L61: 76,762 | M61: 19,190 | N61: (0) | O61: 34,800 | P61: 27,842 | Q61: 6,958 | R61: 0 | S61: 54,830
A62: FSU | B62: Facilities Renewal | C62: Acad | D62: 178,169 | E62: =D62-32256 -> 145,913 | F62: 32,256 | G62: 0 | H62: 8,908 | I62: 2,227 | K62: 9,559 | L62: 7,647 | M62: 1,912 | N62: 0 | O62: 3,462 | P62: 2,768 | Q62: 694 | R62: 0 | S62: 5,463
A63: FSU | B63: Athletic Facilities | C63: Auxil | D63: 77,416 | E63: =D63-14016 -> 63,400 | F63: 14,016 | G63: 0 | H63: 3,871 | I63: 968 | K63: 4,158 | L63: 3,328 | M63: 830 | N63: 0 | O63: 1,502 | P63: 1,200 | Q63: 302 | R63: (0) | S63: 2,376
A64: FSU | B64: Residence Hall Network infra. | C64: Auxil | D64: 245,387 | E64: =D64-44425 -> 200,962 | F64: 44,425 | G64: 0 | H64: 12,269 | I64: 3,068 | K64: 13,161 | L64: 10,527 | M64: 2,634 | N64: 0 | O64: 4,780 | P64: 3,826 | Q64: 954 | R64: (0) | S64: 7,522
A65: CSC | B65: Facilities Renewal | C65: Acad | D65: 40,905 | E65: =D65-7406 -> 33,499 | F65: 7,406 | G65: 0 | H65: 2,045 | I65: 512 | K65: 2,200 | L65: 1,762 | M65: 438 | N65: 0 | O65: 791 | P65: 631 | Q65: 160 | R65: (0) | S65: 1,256
A66: UB | B66: Facilities Renewal | C66: Acad | D66: 28,361 | E66: =D66-5135 -> 23,226 | F66: 5,135 | G66: 0 | H66: 1,418 | I66: 355 | K66: 1,524 | L66: 1,220 | M66: 304 | N66: (0) | O66: 554 | P66: 444 | Q66: 110 | R66: 0 | S66: 870
A67: SSU | B67: Facilities Renewal | C67: Acad | D67: 238,863 | E67: =D67-43244 -> 195,619 | F67: 43,244 | G67: 0 | H67: 11,943 | I67: 2,986 | K67: 12,811 | L67: 10,247 | M67: 2,564 | N67: 0 | O67: 4,644 | P67: 3,714 | Q67: 930 | R67: 0 | S67: 7,323
A68: SSU | B68: Holloway Hall Renovations | C68: Acad | D68: 3,934 | E68: =D68-712 -> 3,222 | F68: 712 | G68: 0 | H68: 197 | I68: 49 | K68: 212 | L68: 170 | M68: 42 | N68: 0 | O68: 72 | P68: 56 | Q68: 16 | R68: 0 | S68: 122
A69: SSU | B69: Dining Facility | C69: Auxil | D69: 9,927 | E69: =D69-1797 -> 8,130 | F69: 1,797 | G69: 0 | H69: 496 | I69: 124 | K69: 536 | L69: 430 | M69: 106 | N69: (0) | O69: 197 | P69: 159 | Q69: 38 | R69: (0) | S69: 304
A70: UMBC | B70: Facilities Renewal | C70: Acad | D70: 120,046 | E70: =D70-21733 -> 98,313 | F70: 21,733 | G70: 0 | H70: 6,002 | I70: 1,501 | K70: 6,442 | L70: 5,154 | M70: 1,288 | N70: 0 | O70: 2,331 | P70: 1,863 | Q70: 468 | R70: (0) | S70: 3,682
A71: UMBC | B71: University Commons Planning | C71: Auxil | D71: 273,422 | E71: =D71-49501 -> 223,921 | F71: 49,501 | G71: 0 | H71: 13,671 | I71: 3,418 | K71: 14,671 | L71: 11,737 | M71: 2,934 | N71: (0) | O71: 5,320 | P71: 4,256 | Q71: 1,064 | R71: (0) | S71: 8,383
A72: UMBC | B72: Power Plant Expansion | C72: Acad | D72: 2,083,166 | E72: =D72-377139 -> 1,706,027 | F72: 377,139 | G72: 0 | H72: 104,158 | I72: 26,040 | K72: 111,772 | L72: 89,418 | M72: 22,354 | N72: (0) | O72: 40,533 | P72: 32,427 | Q72: 8,106 | R72: 0 | S72: 63,871
A73: UMBC | B73: Field House | C73: Auxil | D73: 751,285 | E73: =D73-136013 -> 615,272 | F73: 136,013 | G73: 0 | H73: 37,564 | I73: 9,391 | K73: 40,309 | L73: 32,247 | M73: 8,062 | N73: 0 | O73: 14,614 | P73: 11,690 | Q73: 2,924 | R73: 0 | S73: 23,035
A74: CEES | B74: Facilities Renewal | C74: Acad | D74: 87,929 | E74: =D74-15919 -> 72,010 | F74: 15,919 | G74: 0 | H74: 4,396 | I74: 1,099 | K74: 4,715 | L74: 3,771 | M74: 944 | N74: 0 | O74: 1,712 | P74: 1,370 | Q74: 342 | R74: (0) | S74: 2,695
A75: USMH | B75: Emergency Projects | C75: Acad | D75: 24,713 | E75: =D75-4475 -> 20,238 | F75: 4,475 | G75: 0 | H75: 1,236 | I75: 309 | K75: 1,322 | L75: 1,056 | M75: 266 | N75: (0) | O75: 482 | P75: 386 | Q75: 96 | R75: (0) | S75: 757
D76: 0 | G76: 0 | K76: 0 | N76: 0 | O76: 0 | R76: =O76-Q76-P76 -> 0 | S76: 0
B77: 1999 Series A funded projects
A78: UMB | B78: Facilities Renewal | C78: Acad | D78: 140,362 | F78: 140,362 | G78: =D78-E78-F78 -> 0 | H78: 7,018 | I78: 1,755 | K78: 2,561 | M78: 2,561 | N78: =K78-L78-M78 -> 0 | O78: 94 | Q78: 94 | R78: (0) | S78: =H78+J78-I78-M78+Q78 -> 2,797
A79: UMB | B79: School of Nursing Equipment | C79: Acad | D79: 4,625 | F79: 4,625 | G79: 0 | H79: 231 | I79: 58 | K79: 86 | M79: 86 | N79: 0 | O79: (0) | R79: (0) | S79: 87
A80: UMB | B80: Health Sciences Library | C80: Acad | D80: 2,697 | F80: 2,697 | G80: 0 | H80: 135 | I80: 34 | K80: 44 | M80: 44 | N80: 0 | O80: 0 | R80: 0 | S80: 58
A81: UMB | B81: Lane Hall and Marshall Library | C81: Acad | D81: 36,424 | F81: 36,424 | G81: 0 | H81: 1,821 | I81: 456 | K81: 667 | M81: 667 | N81: (0) | O81: 24 | Q81: 24 | R81: 0 | S81: 723
A82: UMB | B82: School of Law: Marshall Libr. Expan | C82: Acad | D82: 63,278 | F82: 63,278 | G82: 0 | H82: 3,164 | I82: 791 | K82: 1,155 | M82: 1,155 | N82: 0 | O82: 49 | Q82: 49 | R82: (0) | S82: 1,267
A83: UMB | B83: Health Sciences Library - equip | C83: Acad | D83: 15,021 | F83: 15,021 | G83: 0 | H83: 751 | I83: 188 | K83: 274 | M83: 274 | N83: (0) | O83: 14 | Q83: 14 | R83: 0 | S83: 303
A84: UMB | B84: Pascault Row renovation | C84: Auxil | D84: 37,959 | F84: 37,959 | G84: 0 | H84: 1,898 | I84: 475 | K84: 695 | M84: 695 | N84: (0) | O84: 32 | Q84: 32 | R84: (0) | S84: 761
A85: UMCP | B85: Facilities Renewal | C85: Acad | D85: 233,374 | F85: 233,374 | G85: 0 | H85: 11,669 | I85: 2,917 | K85: 4,261 | M85: 4,261 | N85: (0) | O85: 170 | Q85: 170 | R85: (0) | S85: 4,661
A86: UMCP | B86: Construct Steam Improvements | C86: Acad | D86: 29,182 | F86: 29,182 | G86: 0 | H86: 1,459 | I86: 365 | K86: 534 | M86: 534 | N86: (0) | O86: 24 | Q86: 24 | R86: 0 | S86: 584
A87: UMCP | B87: Technology Advancement Facility | C87: Acad | D87: 1,311 | F87: 1,311 | G87: 0 | H87: 66 | I87: 17 | K87: 23 | M87: 23 | N87: 0 | O87: 0 | R87: 0 | S87: 27
A88: UMCP | B88: Performing Arts Center | C88: Acad | D88: 1,309,352 | F88: 1,309,352 | G88: 0 | H88: 65,468 | I88: 16,367 | K88: 23,884 | M88: 23,884 | N88: (0) | O88: 928 | Q88: 928 | R88: (0) | S88: 26,145
A89: UMCP | B89: Renovate Hornbake and Mckeldin | C89: Acad | D89: 8,850 | F89: 8,850 | G89: 0 | H89: 443 | I89: 111 | K89: 158 | M89: 158 | N89: 0 | O89: 8 | Q89: 8 | R89: (0) | S89: 183
A90: UMCP | B90: Symons Hall Renovations | C90: Acad | D90: 52,094 | F90: 52,094 | G90: 0 | H90: 2,605 | I90: 651 | K90: 951 | M90: 951 | N90: 0 | O90: 41 | Q90: 41 | R90: 0 | S90: 1,044
A91: UMCP | B91: Renovate Key and Taliafero | C91: Acad | D91: 34 | F91: 34 | G91: 0 | H91: 2 | K91: 0 | N91: 0 | O91: 0 | R91: 0 | S91: 2
A92: UMCP | B92: Ritchie renovation | C92: Auxil | D92: 363 | F92: 363 | G92: 0 | H92: 18 | I92: 5 | K92: 10 | M92: 10 | N92: 0 | O92: (0) | R92: (0) | S92: 4
A93: UMCP | B93: Stamp Union renovation | C93: Auxil | D93: 386,263 | F93: 386,263 | G93: 0 | H93: 19,313 | I93: 4,829 | K93: 7,041 | M93: 7,041 | N93: 0 | O93: 277 | Q93: 277 | R93: 0 | S93: 7,721
A94: UMCP | B94: SCUB 3 Planning and Construcion | C94: Auxil | D94: 153,163 | F94: 153,163 | G94: 0 | H94: 7,658 | I94: 1,915 | K94: 2,792 | M94: 2,792 | N94: (0) | O94: 109 | Q94: 109 | R94: 0 | S94: 3,061
A95: UMCP | B95: Somerset hall Renovation | C95: Auxil | D95: 84,977 | F95: 84,977 | G95: 0 | H95: 4,249 | I95: 1,062 | K95: 1,550 | M95: 1,550 | N95: (0) | O95: 60 | Q95: 60 | R95: 0 | S95: 1,697
A96: UMCP | B96: Golf Course Clubhouse | C96: Auxil | D96: 7,081 | F96: 7,081 | G96: 0 | H96: 354 | I96: 89 | K96: 124 | M96: 124 | N96: 0 | O96: 0 | R96: 0 | S96: 142
A97: UMCP | B97: Parking Garage III | C97: Auxil | D97: 1,760 | F97: 1,760 | G97: 0 | H97: 88 | I97: 22 | K97: 33 | M97: 33 | N97: (0) | O97: (0) | R97: (0) | S97: 33
A98: UMCP | B98: South Campus Garage | C98: Auxil | D98: 13,708 | F98: 13,708 | G98: 0 | H98: 685 | I98: 172 | K98: 250 | M98: 250 | N98: 0 | O98: 8 | Q98: 8 | R98: (0) | S98: 272
A99: UMCP | B99: Frat row - Renovation PH V | C99: Auxil | D99: 181 | F99: 181 | G99: 0 | H99: 9 | I99: 3 | K99: 0 | N99: 0 | O99: (0) | R99: (0) | S99: 7
A100: UMCP | B100: Health & Human Performance | C100: Auxil | D100: 2,949 | F100: 2,949 | G100: 0 | H100: 147 | I100: 37 | K100: 53 | M100: 53 | N100: (0) | O100: (0) | R100: (0) | S100: 57
A101: UMCP | B101: Track & Field | C101: Auxil | D101: 32 | F101: 32 | G101: 0 | H101: 2 | K101: 0 | N101: 0 | O101: 0 | R101: 0 | S101: 2
A102: BSU | B102: Facilities Renewal | C102: Acad | D102: 11,811 | F102: 11,811 | G102: 0 | H102: 591 | I102: 148 | K102: 212 | M102: 212 | N102: (0) | O102: 10 | Q102: 10 | R102: 0 | S102: 242
A103: TU | B103: Facilities Renewal | C103: Acad | D103: 53,071 | F103: 53,071 | G103: 0 | H103: 2,654 | I103: 664 | K103: 968 | M103: 968 | N103: (0) | O103: 34 | Q103: 34 | R103: 0 | S103: 1,057
A104: TU | B104: University Union Expansion East | C104: Auxil | D104: 54,000 | F104: 54,000 | G104: 0 | H104: 2,700 | I104: 675 | K104: 979 | M104: 979 | N104: (0) | O104: 39 | Q104: 39 | R104: (0) | S104: 1,085
A105: TU | B105: Richmond & Newell Hall Dining | C105: Auxil | D105: 1,021 | F105: 1,021 | G105: 0 | H105: 51 | I105: 13 | K105: 22 | M105: 22 | N105: 0 | O105: 0 | R105: 0 | S105: 16
A106: UMES | B106: Facilities Renewal | C106: Acad | D106: 48,952 | F106: 48,952 | G106: 0 | H106: 2,448 | I106: 612 | K106: 898 | M106: 898 | N106: 0 | O106: 38 | Q106: 38 | R106: (0) | S106: 976
A107: UMES | B107: Student Services Building | C107: Auxil | D107: 879,914 | F107: 879,914 | G107: 0 | H107: 43,996 | I107: 10,999 | K107: 16,046 | M107: 16,046 | N107: (0) | O107: 617 | Q107: 617 | R107: 0 | S107: 17,568
A108: UMES | B108: New Residence hall | C108: Auxil | D108: 40,808 | F108: 40,808 | G108: 0 | H108: 2,040 | I108: 510 | K108: 746 | M108: 746 | N108: 0 | O108: 34 | Q108: 34 | R108: (0) | S108: 818
A109: FSU | B109: Athletic Facilities | C109: Auxil | D109: 25,697 | F109: 25,697 | G109: 0 | H109: 1,285 | I109: 321 | K109: 473 | M109: 473 | N109: 0 | O109: 19 | Q109: 19 | R109: 0 | S109: 510
A110: FSU | B110: Facilities Renewal | C110: Acad | D110: 83,970 | F110: 83,970 | G110: 0 | H110: 4,199 | I110: 1,050 | K110: 1,529 | M110: 1,529 | N110: 0 | O110: 55 | Q110: 55 | R110: 0 | S110: 1,676
A111: CSC | B111: Facilities Renewal | C111: Acad | D111: 38,045 | F111: 38,045 | G111: 0 | H111: 1,902 | I111: 476 | K111: 693 | M111: 693 | N111: 0 | O111: 32 | Q111: 32 | R111: 0 | S111: 766
A112: CSC | B112: New residence Hall/Dining | C112: Auxil | D112: 16,724 | F112: 16,724 | G112: 0 | H112: 836 | I112: 209 | K112: 299 | M112: 299 | N112: 0 | O112: 11 | Q112: 11 | R112: (0) | S112: 339
A113: UB | B113: Facilities Renewal | C113: Acad | D113: 21,587 | F113: 21,587 | G113: 0 | H113: 1,079 | I113: 270 | K113: 392 | M113: 392 | N113: 0 | O113: 11 | Q113: 11 | R113: (0) | S113: 428
A114: SSU | B114: Facilities Renewal | C114: Acad | D114: 10,315 | F114: 10,315 | G114: 0 | H114: 516 | I114: 129 | K114: 189 | M114: 189 | N114: (0) | O114: 3 | Q114: 3 | R114: (0) | S114: 201
A115: UMBC | B115: Facilities Renewal | C115: Acad | D115: 121,697 | F115: 121,697 | G115: 0 | H115: 6,085 | I115: 1,521 | K115: 2,218 | M115: 2,218 | N115: 0 | O115: 86 | Q115: 86 | R115: (0) | S115: 2,432
A116: UMBC | B116: Biology Bldg renovation | C116: Acad | D116: 18,630 | F116: 18,630 | G116: 0 | H116: 931 | I116: 233 | K116: 339 | M116: 339 | N116: (0) | O116: 8 | Q116: 8 | R116: 0 | S116: 367
A117: UMBC | B117: Power Plant Expansion | C117: Acad | D117: 206,613 | F117: 206,613 | G117: 0 | H117: 10,330 | I117: 2,583 | K117: 3,772 | M117: 3,772 | N117: (0) | O117: 145 | Q117: 145 | R117: 0 | S117: 4,121
A118: UMBC | B118: University Commons Center | C118: Auxil | D118: 328,060 | F118: 328,060 | G118: 0 | H118: 16,403 | I118: 4,101 | K118: 5,982 | M118: 5,982 | N118: 0 | O118: 230 | Q118: 230 | R118: (0) | S118: 6,550
A119: UMBC | B119: Parking Garage | C119: Auxil | D119: 187,174 | F119: 187,174 | G119: 0 | H119: 9,359 | I119: 2,340 | K119: 3,414 | M119: 3,414 | N119: 0 | O119: 133 | Q119: 133 | R119: 0 | S119: 3,739
A120: UMBC | B120: Field House | C120: Auxil | D120: 120,457 | F120: 120,457 | G120: 0 | H120: 6,023 | I120: 1,506 | K120: 2,192 | M120: 2,192 | N120: (0) | O120: 79 | Q120: 79 | R120: 0 | S120: 2,405
A121: UMUC | B121: Facilities Renewal | C121: Acad | D121: 0 | G121: 0 | K121: (0) | N121: (0) | O121: (0) | R121: (0) | S121: 0
A122: USMH | B122: Emergency project | C122: Acad | D122: 43 | F122: 43 | G122: 0 | H122: 2 | K122: 0 | N122: 0 | O122: 0 | R122: 0 | S122: 2
A123: USMH | B123: Transfers from UMUC in FY11 | C123: Acad | D123: 2,378 | F123: 2,378 | G123: 0 | H123: 119 | I123: 30 | K123: 40 | M123: 40 | N123: 0 | O123: 0 | R123: 0 | S123: 50
A124: CEES | B124: Facilities Renewal | C124: Acad | D124: 4,000 | F124: 4,000 | G124: 0 | H124: 200 | I124: 50 | K124: 67 | M124: 67 | N124: (0) | O124: (0) | R124: (0) | S124: 83
T125: =SUM(T78:T124) -> 0
B126: 2000 Series A funded projects | R126: 0 | T126: =SUM(T78:T125) -> 0
A127: UMCP | B127: SCUB 3 | C127: Aux | D127: 6,020 | E127: =D127-1044 -> 4,976 | F127: 1,044 | G127: =D127-E127-F127 -> 0 | H127: 288 | I127: 72 | K127: 288 | L127: 248 | M127: 40 | N127: =K127-L127-M127 -> (0) | O127: 249 | P127: 215 | Q127: 34 | R127: (0) | S127: =H127+J127-I127-M127+Q127 -> 210
A128: UMCP | B128: Stamp Student Union | C128: Aux | D128: 3,188,044 | E128: 2,635,296 | F128: 552,748 | G128: 0 | H128: 152,299 | I128: 38,075 | K128: 150,483 | L128: 128,987 | M128: 21,496 | N128: 0 | O128: 129,039 | P128: 110,603 | Q128: 18,436 | R128: (0) | S128: 111,164
A129: UMCP | B129: N. Campus Parking Garage | C129: Aux | D129: 2,245,024 | E129: 1,855,778 | F129: 389,246 | G129: 0 | H129: 107,249 | I129: 26,813 | K129: 105,968 | L129: 90,830 | M129: 15,138 | N129: (0) | O129: 90,873 | P129: 77,891 | Q129: 12,982 | R129: 0 | S129: 78,281
A130: UMCP | B130: Health Center | C130: Aux | D130: 103,805 | E130: 85,807 | F130: 17,998 | G130: 0 | H130: 4,959 | I130: 1,240 | K130: 4,899 | L130: 4,199 | M130: 700 | N130: 0 | O130: 4,203 | P130: 3,603 | Q130: 600 | R130: 0 | S130: 3,619
A131: UMCP | B131: South Campus Parking | C131: Aux | D131: 7,584 | E131: 6,269 | F131: 1,315 | G131: 0 | H131: 362 | I131: 91 | K131: 353 | L131: 301 | M131: 52 | N131: (0) | O131: 306 | P131: 262 | Q131: 44 | R131: 0 | S131: 264
A132: UMCP | B132: Arena | C132: Aux | D132: 2,782,916 | E132: 2,300,409 | F132: 482,507 | G132: 0 | H132: 132,946 | I132: 33,237 | K132: 131,350 | L132: 112,584 | M132: 18,766 | N132: 0 | O132: 112,648 | P132: 96,556 | Q132: 16,092 | R132: 0 | S132: 97,036
A133: UMB | B133: Pascault Row renovation | C133: Aux | D133: 92,706 | E133: 76,633 | F133: 16,073 | G133: 0 | H133: 4,429 | I133: 1,107 | K133: 4,370 | L133: 3,744 | M133: 626 | N133: 0 | O133: 3,753 | P133: 3,217 | Q133: 536 | R133: (0) | S133: 3,232
A134: UMB | B134: New Parking Garage | C134: Aux | D134: 11,294 | E134: 9,336 | F134: 1,958 | G134: 0 | H134: 540 | I134: 135 | K134: 534 | L134: 458 | M134: 76 | N134: (0) | O134: 453 | P134: 387 | Q134: 66 | R134: (0) | S134: 395
A135: UMES | B135: Student services building | C135: Aux | D135: 2,344,545 | E135: 1,938,044 | F135: 406,501 | G135: 0 | H135: 112,004 | I135: 28,001 | K135: 110,659 | L135: 94,849 | M135: 15,810 | N135: 0 | O135: 94,899 | P135: 81,341 | Q135: 13,558 | R135: (0) | S135: 81,751
A136: UMES | B136: New Residence Hall | C136: Aux | D136: 1,912,955 | E136: 1,581,284 | F136: 331,671 | G136: 0 | H136: 91,386 | I136: 22,847 | K136: 90,287 | L136: 77,387 | M136: 12,900 | N136: (0) | O136: 77,431 | P136: 66,369 | Q136: 11,062 | R136: (0) | S136: 66,702
A137: UMBC | B137: University Commons | C137: Aux | D137: 4,356,800 | E137: 3,601,412 | F137: 755,388 | G137: 0 | H137: 208,133 | I137: 52,034 | K137: 205,643 | L137: 176,265 | M137: 29,378 | N137: (0) | O137: 176,350 | P137: 151,156 | Q137: 25,194 | R137: (0) | S137: 151,916
A138: UMBC | B138: Parking Garage | C138: Aux | D138: 475,565 | E138: 393,111 | F138: 82,454 | G138: 0 | H138: 22,719 | I138: 5,680 | K138: 22,451 | L138: 19,245 | M138: 3,206 | N138: 0 | O138: 19,250 | P138: 16,500 | Q138: 2,750 | R138: (0) | S138: 16,584
A139: UMBC | B139: Housing Centr Utility Plant | C139: Aux | D139: 476,161 | E139: 393,603 | F139: 82,558 | G139: 0 | H139: 22,747 | I139: 5,687 | K139: 22,480 | L139: 19,270 | M139: 3,210 | N139: (0) | O139: 19,271 | P139: 16,517 | Q139: 2,754 | R139: (0) | S139: 16,604
A140: UMCES | B140: Coastal Sciences Lab | C140: Aux | D140: 13,425 | E140: 11,097 | F140: 2,328 | G140: 0 | H140: 641 | I140: 161 | K140: 637 | L140: 547 | M140: 90 | N140: (0) | O140: 541 | P140: 463 | Q140: 78 | R140: =O140-Q140-P140 -> 0 | S140: 469
A141: CSU | B141: New residence Hall | C141: Aux | D141: 2,871,326 | E141: 2,373,491 | F141: 497,835 | G141: 0 | H141: 137,169 | I141: 34,293 | K141: 135,524 | L141: 116,162 | M141: 19,362 | N141: 0 | O141: 116,222 | P141: 99,618 | Q141: 16,604 | R141: 0 | S141: 100,119
A142: FSU | B142: Athletic Facilities | C142: Aux | D142: 22,016 | E142: 18,199 | F142: 3,817 | G142: 0 | H142: 1,052 | I142: 263 | K142: 1,042 | L142: 894 | M142: 148 | N142: (0) | O142: 887 | P142: 759 | Q142: 128 | R142: (0) | S142: 769
A143: TU | B143: 7800 York Road Garage | C143: Aux | D143: 185,127 | E143: 153,029 | F143: 32,098 | G143: 0 | H143: 8,844 | I143: 2,211 | K143: 8,740 | L143: 7,492 | M143: 1,248 | N143: (0) | O143: 7,497 | P143: 6,427 | Q143: 1,070 | R143: (0) | S143: 6,455
A144: TU | B144: Interim Fitness Center | C144: Aux | D144: 28,780 | E144: 23,790 | F144: 4,990 | G144: 0 | H144: 1,375 | I144: 344 | K144: 1,359 | L144: 1,165 | M144: 194 | N144: (0) | O144: 1,167 | P144: 1,001 | Q144: 166 | R144: 0 | S144: 1,004
A145: UMB | B145: Health Sciences Library | C145: Acad | D145: 181,037 | E145: 149,648 | F145: 31,389 | G145: 0 | H145: 8,649 | I145: 2,162 | K145: 8,550 | L145: 7,330 | M145: 1,220 | N145: (0) | O145: 7,333 | P145: 6,287 | Q145: 1,046 | R145: 0 | S145: 6,313
A146: SU | B146: Holloway Hall renovation | C146: Acad | D146: 2,486 | E146: 2,055 | F146: 431 | G146: 0 | H146: 119 | I146: 30 | K146: 122 | L146: 106 | M146: 16 | N146: (0) | O146: 103 | P146: 89 | Q146: 14 | R146: (0) | S146: 88
A147: UMCP | B147: Performing Arts Center | C147: Acad | D147: 738,242 | E147: 610,244 | F147: 127,998 | G147: 0 | H147: 35,267 | I147: 8,817 | K147: 34,845 | L147: 29,867 | M147: 4,978 | N147: 0 | O147: 29,888 | P147: 25,620 | Q147: 4,268 | R147: 0 | S147: 25,740
A148: UMCP | B148: Facilities Renewal | C148: Acad | D148: 1,495,831 | E148: 1,236,482 | F148: 259,349 | G148: 0 | H148: 71,459 | I148: 17,865 | K148: 70,606 | L148: 60,520 | M148: 10,086 | N148: 0 | O148: 60,546 | P148: 51,896 | Q148: 8,650 | R148: 0 | S148: 52,159
A149: UMB | B149: Facilities Renewal | C149: Acad | D149: 558,772 | E149: 461,891 | F149: 96,881 | G149: 0 | H149: 26,694 | I149: 6,674 | K149: 26,373 | L149: 22,605 | M149: 3,768 | N149: 0 | O149: 22,613 | P149: 19,381 | Q149: 3,232 | R149: (0) | S149: 19,485
A150: UMES | B150: Facilities Renewal | C150: Acad | D150: 69,743 | E150: 57,651 | F150: 12,092 | G150: 0 | H150: 3,332 | I150: 833 | K150: 3,294 | L150: 2,824 | M150: 470 | N150: (0) | O150: 2,819 | P150: 2,415 | Q150: 404 | R150: (0) | S150: 2,433
A151: UMBC | B151: Facilities Renewal | C151: Acad | D151: 292,944 | E151: 242,153 | F151: 50,791 | G151: 0 | H151: 13,995 | I151: 3,499 | K151: 13,823 | L151: 11,847 | M151: 1,976 | N151: 0 | O151: 11,857 | P151: 10,163 | Q151: 1,694 | R151: 0 | S151: 10,215
A152: UMCES | B152: Facilities Renewal | C152: Acad | D152: 183,086 | E152: 151,342 | F152: 31,744 | G152: 0 | H152: 8,746 | I152: 2,187 | K152: 8,645 | L152: 7,411 | M152: 1,234 | N152: 0 | O152: 7,415 | P152: 6,357 | Q152: 1,058 | R152: 0 | S152: 6,384
A153: BSU | B153: Facilities Renewal | C153: Acad | D153: 247,838 | E153: 204,868 | F153: 42,970 | G153: 0 | H153: 11,840 | I153: 2,960 | K153: 11,693 | L153: 10,021 | M153: 1,672 | N153: (0) | O153: 10,027 | P153: 8,593 | Q153: 1,434 | R153: (0) | S153: 8,642
A154: CSU | B154: Facilities Renewal | C154: Acad | D154: 279,490 | E154: 231,032 | F154: 48,458 | G154: 0 | H154: 13,352 | I154: 3,338 | K154: 13,196 | L154: 11,312 | M154: 1,884 | N154: (0) | O154: 11,314 | P154: 9,698 | Q154: 1,616 | R154: 0 | S154: 9,746
A155: FSU | B155: Facilities Renewal | C155: Acad | D155: 46,277 | E155: 38,254 | F155: 8,023 | G155: 0 | H155: 2,211 | I155: 553 | K155: 2,184 | L155: 1,872 | M155: 312 | N155: 0 | O155: 1,871 | P155: 1,603 | Q155: 268 | R155: (0) | S155: 1,615
A156: SU | B156: Facilities Renewal | C156: Acad | D156: 183,382 | E156: 151,587 | F156: 31,795 | G156: 0 | H156: 8,761 | I156: 2,190 | K156: 8,659 | L156: 7,423 | M156: 1,236 | N156: 0 | O156: 7,425 | P156: 6,365 | Q156: 1,060 | R156: 0 | S156: 6,395
A157: TU | B157: Facilities Renewal | C157: Acad | D157: 174,337 | E157: 144,110 | F157: 30,227 | G157: 0 | H157: 8,328 | I157: 2,082 | K157: 8,226 | L157: 7,050 | M157: 1,176 | N157: (0) | O157: 7,057 | P157: 6,049 | Q157: 1,008 | R157: 0 | S157: 6,078
A158: UB | B158: Facilities Renewal | C158: Acad | D158: 142,990 | E158: 118,198 | F158: 24,792 | G158: 0 | H158: 6,831 | I158: 1,708 | K158: 6,750 | L158: 5,786 | M158: 964 | N158: 0 | O158: 5,793 | P158: 4,967 | Q158: 826 | R158: 0 | S158: 4,986
A159: USM | B159: Emergency projects | C159: Acad | D159: 38,440 | E159: 31,774 | F159: 6,666 | G159: 0 | H159: 1,837 | I159: 459 | K159: 1,810 | L159: 1,550 | M159: 260 | N159: 0 | O159: 1,558 | P159: 1,336 | Q159: 222 | R159: 0 | S159: 1,340
A160: UMCP | B160: Steam Plant improvements | C160: Acad | D160: 521,859 | E160: 431,379 | F160: 90,480 | G160: 0 | H160: 24,930 | I160: 6,233 | K160: 24,637 | L160: 21,119 | M160: 3,518 | N160: 0 | O160: 21,122 | P160: 18,104 | Q160: 3,018 | R160: (0) | S160: 18,198
A161: UMCP | B161: Tech. Advancement Facility | C161: Acad | D161: 25,901 | E161: 21,410 | F161: 4,491 | G161: 0 | H161: 1,237 | I161: 310 | K161: 1,226 | L161: 1,052 | M161: 174 | N161: 0 | O161: 1,047 | P161: 897 | Q161: 150 | R161: 0 | S161: 904
A162: UMCP | B162: Symons Hall renovation | C162: Acad | D162: 113,610 | E162: 93,912 | F162: 19,698 | G162: 0 | H162: 5,427 | I162: 1,357 | K162: 5,363 | L162: 4,597 | M162: 766 | N162: (0) | O162: 4,604 | P162: 3,948 | Q162: 656 | R162: 0 | S162: 3,960
A163: UMB | B163: School of Nursing equipment | C163: Acad | D163: 35,746 | E163: 29,548 | F163: 6,198 | G163: 0 | H163: 1,708 | I163: 427 | K163: 1,681 | L163: 1,439 | M163: 242 | N163: 0 | O163: 1,451 | P163: 1,245 | Q163: 206 | R163: 0 | S163: 1,245
A164: UMB | B164: School of Law Library | C164: Acad | D164: 7,253 | E164: 5,996 | F164: 1,257 | G164: 0 | H164: 346 | I164: 87 | K164: 348 | L164: 300 | M164: 48 | N164: (0) | O164: 293 | P164: 251 | Q164: 42 | R164: 0 | S164: 254
A165: UMCP | B165: Renovate Key / Taliaferro | C165: Acad | D165: 46,000 | E165: 38,024 | F165: 7,976 | G165: 0 | H165: 2,198 | I165: 550 | K165: 2,172 | L165: 1,862 | M165: 310 | N165: 0 | O165: 1,862 | P165: 1,596 | Q165: 266 | R165: 0 | S165: 1,605
A166: UMCP | B166: Renov McKeldin / Hornbake | C166: Acad | D166: 404,520 | E166: 334,383 | F166: 70,137 | G166: 0 | H166: 19,325 | I166: 4,831 | K166: 19,092 | L166: 16,364 | M166: 2,728 | N166: (0) | O166: 16,369 | P166: 14,029 | Q166: 2,340 | R166: 0 | S166: 14,106
A167: UMB | B167: Lane and Marshall Halls | C167: Acad | D167: 2,051,498 | E167: 1,695,806 | F167: 355,692 | G167: 0 | H167: 98,004 | I167: 24,501 | K167: 96,827 | L167: 82,993 | M167: 13,834 | N167: 0 | O167: 83,045 | P167: 71,183 | Q167: 11,862 | R167: 0 | S167: 71,531
A168: TU | B168: 7800 York Road renovation | C168: Acad | D168: 74,622 | E168: 61,684 | F168: 12,938 | G168: 0 | H168: 3,565 | I168: 891 | K168: 3,517 | L168: 3,013 | M168: 504 | N168: 0 | O168: 3,018 | P168: 2,586 | Q168: 432 | R168: (0) | S168: 2,602
B170: Refunding totals | D170: =SUM(D10:D168) -> 66,800,000 | E170: 50,284,991 | F170: 16,515,009 | G170: 0 | H170: 3,275,302 | I170: 981,512 | J170: 0 | K170: 3,328,533 | L170: 2,630,131 | M170: 698,398 | N170: 4 | O170: 2,137,790 | P170: 1,746,051 | Q170: 391,740 | R170: (1) | S170: 2,149,821 | T170: 0
I171: =SUM(I127:I168) -> 346,825 | J171: =SUM(J127:J168) -> 0 | S171: =SUM(S127:S168) -> 1,012,588 | T171: =SUM(T127:T168) -> 0
B172: New Money
A173: BSU | B173: Facilities Renewal | C173: Academic | D173: 24,556 | E173: 12,586 | F173: 11,970 | G173: =D173-E173-F173 -> 0 | H173: 1,228 | I173: 307 | K173: 2,494 | L173: 1,247 | M173: 1,247 | N173: =K173-L173-M173 -> 0 | R173: =O173-Q173-P173 -> 0 | S173: =H173+J173-I173-M173 -> (326)
A174: CSU | B174: Facilities Renewal | C174: Academic | D174: 35,580 | E174: 18,236 | F174: 17,344 | G174: 0 | H174: 1,779 | I174: 445 | K174: 3,615 | L174: 1,808 | M174: 1,807 | N174: 0 | R174: 0 | S174: (473)
A175: FSU | B175: Facilities Renewal | C175: Academic | D175: 45,019 | E175: 23,074 | F175: 21,945 | G175: 0 | H175: 2,251 | I175: 563 | K175: 4,572 | L175: 2,286 | M175: 2,286 | N175: 0 | R175: 0 | S175: (598)
A176: SU | B176: Facilities Renewal | C176: Academic | D176: 4,187 | E176: 2,146 | F176: 2,041 | G176: 0 | H176: 209 | I176: 53 | K176: 426 | L176: 213 | M176: 213 | N176: 0 | R176: 0 | S176: (57)
A177: TU | B177: Facilities Renewal | C177: Academic | D177: 79,120 | E177: 40,553 | F177: 38,567 | G177: 0 | H177: 3,956 | I177: 989 | K177: 8,035 | L177: 4,017 | M177: 4,018 | N177: 0 | R177: 0 | S177: (1,051)
A178: TU | B178: Fine Arts Center | C178: Academic | D178: 205,273 | E178: 105,213 | F178: 100,060 | G178: 0 | H178: 10,264 | I178: 2,566 | K178: 20,848 | L178: 10,424 | M178: 10,424 | N178: 0 | R178: 0 | S178: (2,726)
A179: UB | B179: Facilities Renewal | C179: Academic | D179: 15,121 | E179: 7,750 | F179: 7,371 | G179: 0 | H179: 756 | I179: 189 | K179: 1,535 | L179: 767 | M179: 768 | N179: 0 | R179: 0 | S179: (201)
A180: UMB | B180: New Dental School | C180: Academic | D180: 1,086,921 | E180: 557,103 | F180: 529,818 | G180: 0 | H180: 54,346 | I180: 13,587 | K180: 110,391 | L180: 55,195 | M180: 55,196 | N180: 0 | R180: 0 | S180: (14,437)
A181: UMB | B181: Facilities Renewal | C181: Academic | D181: 129,784 | E181: 66,521 | F181: 63,263 | G181: 0 | H181: 6,489 | I181: 1,623 | K181: 13,182 | L181: 6,591 | M181: 6,591 | N181: 0 | R181: 0 | S181: (1,725)
A182: UMBC | B182: Facilities Renewal | C182: Academic | D182: 67,073 | E182: 34,378 | F182: 32,695 | G182: 0 | H182: 3,354 | I182: 839 | K182: 6,812 | L182: 3,406 | M182: 3,406 | N182: 0 | R182: 0 | S182: (891)
A183: UMBC | B183: Emergency Project | C183: Academic | D183: 12,165 | E183: 6,235 | F183: 5,930 | G183: 0 | H183: 608 | I183: 152 | K183: 1,235 | L183: 617 | M183: 618 | N183: 0 | R183: 0 | S183: (162)
A184: UMBC | B184: Information Technology Building equipment | C184: Academic | D184: 11,246 | E184: 5,764 | F184: 5,482 | G184: 0 | H184: 562 | I184: 141 | K184: 1,141 | L184: 570 | M184: 571 | N184: 0 | R184: 0 | S184: (150)
A185: UMCES | B185: Facilities Renewal | C185: Academic | D185: 23,230 | E185: 11,906 | F185: 11,324 | G185: 0 | H185: 1,162 | I185: 291 | K185: 2,359 | L185: 1,179 | M185: 1,180 | N185: 0 | R185: 0 | S185: (309)
A186: UMCES | B186: Aquaculture Building | C186: Academic | D186: 3,858 | E186: 1,977 | F186: 1,881 | G186: 0 | H186: 193 | I186: 48 | K186: 391 | L186: 195 | M186: 196 | N186: 0 | R186: 0 | S186: (51)
A187: UMCP | B187: Facilities Renewal | C187: Academic | D187: 431,270 | E187: 221,049 | F187: 210,221 | G187: 0 | H187: 21,563 | I187: 5,391 | K187: 43,802 | L187: 21,901 | M187: 21,901 | N187: 0 | R187: 0 | S187: (5,729)
A188: UMCP | B188: Emergency Fund Projects | C188: Academic | D188: 4,053 | E188: 2,078 | F188: 1,975 | G188: 0 | H188: 203 | I188: 51 | K188: 411 | L188: 205 | M188: 206 | N188: 0 | R188: 0 | S188: (54)
A189: UMES | B189: Facilities Renewal | C189: Academic | D189: 281,327 | E189: 144,195 | F189: 137,132 | G189: 0 | H189: 14,066 | I189: 3,517 | K189: 28,573 | L189: 14,287 | M189: 14,286 | N189: 0 | R189: 0 | S189: (3,737)
A190: UMES | B190: Social Science, Education and Health | C190: Academic | D190: 29,298 | E190: 15,016 | F190: 14,282 | G190: 0 | H190: 1,465 | I190: 366 | K190: 2,975 | L190: 1,487 | M190: 1,488 | N190: 0 | R190: 0 | S190: (389)
A191: UMES | B191: Utilities Upgrade / Site Improvement | C191: Academic | D191: 190,481 | E191: 97,631 | F191: 92,850 | G191: 0 | H191: 9,524 | I191: 2,381 | K191: 19,347 | L191: 9,674 | M191: 9,673 | N191: 0 | R191: 0 | S191: (2,530)
A192: USM | B192: Emergency Project | C192: Academic | D192: 68 | E192: 35 | F192: 33 | G192: 0 | H192: 3 | I192: 1 | K192: 9 | L192: 6 | M192: 3 | N192: 0 | R192: 0 | S192: (1)
D193: 0 | G193: 0 | K193: 0 | N193: 0 | R193: 0 | S193: 0
A194: UMCP | B194: Health Center | C194: Aux | D194: 35,730 | E194: 18,314 | F194: 17,416 | G194: 0 | H194: 1,786 | I194: 447 | K194: 3,630 | L194: 1,816 | M194: 1,814 | N194: 0 | R194: 0 | S194: (475)
A195: UMCP | B195: Queen Anne's Hall | C195: Aux | D195: 16,386 | E195: 8,398 | F195: 7,988 | G195: 0 | H195: 819 | I195: 205 | K195: 1,664 | L195: 832 | M195: 832 | N195: 0 | R195: 0 | S195: (218)
A196: UMCP | B196: South Campus Parking #5 | C196: Aux | D196: 3,394 | E196: 1,740 | F196: 1,654 | G196: 0 | H196: 170 | I196: 43 | K196: 345 | L196: 173 | M196: 172 | N196: 0 | R196: 0 | S196: (45)
A197: UMB | B197: New Campus Center | C197: Aux | D197: 362,776 | E197: 185,942 | F197: 176,834 | G197: 0 | H197: 18,139 | I197: 4,535 | K197: 36,845 | L197: 18,423 | M197: 18,422 | N197: 0 | R197: 0 | S197: (4,818)
A198: UMB | B198: Pine Street Annex | C198: Aux | D198: 1,995 | E198: 1,022 | F198: 973 | G198: 0 | H198: 100 | I198: 25 | K198: 201 | L198: 100 | M198: 101 | N198: 0 | R198: 0 | S198: (26)
A199: UMES | B199: Murphy Hall Annex Renov | C199: Aux | D199: 2,107 | E199: 1,080 | F199: 1,027 | G199: 0 | H199: 105 | I199: 27 | K199: 215 | L199: 108 | M199: 107 | N199: 0 | R199: 0 | S199: (29)
A200: UMES | B200: New Residence Hall | C200: Aux | D200: 592 | E200: 304 | F200: 288 | G200: 0 | H200: 30 | I200: 8 | K200: 60 | L200: 30 | M200: 30 | N200: 0 | R200: 0 | S200: (8)
A201: UMES | B201: Student Services Center | C201: Aux | D201: 10,887 | E201: 5,580 | F201: 5,307 | G201: 0 | H201: 544 | I201: 136 | K201: 1,107 | L201: 554 | M201: 553 | N201: 0 | R201: 0 | S201: (145)
A202: UMBC | B202: Residence Hall Renov | C202: Aux | D202: 191,200 | E202: 98,000 | F202: 93,200 | G202: 0 | H202: 9,560 | I202: 2,390 | K202: 19,418 | L202: 9,709 | M202: 9,709 | N202: 0 | R202: 0 | S202: (2,539)
... 59 more rows

Sheet 06A
A1: University System of Maryland
A2: 2006 Series A
A3: FYE June 30, 2015
L4: Accrued | M4: Accrued | N4: Allocation | P4: =I5 -> FY 2015 | Q4: Allocation
D5: Use of | E5: Use of | F5: Total | I5: FY 2015 | K5: =I5 -> FY 2015 | L5: Interest | M5: Interest | N5: of Unamort. | P5: Amortization | Q5: of Unamort. | R5: =K5 -> FY 2015 | S5: =R5 -> FY 2015
C6: Academic | D6: Proceeds | E6: Proceeds | F6: Use of | G6: Debt | H6: Refinanced | I6: Principal | J6: Debt | K6: Interest | L6: Payable | M6: Payable | N6: Premium | O6: Refinanced | P6: of | Q6: Premium | R6: Interest | S6: Capitalized
A7: Project | B7: Institution | C7: /Auxiliary | D7: FY 2007 | E7: FY 2008 | F7: Proceeds | G7: @ 6/30/14 | H7: on 2012 D | I7: Paid | J7: @ 6/30/2015 | K7: Paid | L7: =N7 -> @ 6/30/14 | M7: =Q7 -> @ 6/30/2015 | N7: =G7 -> @ 6/30/14 | O7: on 2012 D | P7: Premium | Q7: =J7 -> @ 6/30/2015 | R7: Expense | S7: Interest
J9: =+G9-I9 -> 0 | N9: =+(G9/G$59)*6758379 -> 0 | P9: =+N9/20 -> 0 | Q9: =+N9-P9 -> 0 | R9: =+K9-P9+M9 -> 0
A10: Academic | J10: =+G10-I10 -> 0 | N10: =+(G10/G$59)*21018859 -> 0 | P10: =-N10/20 -> 0 | Q10: =+N10+P10 -> 0 | R10: =+K10-P10+M10 -> 0
A11: New Dental School | B11: UMB | C11: Academic | D11: 171,489 | E11: 2,563,181 | F11: =SUM(D11:E11) -> 2,734,670 | G11: 408,960 | I11: 94,732 | J11: =G11-I11-H11 -> 314,228 | K11: =10224+7856 -> 18,080 | L11: 5,112 | M11: =7856/2 -> 3,928 | N11: 10,975 | P11: =1568+1568 -> 3,136 | Q11: =N11-P11-O11 -> 7,839 | R11: =+K11-P11+M11-L11 -> 13,760
A12: Facilities Renewal | B12: UMB | C12: Academic | D12: 35,581 | E12: =1523280+226014+8100 -> 1,757,394 | F12: =SUM(D12:E12) -> 1,792,975 | G12: 406,728 | I12: 94,214 | J12: =G12-I12-H12 -> 312,514 | K12: =10168+7813 -> 17,981 | L12: 5,084 | M12: =7813/2 -> 3,907 | N12: 10,916 | P12: =1559+1559 -> 3,118 | Q12: =N12-P12-O12 -> 7,798 | R12: 13,686
A13: Facilities Renewal | B13: UMCP | C13: Academic | D13: 404,385 | E13: =194604+440008 -> 634,612 | F13: 1,038,997 | G13: 189,199 | I13: 43,826 | J13: 145,373 | K13: =4730+3634 -> 8,364 | L13: 2,365 | M13: =3634/2 -> 1,817 | N13: 5,079 | P13: =725+725 -> 1,450 | Q13: 3,629 | R13: 6,366
A14: UMBI closeout | B14: UMCP | C14: Academic | G14: 60,147 | I14: 13,933 | J14: 46,214 | K14: =1504+1155 -> 2,659 | L14: 752 | M14: =1155/2 -> 578 | N14: 1,613 | P14: =231+231 -> 462 | Q14: 1,151 | R14: 2,023
A15: Emergency Fund Projects | B15: BSU | C15: Academic | G15: 10,630 | I15: 2,462 | J15: 8,168 | K15: =266+204 -> 470 | L15: 133 | M15: =204/2 -> 102 | N15: 285 | P15: =41+41 -> 82 | Q15: 203 | R15: 357
A16: Facilities Renewal | B16: BSU | C16: Academic | D16: =20686+24243 -> 44,929 | E16: =42680+241582+1555 -> 285,817 | F16: 330,746 | G16: 63,141 | I16: 14,626 | J16: 48,515 | K16: =1579+1213 -> 2,792 | L16: 790 | M16: =1213/2 -> 607 | N16: 1,695 | P16: =242+242 -> 484 | Q16: 1,211 | R16: 2,125
A17: Emergency Project | B17: TU | C17: Academic | G17: 1,458 | I17: 338 | J17: 1,120 | K17: =36+28 -> 64 | L17: 18 | M17: =28/2 -> 14 | N17: 38 | P17: =6+6 -> 12 | Q17: 26 | R17: 48
A18: Facilities Renewal | B18: TU | C18: Academic | D18: =39762+6297+4234 -> 50,293 | E18: =3212+347128+718445+43098+7824+29741+18500+121000 -> 1,288,948 | F18: 1,339,241 | G18: 266,900 | I18: 61,825 | J18: 205,075 | K18: =6672+5127 -> 11,799 | L18: 3,336 | M18: =5127/2 -> 2,564 | N18: 7,164 | P18: =1023+1023 -> 2,046 | Q18: 5,118 | R18: 8,981
A19: Facilities Renewal | B19: CSU | C19: Academic | E19: =168221 -> 168,221 | F19: 168,221 | G19: 54,367 | I19: 12,593 | J19: 41,774 | K19: =1359+1044 -> 2,403 | L19: 680 | M19: =1044/2 -> 522 | N19: 1,460 | P19: =208+208 -> 416 | Q19: 1,044 | R19: 1,830
A20: Health/Human Service Building | B20: CSU | C20: Academic | D20: 50,469 | E20: 201,044 | F20: 251,513 | G20: 56,385 | I20: 13,061 | J20: 43,324 | K20: =1410+1083 -> 2,493 | L20: 705 | M20: =1083/2 -> 542 | N20: 1,514 | P20: =216+216 -> 432 | Q20: 1,082 | R20: 1,898
A21: Utilities Upgrade/Site Improvement | B21: UMES | C21: Academic | D21: 333,426 | E21: 475,330 | F21: 808,756 | G21: 185,577 | I21: 42,987 | J21: 142,590 | K21: =4639+3565 -> 8,204 | L21: 2,320 | M21: =3565/2 -> 1,783 | N21: 4,981 | P21: =711+711 -> 1,422 | Q21: 3,559 | R21: 6,245
A22: Social Sci, Edu & Health Sci | B22: UMES | C22: Academic | G22: 298 | I22: 69 | J22: 229 | K22: =7+6 -> 13 | L22: 4 | M22: =6/2 -> 3 | N22: 8 | P22: =1+1 -> 2 | Q22: 6 | R22: 11
A23: Facilities Renewal | B23: UMBC | C23: Academic | D23: 269,932 | E23: =154685 -> 154,685 | F23: 424,617 | G23: 112,316 | I23: 26,017 | J23: 86,299 | K23: =2808+2157 -> 4,965 | L23: 1,404 | M23: =2157/2 -> 1,079 | N23: 3,013 | P23: =431+431 -> 862 | Q23: 2,151 | R23: 3,778
A24: UMBI closeout | B24: UMBC | C24: Academic | G24: 68,815 | I24: 15,940 | J24: 52,875 | K24: =1720+1322 -> 3,042 | L24: 860 | M24: =1322/2 -> 661 | N24: 1,846 | P24: =264+264 -> 528 | Q24: 1,318 | R24: 2,315
A25: Emergency Fund Projects | B25: UB | C25: Academic | G25: 877 | I25: 203 | J25: 674 | K25: =22+17 -> 39 | L25: 11 | M25: =17/2 -> 9 | N25: 25 | P25: =3+3 -> 6 | Q25: 19 | R25: 31
A26: Facilities Renewal | B26: UB | C26: Academic | D26: =60610-39270 -> 21,340 | E26: =46832+4308 -> 51,140 | F26: 72,480 | G26: 20,377 | I26: 4,720 | J26: 15,657 | K26: =509+391 -> 900 | L26: 255 | M26: =391/2 -> 196 | N26: 547 | P26: =78+78 -> 156 | Q26: 391 | R26: 685
A27: Emergency Fund Projects | B27: FSU | C27: Academic | G27: 27,054 | I27: 6,267 | J27: 20,787 | K27: =676+520 -> 1,196 | L27: 338 | M27: =520/2 -> 260 | N27: 725 | P27: =104+104 -> 208 | Q27: 517 | R27: 910
A28: Facilities Renewal | B28: FSU | C28: Academic | D28: =16000+1716+723 -> 18,439 | E28: =109209+41226+16900+48230 -> 215,565 | F28: 234,004 | G28: 184,110 | I28: 42,648 | J28: 141,462 | K28: =4603+3537 -> 8,140 | L28: 2,302 | M28: =3537/2 -> 1,769 | N28: 4,941 | P28: =706+706 -> 1,412 | Q28: 3,529 | R28: 6,195
A29: Facilities Renewal | B29: SU | C29: Academic | G29: 111,592 | I29: 25,849 | J29: 85,743 | K29: =2790+2144 -> 4,934 | L29: 1,395 | M29: =2144/2 -> 1,072 | N29: 2,994 | P29: =428+428 -> 856 | Q29: 2,138 | R29: 3,755
A30: Facilities Renewal | B30: UMCES | C30: Academic | D30: =52413+4172 -> 56,585 | E30: =57344+91146+3197 -> 151,687 | F30: 208,272 | G30: 37,926 | I30: 8,785 | J30: 29,141 | K30: =948+729 -> 1,677 | L30: 474 | M30: =729/2 -> 365 | N30: 1,019 | P30: =145+145 -> 290 | Q30: 729 | R30: 1,278
A31: Aquaculture Building | B31: UMCES | C31: Academic | D31: 3,105 | E31: =84120 -> 84,120 | F31: 87,225 | G31: 29,983 | I31: 6,945 | J31: 23,038 | K31: =750+576 -> 1,326 | L31: 375 | M31: =576/2 -> 288 | N31: 805 | P31: =115+115 -> 230 | Q31: 575 | R31: 1,009
A32: Shady Grove Edu. Center III | B32: USM Office | C32: Academic | G32: 157,214 | I32: 36,416 | J32: 120,798 | K32: =3930+3020 -> 6,950 | L32: 1,965 | M32: =3020/2 -> 1,510 | N32: 4,218 | P32: =603+603 -> 1,206 | Q32: 3,012 | R32: 5,289
A33: Auxiliary | F33: 0 | G33: 0 | J33: 0 | N33: 0 | Q33: 0 | R33: 0
A34: New Campus Center | B34: UMB | C34: Auxiliary | D34: =2090206+298580 -> 2,388,786 | E34: =477033+14874773+28135 -> 15,379,941 | F34: 17,768,727 | G34: 4,331,700 | I34: 1,003,397 | J34: 3,328,303 | K34: =108293+83208 -> 191,501 | L34: 54,147 | M34: =83208/2 -> 41,604 | N34: 116,250 | P34: =16607+16607 -> 33,214 | Q34: 83,036 | R34: 145,745
A35: Fraternity/Sorority House | B35: UMCP | C35: Auxiliary | E35: 1,041 | F35: 1,041 | G35: 40,769 | I35: 9,444 | J35: 31,325 | K35: =1019+783 -> 1,802 | L35: 510 | M35: =783/2 -> 392 | N35: 1,095 | P35: =156+156 -> 312 | Q35: 783 | R35: 1,372
A36: Golf Course | B36: UMCP | C36: Auxiliary | E36: 19,974 | F36: 19,974 | G36: 219,423 | I36: 50,827 | J36: 168,596 | K36: =5486+4215 -> 9,701 | L36: 2,743 | M36: =4215/2 -> 2,108 | N36: 5,889 | P36: =841+841 -> 1,682 | Q36: 4,207 | R36: 7,384
A37: SCRUB Utilities Facility | B37: UMCP | C37: Auxiliary | E37: 384,593 | F37: 384,593 | G37: 71,409 | I37: 16,541 | J37: 54,868 | K37: =1785+1372 -> 3,157 | L37: 893 | M37: =1372/2 -> 686 | N37: 1,916 | P37: =274+274 -> 548 | Q37: 1,368 | R37: 2,403
A38: Byrd Stadium | B38: UMCP | C38: Auxiliary | G38: 343,952 | I38: 79,673 | J38: 264,279 | K38: =8599+6607 -> 15,206 | L38: 4,300 | M38: =6607/2 -> 3,304 | N38: 9,230 | P38: =1319+1319 -> 2,638 | Q38: 6,592 | R38: 11,572
A39: Holmes Hall & Tubman Hall | B39: BSU | C39: Auxiliary | E39: =103586-24000 -> 79,586 | F39: 79,586 | G39: 65,629 | I39: 15,202 | J39: 50,427 | K39: =1641+1261 -> 2,902 | L39: 821 | M39: =1261/2 -> 631 | N39: 1,760 | P39: =252+252 -> 504 | Q39: 1,256 | R39: 2,208
A40: Wicomico Hall Renovation | B40: UMES | C40: Auxiliary | F40: 0 | G40: 24,057 | I40: 5,572 | J40: 18,485 | K40: =601+462 -> 1,063 | L40: 301 | M40: =462/2 -> 231 | N40: 646 | P40: =92+92 -> 184 | Q40: 462 | R40: 810
A41: West Village Infrastructure & Site Improv. | B41: TU | C41: Auxiliary | D41: 458,906 | E41: =7732945+1241094-1120735 -> 7,853,304 | F41: 8,312,210 | G41: 2,248,956 | I41: 520,949 | J41: 1,728,007 | K41: =56224+43200 -> 99,424 | L41: 28,112 | M41: =43200/2 -> 21,600 | N41: 60,355 | P41: =8622+8622 -> 17,244 | Q41: 43,111 | R41: 75,668
A42: West Village Dining Commons | B42: TU | C42: Auxiliary | E42: 503,027 | F42: 503,027 | G42: 222,399 | I42: 51,517 | J42: 170,882 | K42: =5560+4272 -> 9,832 | L42: 2,780 | M42: =4272/2 -> 2,136 | N42: 5,967 | P42: =853+853 -> 1,706 | Q42: 4,261 | R42: 7,482
A43: Child Care Center | B43: TU | C43: Auxiliary | D43: 481,198 | E43: 3,151 | F43: 484,349 | G43: 88,199 | I43: 20,431 | J43: 67,768 | K43: =2205+1694 -> 3,899 | L43: 1,103 | M43: =1694/2 -> 847 | N43: 2,367 | P43: =338+338 -> 676 | Q43: 1,691 | R43: 2,968
A44: Towsontown Garage Expansion | B44: TU | C44: Auxiliary | D44: 1,664,344 | E44: =2042382+5614128 -> 7,656,510 | F44: 9,320,854 | G44: 1,729,665 | I44: 400,660 | J44: 1,329,005 | K44: =43242+33225 -> 76,467 | L44: 21,621 | M44: =33225/2 -> 16,613 | N44: 46,419 | P44: =6631+6631 -> 13,262 | Q44: 33,157 | R44: 58,197
A45: Towson Center Arena Improvements | B45: TU | C45: Auxiliary | D45: 7,521 | E45: =195378+272342 -> 467,720 | F45: 475,241 | G45: 88,701 | I45: 20,547 | J45: 68,154 | K45: =2218+1704 -> 3,922 | L45: 1,109 | M45: =1704/2 -> 852 | N45: 2,381 | P45: =340+340 -> 680 | Q45: 1,701 | R45: 2,985
A46: Parking Garage | B46: CSU | C46: Auxiliary | E46: 241,048 | F46: 241,048 | G46: 43,895 | I46: 10,168 | J46: 33,727 | K46: =1097+843 -> 1,940 | L46: 549 | M46: =843/2 -> 422 | N46: 1,179 | P46: =168+168 -> 336 | Q46: 843 | R46: 1,477
A47: Lane Center Addition | B47: FSU | C47: Auxiliary | E47: 150,022 | F47: 150,022 | G47: 48,487 | I47: 11,232 | J47: 37,255 | K47: =1212+931 -> 2,143 | L47: 606 | M47: =931/2 -> 466 | N47: 1,301 | P47: =186+186 -> 372 | Q47: 929 | R47: 1,631
A48: Parking Garage | B48: SU | C48: Auxiliary | E48: 3,151,660 | F48: 3,151,660 | G48: 590,920 | I48: 136,881 | J48: 454,039 | K48: =14773+11351 -> 26,124 | L48: 7,387 | M48: =11351/2 -> 5,676 | N48: 15,859 | P48: =2265+2265 -> 4,530 | Q48: 11,329 | R48: 19,883
A49: New Parking Lot | B49: UMBC | C49: Auxiliary | G49: 83,773 | I49: 19,405 | J49: 64,368 | K49: =2094+1609 -> 3,703 | L49: 1,047 | M49: =1609/2 -> 805 | N49: 2,249 | P49: =321+321 -> 642 | Q49: 1,607 | R49: 2,819
A50: Residence Hall renovations | B50: UMBC | C50: Auxiliary | D50: 1,500,000 | F50: 1,500,000 | G50: 640,852 | I50: 148,447 | J50: 492,405 | K50: =16021+12310 -> 28,331 | L50: 8,011 | M50: =12310/2 -> 6,155 | N50: 17,198 | P50: =2457+2457 -> 4,914 | Q50: 12,284 | R50: 21,562
A51: New Recreation and Athletics | B51: UMBC | C51: Auxiliary | D51: =182177+7384 -> 189,561 | E51: =4268236-16774 -> 4,251,462 | F51: 4,441,023 | G51: 913,501 | I51: 211,604 | J51: 701,897 | K51: =22838+17547 -> 40,385 | L51: 11,419 | M51: =17547/2 -> 8,774 | N51: 24,516 | P51: =3502+3502 -> 7,004 | Q51: 17,512 | R51: 30,736 | T51: ubit
A52: Dining Hall: HVAC Upgrades | B52: UMBC | C52: Auxiliary | D52: 17,453 | E52: =957911+133338 -> 1,091,249 | F52: 1,108,702 | G52: 201,892 | I52: 46,766 | J52: 155,126 | K52: =5047+3878 -> 8,925 | L52: 2,524 | M52: =3878/2 -> 1,939 | N52: 5,418 | P52: =774+774 -> 1,548 | Q52: 3,870 | R52: 6,793
A53: Student Center | B53: UB | C53: Auxiliary | D53: (13,763) | E53: 1,870 | F53: (11,893) | G53: 0 | J53: 0 | N53: 0 | Q53: 0 | R53: 0
A54: Shady Grove Parking Lot 2 | B54: USM Office | C54: Auxiliary | D54: 1,425 | E54: 412,551 | F54: 413,976 | G54: 260 | I54: =60+1 -> 61 | J54: 199 | K54: =6+5 -> 11 | L54: 3 | M54: =5/2 -> 3 | N54: 6 | P54: =1+1 -> 2 | Q54: 4 | R54: 9
A55: Shady Grove Parking garage | B55: USM Office | C55: Auxiliary | D55: 74,892,634 | E55: (50,390,602) | F55: 24,502,032 | G55: 117,507 | I55: =27219+1 -> 27,220 | J55: 90,287 | K55: =2938+2257 -> 5,195 | L55: 1,469 | M55: =2257/2 -> 1,129 | N55: 3,151 | P55: =451+451 -> 902 | Q55: 2,249 | R55: 3,953
A56: Cost of issuance | D56: 222,409 | E56: =29161+629 -> 29,790 | F56: 252,199 | G56: 0 | J56: =G56-I56 -> 0 | N56: 0 | Q56: =N56-P56 -> 0
A59: Totals | D59: =SUM(D9:D57) -> 83,270,447 | E59: (680,359) | F59: 82,590,088 | G59: 14,570,000 | H59: =SUM(H9:H57) -> 0 | I59: 3,375,000 | J59: 11,195,000 | K59: 644,124 | L59: 182,125 | M59: 139,938 | N59: 391,013 | O59: =SUM(O9:O57) -> 0 | P59: 111,716 | Q59: 279,297 | R59: 490,221 | S59: 0
A62: Academic Projects
B64: UMB | D64: =+D11+D12+D34 -> 2,595,856 | E64: =+E11+E12+E34 -> 19,700,516 | F64: =F11+F12 -> 4,527,645 | G64: 815,688 | H64: =H11+H12 -> 0 | I64: 188,946 | J64: 626,742 | K64: 36,061 | L64: 10,196 | M64: 7,835 | N64: 21,891 | O64: =O11+O12 -> 0 | P64: 6,254 | Q64: 15,637 | R64: 27,446 | S64: 0
B65: UMCP | D65: =+D13+D35+D36+D37 -> 404,385 | E65: =+E13+E35+E36+E37 -> 1,040,220 | F65: =F13 -> 1,038,997 | G65: =G13+G14 -> 249,346 | H65: =H13+H14 -> 0 | I65: 57,759 | J65: 191,587 | K65: 11,023 | L65: 3,117 | M65: 2,395 | N65: 6,692 | O65: =O13+O14 -> 0 | P65: 1,912 | Q65: 4,780 | R65: 8,389 | S65: 0
B66: BSU | D66: =+D16+D39 -> 44,929 | E66: =+E16+E39 -> 365,403 | F66: =F16 -> 330,746 | G66: =G15+G16 -> 73,771 | H66: =H15+H16 -> 0 | I66: 17,088 | J66: 56,683 | K66: 3,262 | L66: 923 | M66: 709 | N66: 1,980 | O66: =O15+O16 -> 0 | P66: 566 | Q66: 1,414 | R66: 2,482 | S66: 0
B67: TU | D67: =+D18+D41+D43+D44+D45+D42 -> 2,662,262 | E67: =+E18+E41+E43+E44+E45+E42 -> 17,772,660 | F67: =F18 -> 1,339,241 | G67: =G17+G18 -> 268,358 | H67: =H17+H18 -> 0 | I67: 62,163 | J67: 206,195 | K67: 11,863 | L67: 3,354 | M67: 2,578 | N67: 7,202 | O67: =O17+O18 -> 0 | P67: 2,058 | Q67: 5,144 | R67: 9,029 | S67: 0
B68: UMES | D68: =+D21+D40 -> 333,426 | E68: =+E21+E40 -> 475,330 | F68: =F21 -> 808,756 | G68: =G21+G22 -> 185,875 | H68: =H21+H22 -> 0 | I68: 43,056 | J68: 142,819 | K68: 8,217 | L68: 2,323 | M68: 1,786 | N68: 4,989 | O68: =O21+O22 -> 0 | P68: 1,424 | Q68: 3,565 | R68: 6,256 | S68: 0
B69: FSU | D69: =+D28+D47 -> 18,439 | E69: =+E28+E47 -> 365,587 | F69: =F28 -> 234,004 | G69: =G27+G28 -> 211,164 | H69: =H27+H28 -> 0 | I69: 48,915 | J69: 162,249 | K69: 9,336 | L69: 2,640 | M69: 2,029 | N69: 5,666 | O69: =O27+O28 -> 0 | P69: 1,620 | Q69: 4,046 | R69: 7,105 | S69: 0
B70: CSU | D70: =+D20+D19+D46 -> 50,469 | E70: =+E20+E19+E46 -> 610,313 | F70: =F19+F20 -> 419,734 | G70: 110,752 | H70: =H19+H20 -> 0 | I70: 25,654 | J70: 85,098 | K70: 4,896 | L70: 1,385 | M70: 1,064 | N70: 2,974 | O70: =O19+O20 -> 0 | P70: 848 | Q70: 2,126 | R70: 3,727 | S70: 0
B71: UB | D71: =+D26+D53 -> 7,577 | E71: =+E26+E53 -> 53,010 | F71: =F26 -> 72,480 | G71: =G25+G26 -> 21,254 | H71: =H25+H26 -> 0 | I71: 4,923 | J71: 16,331 | K71: 939 | L71: 266 | M71: 204 | N71: 572 | O71: =O25+O26 -> 0 | P71: 162 | Q71: 410 | R71: 716 | S71: 0
B72: SU | D72: =D48 -> 0 | E72: =E48 -> 3,151,660 | G72: =G29 -> 111,592 | H72: =H29 -> 0 | I72: 25,849 | J72: 85,743 | K72: 4,934 | L72: 1,395 | M72: 1,072 | N72: 2,994 | O72: =O29 -> 0 | P72: 856 | Q72: 2,138 | R72: 3,755 | S72: 0
B73: UMUC
B74: UMBC | D74: =+D23+D50+D51+#REF!+D52 ->  | E74: =+E23+E50+E51+#REF!+E52 ->  | F74: =F23 -> 424,617 | G74: =G23+G24 -> 181,131 | H74: =H23+H24 -> 0 | I74: 41,957 | J74: 139,174 | K74: 8,007 | L74: 2,264 | M74: 1,740 | N74: 4,859 | O74: =O23+O24 -> 0 | P74: 1,390 | Q74: 3,469 | R74: 6,093 | S74: 0
B75: UMCES | D75: =+D30+D31 -> 59,690 | E75: =+E30+E31 -> 235,807 | F75: =F30+F31 -> 295,497 | G75: 67,909 | H75: =H30+H31 -> 0 | I75: 15,730 | J75: 52,179 | K75: 3,003 | L75: 849 | M75: 653 | N75: 1,824 | O75: =O30+O31 -> 0 | P75: 520 | Q75: 1,304 | R75: 2,287 | S75: 0
B76: USM Office | D76: =+D54+D55+D56 -> 75,116,468 | E76: =+E54+E55+E56 -> (49,948,261) | G76: =G32 -> 157,214 | H76: =H32 -> 0 | I76: 36,416 | J76: 120,798 | K76: 6,950 | L76: 1,965 | M76: 1,510 | N76: 4,218 | O76: =O32 -> 0 | P76: 1,206 | Q76: 3,012 | R76: 5,289 | S76: 0
A78: Total Academic Projects | D78: =SUM(D64:D76) ->  | F78: 9,491,717 | G78: 2,454,054 | H78: =SUM(H64:H76) -> 0 | I78: 568,456 | J78: 1,885,598 | K78: 108,491 | L78: 30,675 | M78: 23,571 | N78: 65,861 | O78: =SUM(O64:O76) -> 0 | P78: 18,816 | Q78: 47,045 | R78: 82,571 | S78: 0
A81: Auxiliary Projects
B83: UMB | D83: =+D39+D40+D54 -> 1,425 | E83: =+E39+E40+E54 -> 492,137 | F83: =F34 -> 17,768,727 | G83: 4,331,700 | H83: =H34 -> 0 | I83: 1,003,397 | J83: 3,328,303 | K83: 191,501 | L83: 54,147 | M83: 41,604 | N83: 116,250 | O83: =O34 -> 0 | P83: 33,214 | Q83: 83,036 | R83: 145,745 | S83: 0
B84: UMCP | D84: =+D41+D55+D56+D57 -> 75,573,949 | E84: =+E41+E55+E56+E57 -> (42,507,508) | F84: =F35+F36+F37 -> 405,608 | G84: =G35+G36+G37+G38 -> 675,553 | H84: =H35+H36+H37+H38 -> 0 | I84: 156,485 | J84: 519,068 | K84: 29,866 | L84: 8,445 | M84: 6,489 | N84: 18,130 | O84: =O35+O36+O37+O38 -> 0 | P84: 5,180 | Q84: 12,950 | R84: 22,730 | S84: 0
B85: BSU | D85: =+D42+D58 -> 0 | E85: =+E42+E58 -> 503,027 | F85: =F39 -> 79,586 | G85: 65,629 | H85: =H39 -> 0 | I85: 15,202 | J85: 50,427 | K85: 2,902 | L85: 821 | M85: 631 | N85: 1,760 | O85: =O39 -> 0 | P85: 504 | Q85: 1,256 | R85: 2,208 | S85: 0
B86: TU | D86: =+D43+D60+D62+D63+D64+D61 -> 3,077,054 | E86: =+E43+E60+E62+E63+E64+E61 -> 19,703,667 | F86: =F41+F42+F43+F44+F45 -> 19,095,681 | G86: 4,377,920 | H86: =H41+H42+H43+H44+H45 -> 0 | I86: 1,014,104 | J86: 3,363,816 | K86: 193,544 | L86: 54,725 | M86: 42,048 | N86: 117,489 | O86: =O41+O42+O43+O44+O45 -> 0 | P86: 33,568 | Q86: 83,921 | R86: 147,299 | S86: 0
B87: UMES | D87: =+D46+D59 -> 83,270,447 | E87: =+E46+E59 -> (439,311) | F87: =F40 -> 0 | G87: 24,057 | H87: =H40 -> 0 | I87: 5,572 | J87: 18,485 | K87: 1,063 | L87: 301 | M87: 231 | N87: 646 | O87: =O40 -> 0 | P87: 184 | Q87: 462 | R87: 810 | S87: 0
B88: FSU | D88: =+D50+D66 -> 1,544,929 | E88: =+E50+E66 -> 365,403 | F88: =F47 -> 150,022 | G88: 48,487 | H88: =H47 -> 0 | I88: 11,232 | J88: 37,255 | K88: 2,143 | L88: 606 | M88: 466 | N88: 1,301 | O88: =O47 -> 0 | P88: 372 | Q88: 929 | R88: 1,631 | S88: 0
B89: CSU | D89: =+D45+D44+D65 -> 2,076,250 | E89: =+E45+E44+E65 -> 9,164,450 | F89: =F46 -> 241,048 | G89: 43,895 | H89: =H46 -> 0 | I89: 10,168 | J89: 33,727 | K89: 1,940 | L89: 549 | M89: 422 | N89: 1,179 | O89: =O46 -> 0 | P89: 336 | Q89: 843 | R89: 1,477 | S89: 0
B90: UB | D90: =+D48+D72 -> 0 | E90: =+E48+E72 -> 6,303,320 | F90: =F53 -> (11,893) | G90: 0 | H90: =H53 -> 0 | I90: 0 | J90: 0 | K90: 0 | L90: 0 | M90: 0 | N90: 0 | O90: =O53 -> 0 | P90: 0 | Q90: 0 | R90: 0 | S90: 0
B91: SU | D91: =D67 -> 2,662,262 | E91: =E67 -> 17,772,660 | F91: =F48 -> 3,151,660 | G91: 590,920 | H91: =H48 -> 0 | I91: 136,881 | J91: 454,039 | K91: 26,124 | L91: 7,387 | M91: 5,676 | N91: 15,859 | O91: =O48 -> 0 | P91: 4,530 | Q91: 11,329 | R91: 19,883 | S91: 0
B92: UMUC
B93: UMBC | D93: =+D47+D68+D69+D70+D71 -> 409,911 | E93: =+E47+E68+E69+E70+E71 -> 1,654,262 | F93: =F50+F51+#REF!+F52 ->  | G93: =G49+G50+G51+G52 -> 1,840,018 | H93: =H49+H50+H51+H52 -> 0 | I93: =I49+I50+I51+I52 -> 426,222 | J93: 1,413,796 | K93: 81,344 | L93: 23,000 | M93: 17,672 | N93: 49,381 | O93: =O49+O50+O51+O52 -> 0 | P93: 14,108 | Q93: 35,273 | R93: 61,908 | S93: 0
B94: UMCES | D94: =+#REF!+D52 ->  | E94: =+#REF!+E52 -> 
B95: USM Office | D95: =+D73+D74+D75 ->  | E95: =+E73+E74+E75 ->  | F95: =F54+F55 -> 24,916,008 | G95: 117,767 | H95: =H54+H55 -> 0 | I95: 27,281 | J95: 90,486 | K95: 5,206 | L95: 1,472 | M95: 1,131 | N95: 3,157 | O95: =O54+O55 -> 0 | P95: 904 | Q95: 2,253 | R95: 3,961 | S95: 0
A97: Total Auxiliary Projects | D97: =SUM(D83:D95) ->  | G97: 12,115,946 | H97: =SUM(H83:H95) -> 0 | I97: 2,806,544 | J97: 9,309,402 | K97: 535,633 | L97: 151,450 | M97: 116,367 | N97: 325,152 | O97: =SUM(O83:O95) -> 0 | P97: 92,900 | Q97: 232,252 | R97: 407,651 | S97: 0
A100: Total Projects
B102: UMB | D102: =+D59+D60+D74 ->  | E102: =+E59+E60+E74 ->  | F102: =F64+F83 -> 22,296,372 | G102: 5,147,388 | H102: 0 | I102: 1,192,343 | J102: 3,955,045 | K102: 227,562 | L102: 64,343 | M102: 49,439 | N102: 138,141 | O102: 0 | P102: 39,468 | Q102: 98,673 | R102: 173,190 | S102: 0
B103: UMCP | D103: =+D61+D75+#REF!+D76 ->  | E103: =+E61+E75+#REF!+E76 ->  | F103: 1,444,605 | G103: 924,899 | H103: 0 | I103: 214,244 | J103: 710,655 | K103: 40,889 | L103: 11,562 | M103: 8,883 | N103: 24,822 | O103: 0 | P103: 7,092 | Q103: 17,730 | R103: 31,119 | S103: 0
B104: BSU | D104: =+D62+D77 -> 0 | E104: =+E62+E77 -> 0 | F104: 410,332 | G104: 139,400 | H104: 0 | I104: 32,290 | J104: 107,110 | K104: 6,164 | L104: 1,743 | M104: 1,339 | N104: 3,740 | O104: 0 | P104: 1,070 | Q104: 2,670 | R104: 4,690 | S104: 0
B105: TU | D105: =+D63+D79+D81+D82+D83+D80 -> 1,425 | E105: =+E63+E79+E81+E82+E83+E80 -> 492,137 | F105: 20,434,922 | G105: 4,646,278 | H105: 0 | I105: 1,076,267 | J105: 3,570,011 | K105: 205,407 | L105: 58,079 | M105: 44,625 | N105: 124,691 | O105: 0 | P105: 35,626 | Q105: 89,065 | R105: 156,328 | S105: 0
B106: UMES | D106: =+D66+D78 ->  | E106: =+E66+E78 ->  | F106: 808,756 | G106: 209,932 | H106: 0 | I106: 48,628 | J106: 161,304 | K106: 9,280 | L106: 2,624 | M106: 2,017 | N106: 5,635 | O106: 0 | P106: 1,608 | Q106: 4,027 | R106: 7,065 | S106: 0
B107: FSU | D107: =+D69+D85 -> 18,439 | E107: =+E69+E85 -> 868,614 | F107: 384,026 | G107: 259,651 | H107: 0 | I107: 60,147 | J107: 199,504 | K107: 11,479 | L107: 3,246 | M107: 2,494 | N107: 6,967 | O107: 0 | P107: 1,992 | Q107: 4,975 | R107: 8,736 | S107: 0
B108: CSU | D108: =+D65+D64+D84 -> 78,574,190 | E108: =+E65+E64+E84 -> (21,766,772) | F108: 660,782 | G108: 154,647 | H108: 0 | I108: 35,822 | J108: 118,825 | K108: 6,836 | L108: 1,933 | M108: 1,485 | N108: 4,153 | O108: 0 | P108: 1,184 | Q108: 2,969 | R108: 5,204 | S108: 0
B109: UB | D109: =+D68+D91 -> 2,995,688 | E109: =+E68+E91 -> 18,247,990 | F109: 60,587 | G109: 21,254 | H109: 0 | I109: 4,923 | J109: 16,331 | K109: 939 | L109: 266 | M109: 204 | N109: 572 | O109: 0 | P109: 162 | Q109: 410 | R109: 716 | S109: 0
B110: SU | D110: =D86 -> 3,077,054 | E110: =E86 -> 19,703,667 | F110: 3,151,660 | G110: 702,512 | H110: 0 | I110: 162,730 | J110: 539,782 | K110: 31,058 | L110: 8,782 | M110: 6,748 | N110: 18,853 | O110: 0 | P110: 5,386 | Q110: 13,467 | R110: 23,638 | S110: 0
B111: UMUC | F111: 0 | G111: 0 | H111: 0 | I111: 0 | J111: 0 | K111: 0 | L111: 0 | M111: 0 | N111: 0 | O111: 0 | P111: 0 | Q111: 0 | R111: 0 | S111: 0
B112: UMBC | D112: =+D67+D87+D88+D89+D90 -> 89,553,888 | E112: =+E67+E87+E88+E89+E90 -> 33,166,522 | G112: 2,021,149 | H112: 0 | I112: 468,179 | J112: 1,552,970 | K112: 89,351 | L112: 25,264 | M112: 19,412 | N112: 54,240 | O112: 0 | P112: 15,498 | Q112: 38,742 | R112: 68,001 | S112: 0
B113: UMCES | D113: =+D71+D72 -> 7,577 | E113: =+E71+E72 -> 3,204,670 | F113: 295,497 | G113: 67,909 | H113: 0 | I113: 15,730 | J113: 52,179 | K113: 3,003 | L113: 849 | M113: 653 | N113: 1,824 | O113: 0 | P113: 520 | Q113: 1,304 | R113: 2,287 | S113: 0
B114: USM Office | D114: =+D92+D93+D94 ->  | E114: =+E92+E93+E94 ->  | F114: 24,916,008 | G114: 274,981 | H114: 0 | I114: 63,697 | J114: 211,284 | K114: 12,156 | L114: 3,437 | M114: 2,641 | N114: 7,375 | O114: 0 | P114: 2,110 | Q114: 5,265 | R114: 9,250 | S114: 0
A116: Total Projects | D116: =SUM(D102:D114) ->  | G116: 14,570,000 | H116: =SUM(H102:H114) -> 0 | I116: 3,375,000 | J116: 11,195,000 | K116: 644,124 | L116: 182,125 | M116: 139,938 | N116: 391,013 | O116: =SUM(O102:O114) -> 0 | P116: 111,716 | Q116: 279,297 | R116: 490,221 | S116: 0

Sheet 07A
A1: University System of Maryland
A2: 2007 Series A Revenue Bonds
A3: FYE June 30, 2015
H4: Allocated | I4: Allocated | M4: Unamortized | N4: Amortization | O4: Unamortized
E5: FY 2015 | G5: =E5 -> FY 2015 | H5: Accrued Interest | I5: Accrued Interest | J5: Unamortized | K5: =G5 -> FY 2015 | L5: Unamortized | M5: (Gain)/loss on | N5: of (Gain)/loss on | O5: (Gain)/loss on | P5: =K5 -> FY 2015 | Q5: Capitalize
C6: Academic | D6: Debt at | E6: Principal | F6: Debt at | G6: Interest | H6: Payable | I6: Payable | J6: Premium | K6: Amortization | L6: Premium | M6: Refunding | N6: Refunding | O6: Refunding | P6: Interest | Q6: Interest /
A7: Project | B7: Institution | C7: /Auxiliary | D7: @ 6/30/14 | E7: Paid | F7: @ 6/30/15 | G7: Paid | H7: =D7 -> @ 6/30/14 | I7: =F7 -> @ 6/30/15 | J7: =H7 -> @ 6/30/14 | K7: of Premium | L7: =I7 -> @ 6/30/15 | M7: =J7 -> @ 6/30/14 | N7: =K5 -> FY 2015 | O7: =L7 -> @ 6/30/15 | P7: Expense | Q7: Expense
A8: 2001 Series A Projects
A9: UMCP Health Center | B9: UMCP | C9: Auxiliary | D9: 54,419 | F9: =D9-E9 -> 54,419 | G9: =1256+1256 -> 2,512 | H9: 628 | I9: =1256/2 -> 628 | J9: 1,396 | K9: =99+99 -> 198 | L9: =J9-K9 -> 1,198 | M9: 1,346 | N9: =96+96 -> 192 | O9: =M9-N9 -> 1,154 | P9: =G9+I9-H9-K9+N9 -> 2,506 | Q9: ubit
A10: UMCP - Comcast Arena | B10: UMCP | C10: Auxiliary | D10: 8,051,532 | F10: =D10-E10 -> 8,051,532 | G10: =87452+87452+98352+98352 -> 371,608 | H10: 92,902 | I10: =185804/2 -> 92,902 | J10: 205,892 | K10: =6912+6912+7794+7794 -> 29,412 | L10: =J10-K10 -> 176,480 | M10: 198,994 | N10: =6680+6680+7533+7533 -> 28,426 | O10: =M10-N10 -> 170,568 | P10: 370,622 | Q10: ubit
A11: UMCP - South Campus Parking garage | B11: UMCP | C11: Auxiliary | D11: 4,800 | F11: 4,800 | G11: =111+111 -> 222 | H11: 56 | I11: =111/2 -> 56 | J11: 120 | K11: =9+9 -> 18 | L11: 102 | M11: 124 | N11: =8+8 -> 16 | O11: 108 | P11: 220
A12: UMCP North Campus Parking Garage | B12: UMCP | C12: Auxiliary | D12: 1,883,794 | F12: 1,883,794 | G12: =43472+43472 -> 86,944 | H12: 21,736 | I12: =43472/2 -> 21,736 | J12: 48,169 | K12: =3441+3441 -> 6,882 | L12: 41,287 | M12: 46,562 | N12: =3325+3325 -> 6,650 | O12: 39,912 | P12: 86,712
A13: UMCP SCUB III | B13: UMCP | C13: Auxiliary | D13: 3,447 | F13: 3,447 | G13: =80+80 -> 160 | H13: 40 | I13: =80/2 -> 40 | J13: 92 | K13: =6+6 -> 12 | L13: 80 | M13: 86 | N13: =6+6 -> 12 | O13: 74 | P13: 160
A14: UMCP Stamp Union | B14: UMCP | C14: Auxiliary | D14: 2,456,979 | F14: 2,456,979 | G14: =56699+56699 -> 113,398 | H14: 28,350 | I14: =56699/2 -> 28,350 | J14: 62,825 | K14: =4488+4488 -> 8,976 | L14: 53,849 | M14: 60,727 | N14: =4337+4337 -> 8,674 | O14: 52,053 | P14: 113,096
A15: TU - York Road Garage | B15: TU | C15: Auxiliary | D15: 1,227,326 | F15: 1,227,326 | G15: =28323+28323 -> 56,646 | H15: 14,162 | I15: =28323/2 -> 14,162 | J15: 31,381 | K15: =2242+2242 -> 4,484 | L15: 26,897 | M15: 30,328 | N15: =2167+2167 -> 4,334 | O15: 25,994 | P15: 56,496
A16: TU - Fitness Center | B16: TU | C16: Auxiliary | D16: 152,979 | F16: 152,979 | G16: =3530+3530 -> 7,060 | H16: 1,765 | I16: =3530/2 -> 1,765 | J16: 3,917 | K16: =279+279 -> 558 | L16: 3,359 | M16: 3,781 | N16: =270+270 -> 540 | O16: 3,241 | P16: 7,042
A17: UMES - new residence hall | B17: UMES | C17: Auxiliary | D17: 1,296,904 | F17: 1,296,904 | G17: =29928+29928 -> 59,856 | H17: 14,964 | I17: =29928/2 -> 14,964 | J17: 33,161 | K17: =2369+2369 -> 4,738 | L17: 28,423 | M17: 32,057 | N17: =2289+2289 -> 4,578 | O17: 27,479 | P17: 59,696
A18: UMES - Student services center | B18: UMES | C18: Auxiliary | D18: 454,584 | F18: 454,584 | G18: =10490+10490 -> 20,980 | H18: 5,245 | I18: =10490/2 -> 5,245 | J18: 11,628 | K18: =830+830 -> 1,660 | L18: 9,968 | M18: 11,229 | N18: =803+803 -> 1,606 | O18: 9,623 | P18: 20,926
A19: FSU - Athletic Facilities | B19: FSU | C19: Auxiliary | D19: 72,335 | F19: 72,335 | G19: =1669+1669 -> 3,338 | H19: 835 | I19: =1669/2 -> 835 | J19: 1,851 | K19: =132+132 -> 264 | L19: 1,587 | M19: 1,784 | N19: =128+128 -> 256 | O19: 1,528 | P19: 3,330
A20: CSC - new residence hall | B20: CSU | C20: Auxiliary | D20: 1,185,930 | F20: 1,185,930 | G20: =27368+27368 -> 54,736 | H20: 13,684 | I20: =27368/2 -> 13,684 | J20: 30,327 | K20: =2166+2166 -> 4,332 | L20: 25,995 | M20: 29,304 | N20: =2094+2094 -> 4,188 | O20: 25,116 | P20: 54,592
A21: UMBC - University Commons | B21: UMBC | C21: Auxiliary | D21: 3,565,594 | F21: 3,565,594 | G21: =82283+82283 -> 164,566 | H21: 41,142 | I21: =82283/2 -> 41,142 | J21: 91,173 | K21: =6513+6513 -> 13,026 | L21: 78,147 | M21: 88,126 | N21: =6294+6294 -> 12,588 | O21: 75,538 | P21: 164,128 | Q21: ubit
A22: UMBC - Parking Garage | B22: UMBC | C22: Auxiliary | D22: 1,550,086 | F22: 1,550,086 | G22: =35771+35771 -> 71,542 | H22: 17,886 | I22: =35771/2 -> 17,886 | J22: 39,641 | K22: =2831+2831 -> 5,662 | L22: 33,979 | M22: 38,314 | N22: =2736+2736 -> 5,472 | O22: 32,842 | P22: 71,352
A23: UMCES - Facilities renewal | B23: UMCES | C23: Academic | D23: 49,113 | F23: 49,113 | G23: =1133+1133 -> 2,266 | H23: 567 | I23: =1133/2 -> 567 | J23: 1,252 | K23: =90+90 -> 180 | L23: 1,072 | M23: 1,210 | N23: =87+87 -> 174 | O23: 1,036 | P23: 2,260
A24: UMB - Facilities Renewal | B24: UMB | C24: Academic | D24: 21,901 | F24: 21,901 | G24: =505+505 -> 1,010 | H24: 253 | I24: =505/2 -> 253 | J24: 560 | K24: =40+40 -> 80 | L24: 480 | M24: 537 | N24: =39+39 -> 78 | O24: 459 | P24: 1,008
A25: UMB - New Parking Garage | B25: UMB | C25: Auxiliary | D25: 59,820 | F25: 59,820 | G25: =1380+1380 -> 2,760 | H25: 690 | I25: =1380/2 -> 690 | J25: 1,533 | K25: =109+109 -> 218 | L25: 1,315 | M25: 1,474 | N25: =106+106 -> 212 | O25: 1,262 | P25: 2,754 | Q25: ubit
A26: UMES - Purchase of Hawk's Landing | B26: UMES | C26: Auxiliary | D26: 1,488,704 | F26: 1,488,704 | G26: =34355+34355 -> 68,710 | H26: 17,178 | I26: =34355/2 -> 17,178 | J26: 38,070 | K26: =2719+2719 -> 5,438 | L26: 32,632 | M26: 36,793 | N26: =2628+2628 -> 5,256 | O26: 31,537 | P26: 68,528
A27: UMBC - Housing Central Utility Plant | B27: UMBC | C27: Auxiliary | D27: 1,353,208 | F27: 1,353,208 | G27: =31228+31228 -> 62,456 | H27: 15,614 | I27: =31228/2 -> 15,614 | J27: 34,599 | K27: =2472+2472 -> 4,944 | L27: 29,655 | M27: 33,442 | N27: =2389+2389 -> 4,778 | O27: 28,664 | P27: 62,290
A28: USM- Transfer from UMUC for early payoff | B28: USM | C28: Auxiliary | D28: 175,547 | F28: 175,547 | G28: =4051+4051 -> 8,102 | H28: 2,026 | I28: =4051/2 -> 2,026 | J28: 4,485 | K28: =321+321 -> 642 | L28: 3,843 | M28: 4,337 | N28: =310+310 -> 620 | O28: 3,717 | P28: 8,080
A29: UMCES - Coastal Sciences Laboratory | B29: UMCES | C29: Auxiliary | D29: 5,064 | F29: 5,064 | G29: =117+117 -> 234 | H29: 59 | I29: =117/2 -> 59 | J29: 132 | K29: =9+9 -> 18 | L29: 114 | M29: 124 | N29: =9+9 -> 18 | O29: 106 | P29: 234
A30: TU - Newell Dining renovation | B30: TU | C30: Auxiliary | D30: 65,934 | F30: 65,934 | G30: =1522+1522 -> 3,044 | H30: 761 | I30: =1522/2 -> 761 | J30: 1,691 | K30: =120+120 -> 240 | L30: 1,451 | M30: 1,634 | N30: =116+116 -> 232 | O30: 1,402 | P30: 3,036
D31: 0 | F31: 0 | J31: 0 | L31: 0 | M31: 0 | O31: 0
A32: 2002 Series A Projects
A33: Temporary Building | B33: UMB | C33: Auxiliary | D33: 118,655 | E33: 12,218 | F33: 106,437 | G33: =2775+2775 -> 5,550 | H33: 1,388 | I33: =2470/2 -> 1,235 | J33: 3,405 | K33: =190+190 -> 380 | L33: 3,025 | M33: 1,331 | N33: =74+74 -> 148 | O33: 1,183 | P33: =G33+I33-H33-K33+N33 -> 5,166 | Q33: 0
A34: Donaldson Brown Center | B34: UMB | C34: Auxiliary | D34: 31,345 | E34: 3,228 | F34: 28,117 | G34: =733+733 -> 1,466 | H34: 367 | I34: =652/2 -> 326 | J34: 902 | K34: =50+50 -> 100 | L34: 802 | M34: 346 | N34: =20+20 -> 40 | O34: 306 | P34: 1,366 | Q34: 0
A35: Saratoga Street garage | B35: UMB | C35: Auxiliary | D35: 6,964,460 | E35: 717,154 | F35: 6,247,306 | G35: =162880+162880 -> 325,760 | H35: 81,440 | I35: =144951/2 -> 72,476 | J35: 200,207 | K35: =11122+11122 -> 22,244 | L35: 177,963 | M35: 78,147 | N35: =4341+4341 -> 8,682 | O35: 69,465 | P35: 303,234 | Q35: ubit
A36: New parking garage | B36: UMB | C36: Auxiliary | D36: 95,530 | E36: 9,837 | F36: 85,693 | G36: =2234+2234 -> 4,468 | H36: 1,117 | I36: =1988/2 -> 994 | J36: 2,741 | K36: =153+153 -> 306 | L36: 2,435 | M36: 1,066 | N36: =60+60 -> 120 | O36: 946 | P36: 4,159 | Q36: ubit
A37: Pascault Row renovation | B37: UMB | C37: Auxiliary | D37: 113,182 | E37: 11,655 | F37: 101,527 | G37: =2647+2647 -> 5,294 | H37: 1,324 | I37: =2356/2 -> 1,178 | J37: 3,251 | K37: =181+181 -> 362 | L37: 2,889 | M37: 1,265 | N37: =71+71 -> 142 | O37: 1,123 | P37: 4,929 | Q37: 0
A38: Comcast Arena | B38: UMCP | C38: Auxiliary | D38: 1,135,295 | E38: =896+116010 -> 116,906 | F38: 1,018,389 | G38: =203+203+26348+26348 -> 53,102 | H38: 13,276 | I38: =23629/2 -> 11,815 | J38: 32,637 | K38: =18+18+1795+1795 -> 3,626 | L38: 29,011 | M38: 12,735 | N38: =7+7+701+701 -> 1,416 | O38: 11,319 | P38: 49,431 | Q38: ubit
A39: South Campus Parking Garage | B39: UMCP | C39: Auxiliary | D39: 6,963,221 | E39: 717,027 | F39: 6,246,194 | G39: =162851+162851 -> 325,702 | H39: 81,426 | I39: =144925/2 -> 72,463 | J39: 200,171 | K39: =11120+11120 -> 22,240 | L39: 177,931 | M39: 78,124 | N39: =4341+4341 -> 8,682 | O39: 69,442 | P39: 303,181 | Q39: 0
A40: North Campus Parking Garage | B40: UMCP | C40: Auxiliary | D40: 70,597 | E40: 7,269 | F40: 63,328 | G40: =1651+1651 -> 3,302 | H40: 826 | I40: =1469/2 -> 735 | J40: 2,026 | K40: =113+113 -> 226 | L40: 1,800 | M40: 792 | N40: =44+44 -> 88 | O40: 704 | P40: 3,073 | Q40: 0
A41: Health Center | B41: UMCP | C41: Auxiliary | D41: 1,966,953 | E41: 202,544 | F41: 1,764,409 | G41: =46002+46002 -> 92,004 | H41: 23,001 | I41: =40938/2 -> 20,469 | J41: 56,546 | K41: =3141+3141 -> 6,282 | L41: 50,264 | M41: 22,071 | N41: =1226+1226 -> 2,452 | O41: 19,619 | P41: 85,642 | Q41: ubit
A42: Queen Anne's Hall renovation | B42: UMCP | C42: Auxiliary | D42: 138,531 | E42: 14,265 | F42: 124,266 | G42: =3240+3240 -> 6,480 | H42: 1,620 | I42: =2883/2 -> 1,442 | J42: 3,985 | K42: =221+221 -> 442 | L42: 3,543 | M42: 1,559 | N42: =86+86 -> 172 | O42: 1,387 | P42: 6,032 | Q42: ubit
A43: Stamp Union Renovation | B43: UMCP | C43: Auxiliary | D43: 3,202,380 | E43: 329,760 | F43: 2,872,620 | G43: =74895+74895 -> 149,790 | H43: 37,448 | I43: =66651/2 -> 33,326 | J43: 92,060 | K43: =5114+5114 -> 10,228 | L43: 81,832 | M43: 35,934 | N43: =1996+1996 -> 3,992 | O43: 31,942 | P43: 139,432 | Q43: ubit
A44: SCUB 3 planning and construction | B44: UMCP | C44: Auxiliary | D44: 110,050 | E44: =11332 -> 11,332 | F44: 98,718 | G44: =2574+2574 -> 5,148 | H44: 1,287 | I44: =2290/2 -> 1,145 | J44: 3,161 | K44: =176+176 -> 352 | L44: 2,809 | M44: 1,230 | N44: =69+69 -> 138 | O44: 1,092 | P44: 4,792 | Q44: 0
A45: Prettyman/Scarborough HVAC | B45: TU | C45: Auxiliary | D45: 343 | E45: 35 | F45: 308 | G45: =8+8 -> 16 | H45: 4 | I45: =7/2 -> 4 | J45: 0 | L45: 0 | M45: 0 | O45: 0 | P45: 16 | Q45: 0
A46: Bowling Conversion to Cybercafe | B46: TU | C46: Auxiliary | D46: 730,710 | E46: 75,244 | F46: 655,466 | G46: =17089+17089 -> 34,178 | H46: 8,545 | I46: =15208/2 -> 7,604 | J46: 21,005 | K46: =1167+1167 -> 2,334 | L46: 18,671 | M46: 8,193 | N46: =456+456 -> 912 | O46: 7,281 | P46: 31,816 | Q46: 0
A47: Newell Dining Hall Renovation | B47: TU | C47: Auxiliary | D47: 909,545 | E47: 93,659 | F47: 815,886 | G47: =21272+21272 -> 42,544 | H47: 10,636 | I47: =18930/2 -> 9,465 | J47: 26,141 | K47: =1453+1453 -> 2,906 | L47: 23,235 | M47: 10,205 | N47: =567+567 -> 1,134 | O47: 9,071 | P47: 39,601 | Q47: 0
A48: Interim Fitness Center | B48: TU | C48: Auxiliary | D48: 1,065,720 | E48: 109,741 | F48: 955,979 | G48: =24924+24924 -> 49,848 | H48: 12,462 | I48: =22181/2 -> 11,091 | J48: 30,635 | K48: =1702+1702 -> 3,404 | L48: 27,231 | M48: 11,962 | N48: =664+664 -> 1,328 | O48: 10,634 | P48: 46,401 | Q48: 0
A49: Minnegan Stadium Renovation | B49: TU | C49: Auxiliary | D49: 3,399,532 | E49: 350,062 | F49: 3,049,470 | G49: =79506+79506 -> 159,012 | H49: 39,753 | I49: =70754/2 -> 35,377 | J49: 97,725 | K49: =5429+5429 -> 10,858 | L49: 86,867 | M49: 38,145 | N49: =2119+2119 -> 4,238 | O49: 33,907 | P49: 148,016 | Q49: 0
A50: 7800 York Road Garage | B50: TU | C50: Auxiliary | D50: 5,457,635 | E50: 561,992 | F50: 4,895,643 | G50: =127639+127639 -> 255,278 | H50: 63,820 | I50: =113589/2 -> 56,795 | J50: 156,886 | K50: =8716+8716 -> 17,432 | L50: 139,454 | M50: 61,237 | N50: =3402+3402 -> 6,804 | O50: 54,433 | P50: 237,625 | Q50: 0
A51: Richmond & Newell Hall Dining | B51: TU | C51: Auxiliary | D51: 16,356 | E51: 1,684 | F51: 14,672 | G51: =383+383 -> 766 | H51: 192 | I51: =340/2 -> 170 | J51: 472 | K51: =26+26 -> 52 | L51: 420 | M51: 186 | N51: =10+10 -> 20 | O51: 166 | P51: 713 | Q51: 0
A52: Murphy Hall Annex renovation | B52: UMES | C52: Auxiliary | D52: 1,350,223 | E52: 139,037 | F52: 1,211,186 | G52: =31578+31578 -> 63,156 | H52: 15,789 | I52: =28102/2 -> 14,051 | J52: 38,818 | K52: =2156+2156 -> 4,312 | L52: 34,506 | M52: 15,146 | N52: =842+842 -> 1,684 | O52: 13,462 | P52: 58,790 | Q52: 0
A53: New residence hall | B53: UMES | C53: Auxiliary | D53: 122,354 | E53: 12,599 | F53: 109,755 | G53: =2862+2862 -> 5,724 | H53: 1,431 | I53: =2547/2 -> 1,274 | J53: 3,522 | K53: =195+195 -> 390 | L53: 3,132 | M53: 1,376 | N53: =76+76 -> 152 | O53: 1,224 | P53: 5,329 | Q53: 0
A54: Student service center | B54: UMES | C54: Auxiliary | D54: 461,153 | E54: 47,486 | F54: 413,667 | G54: =10785+10785 -> 21,570 | H54: 5,393 | I54: =9598/2 -> 4,799 | J54: 13,262 | K54: =736+736 -> 1,472 | L54: 11,790 | M54: 5,180 | N54: =287+287 -> 574 | O54: 4,606 | P54: 20,079 | Q54: 0
A55: New residence hall | B55: CSC | C55: Auxiliary | D55: 761,304 | E55: 78,394 | F55: 682,910 | G55: =17805+17805 -> 35,610 | H55: 8,903 | I55: =15845/2 -> 7,923 | J55: 21,883 | K55: =1216+1216 -> 2,432 | L55: 19,451 | M55: 8,537 | N55: =475+475 -> 950 | O55: 7,587 | P55: 33,148 | Q55: 0
A56: Dining Hall | B56: CSC | C56: Auxiliary | D56: 1,110,212 | E56: 114,322 | F56: 995,890 | G56: =25965+25965 -> 51,930 | H56: 12,983 | I56: =23107/2 -> 11,554 | J56: 31,915 | K56: =1773+1773 -> 3,546 | L56: 28,369 | M56: 12,458 | N56: =692+692 -> 1,384 | O56: 11,074 | P56: 48,339 | Q56: 0
A57: New Student Center | B57: UB | C57: Auxiliary | D57: 90,324 | E57: 9,301 | F57: 81,023 | G57: =2112+2112 -> 4,224 | H57: 1,056 | I57: =1880/2 -> 940 | J57: 2,599 | K57: =144+144 -> 288 | L57: 2,311 | M57: 1,017 | N57: =56+56 -> 112 | O57: 905 | P57: 3,932 | Q57: 0
A58: USM- Transfer from UMUC for early payoff | B58: USM | C58: Auxiliary | D58: 3,033,668 | E58: 312,387 | F58: 2,721,281 | G58: =70949+70949 -> 141,898 | H58: 35,475 | I58: =63139/2 -> 31,570 | J58: 87,204 | K58: =4845+4845 -> 9,690 | L58: 77,514 | M58: 34,039 | N58: =1891+1891 -> 3,782 | O58: 30,257 | P58: 132,085
A59: Land acquisition for Alumni Center | B59: UMBC | C59: Auxiliary | D59: 1,073,603 | E59: 110,552 | F59: 963,051 | G59: =25109+25109 -> 50,218 | H59: 12,555 | I59: =22345/2 -> 11,173 | J59: 30,857 | K59: =1715+1715 -> 3,430 | L59: 27,427 | M59: 12,049 | N59: =669+669 -> 1,338 | O59: 10,711 | P59: 46,744 | Q59: 0
A60: Residence Hall renovation | B60: UMBC | C60: Auxiliary | D60: 521,578 | E60: 53,708 | F60: 467,870 | G60: =12198+12198 -> 24,396 | H60: 6,099 | I60: =10855/2 -> 5,428 | J60: 14,993 | K60: =833+833 -> 1,666 | L60: 13,327 | M60: 5,854 | N60: =325+325 -> 650 | O60: 5,204 | P60: 22,709 | Q60: 0
A61: Housing Central Utility Plant | B61: UMBC | C61: Auxiliary | D61: 89,805 | E61: 9,248 | F61: 80,557 | G61: =2100+2100 -> 4,200 | H61: 1,050 | I61: =1869/2 -> 935 | J61: 2,587 | K61: =143+143 -> 286 | L61: 2,301 | M61: 1,007 | N61: =56+56 -> 112 | O61: 895 | P61: 3,911 | Q61: 0
A62: Parking Garage | B62: UMBC | C62: Auxiliary | D62: 115,774 | E62: 11,922 | F62: 103,852 | G62: =2708+2708 -> 5,416 | H62: 1,354 | I62: =2410/2 -> 1,205 | J62: 3,327 | K62: =185+185 -> 370 | L62: 2,957 | M62: 1,301 | N62: =72+72 -> 144 | O62: 1,157 | P62: 5,041 | Q62: 0
A63: New Dental School Building | B63: UMB | C63: Academic | D63: 665,666 | E63: 68,546 | F63: 597,120 | G63: =15568+15568 -> 31,136 | H63: 7,784 | I63: =13854/2 -> 6,927 | J63: 19,136 | K63: =1063+1063 -> 2,126 | L63: 17,010 | M63: 7,468 | N63: =415+415 -> 830 | O63: 6,638 | P63: 28,983 | Q63: 0
A64: Howard Hall PH IV | B64: UMB | C64: Academic | D64: 152,128 | E64: 15,665 | F64: 136,463 | G64: =3558+3558 -> 7,116 | H64: 1,779 | I64: =3166/2 -> 1,583 | J64: 4,373 | K64: =243+243 -> 486 | L64: 3,887 | M64: 1,705 | N64: =95+95 -> 190 | O64: 1,515 | P64: 6,624 | Q64: 0
A65: Facililties Renewal | B65: UMB | C65: Academic | D65: 1,980,958 | E65: 203,986 | F65: 1,776,972 | G65: =46329+46329 -> 92,658 | H65: 23,165 | I65: =41230/2 -> 20,615 | J65: 56,941 | K65: =3164+3164 -> 6,328 | L65: 50,613 | M65: 22,225 | N65: =1235+1235 -> 2,470 | O65: 19,755 | P65: 86,251 | Q65: 0
A66: Nursing School Equipment | B66: UMB | C66: Academic | D66: 61,497 | E66: 6,332 | F66: 55,165 | G66: =1438+1438 -> 2,876 | H66: 719 | I66: =1280/2 -> 640 | J66: 1,770 | K66: =98+98 -> 196 | L66: 1,574 | M66: 694 | N66: =38+38 -> 76 | O66: 618 | P66: 2,677 | Q66: 0
A67: School of Law | B67: UMB | C67: Academic | D67: 79,859 | E67: 8,223 | F67: 71,636 | G67: =1868+1868 -> 3,736 | H67: 934 | I67: =1662/2 -> 831 | J67: 2,290 | K67: =128+128 -> 256 | L67: 2,034 | M67: 893 | N67: =50+50 -> 100 | O67: 793 | P67: 3,477 | Q67: 0
A68: Emergency - Davidge Hall | B68: UMB | C68: Academic | D68: 2,752 | E68: 283 | F68: 2,469 | G68: =64+64 -> 128 | H68: 32 | I68: =57/2 -> 29 | J68: 84 | K68: =4+4 -> 8 | L68: 76 | M68: 27 | N68: =2+2 -> 4 | O68: 23 | P68: 121 | Q68: 0
A69: Renovate Hornbake and McKeldin Libraries | B69: UMCP | C69: Academic | D69: 357,250 | E69: 36,787 | F69: 320,463 | G69: =8355+8355 -> 16,710 | H69: 4,178 | I69: =7435/2 -> 3,718 | J69: 10,264 | K69: =571+571 -> 1,142 | L69: 9,122 | M69: 4,005 | N69: =223+223 -> 446 | O69: 3,559 | P69: 15,554 | Q69: 0
A70: Renovate Key and Taliaferro Halls | B70: UMCP | C70: Academic | D70: 1,156,961 | E70: 119,136 | F70: 1,037,825 | G70: =27058+27058 -> 54,116 | H70: 13,529 | I70: =24080/2 -> 12,040 | J70: 33,255 | K70: =1848+1848 -> 3,696 | L70: 29,559 | M70: 12,984 | N70: =721+721 -> 1,442 | O70: 11,542 | P70: 50,373 | Q70: 0
A71: Engineering & Applied Science | B71: UMCP | C71: Academic | D71: 66,192 | E71: 6,816 | F71: 59,376 | G71: =1548+1548 -> 3,096 | H71: 774 | I71: =1378/2 -> 689 | J71: 1,899 | K71: =106+106 -> 212 | L71: 1,687 | M71: 746 | N71: =41+41 -> 82 | O71: 664 | P71: 2,881 | Q71: 0
A72: Facilities Renewal Projects | B72: UMCP | C72: Academic | D72: 256,868 | E72: 26,451 | F72: 230,417 | G72: =6007+6007 -> 12,014 | H72: 3,004 | I72: =5346/2 -> 2,673 | J72: 7,387 | K72: =410+410 -> 820 | L72: 6,567 | M72: 2,884 | N72: =160+160 -> 320 | O72: 2,564 | P72: 11,184 | Q72: 0
A73: Utilities Upgrade | B73: UMES | C73: Academic | D73: 3,021 | E73: 311 | F73: 2,710 | G73: =71+71 -> 142 | H73: 36 | I73: =63/2 -> 32 | J73: 85 | K73: =5+5 -> 10 | L73: 75 | M73: 33 | N73: =2+2 -> 4 | O73: 29 | P73: 132 | Q73: 0
A74: Social Science Educ. & Health | B74: UMES | C74: Academic | D74: 254,859 | E74: 26,244 | F74: =D74-E74 -> 228,615 | G74: =5960+5960 -> 11,920 | H74: 2,980 | I74: =5304/2 -> 2,652 | J74: 7,326 | K74: =407+407 -> 814 | L74: =J74-K74 -> 6,512 | M74: 2,858 | N74: =159+159 -> 318 | O74: =M74-N74 -> 2,540 | P74: 11,096 | Q74: 0
A75: Facilities Renewal Projects | B75: UMES | C75: Academic | D75: 20,511 | E75: 2,112 | F75: 18,399 | G75: =480+480 -> 960 | H75: 240 | I75: =427/2 -> 214 | J75: 587 | K75: =33+33 -> 66 | L75: 521 | M75: 228 | N75: =13+13 -> 26 | O75: 202 | P75: 894 | Q75: 0
A76: Henson Center roof | B76: UMES | C76: Academic | D76: 23,251 | E76: 2,394 | F76: 20,857 | G76: =544+544 -> 1,088 | H76: 272 | I76: =484/2 -> 242 | J76: 670 | K76: =37+37 -> 74 | L76: 596 | M76: 255 | N76: =15+15 -> 30 | O76: 225 | P76: 1,014 | Q76: 0
A77: Equip Information Technology | B77: UMBC | C77: Academic | D77: 505,624 | E77: 52,066 | F77: 453,558 | G77: =11825+11825 -> 23,650 | H77: 5,913 | I77: =10524/2 -> 5,262 | J77: 14,529 | K77: =808+808 -> 1,616 | L77: 12,913 | M77: 5,675 | N77: =315+315 -> 630 | O77: 5,045 | P77: 22,014 | Q77: 0
A78: Facilities Renewal Projects | B78: UMBC | C78: Academic | D78: 315,533 | E78: 32,491 | F78: 283,042 | G78: =7379+7379 -> 14,758 | H78: 3,690 | I78: =6567/2 -> 3,284 | J78: 9,069 | K78: =504+504 -> 1,008 | L78: 8,061 | M78: 3,537 | N78: =197+197 -> 394 | O78: 3,143 | P78: 13,738 | Q78: 0
A79: Emergency - Bio Sciences | B79: UMBC | C79: Academic | D79: 9,971 | E79: 1,027 | F79: 8,944 | G79: =233+233 -> 466 | H79: 117 | I79: =208/2 -> 104 | J79: 286 | K79: =16+16 -> 32 | L79: 254 | M79: 114 | N79: =6+6 -> 12 | O79: 102 | P79: 434 | Q79: 0
A80: Aquaculture Building | B80: UMCES | C80: Academic | D80: 43,194 | E80: 4,448 | F80: 38,746 | G80: =1010+1010 -> 2,020 | H80: 505 | I80: =899/2 -> 450 | J80: 1,241 | K80: =69+69 -> 138 | L80: 1,103 | M80: 484 | N80: =27+27 -> 54 | O80: 430 | P80: 1,881 | Q80: 0
A81: Facilities Renewal Projects | B81: UMCES | C81: Academic | D81: 57,192 | E81: 5,889 | F81: 51,303 | G81: =1338+1338 -> 2,676 | H81: 669 | I81: =1190/2 -> 595 | J81: 1,648 | K81: =91+91 -> 182 | L81: 1,466 | M81: 637 | N81: =36+36 -> 72 | O81: 565 | P81: 2,492 | Q81: 0
A82: Facilities Renewal Projects | B82: BSU | C82: Academic | D82: 342,327 | E82: 35,251 | F82: 307,076 | G82: =8006+8006 -> 16,012 | H82: 4,003 | I82: =7125/2 -> 3,563 | J82: 9,837 | K82: =547+547 -> 1,094 | L82: 8,743 | M82: 3,846 | N82: =213+213 -> 426 | O82: 3,420 | P82: 14,904 | Q82: 0
A83: Emergency Misc. Projects | B83: BSU | C83: Academic | D83: 85,913 | E83: 8,847 | F83: 77,066 | G83: =2009+2009 -> 4,018 | H83: 1,005 | I83: =1788/2 -> 894 | J83: 2,472 | K83: =137+137 -> 274 | L83: 2,198 | M83: 959 | N83: =54+54 -> 108 | O83: 851 | P83: 3,742 | Q83: 0
A84: Facilities Renewal Projects | B84: CSC | C84: Academic | D84: 227,804 | E84: 23,458 | F84: 204,346 | G84: =5328+5328 -> 10,656 | H84: 2,664 | I84: =4741/2 -> 2,371 | J84: 6,546 | K84: =364+364 -> 728 | L84: 5,818 | M84: 2,556 | N84: =142+142 -> 284 | O84: 2,272 | P84: 9,919 | Q84: 0
A85: Emergency Light Poles | B85: CSC | C85: Academic | D85: 4,490 | E85: 462 | F85: 4,028 | G85: =105+105 -> 210 | H85: 53 | I85: =93/2 -> 47 | J85: 131 | K85: =7+7 -> 14 | L85: 117 | M85: 48 | N85: =3+3 -> 6 | O85: 42 | P85: 196 | Q85: 0
A86: Facilities Renewal Projects | B86: FSU | C86: Academic | D86: 134,752 | E86: 13,876 | F86: 120,876 | G86: =3151+3151 -> 6,302 | H86: 1,576 | I86: =2805/2 -> 1,403 | J86: 3,876 | K86: =215+215 -> 430 | L86: 3,446 | M86: 1,512 | N86: =84+84 -> 168 | O86: 1,344 | P86: 5,867 | Q86: 0
A87: Facilities Renewal Projects | B87: SU | C87: Academic | D87: 361,880 | E87: 37,264 | F87: 324,616 | G87: =8463+8463 -> 16,926 | H87: 4,232 | I87: =7532/2 -> 3,766 | J87: 10,402 | K87: =578+578 -> 1,156 | L87: 9,246 | M87: 4,055 | N87: =226+226 -> 452 | O87: 3,603 | P87: 15,757 | Q87: 0
A88: Emergency Misc. Projects | B88: SU | C88: Academic | D88: 139,125 | E88: 14,326 | F88: 124,799 | G88: =3254+3254 -> 6,508 | H88: 1,627 | I88: =2896/2 -> 1,448 | J88: 4,002 | K88: =222+222 -> 444 | L88: 3,558 | M88: 1,558 | N88: =87+87 -> 174 | O88: 1,384 | P88: 6,059 | Q88: 0
A89: Facilities Renewal Projects | B89: TU | C89: Academic | D89: 984,074 | E89: 101,334 | F89: 882,740 | G89: =23015+23015 -> 46,030 | H89: 11,508 | I89: =20481/2 -> 10,241 | J89: 28,284 | K89: =1572+1572 -> 3,144 | L89: 25,140 | M89: 11,047 | N89: =613+613 -> 1,226 | O89: 9,821 | P89: 42,845 | Q89: 0
A90: 7800 York Road renovation | B90: TU | C90: Academic | D90: 333,306 | E90: 34,322 | F90: 298,984 | G90: =7795+7795 -> 15,590 | H90: 3,898 | I90: =6937/2 -> 3,469 | J90: 9,585 | K90: =532+532 -> 1,064 | L90: 8,521 | M90: 3,737 | N90: =208+208 -> 416 | O90: 3,321 | P90: 14,513 | Q90: 0
A91: Emergency Utility | B91: TU | C91: Academic | D91: 72,027 | E91: 7,417 | F91: 64,610 | G91: =1685+1685 -> 3,370 | H91: 843 | I91: =1499/2 -> 750 | J91: 2,071 | K91: =115+115 -> 230 | L91: 1,841 | M91: 807 | N91: =45+45 -> 90 | O91: 717 | P91: 3,137 | Q91: 0
A92: Facilities Renewal Projects | B92: UB | C92: Academic | D92: 189,946 | E92: 19,559 | F92: 170,387 | G92: =4442+4442 -> 8,884 | H92: 2,221 | I92: =3953/2 -> 1,977 | J92: 5,464 | K92: =303+303 -> 606 | L92: 4,858 | M92: 2,136 | N92: =118+118 -> 236 | O92: 1,900 | P92: 8,270 | Q92: 0
A93: Shady Grove Road | B93: USM Office | C93: Academic | D93: 1,031 | E93: =107+2 -> 109 | F93: 922 | G93: =24+24 -> 48 | H93: 12 | I93: =22/2 -> 11 | J93: (0) | L93: (0) | M93: 0 | O93: 0 | P93: 47 | Q93: 0
D94: 0 | F94: =D94-E94 -> 0 | J94: 0 | L94: =J94-K94 -> 0 | M94: 0 | O94: =M94-N94 -> 0
A95: Unexpended proceeds | F95: =D95-E95 -> 0 | J95: 0 | L95: =J95-K95 -> 0 | O95: =M95-N95 -> 0
A97: Totals | D97: =SUM(D9:D95) -> 75,290,000 | E97: 5,160,000 | F97: 70,130,000 | G97: 3,506,020 | H97: 876,505 | I97: 812,005 | J97: 2,084,325 | K97: 252,032 | L97: 1,832,293 | M97: 1,184,517 | N97: 151,376 | O97: 1,033,141 | P97: 3,340,864 | Q97: 0
Q100: =SUM(Q33:Q93) -> 0
A102: Academic Projects
B104: UMB | D104: =D24+D63+D64+D65+D66+D67+D68 -> 2,964,761 | E104: 303,035 | F104: 2,661,726 | G104: 138,660 | H104: 34,665 | I104: 30,877 | J104: =J24+J63+J64+J65+J66+J67+J68 -> 85,154 | K104: 9,480 | L104: 75,674 | M104: 33,550 | N104: 3,748 | O104: 29,802 | P104: 129,140 | Q104: 0
B105: UMCP | D105: =D69+D70+D71+D72 -> 1,837,271 | E105: =E69+E70+E71+E72 -> 189,190 | F105: 1,648,081 | G105: 85,936 | H105: 21,484 | I105: 19,120 | J105: =J69+J70+J71+J72 -> 52,804 | K105: 5,870 | L105: 46,934 | M105: 20,618 | N105: 2,290 | O105: 18,328 | P105: 79,992 | Q105: 0
B106: BSU | D106: =D82+D83 -> 428,240 | E106: =E82+E83 -> 44,098 | F106: 384,142 | G106: 20,030 | H106: 5,008 | I106: 4,457 | J106: =J82+J83 -> 12,309 | K106: 1,368 | L106: 10,941 | M106: 4,804 | N106: 534 | O106: 4,270 | P106: 18,645 | Q106: 0
B107: TU | D107: =D89+D90+D91 -> 1,389,407 | E107: =E89+E90+E91 -> 143,073 | F107: 1,246,334 | G107: 64,990 | H107: 16,248 | I107: 14,459 | J107: =J89+J90+J91 -> 39,939 | K107: 4,438 | L107: 35,501 | M107: 15,591 | N107: 1,732 | O107: 13,859 | P107: 60,495 | Q107: 0
B108: UMES | D108: =D73+D74+D75+D76 -> 301,642 | E108: =E73+E74+E75+E76 -> 31,061 | F108: 270,581 | G108: 14,110 | H108: 3,528 | I108: 3,139 | J108: =J73+J74+J75+J76 -> 8,668 | K108: 964 | L108: 7,704 | M108: 3,373 | N108: 378 | O108: 2,995 | P108: 13,136 | Q108: 0
B109: FSU | D109: =D86 -> 134,752 | E109: =E86 -> 13,876 | F109: 120,876 | G109: 6,302 | H109: 1,576 | I109: 1,403 | J109: =J86 -> 3,876 | K109: 430 | L109: 3,446 | M109: 1,512 | N109: 168 | O109: 1,344 | P109: 5,867 | Q109: 0
B110: CSC | D110: =D84+D85 -> 232,294 | E110: =E84+E85 -> 23,920 | F110: 208,374 | G110: 10,866 | H110: 2,717 | I110: 2,417 | J110: =J84+J85 -> 6,677 | K110: 742 | L110: 5,935 | M110: 2,604 | N110: 290 | O110: 2,314 | P110: 10,115 | Q110: 0
B111: UB | D111: =D92 -> 189,946 | E111: =E92 -> 19,559 | F111: 170,387 | G111: 8,884 | H111: 2,221 | I111: 1,977 | J111: =J92 -> 5,464 | K111: 606 | L111: 4,858 | M111: 2,136 | N111: 236 | O111: 1,900 | P111: 8,270 | Q111: 0
B112: SU | D112: =D87+D88 -> 501,005 | E112: =E87+E88 -> 51,590 | F112: 449,415 | G112: 23,434 | H112: 5,859 | I112: 5,214 | J112: =J87+J88 -> 14,403 | K112: 1,600 | L112: 12,803 | M112: 5,613 | N112: 626 | O112: 4,987 | P112: 21,816 | Q112: 0
B113: UMUC
B114: UMBC | D114: =D77+D78+D79 -> 831,128 | E114: =E77+E78+E79 -> 85,584 | F114: 745,544 | G114: 38,874 | H114: 9,719 | I114: 8,650 | J114: =J77+J78+J79 -> 23,884 | K114: 2,656 | L114: 21,228 | M114: 9,327 | N114: 1,036 | O114: 8,291 | P114: 36,185 | Q114: 0
B115: UMCES | D115: =D23+D80+D81 -> 149,499 | E115: 10,337 | F115: 139,162 | G115: 6,962 | H115: 1,741 | I115: 1,611 | J115: =J23+J80+J81 -> 4,142 | K115: 500 | L115: 3,642 | M115: 2,331 | N115: 300 | O115: 2,031 | P115: 6,633 | Q115: 0
B116: USM Office | D116: =D93 -> 1,031 | E116: =E93 -> 109 | F116: 922 | G116: 48 | H116: 12 | I116: 11 | J116: =J93 -> (0) | K116: 0 | L116: (0) | M116: 0 | N116: 0 | O116: 0 | P116: 47 | Q116: 0
A118: Total Academic Projects | D118: =SUM(D104:D117) -> 8,960,976 | E118: 915,432 | F118: 8,045,544 | G118: 419,096 | H118: 104,774 | I118: 93,332 | J118: =SUM(J104:J117) -> 257,321 | K118: 28,654 | L118: 228,667 | M118: 101,460 | N118: 11,338 | O118: 90,122 | P118: 390,338 | Q118: 0
A120: Auxiliary Projects
B122: UMB | D122: =D25+D33+D34+D35+D36+D37 -> 7,382,992 | E122: 754,092 | F122: 6,628,900 | G122: 345,298 | H122: 86,325 | I122: 76,899 | J122: =J25+J33+J34+J35+J36+J37 -> 212,038 | K122: 23,610 | L122: 188,428 | M122: 83,629 | N122: 9,344 | O122: 74,285 | P122: 321,606
B123: UMCP | D123: =D9+D10+D11+D12+D13+D14+D38+D39+D40+D41+D42+D43+D44 -> 26,041,998 | E123: 1,399,103 | F123: 24,642,895 | G123: 1,210,372 | H123: 302,593 | I123: 285,104 | J123: =J9+J10+J11+J12+J13+J14+J38+J39+J40+J41+J42+J43+J44 -> 709,079 | K123: 88,894 | L123: 620,185 | M123: 460,284 | N123: 60,910 | O123: 399,374 | P123: 1,164,899
B124: BSU
B125: TU | D125: =D15+D16+D30+D45+D46+D47+D48+D49+D50+D51 -> 13,026,080 | E125: 1,192,417 | F125: 11,833,663 | G125: 608,392 | H125: 152,098 | I125: 137,192 | J125: =J15+J16+J30+J45+J46+J47+J48+J49+J50+J51 -> 369,853 | K125: 42,268 | L125: 327,585 | M125: 165,671 | N125: 19,542 | O125: 146,129 | P125: 570,760 | Q125: 0
B126: UMES | D126: =D17+D18+D26+D52+D53+D54 -> 5,173,922 | E126: 199,122 | F126: 4,974,800 | G126: 239,996 | H126: 59,999 | I126: 57,510 | J126: =J17+J18+J26+J52+J53+J54 -> 138,461 | K126: 18,010 | L126: 120,451 | M126: 101,780 | N126: 13,850 | O126: 87,930 | P126: 233,347 | Q126: 0
B127: FSU | D127: =D19 -> 72,335 | E127: 0 | F127: 72,335 | G127: 3,338 | H127: 835 | I127: 835 | J127: =J19 -> 1,851 | K127: 264 | L127: 1,587 | M127: 1,784 | N127: 256 | O127: 1,528 | P127: 3,330 | Q127: 0
B128: CSC | D128: =D20+D55+D56 -> 3,057,446 | E128: 192,716 | F128: 2,864,730 | G128: 142,276 | H128: 35,569 | I128: 33,160 | J128: =J20+J55+J56 -> 84,125 | K128: 10,310 | L128: 73,815 | M128: 50,298 | N128: 6,522 | O128: 43,776 | P128: 136,079 | Q128: 0
B129: UB | D129: =D57 -> 90,324 | E129: 9,301 | F129: 81,023 | G129: 4,224 | H129: 1,056 | I129: 940 | J129: =J57 -> 2,599 | K129: 288 | L129: 2,311 | M129: 1,017 | N129: 112 | O129: 905 | P129: 3,932 | Q129: 0
B130: SU
B131: UMUC
B132: UMBC | D132: =D21+D22+D59+D60+D61+D62+D27 -> 8,269,648 | E132: 185,430 | F132: 8,084,218 | G132: 382,794 | H132: 95,699 | I132: 93,381 | J132: =J21+J22+J59+J60+J61+J62+J27 -> 217,176 | K132: 29,384 | L132: 187,792 | M132: 180,093 | N132: 25,082 | O132: 155,011 | P132: 376,174
B133: UMCES | D133: =D29 -> 5,064 | E133: 0 | F133: 5,064 | G133: 234 | H133: 59 | I133: 59 | J133: =J29 -> 132 | K133: 18 | L133: 114 | M133: 124 | N133: 18 | O133: 106 | P133: 234 | Q133: 0
B134: USM Office | D134: =D28+D58 -> 3,209,215 | E134: 312,387 | F134: 2,896,828 | G134: 150,000 | H134: 37,500 | I134: 33,595 | J134: =J28+J58 -> 91,689 | K134: 10,332 | L134: 81,357 | M134: 38,376 | N134: 4,402 | O134: 33,974 | P134: 140,165 | Q134: 0
A136: Total Auxiliary Projects | D136: =SUM(D122:D135) -> 66,329,024 | E136: 4,244,568 | F136: 62,084,456 | G136: 3,086,924 | H136: 771,731 | I136: 718,673 | J136: =SUM(J122:J135) -> 1,827,004 | K136: 223,378 | L136: 1,603,626 | M136: 1,083,057 | N136: 140,038 | O136: 943,019 | P136: 2,950,526
A139: Total Projects
B141: UMB | D141: =D104+D122 -> 10,347,753 | E141: =E104+E122 -> 1,057,127 | F141: 9,290,626 | G141: 483,958 | H141: 120,990 | I141: 107,776 | J141: 297,192 | K141: 33,090 | L141: 264,102 | M141: 117,179 | N141: 13,092 | O141: 104,087 | P141: 450,746
B142: UMCP | D142: =D105+D123 -> 27,879,269 | E142: 1,588,293 | F142: 26,290,976 | G142: 1,296,308 | H142: 324,077 | I142: 304,223 | J142: 761,883 | K142: 94,764 | L142: 667,119 | M142: 480,902 | N142: 63,200 | O142: 417,702 | P142: 1,244,890
B143: BSU | D143: 428,240 | E143: 44,098 | F143: 384,142 | G143: 20,030 | H143: 5,008 | I143: 4,457 | J143: 12,309 | K143: 1,368 | L143: 10,941 | M143: 4,804 | N143: 534 | O143: 4,270 | P143: 18,645 | Q143: 0
B144: TU | D144: 14,415,487 | E144: 1,335,490 | F144: 13,079,997 | G144: 673,382 | H144: 168,346 | I144: 151,651 | J144: 409,792 | K144: 46,706 | L144: 363,086 | M144: 181,262 | N144: 21,274 | O144: 159,988 | P144: 631,255 | Q144: 0
B145: UMES | D145: 5,475,564 | E145: 230,183 | F145: 5,245,381 | G145: 254,106 | H145: 63,527 | I145: 60,649 | J145: 147,129 | K145: 18,974 | L145: 128,155 | M145: 105,153 | N145: 14,228 | O145: 90,925 | P145: 246,483 | Q145: 0
B146: FSU | D146: 207,087 | E146: 13,876 | F146: 193,211 | G146: 9,640 | H146: 2,410 | I146: 2,237 | J146: 5,727 | K146: 694 | L146: 5,033 | M146: 3,296 | N146: 424 | O146: 2,872 | P146: 9,197 | Q146: 0
B147: CSC | D147: 3,289,740 | E147: 216,636 | F147: 3,073,104 | G147: 153,142 | H147: 38,286 | I147: 35,577 | J147: 90,802 | K147: 11,052 | L147: 79,750 | M147: 52,902 | N147: 6,812 | O147: 46,090 | P147: 146,194 | Q147: 0
B148: UB | D148: 280,270 | E148: 28,860 | F148: 251,410 | G148: 13,108 | H148: 3,277 | I148: 2,917 | J148: 8,064 | K148: 894 | L148: 7,170 | M148: 3,153 | N148: 348 | O148: 2,805 | P148: 12,202 | Q148: 0
B149: SU | D149: 501,005 | E149: 51,590 | F149: 449,415 | G149: 23,434 | H149: 5,859 | I149: 5,214 | J149: 14,403 | K149: 1,600 | L149: 12,803 | M149: 5,613 | N149: 626 | O149: 4,987 | P149: 21,816 | Q149: 0
B150: UMUC | D150: 0 | E150: 0 | F150: 0 | G150: 0 | H150: 0 | I150: 0 | J150: 0 | K150: 0 | L150: 0 | M150: 0 | N150: 0 | O150: 0 | P150: 0 | Q150: 0
B151: UMBC | D151: 9,100,776 | E151: 271,014 | F151: 8,829,762 | G151: 421,668 | H151: 105,417 | I151: 102,030 | J151: 241,060 | K151: 32,040 | L151: 209,020 | M151: 189,419 | N151: 26,118 | O151: 163,301 | P151: 412,359
B152: UMCES | D152: 154,563 | E152: 10,337 | F152: 144,226 | G152: 7,196 | H152: 1,799 | I152: 1,670 | J152: 4,274 | K152: 518 | L152: 3,756 | M152: 2,456 | N152: 318 | O152: 2,138 | P152: 6,867 | Q152: 0
B153: USM Office | D153: =D116+D134 -> 3,210,246 | E153: 312,496 | F153: 2,897,750 | G153: 150,048 | H153: 37,512 | I153: 33,606 | J153: 91,689 | K153: 10,332 | L153: 81,357 | M153: 38,376 | N153: 4,402 | O153: 33,974 | P153: 140,212 | Q153: 0
A155: Total Projects | D155: =SUM(D141:D154) -> 75,290,000 | E155: 5,160,000 | F155: 70,130,000 | G155: 3,506,020 | H155: 876,505 | I155: 812,005 | J155: 2,084,325 | K155: 252,032 | L155: 1,832,293 | M155: 1,184,517 | N155: 151,376 | O155: 1,033,141 | P155: 3,340,864

Sheet 08AB
A1: University System of Maryland
A2: Allocation of accrued interest payable, unamortized discount/Premium - 2008 Series A & B
A3: As of FYE 6/30/2015
H5: Interest | I5: Allocated | J5: Allocated | K5: Allocated | N5: =J5 -> Allocated | O5: Allocated | Q5: =N5 -> Allocated
H6: Expense | I6: Accrued Interest | J6: Accrued Interest | K6: Unamortized | M6: FY 2015 | N6: Unamortized | O6: Unamortized | P6: =M6 -> FY 2015 | Q6: Unamortized | R6: =M6 -> FY 2015 | S6: =R6 -> FY 2015
D7: Long-term debt | E7: Refinanced on | F7: Principal paid | G7: Long-term debt | H7: Paid | I7: Payable | J7: Payable | K7: Premium | L7: Refinanced on | M7: Premium | N7: =M7 -> Premium | O7: Loss on Refunding | P7: Loss on Refunding | Q7: =P7 -> Loss on Refunding | R7: Interest | S7: Interest
A8: Institution | B8: Project | C8: Type | D8: as of 6/30/2014 | E8: 2015A | F8: FYE 6/30/2015 | G8: as of 6/30/2015 | H8: =F8 -> FYE 6/30/2015 | I8: =D8 -> as of 6/30/2014 | J8: =G8 -> as of 6/30/2015 | K8: =D8 -> as of 6/30/2014 | L8: 2015A | M8: Amortization | N8: =J8 -> as of 6/30/2015 | O8: =K8 -> as of 6/30/2014 | P8: Amortization | Q8: =N8 -> as of 6/30/2015 | R8: Expense | S8: Cap
B9: 98 Series A
A10: UMBC | B10: Library '92 A | C10: Acad | G10: =D10-F10 -> 0 | N10: =K10-M10 -> 0 | Q10: =O10-P10 -> 0 | R10: =H10-I10+J10-M10+P10 -> 0
A11: CEES | B11: Geochem '92 A | C11: Acad | G11: =D11-F11 -> 0 | N11: =K11-M11 -> 0 | Q11: =O11-P11 -> 0 | R11: 0
A12: UMCP | B12: Computer & Space Sciences '92 A | C12: Acad | G12: 0 | N12: 0 | Q12: 0 | R12: 0
A13: UMCP | B13: Football team Bldg '92 A | C13: Aux | G13: 0 | N13: 0 | Q13: 0 | R13: 0
A14: UMCP | B14: Physical Sciences '92 A | C14: Aux | G14: 0 | N14: 0 | Q14: 0 | R14: 0
A15: SSU | B15: COP's '92 A | C15: Aux | G15: 0 | N15: 0 | Q15: 0 | R15: 0
A16: UMBC | B16: Field House '92 A | C16: Aux | G16: 0 | N16: 0 | Q16: 0 | R16: 0
A17: CSC | B17: Residence Hall '92 A | C17: Aux | G17: 0 | N17: 0 | Q17: 0 | R17: 0
A18: UMES | B18: Residence Hall '92 A | C18: Aux | G18: 0 | N18: 0 | Q18: 0 | R18: 0
A19: BSU | B19: Residence Hall '92 A | C19: Aux | G19: 0 | N19: 0 | Q19: 0 | R19: 0
A20: UMCP | B20: Child Care Facility '92 A | C20: Aux | G20: 0 | N20: 0 | Q20: 0 | R20: 0
A21: UMCP | B21: Fraternity House '92 A | C21: Aux | G21: 0 | N21: 0 | Q21: 0 | R21: 0
A22: UB | B22: Parking structure '92 A | C22: Aux | G22: 0 | N22: 0 | Q22: 0 | R22: 0
A23: TU | B23: York Road '92 A | C23: Aux | G23: 0 | N23: 0 | Q23: 0 | R23: 0
A24: UMCP | B24: Track & Field '92 A | C24: Aux | G24: 0 | N24: 0 | Q24: 0 | R24: 0
A25: USMH | B25: Project X 92A | C25: Aux | G25: 0 | N25: 0 | Q25: 0 | R25: 0
A26: UMCP | B26: Physical Sciences '92 B | C26: Aux | G26: 0 | N26: 0 | O26: 0 | Q26: 0 | R26: 0
A27: TU | B27: Dorm refinancings '92 B | C27: Aux | G27: 0 | N27: 0 | O27: 0 | Q27: 0 | R27: 0
A28: UMCP | B28: COP's | C28: Aux | D28: 0 | G28: 0 | K28: 0 | N28: 0 | O28: 0 | Q28: =O28-P28 -> 0
R29: =H29+J29-I29+M29 -> 0
B31: 98 Series A total | D31: =SUM(D10:D29) -> 0 | F31: 0 | G31: 0 | H31: 0 | I31: =SUM(I10:I29) -> 0 | J31: 0 | K31: 0 | M31: 0 | N31: 0 | O31: 0 | P31: 0 | Q31: 0 | R31: 0 | S31: 0
B33: 99 Series A
D34: .
A35: UMB | B35: Facilities Renewal | C35: Acad | D35: 322,890 | F35: 289 | G35: =D35-F35-E35 -> 322,601 | H35: =6259+6254 -> 12,513 | I35: 3,130 | J35: =6254/2 -> 3,127 | K35: 2,953 | M35: =591+591 -> 1,182 | N35: =K35-M35-L35 -> 1,771 | O35: 5,410 | P35: =1082+1082 -> 2,164 | Q35: =O35-P35 -> 3,246 | R35: =H35-I35+J35-M35+P35 -> 13,493
A36: UMB | B36: School of Nursing Equipment | C36: Acad | D36: 10,636 | F36: 10 | G36: =D36-F36-E36 -> 10,626 | H36: =206+206 -> 412 | I36: 103 | J36: =206/2 -> 103 | K36: 103 | M36: =19+19 -> 38 | N36: =K36-M36-L36 -> 65 | O36: 174 | P36: =36+36 -> 72 | Q36: 102 | R36: 446
A37: UMB | B37: Health Sciences Library | C37: Acad | D37: 6,203 | F37: 6 | G37: 6,197 | H37: =120+120 -> 240 | I37: 60 | J37: =120/2 -> 60 | K37: 61 | M37: =11+11 -> 22 | N37: 39 | O37: 101 | P37: =21+21 -> 42 | Q37: 59 | R37: 260
A38: UMB | B38: Lane Hall and Marshall Library | C38: Acad | D38: 83,789 | F38: 75 | G38: 83,714 | H38: =1624+1623 -> 3,247 | I38: 812 | J38: =1623/2 -> 812 | K38: 771 | M38: =153+153 -> 306 | N38: 465 | O38: 1,401 | P38: =281+281 -> 562 | Q38: 839 | R38: 3,503
A39: UMB | B39: School of Law: Marshall Libr. Expan | C39: Acad | D39: 145,565 | F39: 130 | G39: 145,435 | H39: =2822+2820 -> 5,642 | I39: 1,411 | J39: =2820/2 -> 1,410 | K39: 1,337 | M39: =266+266 -> 532 | N39: 805 | O39: 2,436 | P39: =488+488 -> 976 | Q39: 1,460 | R39: 6,085
A40: UMB | B40: Health Sciences Library - equip | C40: Acad | D40: 34,552 | F40: 31 | G40: 34,521 | H40: =670+669 -> 1,339 | I40: 335 | J40: =669/2 -> 335 | K40: 319 | M40: =63+63 -> 126 | N40: 193 | O40: 576 | P40: =116+116 -> 232 | Q40: 344 | R40: 1,445
A41: UMB | B41: Pascault Row renovation | C41: Auxil | D41: 87,322 | F41: 78 | G41: 87,244 | H41: =1693+1691 -> 3,384 | I41: 847 | J41: =1691/2 -> 846 | K41: 797 | M41: =160+160 -> 320 | N41: 477 | O41: 1,458 | P41: =293+293 -> 586 | Q41: 872 | R41: 3,649
A42: UMCP | B42: Facilities Renewal | C42: Acad | D42: 536,855 | F42: 480 | G42: 536,375 | H42: =10407+10399 -> 20,806 | I42: 5,204 | J42: =10399/2 -> 5,200 | K42: 4,918 | M42: =982+982 -> 1,964 | N42: 2,954 | O42: 8,994 | P42: =1799+1799 -> 3,598 | Q42: 5,396 | R42: 22,436
A43: UMCP | B43: Construct Steam Improvements | C43: Acad | D43: 67,130 | F43: 60 | G43: 67,070 | H43: =1301+1300 -> 2,601 | I43: 651 | J43: =1300/2 -> 650 | K43: 612 | M43: =123+123 -> 246 | N43: 366 | O43: 1,124 | P43: =225+225 -> 450 | Q43: 674 | R43: 2,805
A44: UMCP | B44: Technology Advancement Facility | C44: Acad | D44: 3,018 | F44: 3 | G44: 3,015 | H44: =58+58 -> 116 | I44: 29 | J44: =58/2 -> 29 | K44: 22 | M44: =6+6 -> 12 | N44: 10 | O44: 52 | P44: =10+10 -> 20 | Q44: 32 | R44: 124
A45: UMCP | B45: Performing Arts Center | C45: Acad | D45: 3,012,048 | F45: 2,694 | G45: 3,009,354 | H45: =58390+58343 -> 116,733 | I45: 29,195 | J45: =58343/2 -> 29,172 | K45: 27,561 | M45: =5512+5512 -> 11,024 | N45: 16,537 | O45: 50,467 | P45: =10093+10093 -> 20,186 | Q45: 30,281 | R45: 125,872
A46: UMCP | B46: Renovate Hornbake and Mckeldin | C46: Acad | D46: 20,359 | F46: 18 | G46: 20,341 | H46: =395+394 -> 789 | I46: 198 | J46: =394/2 -> 197 | K46: 189 | M46: =37+37 -> 74 | N46: 115 | O46: 344 | P46: =68+68 -> 136 | Q46: 208 | R46: 851
A47: UMCP | B47: Symons Hall Renovations | C47: Acad | D47: 119,838 | F47: 107 | G47: 119,731 | H47: =2323+2321 -> 4,644 | I47: 1,162 | J47: =2321/2 -> 1,161 | K47: 1,100 | M47: =219+219 -> 438 | N47: 662 | O47: 2,003 | P47: =402+402 -> 804 | Q47: 1,199 | R47: 5,009
A48: UMCP | B48: Renovate Key and Taliafero | C48: Acad | D48: 77 | G48: 77 | H48: 2 | K48: 0 | N48: 0 | O48: 0 | Q48: 0 | R48: 2
A49: UMCP | B49: Ritchie renovation | C49: Auxil | D49: 836 | F49: 1 | G49: 835 | H49: =16+16 -> 32 | I49: 8 | J49: =16/2 -> 8 | K49: 2 | M49: =2 -> 2 | N49: (0) | O49: 12 | P49: =3+3 -> 6 | Q49: 6 | R49: 36
A50: UMCP | B50: Stamp Union renovation | C50: Auxil | D50: 888,566 | F50: 795 | G50: 887,771 | H50: =17225+17211 -> 34,436 | I50: 8,613 | J50: =17211/2 -> 8,606 | K50: 8,131 | M50: =1626+1626 -> 3,252 | N50: 4,879 | O50: 14,893 | P50: =2977+2977 -> 5,954 | Q50: 8,939 | R50: 37,131
A51: UMCP | B51: SCUB 3 Planning and Construcion | C51: Auxil | D51: 352,339 | F51: 315 | G51: 352,024 | H51: =6830+6825 -> 13,655 | I51: 3,415 | J51: =6825/2 -> 3,413 | K51: 3,221 | M51: =645+645 -> 1,290 | N51: 1,931 | O51: 5,899 | P51: =1181+1181 -> 2,362 | Q51: 3,537 | R51: 14,725
A52: UMCP | B52: Somerset hall Renovation | C52: Auxil | D52: 195,479 | F52: 175 | G52: 195,304 | H52: =3790+3786 -> 7,576 | I52: 1,895 | J52: =3786/2 -> 1,893 | K52: 1,785 | M52: =358+358 -> 716 | N52: 1,069 | O52: 3,276 | P52: =655+655 -> 1,310 | Q52: 1,966 | R52: 8,168
A53: UMCP | B53: Golf Course Clubhouse | C53: Auxil | D53: 16,288 | F53: 15 | G53: 16,273 | H53: =316+316 -> 632 | I53: 158 | J53: =316/2 -> 158 | K53: 147 | M53: =30+30 -> 60 | N53: 87 | O53: 268 | P53: =55+55 -> 110 | Q53: 158 | R53: 682
A54: UMCP | B54: Parking Garage III | C54: Auxil | D54: 4,048 | F54: 4 | G54: 4,044 | H54: =78+78 -> 156 | I54: 39 | J54: =78/2 -> 39 | K54: 42 | M54: =7+7 -> 14 | N54: 28 | O54: 63 | P54: =14+14 -> 28 | Q54: 35 | R54: 170
A55: UMCP | B55: South Campus Garage | C55: Auxil | D55: 31,531 | F55: 28 | G55: 31,503 | H55: =611+611 -> 1,222 | I55: 306 | J55: =611/2 -> 306 | K55: 285 | M55: =58+58 -> 116 | N55: 169 | O55: 524 | P55: =106+106 -> 212 | Q55: 312 | R55: 1,318
A56: UMCP | B56: Frat row - Renovation PH V | C56: Auxil | D56: 417 | G56: 417 | H56: =8+8 -> 16 | I56: 4 | J56: =8/2 -> 4 | K56: (0) | N56: (0) | O56: (0) | Q56: (0) | R56: 16
A57: UMCP | B57: Health & Human Performance | C57: Auxil | D57: 6,786 | F57: 6 | G57: 6,780 | H57: =132+131 -> 263 | I57: 66 | J57: =131/2 -> 66 | K57: 67 | M57: =12+12 -> 24 | N57: 43 | O57: 111 | P57: =23+23 -> 46 | Q57: 65 | R57: 285
A58: UMCP | B58: Track & Field | C58: Auxil | D58: 75 | G58: 75 | H58: 2 | K58: 0 | N58: 0 | O58: 0 | Q58: 0 | R58: 2
A59: BSU | B59: Facilities Renewal | C59: Acad | D59: 27,168 | F59: 24 | G59: 27,144 | H59: =527+526 -> 1,053 | I59: 264 | J59: =526/2 -> 263 | K59: 245 | M59: =50+50 -> 100 | N59: 145 | O59: 456 | P59: =91+91 -> 182 | Q59: 274 | R59: 1,135
A60: TU | B60: Facilities Renewal | C60: Acad | D60: 122,083 | F60: 109 | G60: 121,974 | H60: =2367+2365 -> 4,732 | I60: 1,184 | J60: =2365/2 -> 1,183 | K60: 1,122 | M60: =223+223 -> 446 | N60: 676 | O60: 2,047 | P60: =409+409 -> 818 | Q60: 1,229 | R60: 5,103
A61: TU | B61: University Union Expansion East | C61: Auxil | D61: 124,223 | F61: 111 | G61: 124,112 | H61: =2408+2406 -> 4,814 | I61: 1,204 | J61: =2406/2 -> 1,203 | K61: 1,141 | M61: =227+227 -> 454 | N61: 687 | O61: 2,084 | P61: =416+416 -> 832 | Q61: 1,252 | R61: 5,191
A62: TU | B62: Richmond & Newell Hall Dining | C62: Auxil | D62: 2,349 | F62: 2 | G62: 2,347 | H62: =46+45 -> 91 | I62: 23 | J62: =45/2 -> 23 | K62: 25 | M62: =4+4 -> 8 | N62: 17 | O62: 38 | P62: =8+8 -> 16 | Q62: 22 | R62: 99
A63: UMES | B63: Facilities Renewal | C63: Acad | D63: 112,611 | F63: 101 | G63: 112,510 | H63: =2183+2181 -> 4,364 | I63: 1,092 | J63: =2181/2 -> 1,091 | K63: 1,031 | M63: =206+206 -> 412 | N63: 619 | O63: 1,891 | P63: =377+377 -> 754 | Q63: 1,137 | R63: 4,705
A64: UMES | B64: Student Services Building | C64: Auxil | D64: 2,024,164 | F64: 1,811 | G64: 2,022,353 | H64: =39240+39208 -> 78,448 | I64: 19,620 | J64: =39208/2 -> 19,604 | K64: 18,524 | M64: =3704+3704 -> 7,408 | N64: 11,116 | O64: 33,912 | P64: =6783+6783 -> 13,566 | Q64: 20,346 | R64: 84,590
A65: UMES | B65: New Residence hall | C65: Auxil | D65: 93,875 | F65: =84 -> 84 | G65: 93,791 | H65: =1820+1818 -> 3,638 | I65: 910 | J65: =1818/2 -> 909 | K65: 856 | M65: =172+172 -> 344 | N65: 512 | O65: 1,568 | P65: =315+315 -> 630 | Q65: 938 | R65: 3,923
A66: FSU | B66: Facilities Renewal | C66: Acad | D66: 193,167 | F66: 173 | G66: 192,994 | H66: =3745+3742 -> 7,487 | I66: 1,873 | J66: =3742/2 -> 1,871 | K66: 1,773 | M66: =353+353 -> 706 | N66: 1,067 | O66: 3,240 | P66: =647+647 -> 1,294 | Q66: 1,946 | R66: 8,074
A67: FSU | B67: Athletic facilities inprovements | C67: Auxil | D67: 59,114 | F67: 53 | G67: 59,061 | H67: =1146+1145 -> 2,291 | I67: 573 | J67: =1145/2 -> 573 | K67: 543 | M67: =108+108 -> 216 | N67: 327 | O67: 992 | P67: =198+198 -> 396 | Q67: 596 | R67: 2,471
A68: CSC | B68: Facilities Renewal | C68: Acad | D68: 87,518 | F68: 78 | G68: 87,440 | H68: =1697+1695 -> 3,392 | I68: 849 | J68: =1695/2 -> 848 | K68: 803 | M68: =160+160 -> 320 | N68: 483 | O68: 1,470 | P68: =293+293 -> 586 | Q68: 884 | R68: 3,657
A69: CSC | B69: New residence Hall/Dining | C69: Auxil | D69: 38,473 | F69: 34 | G69: 38,439 | H69: =746+745 -> 1,491 | I69: 373 | J69: =745/2 -> 373 | K69: 357 | M69: =70+70 -> 140 | N69: 217 | O69: 644 | P69: =129+129 -> 258 | Q69: 386 | R69: 1,609
A70: UB | B70: Facilities Renewal | C70: Acad | D70: 49,660 | F70: 44 | G70: 49,616 | H70: =963+962 -> 1,925 | I70: 482 | J70: =962/2 -> 481 | K70: 453 | M70: =91+91 -> 182 | N70: 271 | O70: 837 | P70: =166+166 -> 332 | Q70: 505 | R70: 2,075
A71: SSU | B71: Facilities Renewal | C71: Acad | D71: 23,726 | F71: 21 | G71: 23,705 | H71: =460+460 -> 920 | I71: 230 | J71: =460/2 -> 230 | K71: 222 | M71: =43+43 -> 86 | N71: 136 | O71: 392 | P71: =80+80 -> 160 | Q71: 232 | R71: 994
A72: UMBC | B72: Facilities Renewal | C72: Acad | D72: 279,954 | F72: 250 | G72: 279,704 | H72: =5427+5423 -> 10,850 | I72: 2,714 | J72: =5423/2 -> 2,712 | K72: 2,565 | M72: =512+512 -> 1,024 | N72: 1,541 | O72: 4,692 | P72: =938+938 -> 1,876 | Q72: 2,816 | R72: 11,700
A73: UMBC | B73: Biology Bldg renovation | C73: Acad | D73: 42,856 | F73: 38 | G73: 42,818 | H73: =831+830 -> 1,661 | I73: 416 | J73: =830/2 -> 415 | K73: 397 | M73: =78+78 -> 156 | N73: 241 | O73: 713 | P73: =144+144 -> 288 | Q73: 425 | R73: 1,793
A74: UMBC | B74: Power Plant Expansion | C74: Acad | D74: 475,286 | F74: 425 | G74: 474,861 | H74: =9214+9206 -> 18,420 | I74: 4,607 | J74: =9206/2 -> 4,603 | K74: 4,346 | M74: =870+870 -> 1,740 | N74: 2,606 | O74: 7,959 | P74: =1593+1593 -> 3,186 | Q74: 4,773 | R74: 19,862
A75: UMBC | B75: University Commons Center | C75: Auxil | D75: 754,673 | F75: 675 | G75: 753,998 | H75: =14630+14618 -> 29,248 | I75: 7,315 | J75: =14618/2 -> 7,309 | K75: 6,906 | M75: =1381+1381 -> 2,762 | N75: 4,144 | O75: 12,642 | P75: =2529+2529 -> 5,058 | Q75: 7,584 | R75: 31,538
A76: UMBC | B76: Parking Garage | C76: Auxil | D76: 430,580 | F76: 385 | G76: 430,195 | H76: =8347+8340 -> 16,687 | I76: 4,174 | J76: =8340/2 -> 4,170 | K76: 3,939 | M76: =788+788 -> 1,576 | N76: 2,363 | O76: 7,212 | P76: =1443+1443 -> 2,886 | Q76: 4,326 | R76: 17,994
A77: UMBC | B77: Field House | C77: Auxil | D77: 277,097 | F77: 248 | G77: 276,849 | H77: =5372+5367 -> 10,739 | I77: 2,686 | J77: =5367/2 -> 2,684 | K77: 2,537 | M77: =507+507 -> 1,014 | N77: 1,523 | O77: 4,637 | P77: =929+929 -> 1,858 | Q77: 2,779 | R77: 11,581
A78: USMH | B78: Emergency project | C78: Acad | D78: 99 | F78: 1 | G78: 98 | H78: =2+2 -> 4 | I78: 1 | J78: =2/2 -> 1 | K78: 0 | N78: 0 | O78: (0) | Q78: (0) | R78: 4
A79: USMH | B79: Transfer from UMUC | C79: Acad | D79: 5,470 | F79: 5 | G79: 5,465 | H79: =106+106 -> 212 | I79: 53 | J79: =106/2 -> 53 | K79: 50 | M79: =10+10 -> 20 | N79: 30 | O79: 96 | P79: =18+18 -> 36 | Q79: 60 | R79: 228
A80: CEES | B80: Facilities Renewal | C80: Acad | D80: 9,201 | F80: 8 | G80: 9,193 | H80: =178+178 -> 356 | I80: 89 | J80: =178/2 -> 89 | K80: 82 | M80: =17+17 -> 34 | N80: 48 | O80: 152 | P80: =31+31 -> 62 | Q80: =O80-P80 -> 90 | R80: 384
R81: =H81+J81-I81+M81 -> 0
B82: 99 Series A total | D82: =SUM(D35:D80) -> 11,179,994 | F82: 10,000 | G82: 11,169,994 | H82: 433,281 | I82: 108,365 | J82: 108,274 | K82: 102,341 | L82: 0 | M82: 40,906 | N82: 61,435 | O82: 187,256 | P82: 74,930 | Q82: 112,326 | R82: 467,215 | S82: 0
B85: New Money 2008 A
G86: =D86-F86 -> 0 | N86: =K86-M86 -> 0 | Q86: =O86-P86 -> 0
A87: UMB | B87: Facilities Renewal | C87: Acad | D87: 1,694,403 | E87: =D87-598031 -> 1,096,372 | F87: 87,928 | G87: =D87-F87-E87 -> 510,103 | H87: =39395+39395 -> 78,790 | I87: 19,698 | J87: =12192/2 -> 6,096 | K87: 38,642 | L87: =K87-14531 -> 24,111 | M87: =1380+1196 -> 2,576 | N87: =K87-M87-L87 -> 11,955 | Q87: 0 | R87: =H87-I87+J87-M87+P87 -> 62,613
A88: UMB | B88: Pharmacy Hall Additions | C88: Acad | D88: 49,026 | E88: =D88-17303 -> 31,723 | F88: 2,544 | G88: 14,759 | H88: =1140+1140 -> 2,280 | I88: 570 | J88: =353/2 -> 177 | K88: 1,117 | L88: =K88-420 -> 697 | M88: =40+35 -> 75 | N88: 345 | Q88: 0 | R88: 1,812
A89: UMCP | B89: New Journalism Building | C89: Acad | D89: 721,913 | E89: =D89-254796 -> 467,117 | F89: 37,463 | G89: 217,333 | H89: =16785+16785 -> 33,570 | I89: 8,393 | J89: =5194/2 -> 2,597 | K89: 16,463 | L89: =K89-6191 -> 10,272 | M89: =588+509 -> 1,097 | N89: 5,094 | Q89: 0 | R89: 26,678
A90: UMCP | B90: UMBI closeout | C90: Acad | D90: 92,872 | E90: =D90-32779 -> 60,093 | F90: 4,819 | G90: 27,960 | H90: =2159+2159 -> 4,318 | I90: 1,080 | J90: =668/2 -> 334 | K90: 2,115 | L90: =K90-796 -> 1,319 | M90: =76+66 -> 142 | N90: 654 | Q90: 0 | R90: 3,431
A91: BSU | B91: Emergency Funds | C91: Acad | D91: 189,323 | E91: =D91-66821 -> 122,502 | F91: 9,825 | G91: 56,996 | H91: =4402+4402 -> 8,804 | I91: 2,201 | J91: =1362/2 -> 681 | K91: 4,320 | L91: =K91-1624 -> 2,696 | M91: =154+134 -> 288 | N91: 1,336 | Q91: 0 | R91: 6,996
A92: BSU | B92: Facilities Renewal | C92: Acad | D92: 261,592 | E92: =D92-92328 -> 169,264 | F92: 13,575 | G92: 78,753 | H92: =6082+6082 -> 12,164 | I92: 3,041 | J92: =1882/2 -> 941 | K92: 5,966 | L92: =K92-2243 -> 3,723 | M92: =213+185 -> 398 | N92: 1,845 | Q92: 0 | R92: 9,666
A93: TU | B93: Emergency Projects | C93: Acad | D93: 3,465 | E93: =D93-1223 -> 2,242 | F93: =180 -> 180 | G93: 1,043 | H93: =81+81 -> 162 | I93: 41 | J93: =25/2 -> 13 | K93: 77 | L93: =K93-30 -> 47 | M93: =3+2 -> 5 | N93: 25 | Q93: 0 | R93: 129
A94: TU | B94: Facilities Renewal | C94: Acad | D94: 1,192,800 | E94: =D94-420993 -> 771,807 | F94: 61,898 | G94: 359,095 | H94: =27733+27733 -> 55,466 | I94: 13,867 | J94: =8583/2 -> 4,292 | K94: 27,197 | L94: =K94-10229 -> 16,968 | M94: =972+842 -> 1,814 | N94: 8,415 | Q94: 0 | R94: 44,077
A95: UMES | B95: Facilities Renewal | C95: Acad | D95: 35,765 | E95: =D95-12623 -> 23,142 | F95: 1,856 | G95: 10,767 | H95: =832+832 -> 1,664 | I95: 416 | J95: =257/2 -> 129 | K95: 817 | L95: =K95-307 -> 510 | M95: =29+25 -> 54 | N95: 253 | Q95: 0 | R95: 1,323
A96: UMES | B96: Utilities Upgrade/ Site Improvements | C96: Acad | D96: 499,100 | E96: =D96-176155 -> 322,945 | F96: 25,900 | G96: 150,255 | H96: =11604+11604 -> 23,208 | I96: 5,802 | J96: =3591/2 -> 1,796 | K96: 11,377 | L96: =K96-4280 -> 7,097 | M96: =407+352 -> 759 | N96: 3,521 | Q96: 0 | R96: 18,443
A97: FSU | B97: Emergency Funds | C97: Acad | D97: 53,040 | E97: =D97-18720 -> 34,320 | F97: 2,752 | G97: 15,968 | H97: =1233+1233 -> 2,466 | I97: 617 | J97: =382/2 -> 191 | K97: 1,212 | L97: =K97-455 -> 757 | M97: =43+37 -> 80 | N97: 375 | Q97: 0 | R97: 1,961
A98: FSU | B98: Facilities Renewal | C98: Acad | D98: 212,638 | E98: =D98-75050 -> 137,588 | F98: 11,035 | G98: 64,015 | H98: =4944+4944 -> 9,888 | I98: 2,472 | J98: =1530/2 -> 765 | K98: 4,851 | L98: =K98-1824 -> 3,027 | M98: =173+150 -> 323 | N98: 1,501 | Q98: 0 | R98: 7,858
A99: CSC | B99: Facilities Renewal | C99: Acad | D99: 272,501 | E99: =D99-96178 -> 176,323 | F99: 14,141 | G99: 82,037 | H99: =6336+6336 -> 12,672 | I99: 3,168 | J99: =1961/2 -> 981 | K99: 6,214 | L99: =K99-2337 -> 3,877 | M99: =222+192 -> 414 | N99: 1,923 | Q99: 0 | R99: 10,071
A100: CSC | B100: Health & Human Services Bldg | C100: Acad | D100: 56,050 | E100: =D100-19782 -> 36,268 | F100: 2,909 | G100: 16,873 | H100: =1303+1303 -> 2,606 | I100: 652 | J100: =403/2 -> 202 | K100: 1,275 | L100: =K100-481 -> 794 | M100: =46+40 -> 86 | N100: 395 | Q100: 0 | R100: 2,070
A101: UB | B101: Emergency Funds | C101: Acad | D101: 199,661 | E101: =D101-70470 -> 129,191 | F101: 10,361 | G101: 60,109 | H101: =4642+4642 -> 9,284 | I101: 2,321 | J101: =1437/2 -> 719 | K101: 4,550 | L101: =K101-1712 -> 2,838 | M101: =163+141 -> 304 | N101: 1,408 | Q101: 0 | R101: 7,378
A102: UB | B102: Facilities Renewal | C102: Acad | D102: 227,426 | E102: =D102-80269 -> 147,157 | F102: 11,802 | G102: 68,467 | H102: =5288+5288 -> 10,576 | I102: 2,644 | J102: =1636/2 -> 818 | K102: 5,189 | L102: =K102-1950 -> 3,239 | M102: =185+160 -> 345 | N102: 1,605 | Q102: 0 | R102: 8,405
A103: SU | B103: Facilities Renewal | C103: Acad | D103: 213,123 | E103: =D103-75221 -> 137,902 | F103: 11,060 | G103: 64,161 | H103: =4955+4955 -> 9,910 | I103: 2,478 | J103: =1533/2 -> 767 | K103: 4,856 | L103: =K103-1828 -> 3,028 | M103: =174+150 -> 324 | N103: 1,504 | Q103: 0 | R103: 7,875
A104: UMBC | B104: Facilities Renewal | C104: Acad | D104: 369,169 | E104: =D104-130297 -> 238,872 | F104: 19,157 | G104: 111,140 | H104: =8583+8583 -> 17,166 | I104: 4,292 | J104: =2656/2 -> 1,328 | K104: 8,416 | L104: =K104-3166 -> 5,250 | M104: =301+260 -> 561 | N104: 2,605 | Q104: 0 | R104: 13,642
A105: UMBC | B105: UMBI Closeout | C105: Acad | D105: 128,150 | E105: =D105-45230 -> 82,920 | F105: 6,650 | G105: 38,580 | H105: =2980+2980 -> 5,960 | I105: 1,490 | J105: =922/2 -> 461 | K105: 2,926 | L105: =K105-1099 -> 1,827 | M105: =104+90 -> 194 | N105: 905 | Q105: 0 | R105: 4,737
A106: CEES | B106: Facilities Renewal | C106: Acad | D106: 195,261 | E106: =D106-68917 -> 126,344 | F106: =10133 -> 10,133 | G106: 58,784 | H106: =4540+4540 -> 9,080 | I106: 2,270 | J106: =1405/2 -> 703 | K106: 4,453 | L106: =K106-1675 -> 2,778 | M106: =159+138 -> 297 | N106: 1,378 | Q106: 0 | R106: 7,216
A107: USMH | B107: Shady Grove Education Center III | C107: Acad | D107: 556,745 | E107: =D107-196498 -> 360,247 | F107: 28,891 | G107: 167,607 | H107: =12944+12944 -> 25,888 | I107: 6,472 | J107: =4006/2 -> 2,003 | K107: 12,701 | L107: =K107-4775 -> 7,926 | M107: =453+393 -> 846 | N107: 3,929 | Q107: 0 | R107: 20,573
D108: 0 | G108: 0 | K108: 0 | N108: 0 | Q108: 0 | R108: 0
A109: UMB | B109: New Campus Center | C109: Auxil | D109: 15,408,872 | E109: =D109-5438489 -> 9,970,383 | F109: 799,619 | G109: 4,638,870 | H109: =358260+358260 -> 716,520 | I109: 179,130 | J109: =110871/2 -> 55,436 | K109: 351,406 | L109: =K109-132147 -> 219,259 | M109: =12550+10873 -> 23,423 | N109: 108,724 | Q109: 0 | R109: 569,403
A110: UMCP | B110: Byrd Stadium Expansion | C110: Auxil | D110: 17,850,226 | E110: =D110-6300153 -> 11,550,073 | F110: 926,309 | G110: 5,373,844 | H110: =415022+415022 -> 830,044 | I110: 207,511 | J110: =128438/2 -> 64,219 | K110: 407,076 | L110: =K110-153084 -> 253,992 | M110: =14539+12595 -> 27,134 | N110: 125,950 | Q110: 0 | R110: 659,618
A111: UMCP | B111: Fraternity/Sorority Houses Expan | C111: Auxil | D111: 1,377,230 | E111: =D111-486087 -> 891,143 | F111: 71,469 | G111: 414,618 | H111: =32021+32021 -> 64,042 | I111: 16,011 | J111: =9910/2 -> 4,955 | K111: 31,405 | L111: =K111-11811 -> 19,594 | M111: =1122+972 -> 2,094 | N111: 9,717 | Q111: 0 | R111: 50,893
A112: UMCP | B112: Golf Course Improvements | C112: Auxil | D112: 1,705,853 | E112: =D112-602073 -> 1,103,780 | F112: 88,523 | G112: 513,550 | H112: =39662+39662 -> 79,324 | I112: 19,831 | J112: =12274/2 -> 6,137 | K112: 38,906 | L112: =K112-14629 -> 24,277 | M112: =1389+1204 -> 2,593 | N112: 12,036 | Q112: 0 | R112: 63,037
A113: UMCP | B113: SCUB Utilities Facility | C113: Auxil | D113: 845,198 | E113: =D113-298308 -> 546,890 | F113: 43,860 | G113: 254,448 | H113: =19651+19651 -> 39,302 | I113: 9,826 | J113: =6081/2 -> 3,041 | K113: 19,279 | L113: =K113-7248 -> 12,031 | M113: =688+596 -> 1,284 | N113: 5,964 | Q113: 0 | R113: 31,233
A114: BSU | B114: Holmes Hall & Tubman Hall Renov | C114: Auxil | D114: 329,021 | E114: =D114-116126 -> 212,895 | F114: 17,074 | G114: 99,052 | H114: =7650+7650 -> 15,300 | I114: 3,825 | J114: =2367/2 -> 1,184 | K114: 7,503 | L114: =K114-2822 -> 4,681 | M114: =268+232 -> 500 | N114: 2,322 | Q114: 0 | R114: 12,159
A115: BSU | B115: New Student Center | C115: Auxil | D115: 906 | E115: =D115-320 -> 586 | F115: 47 | G115: 273 | H115: =21+21 -> 42 | I115: 11 | J115: =7/2 -> 4 | K115: 18 | L115: =K115-8 -> 10 | M115: 2 | N115: 6 | Q115: 0 | R115: 33
A116: TU | B116: Towsontown Garage Expansion | C116: Auxil | D116: 152,404 | E116: =D116-53790 -> 98,614 | F116: 7,909 | G116: 45,881 | H116: =3543+3543 -> 7,086 | I116: 1,772 | J116: =1097/2 -> 549 | K116: 3,477 | L116: =K116-1307 -> 2,170 | M116: =124+108 -> 232 | N116: 1,075 | Q116: 0 | R116: 5,631
A117: TU | B117: Towson Center Arena | C117: Auxil | D117: 726,318 | E117: =D117-256351 -> 469,967 | F117: 37,691 | G117: 218,660 | H117: =16887+16887 -> 33,774 | I117: 8,444 | J117: =5226/2 -> 2,613 | K117: 16,560 | L117: =K117-6229 -> 10,331 | M117: =592+512 -> 1,104 | N117: 5,125 | Q117: 0 | R117: 26,840
A118: TU | B118: West Village Dining Commons | C118: Auxil | D118: 1,307,870 | E118: =D118-461607 -> 846,263 | F118: 67,870 | G118: 393,737 | H118: =30408+30408 -> 60,816 | I118: 15,204 | J118: =9411/2 -> 4,706 | K118: 29,829 | L118: =K118-11216 -> 18,613 | M118: =1065+923 -> 1,988 | N118: 9,228 | Q118: 0 | R118: 48,330
A119: TU | B119: West Villiage Infrastructure & Site | C119: Auxil | D119: 1,306,101 | E119: =D119-460983 -> 845,118 | F119: 67,778 | G119: 393,205 | H119: =30367+30367 -> 60,734 | I119: 15,184 | J119: =9398/2 -> 4,699 | K119: 29,784 | L119: =K119-11201 -> 18,583 | M119: =1064+922 -> 1,986 | N119: 9,215 | Q119: 0 | R119: 48,264
A120: UMES | B120: Wicomico Hall Renovation | C120: Auxil | D120: 2,031,871 | E120: =D120-717140 -> 1,314,731 | F120: 105,441 | G120: 611,699 | H120: =47242+47242 -> 94,484 | I120: 23,621 | J120: =14620/2 -> 7,310 | K120: 46,337 | L120: =K120-17425 -> 28,912 | M120: =1655+1434 -> 3,089 | N120: 14,336 | Q120: 0 | R120: 75,084
A121: FSU | B121: Lane Center Renovation | C121: Auxil | D121: 583,826 | E121: =D121-206059 -> 377,767 | F121: 30,297 | G121: 175,762 | H121: =13574+13574 -> 27,148 | I121: 6,787 | J121: =4201/2 -> 2,101 | K121: 13,309 | L121: =K121-5007 -> 8,302 | M121: =476+412 -> 888 | N121: 4,119 | Q121: 0 | R121: 21,574
A122: CSU | B122: Parking Garage | C122: Auxil | D122: 228,510 | E122: =D122-80651 -> 147,859 | F122: 11,858 | G122: 68,793 | H122: =5313+5313 -> 10,626 | I122: 2,657 | J122: =1644/2 -> 822 | K122: 5,212 | L122: =K122-1960 -> 3,252 | M122: =186+161 -> 347 | N122: 1,613 | Q122: 0 | R122: 8,445
A123: SU | B123: Dormitory Renovations | C123: Auxil | D123: 986,748 | E123: =D123-348269 -> 638,479 | F123: 51,206 | G123: 297,063 | H123: =22942+22942 -> 45,884 | I123: 11,471 | J123: =7100/2 -> 3,550 | K123: 22,500 | L123: =K123-8462 -> 14,038 | M123: =804+696 -> 1,500 | N123: 6,962 | Q123: 0 | R123: 36,463
A124: SU | B124: New Parking Garage & Property Acq | C124: Auxil | D124: 8,117,092 | E124: =D124-2864889 -> 5,252,203 | F124: 421,224 | G124: 2,443,665 | H124: =188724+188724 -> 377,448 | I124: 94,362 | J124: =58405/2 -> 29,203 | K124: 185,115 | L124: =K124-69613 -> 115,502 | M124: =6611+5728 -> 12,339 | N124: 57,274 | Q124: 0 | R124: 299,950
A125: UMBC | B125: Athletic Practice Fields | C125: Auxil | D125: 602,700 | E125: =D125-212720 -> 389,980 | F125: 31,276 | G125: 181,444 | H125: =14013+14013 -> 28,026 | I125: 7,007 | J125: =4337/2 -> 2,169 | K125: 13,744 | L125: =K125-5169 -> 8,575 | M125: =491+425 -> 916 | N125: 4,253 | Q125: 0 | R125: 22,272
A126: UMBC | B126: Dining Hall Upgrades | C126: Auxil | D126: 265,057 | E126: =D126-93551 -> 171,506 | F126: 13,755 | G126: 79,796 | H126: =6163+6163 -> 12,326 | I126: 3,082 | J126: =1907/2 -> 954 | K126: 6,044 | L126: =K126-2273 -> 3,771 | M126: =216+187 -> 403 | N126: 1,870 | Q126: 0 | R126: 9,795
A127: UMBC | B127: New Recreation & Athletic | C127: Auxil | D127: 179,889 | E127: =D127-63491 -> 116,398 | F127: 9,335 | G127: 54,156 | H127: =4182+4182 -> 8,364 | I127: 2,091 | J127: =1294/2 -> 647 | K127: 4,098 | L127: =K127-1543 -> 2,555 | M127: =147+127 -> 274 | N127: 1,269 | Q127: 0 | R127: 6,646
A128: UMBC | B128: Residence Hall Renovations | C128: Auxil | D128: 2,322,890 | E128: =D128-819853 -> 1,503,037 | F128: 120,543 | G128: 699,310 | H128: =54008+54008 -> 108,016 | I128: 27,004 | J128: =16714/2 -> 8,357 | K128: 52,974 | L128: =K128-19921 -> 33,053 | M128: =1892+1639 -> 3,531 | N128: 16,390 | Q128: 0 | R128: 85,838
A129: USMH | B129: Shady Grove Parking Lot 2 | D129: 7,747,401 | E129: =D129-2734409-3 -> 5,012,989 | F129: =402039-2 -> 402,037 | G129: 2,332,375 | H129: =180129+180129 -> 360,258 | I129: 90,065 | J129: =55745/2 -> 27,873 | K129: 176,683 | L129: =K129-66442-6 -> 110,235 | M129: =6310+5467 -> 11,777 | N129: 54,671 | Q129: 0 | R129: 286,289
A130: USMH | B130: Unused proceeds | D130: 0 | G130: 0 | K130: (0) | N130: (0) | Q130: 0 | R130: 0
B133: Total New Money | D133: =SUM(D85:D131) -> 71,300,006 | E133: =SUM(E85:E131) -> 46,135,000 | F133: 3,700,000 | G133: 21,465,006 | H133: 3,315,486 | I133: 828,872 | J133: 256,513 | K133: 1,625,991 | L133: 1,014,515 | M133: 108,386 | N133: 503,090 | O133: 0 | P133: 0 | Q133: 0 | R133: 2,634,741 | S133: 0
B135: Totals 2008 A & B | D135: =D31+D82+D133 -> 82,480,000 | E135: =E31+E82+E133 -> 46,135,000 | F135: 3,710,000 | G135: 32,635,000 | H135: 3,748,767 | I135: 937,236 | J135: 364,787 | K135: 1,728,332 | L135: 1,014,515 | M135: 149,292 | N135: 564,525 | O135: 187,256 | P135: 74,930 | Q135: 112,326 | R135: 3,101,956 | S135: 0
B138: Institutional Summary 98 Series A
B139: UMAB
B140: UMCP | D140: =D12+D13+D14+D20+D21+D24+D26+D28 -> 0 | F140: 0 | G140: 0 | H140: 0 | I140: 0 | J140: 0 | K140: 0 | M140: 0 | N140: 0 | O140: 0 | P140: 0 | Q140: 0 | R140: 0 | S140: 0
B141: BSU | D141: =D19 -> 0 | F141: 0 | G141: 0 | H141: 0 | I141: 0 | J141: 0 | K141: 0 | M141: 0 | N141: 0 | O141: 0 | P141: 0 | Q141: 0 | R141: 0 | S141: 0
B142: TSU | D142: =D23+D27 -> 0 | F142: 0 | G142: 0 | H142: 0 | I142: 0 | J142: 0 | K142: 0 | M142: 0 | N142: 0 | O142: 0 | P142: 0 | Q142: 0 | R142: 0 | S142: 0
B143: UMES | D143: =D18 -> 0 | F143: 0 | G143: 0 | H143: 0 | I143: 0 | J143: 0 | K143: 0 | M143: 0 | N143: 0 | O143: 0 | P143: 0 | Q143: 0 | R143: 0 | S143: 0
B144: FSU
B145: CSC | D145: =D17 -> 0 | F145: 0 | G145: 0 | H145: 0 | I145: 0 | J145: 0 | K145: 0 | M145: 0 | N145: 0 | O145: 0 | P145: 0 | Q145: 0 | R145: 0 | S145: 0
B146: UB | D146: =D22 -> 0 | F146: 0 | G146: 0 | H146: 0 | I146: 0 | J146: 0 | K146: 0 | M146: 0 | N146: 0 | O146: 0 | P146: 0 | Q146: 0 | R146: 0 | S146: 0
B147: SSU | D147: =D15 -> 0 | F147: 0 | G147: 0 | H147: 0 | I147: 0 | J147: 0 | K147: 0 | M147: 0 | N147: 0 | O147: 0 | P147: 0 | Q147: 0 | R147: 0 | S147: 0
B148: UMUC
B149: UMBC | D149: =D10+D16 -> 0 | F149: 0 | G149: 0 | H149: 0 | I149: 0 | J149: 0 | K149: 0 | M149: 0 | N149: 0 | O149: 0 | P149: 0 | Q149: 0 | R149: 0 | S149: 0
B150: CEES | D150: =D11 -> 0 | F150: 0 | G150: 0 | H150: 0 | I150: 0 | J150: 0 | K150: 0 | M150: 0 | N150: 0 | O150: 0 | P150: 0 | Q150: 0 | R150: 0 | S150: 0
B151: UMBI
B152: USMH | D152: =D25 -> 0 | F152: 0 | G152: 0 | H152: 0 | I152: 0 | J152: 0 | K152: 0 | M152: 0 | N152: 0 | O152: 0 | P152: 0 | Q152: 0 | R152: 0 | S152: 0
B154: Totals | D154: =SUM(D139:D152) -> 0 | F154: =SUM(F139:F152) -> 0 | G154: 0 | H154: 0 | I154: 0 | J154: 0 | K154: =SUM(K139:K152) -> 0 | M154: 0 | N154: 0 | O154: 0 | P154: 0 | Q154: 0 | R154: 0 | S154: 0
B156: Institutional Summary 99 Series A
B157: UMAB | D157: =D35+D36+D37+D38+D39+D40+D41 -> 690,957 | F157: 619 | G157: 690,338 | H157: 26,777 | I157: 6,697 | J157: 6,692 | K157: 6,340 | M157: 2,526 | N157: 3,814 | O157: 11,557 | P157: 4,634 | Q157: 6,923 | R157: 28,880 | S157: 0
B158: UMCP | D158: =D42+D43+D44+D45+D46+D47+D48+D49+D50+D51+D52+D53+D54+D55+D56+D57+D58 -> 5,255,690 | F158: 4,701 | G158: 5,250,989 | H158: 203,681 | I158: 50,940 | J158: 50,899 | K158: 48,083 | M158: 19,232 | N158: 28,851 | O158: 88,029 | P158: 35,222 | Q158: 52,807 | R158: 219,630 | S158: 0
B159: BSU | D159: =D59 -> 27,168 | F159: 24 | G159: 27,144 | H159: 1,053 | I159: 264 | J159: 263 | K159: 245 | M159: 100 | N159: 145 | O159: 456 | P159: 182 | Q159: 274 | R159: 1,135 | S159: 0
B160: TSU | D160: =D60+D61+D62 -> 248,655 | F160: 222 | G160: 248,433 | H160: 9,637 | I160: 2,411 | J160: 2,408 | K160: 2,288 | M160: 908 | N160: 1,380 | O160: 4,169 | P160: 1,666 | Q160: 2,503 | R160: 10,393 | S160: 0
B161: UMES | D161: =D63+D64+D65 -> 2,230,650 | F161: 1,996 | G161: 2,228,654 | H161: 86,450 | I161: 21,622 | J161: 21,604 | K161: 20,411 | M161: 8,164 | N161: 12,247 | O161: 37,370 | P161: 14,950 | Q161: 22,420 | R161: 93,218 | S161: 0
B162: FSU | D162: =D66+D67 -> 252,281 | F162: 226 | G162: 252,055 | H162: 9,778 | I162: 2,446 | J162: 2,444 | K162: 2,316 | M162: 922 | N162: 1,394 | O162: 4,231 | P162: 1,690 | Q162: 2,541 | R162: 10,544 | S162: 0
B163: CSC | D163: =D68+D69 -> 125,991 | F163: 112 | G163: 125,879 | H163: 4,883 | I163: 1,222 | J163: 1,220 | K163: 1,160 | M163: 460 | N163: 700 | O163: 2,113 | P163: 844 | Q163: 1,269 | R163: 5,266 | S163: 0
B164: UB | D164: =D70 -> 49,660 | F164: 44 | G164: 49,616 | H164: 1,925 | I164: 482 | J164: 481 | K164: 453 | M164: 182 | N164: 271 | O164: 837 | P164: 332 | Q164: 505 | R164: 2,075 | S164: 0
B165: SSU | D165: 23,726 | F165: 21 | G165: 23,705 | H165: 920 | I165: 230 | J165: 230 | K165: 222 | M165: 86 | N165: 136 | O165: 392 | P165: 160 | Q165: 232 | R165: 994 | S165: 0
B166: UMUC | D166: =#REF! ->  | F166: =#REF! ->  | G166: =#REF! ->  | H166: =#REF! ->  | I166: =#REF! ->  | J166: =#REF! ->  | K166: =#REF! ->  | M166: =#REF! ->  | N166: =#REF! ->  | O166: =#REF! ->  | P166: =#REF! ->  | Q166: =#REF! ->  | R166: =#REF! ->  | S166: =#REF! -> 
B167: UMBC | D167: =D72+D73+D74+D75+D76+D77 -> 2,260,446 | F167: 2,021 | G167: 2,258,425 | H167: 87,605 | I167: 21,911 | J167: 21,892 | K167: 20,690 | M167: 8,272 | N167: 12,418 | O167: 37,855 | P167: 15,152 | Q167: 22,703 | R167: 94,467 | S167: 0
B168: CEES | D168: =D80 -> 9,201 | F168: 8 | G168: 9,193 | H168: 356 | I168: 89 | J168: 89 | K168: 82 | M168: 34 | N168: 48 | O168: 152 | P168: 62 | Q168: 90 | R168: 384 | S168: 0
B169: UMBI
B170: USMH | D170: =D78+D83+D79 -> 5,569 | F170: 6 | G170: 5,563 | H170: 216 | I170: 54 | J170: 54 | K170: 50 | M170: 20 | N170: 30 | O170: 96 | P170: 36 | Q170: 60 | R170: 232 | S170: 0
B172: Totals | D172: =SUM(D157:D170) ->  | F172: =SUM(F157:F170) ->  | K172: =SUM(K157:K170) -> 
B174: Institutional Summary-New Money
B175: UMAB | D175: =D87+D88+D109 -> 17,152,301 | F175: 890,091 | G175: 5,163,732 | H175: 797,590 | I175: 199,398 | J175: 61,708 | K175: 391,165 | M175: 26,074 | N175: 121,024 | O175: 0 | P175: 0 | Q175: 0 | R175: 633,827 | S175: 0
B176: UMCP | D176: =D89+D110+D111+D112+D113+D90 -> 22,593,292 | F176: 1,172,443 | G176: 6,801,753 | H176: 1,050,600 | I176: 262,650 | J176: 81,283 | K176: 515,245 | M176: 34,344 | N176: 159,415 | O176: 0 | P176: 0 | Q176: 0 | R176: 834,889 | S176: 0
B177: BSU | D177: =D91+D92+D114+D115 -> 780,842 | F177: 40,521 | G177: 235,074 | H177: 36,310 | I177: 9,078 | J177: 2,809 | K177: 17,807 | M177: 1,188 | N177: 5,509 | O177: 0 | P177: 0 | Q177: 0 | R177: 28,854 | S177: 0
B178: TSU | D178: =D93+D94+D116+D117+D118+D119 -> 4,688,958 | F178: 243,326 | G178: 1,411,621 | H178: 218,038 | I178: 54,510 | J178: 16,870 | K178: 106,924 | M178: 7,129 | N178: 33,083 | O178: 0 | P178: 0 | Q178: 0 | R178: 173,270 | S178: 0
B179: UMES | D179: =D96+D120+D95 -> 2,566,736 | F179: 133,197 | G179: 772,721 | H179: 119,356 | I179: 29,839 | J179: 9,234 | K179: 58,531 | M179: 3,902 | N179: 18,110 | O179: 0 | P179: 0 | Q179: 0 | R179: 94,849 | S179: 0
B180: FSU | D180: =D97+D98+D121 -> 849,504 | F180: 44,084 | G180: 255,745 | H180: 39,502 | I180: 9,876 | J180: 3,057 | K180: 19,372 | M180: 1,291 | N180: 5,995 | O180: 0 | P180: 0 | Q180: 0 | R180: 31,392 | S180: 0
B181: CSC | D181: =D99+D100+D122 -> 557,061 | F181: 28,908 | G181: 167,703 | H181: 25,904 | I181: 6,476 | J181: 2,004 | K181: 12,701 | M181: 847 | N181: 3,931 | O181: 0 | P181: 0 | Q181: 0 | R181: 20,585 | S181: 0
B182: UB | D182: =D101+D102 -> 427,087 | F182: 22,163 | G182: 128,576 | H182: 19,860 | I182: 4,965 | J182: 1,537 | K182: 9,738 | M182: 649 | N182: 3,013 | O182: 0 | P182: 0 | Q182: 0 | R182: 15,783 | S182: 0
B183: SSU | D183: =D103+D123+D124 -> 9,316,963 | F183: 483,490 | G183: 2,804,889 | H183: 433,242 | I183: 108,311 | J183: 33,519 | K183: 212,471 | M183: 14,163 | N183: 65,740 | O183: 0 | P183: 0 | Q183: 0 | R183: 344,288 | S183: 0
B184: UMUC
B185: UMBC | D185: =D104+D125+D126+#REF!+D127+D128+D105 ->  | F185: =F104+F125+F126+#REF!+F127+F128+F105 ->  | G185: =G104+G125+G126+#REF!+G127+G128+G105 ->  | H185: =H104+H125+H126+#REF!+H127+H128+H105 ->  | I185: =I104+I125+I126+#REF!+I127+I128+I105 ->  | J185: =J104+J125+J126+#REF!+J127+J128+J105 ->  | K185: =K104+K125+K126+#REF!+K127+K128+K105 ->  | M185: =M104+M125+M126+#REF!+M127+M128+M105 ->  | N185: =N104+N125+N126+#REF!+N127+N128+N105 ->  | O185: =O104+O125+O126+#REF!+O127+O128+O105 ->  | P185: =P104+P125+P126+#REF!+P127+P128+P105 ->  | Q185: =Q104+Q125+Q126+#REF!+Q127+Q128+Q105 ->  | R185: =R104+R125+R126+#REF!+R127+R128+R105 ->  | S185: =S104+S125+S126+#REF!+S127+S128+S105 -> 
B186: CEES | D186: =D106 -> 195,261 | F186: 10,133 | G186: 58,784 | H186: 9,080 | I186: 2,270 | J186: 703 | K186: 4,453 | M186: 297 | N186: 1,378 | O186: 0 | P186: 0 | Q186: 0 | R186: 7,216 | S186: 0
B187: UMBI | D187: =#REF!+#REF! ->  | F187: =#REF!+#REF! ->  | G187: =#REF!+#REF! ->  | H187: =#REF!+#REF! ->  | I187: =#REF!+#REF! ->  | J187: =#REF!+#REF! ->  | K187: =#REF!+#REF! ->  | M187: =#REF!+#REF! ->  | N187: =#REF!+#REF! ->  | O187: =#REF!+#REF! ->  | P187: =#REF!+#REF! ->  | Q187: =#REF!+#REF! ->  | R187: =#REF!+#REF! ->  | S187: =#REF!+#REF! -> 
B188: USMH | D188: =D107+D129+D130 -> 8,304,146 | F188: 430,928 | G188: 2,499,982 | H188: 386,146 | I188: 96,537 | J188: 29,876 | K188: 189,384 | M188: 12,623 | N188: 58,600 | O188: 0 | P188: 0 | Q188: 0 | R188: 306,862 | S188: 0
B190: Totals | D190: =SUM(D174:D188) ->  | F190: =SUM(F174:F188) -> 
B192: Total
B193: UMAB | D193: =D139+D157+D175 -> 17,843,258 | F193: =F139+F157+F175 -> 890,710 | G193: 5,854,070 | H193: 824,367 | I193: 206,095 | J193: 68,400 | K193: 397,505 | M193: 28,600 | N193: 124,838 | O193: 11,557 | P193: 4,634 | Q193: 6,923 | R193: 662,706 | S193: 0
B194: UMCP | D194: 27,848,982 | F194: 1,177,144 | G194: 12,052,742 | H194: 1,254,281 | I194: 313,590 | J194: 132,181 | K194: 563,328 | M194: 53,576 | N194: 188,266 | O194: 88,029 | P194: 35,222 | Q194: 52,807 | R194: 1,054,518 | S194: 0
B195: BSU | D195: 808,010 | F195: 40,545 | G195: 262,218 | H195: 37,363 | I195: 9,341 | J195: 3,072 | K195: 18,052 | M195: 1,288 | N195: 5,654 | O195: 456 | P195: 182 | Q195: 274 | R195: 29,988 | S195: 0
B196: TSU | D196: 4,937,613 | F196: 243,548 | G196: 1,660,054 | H196: 227,675 | I196: 56,920 | J196: 19,278 | K196: 109,211 | M196: 8,037 | N196: 34,463 | O196: 4,169 | P196: 1,666 | Q196: 2,503 | R196: 183,662 | S196: 0
B197: UMES | D197: 4,797,386 | F197: 135,193 | G197: 3,001,375 | H197: 205,806 | I197: 51,461 | J197: 30,838 | K197: 78,942 | M197: 12,066 | N197: 30,357 | O197: 37,370 | P197: 14,950 | Q197: 22,420 | R197: 188,067 | S197: 0
B198: FSU | D198: 1,101,785 | F198: 44,310 | G198: 507,800 | H198: 49,280 | I198: 12,321 | J198: 5,500 | K198: 21,689 | M198: 2,213 | N198: 7,389 | O198: 4,231 | P198: 1,690 | Q198: 2,541 | R198: 41,936 | S198: 0
B199: CSC | D199: 683,052 | F199: 29,020 | G199: 293,582 | H199: 30,787 | I199: 7,698 | J199: 3,224 | K199: 13,861 | M199: 1,307 | N199: 4,631 | O199: 2,113 | P199: 844 | Q199: 1,269 | R199: 25,851 | S199: 0
B200: UB | D200: 476,747 | F200: 22,207 | G200: 178,192 | H200: 21,785 | I200: 5,447 | J200: 2,018 | K200: 10,191 | M200: 831 | N200: 3,284 | O200: 837 | P200: 332 | Q200: 505 | R200: 17,857 | S200: 0
B201: SSU | D201: 9,340,689 | F201: 483,511 | G201: 2,828,594 | H201: 434,162 | I201: 108,541 | J201: 33,749 | K201: 212,693 | M201: 14,249 | N201: 65,876 | O201: 392 | P201: 160 | Q201: 232 | R201: 345,282 | S201: 0
B202: UMUC
B203: UMBC
B204: CEES | D204: 204,462 | F204: 10,141 | G204: 67,977 | H204: 9,436 | I204: 2,359 | J204: 792 | K204: 4,536 | M204: 331 | N204: 1,426 | O204: 152 | P204: 62 | Q204: 90 | R204: 7,600 | S204: 0
B205: UMBI
B206: USMH | D206: 8,309,715 | F206: 430,934 | G206: 2,505,545 | H206: 386,362 | I206: 96,591 | J206: 29,930 | K206: 189,434 | M206: 12,643 | N206: 58,630 | O206: 96 | P206: 36 | Q206: 60 | R206: 307,094 | S206: 0
B208: Totals | C208: =SUM(C193:C206) -> 0 | D208: =SUM(D193:D206) ->  | K208: =SUM(K193:K206) -> 
B210: Academic
B211: UMAB | D211: =D35+D36+D37+D38+D39+D40+D87+D88 -> 2,347,064 | E211: =E35+E36+E37+E38+E39+E40+E87+E88 -> 1,128,095 | F211: 91,013 | G211: 1,127,956 | H211: 104,463 | I211: 26,118 | J211: 12,119 | K211: 45,302 | L211: 24,808 | M211: 4,857 | N211: 15,637 | O211: 10,099 | P211: 4,048 | Q211: 6,051 | R211: 89,655 | S211: 0
B212: UMCP | D212: =D12+D42+D43+D44+D45+D46+D47+D48+D89+D90 -> 4,574,110 | E212: =E12+E42+E43+E44+E45+E46+E47+E48+E89+E90 -> 527,210 | F212: 45,644 | G212: 4,001,256 | H212: 183,579 | I212: 45,909 | J212: 39,339 | K212: 52,981 | L212: 11,591 | M212: 14,997 | N212: 26,392 | O212: 62,984 | P212: 25,194 | Q212: 37,790 | R212: 187,206 | S212: 0
B213: BSU | D213: =D59+D91+D92 -> 478,083 | E213: =E59+E91+E92 -> 291,766 | F213: 23,424 | G213: 162,893 | H213: 22,021 | I213: 5,506 | J213: 1,885 | K213: 10,531 | L213: 6,419 | M213: 786 | N213: 3,326 | O213: 456 | P213: 182 | Q213: 274 | R213: 17,797 | S213: 0
B214: TSU | D214: =D60+D93+D94 -> 1,318,348 | E214: =E60+E93+E94 -> 774,049 | F214: 62,187 | G214: 482,112 | H214: 60,360 | I214: 15,091 | J214: 5,487 | K214: 28,397 | L214: 17,015 | M214: 2,265 | N214: 9,116 | O214: 2,047 | P214: 818 | Q214: 1,229 | R214: 49,309 | S214: 0
B215: UMES | D215: =D63+D96+D95 -> 647,476 | E215: =E63+E96+E95 -> 346,087 | F215: 27,857 | G215: 273,532 | H215: 29,236 | I215: 7,310 | J215: 3,015 | K215: 13,225 | L215: 7,607 | M215: 1,225 | N215: 4,393 | O215: 1,891 | P215: 754 | Q215: 1,137 | R215: 24,470 | S215: 0
B216: FSU | D216: =D66+D97+D98 -> 458,845 | E216: =E66+E97+E98 -> 171,908 | F216: 13,960 | G216: 272,977 | H216: 19,841 | I216: 4,961 | J216: 2,827 | K216: 7,836 | L216: 3,784 | M216: 1,109 | N216: 2,943 | O216: 3,240 | P216: 1,294 | Q216: 1,946 | R216: 17,892 | S216: 0
B217: CSC | D217: =D68+D99+D100 -> 416,069 | E217: =E68+E99+E100 -> 212,591 | F217: 17,128 | G217: 186,350 | H217: 18,670 | I217: 4,668 | J217: 2,030 | K217: 8,291 | L217: 4,671 | M217: 820 | N217: 2,801 | O217: 1,470 | P217: 586 | Q217: 884 | R217: 15,798 | S217: 0
B218: UB | D218: =D70+D101+D102 -> 476,747 | E218: =E70+E101+E102 -> 276,348 | F218: 22,207 | G218: 178,192 | H218: 21,785 | I218: 5,447 | J218: 2,018 | K218: 10,191 | L218: 6,076 | M218: 831 | N218: 3,284 | O218: 837 | P218: 332 | Q218: 505 | R218: 17,857 | S218: 0
... 36 more rows

Sheet 09AB
A1: University System of Maryland
A2: 2009 Series A & B
A3: FYE June 30, 2015
H4: Accrued | I4: Accrued | J4: Allocation | K4: =E5 -> FY 2015 | L4: Allocation
E5: FY 2015 | G5: =E5 -> FY 2015 | H5: Interest | I5: Interest | J5: of Unamort. | K5: Amort | L5: of Unamort. | M5: =G5 -> FY 2015 | N5: =M5 -> FY 2015
C6: Academic | D6: Debt | E6: Principal | F6: Debt | G6: Interest | H6: Payable | I6: Payable | J6: Premium | K6: of | L6: Premium | M6: Interest | N6: Capitalized
A7: Project | B7: Institution | C7: /Auxiliary | D7: @ 6/30/14 | E7: Paid | F7: @ 6/30/2015 | G7: Paid | H7: =J7 -> @ 6/30/14 | I7: =L7 -> @ 6/30/2015 | J7: =D7 -> @ 6/30/14 | K7: Premium | L7: =F7 -> @ 6/30/2015 | M7: Expense | N7: Interest
A9: Academic
A10: Facilities Renewal | B10: UMCP | C10: Academic | D10: 3,611,731 | E10: 173,892 | F10: =D10-E10 -> 3,437,839 | G10: =74930+74930 -> 149,860 | H10: 37,465 | I10: =70583/2 -> 35,292 | J10: 127,695 | K10: =4257+4257 -> 8,514 | L10: =J10-K10 -> 119,181 | M10: =G10+I10-H10-K10 -> 139,173
A11: New Journalism Building | B11: UMCP | C11: Academic | D11: 3,685,206 | E11: 177,429 | F11: =D11-E11 -> 3,507,777 | G11: =76455+76455 -> 152,910 | H11: 38,228 | I11: =72019/2 -> 36,010 | J11: 130,297 | K11: =4343+4343 -> 8,686 | L11: =J11-K11 -> 121,611 | M11: 142,006
A12: UMBI closeout | B12: UMCP | C12: Academic | D12: 45,776 | E12: 2,204 | F12: 43,572 | G12: =950+950 -> 1,900 | H12: 475 | I12: =895/2 -> 448 | J12: 1,618 | K12: =54+54 -> 108 | L12: 1,510 | M12: 1,765
A13: Emergency Projects | B13: UMCP | C13: Academic | D13: 123,225 | E13: 5,933 | F13: 117,292 | G13: =2556+2556 -> 5,112 | H13: 1,278 | I13: =2408/2 -> 1,204 | J13: 4,359 | K13: =145+145 -> 290 | L13: 4,069 | M13: 4,748
A14: Facilities Renewal | B14: UMB | C14: Academic | D14: 693,651 | E14: 33,397 | F14: 660,254 | G14: =14391+14391 -> 28,782 | H14: 7,196 | I14: =13556/2 -> 6,778 | J14: 24,521 | K14: =818+818 -> 1,636 | L14: 22,885 | M14: 26,729
A15: Emergency Projects | B15: UMB | C15: Academic | D15: 188,371 | E15: 9,069 | F15: 179,302 | G15: =3908+3908 -> 7,816 | H15: 1,954 | I15: =3681/2 -> 1,841 | J15: 6,660 | K15: =222+222 -> 444 | L15: 6,216 | M15: 7,259
A16: Pharmacy Hall Additions | B16: UMB | C16: Academic | D16: 176,005 | E16: 8,474 | F16: 167,531 | G16: =3651+3651 -> 7,302 | H16: 1,826 | I16: =3440/2 -> 1,720 | J16: 6,226 | K16: =207+207 -> 414 | L16: 5,812 | M16: 6,783
A17: Facilities Renewal | B17: UMES | C17: Academic | D17: 190,929 | E17: 9,193 | F17: 181,736 | G17: =3961+3961 -> 7,922 | H17: 1,981 | I17: =3731/2 -> 1,866 | J17: 6,751 | K17: =225+225 -> 450 | L17: 6,301 | M17: 7,357
A18: Utilities Upgrade | B18: UMES | C18: Academic | D18: 37,947 | E18: 1,827 | F18: 36,120 | G18: =787+787 -> 1,574 | H18: 394 | I18: =742/2 -> 371 | J18: 1,339 | K18: =45+45 -> 90 | L18: 1,249 | M18: 1,462
A19: Facilities Renewal | B19: UMBC | C19: Academic | D19: 307,967 | E19: 14,827 | F19: 293,140 | G19: =6389+6389 -> 12,778 | H19: 3,195 | I19: =6019/2 -> 3,010 | J19: 10,888 | K19: =363+363 -> 726 | L19: 10,162 | M19: 11,867
A20: Facilities Renewal | B20: CEES | C20: Academic | D20: 269,757 | E20: 12,988 | F20: 256,769 | G20: =5597+5597 -> 11,194 | H20: 2,799 | I20: =5272/2 -> 2,636 | J20: 9,537 | K20: =318+318 -> 636 | L20: 8,901 | M20: 10,396
A21: Shady Grove Education III | B21: USM | C21: Academic | D21: 169,813 | E21: 8,176 | F21: 161,637 | G21: =3523+3523 -> 7,046 | H21: 1,762 | I21: =3319/2 -> 1,660 | J21: 6,005 | K21: =200+200 -> 400 | L21: 5,605 | M21: 6,544
A22: Fine & Performing Arts Center | B22: BSU | C22: Academic | D22: 6,503,762 | E22: 313,132 | F22: 6,190,630 | G22: =134930+134930 -> 269,860 | H22: 67,465 | I22: =127101/2 -> 63,551 | J22: 229,950 | K22: =7665+7665 -> 15,330 | L22: 214,620 | M22: 250,616
A23: Facilities Renewal | B23: CSU | C23: Academic | D23: 74,227 | E23: 3,574 | F23: 70,653 | G23: =1540+1540 -> 3,080 | H23: 770 | I23: =1451/2 -> 726 | J23: 2,628 | K23: =87+87 -> 174 | L23: 2,454 | M23: 2,862
A24: New Physical Edu. Complex | B24: CSU | C24: Academic | D24: 9,067,420 | E24: 436,563 | F24: 8,630,857 | G24: =188117+188117 -> 376,234 | H24: 94,059 | I24: =177202/2 -> 88,601 | J24: 320,595 | K24: =10686+10686 -> 21,372 | L24: 299,223 | M24: 349,405
A25: Emergency Projects | B25: CSU | C25: Academic | D25: 87,451 | E25: 4,210 | F25: 83,241 | G25: =1814+1814 -> 3,628 | H25: 907 | I25: =1709/2 -> 855 | J25: 3,092 | K25: =103+103 -> 206 | L25: 2,886 | M25: 3,370
A26: Facilities Renewal | B26: FSU | C26: Academic | D26: 60,489 | E26: 2,912 | F26: 57,577 | G26: =1255+1255 -> 2,510 | H26: 628 | I26: =1182/2 -> 591 | J26: 2,141 | K26: =71+71 -> 142 | L26: 1,999 | M26: 2,332
